Workbook

Sheet Input
A1: The RPEC_2014_v2019 model to construct a mortality improvement scale | R1: Unrounded rates for MP-2019
A2: Written Oct, 2014 by Bob Howard & modified October, 2019 | G2: bob@howardfamily.ca | R2: Male | T2: Female
R3: 2014 | S3: 2015 | T3: 2014 | U3: 2015
A4: Name of improvement scale | D4: MP-2019 | Q4: 20 | R4: -0.005969984892 | S4: -0.02295290461 | T4: -0.01137229178 | U4: -0.02531578382
A5: Long term rates | H5: Convergence | N5: Rounding | Q5: 21 | R5: -0.008484955202 | S5: -0.02487009186 | T5: -0.01372516939 | U5: -0.02727219611 | W5: Manual Ultimate
C6: Age | D6: Rate | H6: The rates for intervening years are obtained by | N6: 4 | O6: decimals | Q6: 22 | R6: -0.01145203129 | S6: -0.02744954506 | T6: -0.01617925839 | U6: -0.02934494305 | X6: Male | Y6: Female
A7: Line segments | C7: 85 | D7: 0.01 | H7: combining cubics running from historical to long term | N7: Calculations are done without | Q7: 23 | R7: -0.01478984688 | S7: -0.03059463667 | T7: -0.01871694946 | U7: -0.03153071725 | W7: 20
C8: 95 | D8: 0.0085 | H8: 1. by attained age | N8: rounding until the final | Q8: 24 | R8: -0.01839134639 | S8: -0.03415755708 | T8: -0.02129769735 | U8: -0.03380894498 | W8: 21
C9: 115 | D9: 0 | H9: 2. by birth cohort | N9: numbers are displayed. | Q9: 25 | R9: -0.02212944686 | S9: -0.03795261199 | T9: -0.02386151845 | U9: -0.03614150692 | W9: 22
I10: Birth cohort proportion | Q10: 26 | R10: -0.02586404513 | S10: -0.04177896636 | T10: -0.02633768966 | U10: -0.03847628767 | W10: 23
H11: Male | I11: 0.5 | Q11: 27 | R11: -0.02945099414 | S11: -0.04544498408 | T11: -0.02864919427 | U11: -0.04074175819 | W11: 24
A12: The long term rates are developed as line segments. | H12: Female | I12: 0.5 | Q12: 28 | R12: -0.03275387413 | S12: -0.04878679848 | T12: -0.03071633303 | U12: -0.04283783742 | W12: 25
A13: The first line segment is flat from age 20 to the age specified. | Q13: 29 | R13: -0.03565306576 | S13: -0.05168076778 | T13: -0.03245946859 | U13: -0.04463672688 | W13: 26
A14: Tne next segment begins there and ends at the next age and rate | H14: Convergence to ultimate in year | Q14: 30 | R14: -0.03804687418 | S14: -0.05404349325 | T14: -0.03379981941 | U14: -0.04599592209 | W14: 27
A15: specified, until all the age-rates are used. The ages must be | H15: Age | I15: 2025 | Q15: 31 | R15: -0.03984959388 | S15: -0.0558175775 | T15: -0.03465897795 | U15: -0.04677495127 | W15: 28
A16: ascending order. | H16: Cohort | I16: 2035 | Q16: 32 | R16: -0.04098702336 | S16: -0.05695169289 | T16: -0.03495938318 | U16: -0.04685613458 | W16: 29
A17: Alternatively, cell C7 can be set to "Manual". In that case the | Q17: 33 | R17: -0.04139026201 | S17: -0.05738345979 | T17: -0.03462978306 | U17: -0.04616297711 | W17: 30
A18: values shown in cells X7:Y107 are used for the ultimate. | H18: Constraint on initial slope | Q18: 34 | R18: -0.04099488836 | S18: -0.05703332187 | T18: -0.0336136502 | U18: -0.04466879256 | W18: 31
A19: Otherwise the values in cells X7:Y107 are ignored. | H19: Age | I19: 0 | Q19: 35 | R19: -0.03974918568 | S19: -0.05581412769 | T19: -0.03188046341 | U19: -0.04239137374 | W19: 32
H20: Cohort | I20: 0 | Q20: 36 | R20: -0.03762826401 | S20: -0.05365393422 | T20: -0.02943793269 | U20: -0.0393860304 | W20: 33
Q21: 37 | R21: -0.03465039663 | S21: -0.05052438415 | T21: -0.02634082281 | U21: -0.03573778196 | W21: 34
A22: About RPEC_2014_v2019 | Q22: 38 | R22: -0.03088965823 | S22: -0.04646269999 | T22: -0.02269225458 | U22: -0.03155813277 | W22: 35
A23: This model includes historical data through 2017. Historical mortality improvement rates have been developed using Order 3 Whittaker-Henderson graduation. | Q23: 39 | R23: -0.02647841634 | S23: -0.0415799644 | T23: -0.01863817637 | U23: -0.02698234741 | W23: 36
Q24: 40 | R24: -0.02159910559 | S24: -0.0360546907 | T24: -0.01435592014 | U24: -0.02216503035 | W24: 37
Q25: 41 | R25: -0.01647024454 | S25: -0.0301159055 | T25: -0.01003925594 | U25: -0.01727710445 | W25: 38
A26: How to… | Q26: 42 | R26: -0.01133251319 | S26: -0.02402343661 | T26: -0.005888156428 | U26: -0.01250083113 | W26: 39
A27: You can enter values in any of the cells with a pale yellow background. These fields provide the parameters for the RPEC_2014_v2019 model, which along with the historical | Q27: 43 | R27: -0.006434108791 | S27: -0.01804969227 | T27: -0.002101353682 | U27: -0.008022107146 | W27: 40
A28: improvement rates, will be used to construct improvement scales in the worksheets "Male" and "Female". The rates in the new scales are the same as Scale MP-2019 | Q28: 44 | R28: -0.002011653734 | S28: -0.01245836238 | T28: 0.001133330173 | U28: -0.004022393004 | W28: 41
A29: through to year 2015 (with a light blue or pink background); projected rates are shown for year 2016 and later (with a yellow background). The name for your scale | Q29: 45 | R29: 0.001733183921 | S29: -0.00748055764 | T29: 0.003653835516 | U29: -0.0006669832528 | W29: 42
A30: cannot include the text "MP-2019". Click on the button "Calculate" to calculate the new scale. | Q30: 46 | R30: 0.004655937661 | S30: -0.003292415447 | T30: 0.005339915102 | U30: 0.001907958775 | W30: 43
A31: You can restore the parameters and rates for Scale MP-2019 by clicking on the button "Calculate with input values for MP-2019". | Q31: 47 | R31: 0.006685930627 | S31: 1.17224778e-06 | T31: 0.006126650531 | U31: 0.003607600525 | W31: 44
Q32: 48 | R32: 0.007831355157 | S32: 0.002372105259 | T32: 0.006012315911 | U32: 0.004387409142 | W32: 45
Q33: 49 | R33: 0.008170213851 | S33: 0.003860664827 | T33: 0.005059375909 | U33: 0.004257489534 | W33: 46
A34: Troubleshooting | Q34: 50 | R34: 0.007828206568 | S34: 0.0045562672 | T34: 0.003388053491 | U34: 0.003283779396 | W34: 47
A35: Some when clicking on the buttons on this worksheet have received the error, “Can’t find project or library”. This is most likely caused by a missing | Q35: 51 | R35: 0.00695016654 | S35: 0.004573587916 | T35: 0.001166624222 | U35: 0.001586194397 | W35: 48
A36: reference. It can be fixed by the following steps: | Q36: 52 | R36: 0.005673415159 | S36: 0.004030456604 | T36: -0.001398420162 | U36: -0.0006655759485 | W36: 49
B37: Bring up the list of workbook macros (Alt + T + M + M) | Q37: 53 | R37: 0.004111224915 | S37: 0.003033379677 | T37: -0.004072773166 | U37: -0.003259291826 | W37: 50
B38: Select “Edit” | Q38: 54 | R38: 0.002349858616 | S38: 0.00167450097 | T38: -0.006609617893 | U38: -0.005953248473 | W38: 51
B39: In the Visual Basic Window, select “Tools” -> “References” | Q39: 55 | R39: 0.0004596738533 | S39: 3.936527972e-05 | T39: -0.008771594101 | U39: -0.008495299514 | W39: 52
B40: Look at the list of available references. If any have the text “MISSING” in front of them, uncheck the box for that reference | Q40: 56 | R40: -0.001484967048 | S40: -0.001778589141 | T40: -0.01035412025 | U40: -0.01064542832 | W40: 53
Q41: 57 | R41: -0.003384015059 | S41: -0.00366255867 | T41: -0.01120581402 | U41: -0.01219635612 | W41: 54
A42: Disclaimer | Q42: 58 | R42: -0.005099678183 | S42: -0.005464413006 | T42: -0.01124183413 | U42: -0.01299010536 | W42: 55
A43: This software is made available free of charge with the understanding that neither the author nor the Society of Actuaries accepts | Q43: 59 | R43: -0.006463546226 | S43: -0.007010782749 | T43: -0.01044997052 | U43: -0.01293129258 | W43: 56
A44: any liability for its use. It may be used for any personal, research or commercial use provided that the user does not represent it | Q44: 60 | R44: -0.007303816764 | S44: -0.008125288271 | T44: -0.008889308718 | U44: -0.01199768711 | W44: 57
A45: as his or her own work and does not distribute it to others for a fee. | Q45: 61 | R45: -0.00748480119 | S45: -0.008660777656 | T45: -0.006683605096 | U45: -0.01024740181 | W45: 58
Q46: 62 | R46: -0.00694599261 | S46: -0.00853181006 | T46: -0.004012980249 | U46: -0.007821860384 | W46: 59
Q47: 63 | R47: -0.005725351654 | S47: -0.007735976548 | T47: -0.001100619106 | U47: -0.00493792275 | W47: 60
Q48: 64 | R48: -0.003956465908 | S48: -0.006356182801 | T48: 0.001810249805 | U48: -0.001863391149 | W48: 61
Q49: 65 | R49: -0.001840291891 | S49: -0.004543047916 | T49: 0.004488135485 | U49: 0.001122505587 | W49: 62
Q50: 66 | R50: 0.00039757994 | S50: -0.002484477387 | T50: 0.006746369574 | U50: 0.003773814007 | W50: 63
Q51: 67 | R51: 0.002550196077 | S51: -0.0003726881545 | T51: 0.008469706138 | U51: 0.005915793147 | W51: 64
Q52: 68 | R52: 0.00446100882 | S52: 0.001623030413 | T52: 0.009626128726 | U52: 0.007464709407 | W52: 65
Q53: 69 | R53: 0.006037196697 | S53: 0.003373740015 | T53: 0.01025449195 | U53: 0.008424352529 | W53: 66
Q54: 70 | R54: 0.00724554669 | S54: 0.004798340548 | T54: 0.01044379937 | U54: 0.008862826103 | W54: 67
Q55: 71 | R55: 0.00809912785 | S55: 0.005862088567 | T55: 0.01030497278 | U55: 0.008884396164 | W55: 68
Q56: 72 | R56: 0.008640632623 | S56: 0.006570215047 | T56: 0.009943826292 | U56: 0.008601008515 | W56: 69
Q57: 73 | R57: 0.008926128029 | S57: 0.006959271534 | T57: 0.009442562013 | U57: 0.008111580629 | W57: 70
Q58: 74 | R58: 0.009013981826 | S58: 0.00708554552 | T58: 0.008854536367 | U58: 0.007491340886 | W58: 71
Q59: 75 | R59: 0.008958158861 | S59: 0.00701482671 | T59: 0.008210134902 | U59: 0.006793520773 | W59: 72
Q60: 76 | R60: 0.008804442613 | S60: 0.006812641149 | T60: 0.007527812373 | U60: 0.006056521531 | W60: 73
Q61: 77 | R61: 0.008588517444 | S61: 0.006535951565 | T61: 0.006825208651 | U61: 0.005311338931 | W61: 74
Q62: 78 | R62: 0.008335529378 | S62: 0.006227730733 | T62: 0.006125949517 | U62: 0.004586407114 | W62: 75
Q63: 79 | R63: 0.008061211119 | S63: 0.005915414512 | T63: 0.005460326771 | U63: 0.003909265169 | W63: 76
Q64: 80 | R64: 0.007774222247 | S64: 0.005613045089 | T64: 0.004860929948 | U64: 0.003305186562 | W64: 77
Q65: 81 | R65: 0.007479042024 | S65: 0.005325504968 | T65: 0.004356050894 | U65: 0.002793928761 | W65: 78
Q66: 82 | R66: 0.007178685653 | S66: 0.00505304586 | T66: 0.003963313066 | U66: 0.002386773437 | W66: 79
Q67: 83 | R67: 0.006876844097 | S67: 0.004795153597 | T67: 0.003686268257 | U67: 0.002085421062 | W67: 80
Q68: 84 | R68: 0.006579218206 | S68: 0.004553312925 | T68: 0.003515176897 | U68: 0.00188287947 | W68: 81
Q69: 85 | R69: 0.00629404203 | S69: 0.004332742866 | T69: 0.003431358472 | U69: 0.001766242177 | W69: 82
Q70: 86 | R70: 0.006031912393 | S70: 0.004142997625 | T70: 0.003412934342 | U70: 0.001720458951 | W70: 83
Q71: 87 | R71: 0.005805215541 | S71: 0.003997575743 | T71: 0.00343989975 | U71: 0.001732069134 | W71: 84
Q72: 88 | R72: 0.005627273344 | S72: 0.003912797898 | T72: 0.003497382749 | U72: 0.001791721915 | W72: 85
Q73: 89 | R73: 0.005511276307 | S73: 0.003906209861 | T73: 0.003576638378 | U73: 0.001895082956 | W73: 86
Q74: 90 | R74: 0.005469335566 | S74: 0.003994930568 | T74: 0.003674325486 | U74: 0.002042405922 | W74: 87
Q75: 91 | R75: 0.005511764764 | S75: 0.00419431661 | T75: 0.003790855119 | U75: 0.002237163894 | W75: 88
Q76: 92 | R76: 0.005646645506 | S76: 0.004516977575 | T76: 0.003928506801 | U76: 0.0024842663 | W76: 89
Q77: 93 | R77: 0.005879738681 | S77: 0.004972282849 | T77: 0.004089980999 | U77: 0.002788575195 | W77: 90
Q78: 94 | R78: 0.006214668385 | S78: 0.005566367171 | T78: 0.004277464846 | U78: 0.003153944977 | W78: 91
Q79: 95 | R79: 0.006653325263 | S79: 0.006302534991 | T79: 0.004492224538 | U79: 0.003582738894 | W79: 92
W80: 93
W81: 94
W82: 95
W83: 96
W84: 97
W85: 98
W86: 99
W87: 100
W88: 101
W89: 102
W90: 103
W91: 104
W92: 105
W93: 106
W94: 107
W95: 108
W96: 109
W97: 110
W98: 111
W99: 112
W100: 113
W101: 114
W102: 115
W103: 116
W104: 117
W105: 118
W106: 119
W107: 120

Sheet Male
A1: MP-2019 - Male
B2: 1951 | C2: 1952 | D2: 1953 | E2: 1954 | F2: 1955 | G2: 1956 | H2: 1957 | I2: 1958 | J2: 1959 | K2: 1960 | L2: 1961 | M2: 1962 | N2: 1963 | O2: 1964 | P2: 1965 | Q2: 1966 | R2: 1967 | S2: 1968 | T2: 1969 | U2: 1970 | V2: 1971 | W2: 1972 | X2: 1973 | Y2: 1974 | Z2: 1975 | AA2: 1976 | AB2: 1977 | AC2: 1978 | AD2: 1979 | AE2: 1980 | AF2: 1981 | AG2: 1982 | AH2: 1983 | AI2: 1984 | AJ2: 1985 | AK2: 1986 | AL2: 1987 | AM2: 1988 | AN2: 1989 | AO2: 1990 | AP2: 1991 | AQ2: 1992 | AR2: 1993 | AS2: 1994 | AT2: 1995 | AU2: 1996 | AV2: 1997 | AW2: 1998 | AX2: 1999 | AY2: 2000 | AZ2: 2001 | BA2: 2002 | BB2: 2003 | BC2: 2004 | BD2: 2005 | BE2: 2006 | BF2: 2007 | BG2: 2008 | BH2: 2009 | BI2: 2010 | BJ2: 2011 | BK2: 2012 | BL2: 2013 | BM2: 2014 | BN2: 2015 | BO2: 2016 | BP2: 2017 | BQ2: 2018 | BR2: 2019 | BS2: 2020 | BT2: 2021 | BU2: 2022 | BV2: 2023 | BW2: 2024 | BX2: 2025 | BY2: 2026 | BZ2: 2027 | CA2: 2028 | CB2: 2029 | CC2: 2030 | CD2: 2031 | CE2: 2032 | CF2: 2033 | CG2: 2034 | CH2: 2035+
A3: ≤ 20 | B3: -0.015 | C3: -0.0065 | D3: 0.0017 | E3: 0.009 | F3: 0.0149 | G3: 0.0192 | H3: 0.0215 | I3: 0.0213 | J3: 0.0183 | K3: 0.0125 | L3: 0.0042 | M3: -0.0057 | N3: -0.0162 | O3: -0.0258 | P3: -0.0332 | Q3: -0.0372 | R3: -0.0372 | S3: -0.0329 | T3: -0.025 | U3: -0.0151 | V3: -0.005 | W3: 0.0039 | X3: 0.011 | Y3: 0.0157 | Z3: 0.0182 | AA3: 0.0192 | AB3: 0.02 | AC3: 0.022 | AD3: 0.0257 | AE3: 0.0302 | AF3: 0.0335 | AG3: 0.0336 | AH3: 0.0295 | AI3: 0.0219 | AJ3: 0.013 | AK3: 0.0048 | AL3: -0.0012 | AM3: -0.0044 | AN3: -0.0048 | AO3: -0.0027 | AP3: 0.0017 | AQ3: 0.0078 | AR3: 0.0146 | AS3: 0.0214 | AT3: 0.0269 | AU3: 0.0298 | AV3: 0.0292 | AW3: 0.0249 | AX3: 0.0178 | AY3: 0.0096 | AZ3: 0.0023 | BA3: -0.0024 | BB3: -0.0034 | BC3: -0.0004 | BD3: 0.0062 | BE3: 0.0156 | BF3: 0.0257 | BG3: 0.0342 | BH3: 0.0388 | BI3: 0.0383 | BJ3: 0.033 | BK3: 0.0232 | BL3: 0.0099 | BM3: -0.006 | BN3: -0.023 | BO3: -0.0224 | BP3: -0.0208 | BQ3: -0.0184 | BR3: -0.0154 | BS3: -0.0121 | BT3: -0.0087 | BU3: -0.0054 | BV3: -0.0024 | BW3: 0.0001 | BX3: 0.0018 | BY3: 0.003 | BZ3: 0.0042 | CA3: 0.0054 | CB3: 0.0064 | CC3: 0.0074 | CD3: 0.0083 | CE3: 0.009 | CF3: 0.0095 | CG3: 0.0099 | CH3: 0.01
A4: 21 | B4: -0.0143 | C4: -0.006 | D4: 0.0021 | E4: 0.0093 | F4: 0.0151 | G4: 0.0193 | H4: 0.0214 | I4: 0.021 | J4: 0.0179 | K4: 0.012 | L4: 0.0037 | M4: -0.006 | N4: -0.016 | O4: -0.0253 | P4: -0.0324 | Q4: -0.0363 | R4: -0.0362 | S4: -0.032 | T4: -0.0243 | U4: -0.0147 | V4: -0.0049 | W4: 0.0037 | X4: 0.0103 | Y4: 0.0147 | Z4: 0.0168 | AA4: 0.0177 | AB4: 0.0184 | AC4: 0.0204 | AD4: 0.0241 | AE4: 0.0287 | AF4: 0.0323 | AG4: 0.0327 | AH4: 0.029 | AI4: 0.0219 | AJ4: 0.0134 | AK4: 0.0055 | AL4: 0 | AM4: -0.0028 | AN4: -0.0029 | AO4: -0.0006 | AP4: 0.0038 | AQ4: 0.0096 | AR4: 0.016 | AS4: 0.0222 | AT4: 0.027 | AU4: 0.0291 | AV4: 0.0276 | AW4: 0.0226 | AX4: 0.0148 | AY4: 0.006 | AZ4: -0.0017 | BA4: -0.0066 | BB4: -0.0078 | BC4: -0.005 | BD4: 0.0015 | BE4: 0.0108 | BF4: 0.021 | BG4: 0.0296 | BH4: 0.0345 | BI4: 0.0343 | BJ4: 0.0292 | BK4: 0.0198 | BL4: 0.0069 | BM4: -0.0085 | BN4: -0.0249 | BO4: -0.0233 | BP4: -0.0216 | BQ4: -0.0191 | BR4: -0.0161 | BS4: -0.0126 | BT4: -0.0091 | BU4: -0.0056 | BV4: -0.0025 | BW4: 0 | BX4: 0.0018 | BY4: 0.003 | BZ4: 0.0042 | CA4: 0.0054 | CB4: 0.0064 | CC4: 0.0074 | CD4: 0.0083 | CE4: 0.009 | CF4: 0.0095 | CG4: 0.0099 | CH4: 0.01
A5: 22 | B5: -0.0119 | C5: -0.004 | D5: 0.0036 | E5: 0.0103 | F5: 0.0157 | G5: 0.0195 | H5: 0.0212 | I5: 0.0204 | J5: 0.017 | K5: 0.011 | L5: 0.003 | M5: -0.0064 | N5: -0.0159 | O5: -0.0246 | P5: -0.0313 | Q5: -0.0349 | R5: -0.0347 | S5: -0.0306 | T5: -0.0231 | U5: -0.0138 | V5: -0.0045 | W5: 0.0037 | X5: 0.0098 | Y5: 0.0138 | Z5: 0.0156 | AA5: 0.0162 | AB5: 0.0168 | AC5: 0.0186 | AD5: 0.0223 | AE5: 0.0268 | AF5: 0.0306 | AG5: 0.0313 | AH5: 0.0279 | AI5: 0.0211 | AJ5: 0.0129 | AK5: 0.0053 | AL5: 0.0001 | AM5: -0.0023 | AN5: -0.0019 | AO5: 0.0008 | AP5: 0.0055 | AQ5: 0.0116 | AR5: 0.018 | AS5: 0.024 | AT5: 0.0283 | AU5: 0.0298 | AV5: 0.0276 | AW5: 0.0217 | AX5: 0.013 | AY5: 0.0035 | AZ5: -0.0049 | BA5: -0.0102 | BB5: -0.0117 | BC5: -0.0091 | BD5: -0.0027 | BE5: 0.0065 | BF5: 0.0167 | BG5: 0.0253 | BH5: 0.0303 | BI5: 0.0303 | BJ5: 0.0254 | BK5: 0.0162 | BL5: 0.0036 | BM5: -0.0115 | BN5: -0.0274 | BO5: -0.0255 | BP5: -0.0228 | BQ5: -0.0202 | BR5: -0.0169 | BS5: -0.0133 | BT5: -0.0095 | BU5: -0.0059 | BV5: -0.0026 | BW5: 0 | BX5: 0.0018 | BY5: 0.003 | BZ5: 0.0042 | CA5: 0.0054 | CB5: 0.0064 | CC5: 0.0074 | CD5: 0.0083 | CE5: 0.009 | CF5: 0.0095 | CG5: 0.0099 | CH5: 0.01
A6: 23 | B6: -0.008 | C6: -0.0008 | D6: 0.006 | E6: 0.012 | F6: 0.0166 | G6: 0.0197 | H6: 0.0207 | I6: 0.0195 | J6: 0.0158 | K6: 0.0098 | L6: 0.002 | M6: -0.0069 | N6: -0.0159 | O6: -0.0239 | P6: -0.03 | Q6: -0.0331 | R6: -0.0327 | S6: -0.0286 | T6: -0.0215 | U6: -0.0127 | V6: -0.0038 | W6: 0.0038 | X6: 0.0095 | Y6: 0.013 | Z6: 0.0145 | AA6: 0.0149 | AB6: 0.0153 | AC6: 0.0169 | AD6: 0.0202 | AE6: 0.0247 | AF6: 0.0284 | AG6: 0.0293 | AH6: 0.0261 | AI6: 0.0196 | AJ6: 0.0115 | AK6: 0.0042 | AL6: -0.0008 | AM6: -0.0028 | AN6: -0.002 | AO6: 0.0014 | AP6: 0.0069 | AQ6: 0.0135 | AR6: 0.0203 | AS6: 0.0265 | AT6: 0.0308 | AU6: 0.032 | AV6: 0.0291 | AW6: 0.0223 | AX6: 0.0127 | AY6: 0.0021 | AZ6: -0.007 | BA6: -0.013 | BB6: -0.015 | BC6: -0.0126 | BD6: -0.0064 | BE6: 0.0026 | BF6: 0.0127 | BG6: 0.0213 | BH6: 0.0262 | BI6: 0.0262 | BJ6: 0.0214 | BK6: 0.0124 | BL6: 0 | BM6: -0.0148 | BN6: -0.0306 | BO6: -0.0283 | BP6: -0.0251 | BQ6: -0.0214 | BR6: -0.0179 | BS6: -0.0141 | BT6: -0.0101 | BU6: -0.0062 | BV6: -0.0028 | BW6: 0 | BX6: 0.0018 | BY6: 0.003 | BZ6: 0.0042 | CA6: 0.0054 | CB6: 0.0064 | CC6: 0.0074 | CD6: 0.0083 | CE6: 0.009 | CF6: 0.0095 | CG6: 0.0099 | CH6: 0.01
A7: 24 | B7: -0.0029 | C7: 0.0032 | D7: 0.009 | E7: 0.014 | F7: 0.0177 | G7: 0.0198 | H7: 0.0201 | I7: 0.0183 | J7: 0.0143 | K7: 0.0083 | L7: 0.0008 | M7: -0.0076 | N7: -0.0159 | O7: -0.0231 | P7: -0.0285 | Q7: -0.0311 | R7: -0.0304 | S7: -0.0263 | T7: -0.0195 | U7: -0.0113 | V7: -0.003 | W7: 0.0041 | X7: 0.0094 | Y7: 0.0126 | Z7: 0.0138 | AA7: 0.0139 | AB7: 0.014 | AC7: 0.0152 | AD7: 0.0181 | AE7: 0.0222 | AF7: 0.0258 | AG7: 0.0266 | AH7: 0.0236 | AI7: 0.0172 | AJ7: 0.0093 | AK7: 0.0021 | AL7: -0.0027 | AM7: -0.0044 | AN7: -0.003 | AO7: 0.0013 | AP7: 0.0076 | AQ7: 0.0152 | AR7: 0.0228 | AS7: 0.0296 | AT7: 0.0343 | AU7: 0.0354 | AV7: 0.0321 | AW7: 0.0245 | AX7: 0.0138 | AY7: 0.0021 | AZ7: -0.008 | BA7: -0.0148 | BB7: -0.0174 | BC7: -0.0155 | BD7: -0.0095 | BE7: -0.0007 | BF7: 0.0091 | BG7: 0.0175 | BH7: 0.0222 | BI7: 0.0222 | BJ7: 0.0175 | BK7: 0.0086 | BL7: -0.0037 | BM7: -0.0184 | BN7: -0.0342 | BO7: -0.0316 | BP7: -0.028 | BQ7: -0.0237 | BR7: -0.0191 | BS7: -0.0149 | BT7: -0.0107 | BU7: -0.0066 | BV7: -0.003 | BW7: -0.0001 | BX7: 0.0018 | BY7: 0.003 | BZ7: 0.0042 | CA7: 0.0054 | CB7: 0.0064 | CC7: 0.0074 | CD7: 0.0083 | CE7: 0.009 | CF7: 0.0095 | CG7: 0.0099 | CH7: 0.01
A8: 25 | B8: 0.003 | C8: 0.0079 | D8: 0.0125 | E8: 0.0163 | F8: 0.0188 | G8: 0.0199 | H8: 0.0192 | I8: 0.0168 | J8: 0.0125 | K8: 0.0066 | L8: -0.0005 | M8: -0.0083 | N8: -0.0159 | O8: -0.0224 | P8: -0.027 | Q8: -0.029 | R8: -0.0279 | S8: -0.0239 | T8: -0.0175 | U8: -0.0097 | V8: -0.0019 | W8: 0.0047 | X8: 0.0096 | Y8: 0.0125 | Z8: 0.0135 | AA8: 0.0134 | AB8: 0.013 | AC8: 0.0138 | AD8: 0.0161 | AE8: 0.0196 | AF8: 0.0228 | AG8: 0.0234 | AH8: 0.0204 | AI8: 0.014 | AJ8: 0.0062 | AK8: -0.0009 | AL8: -0.0055 | AM8: -0.0069 | AN8: -0.0048 | AO8: 0.0003 | AP8: 0.0078 | AQ8: 0.0164 | AR8: 0.0252 | AS8: 0.0329 | AT8: 0.0383 | AU8: 0.0398 | AV8: 0.0363 | AW8: 0.028 | AX8: 0.0163 | AY8: 0.0035 | AZ8: -0.0078 | BA8: -0.0155 | BB8: -0.0188 | BC8: -0.0175 | BD8: -0.012 | BE8: -0.0035 | BF8: 0.006 | BG8: 0.014 | BH8: 0.0185 | BI8: 0.0183 | BJ8: 0.0136 | BK8: 0.0047 | BL8: -0.0075 | BM8: -0.0221 | BN8: -0.038 | BO8: -0.0352 | BP8: -0.0312 | BQ8: -0.0264 | BR8: -0.0212 | BS8: -0.0159 | BT8: -0.0114 | BU8: -0.007 | BV8: -0.0032 | BW8: -0.0001 | BX8: 0.0018 | BY8: 0.003 | BZ8: 0.0042 | CA8: 0.0054 | CB8: 0.0064 | CC8: 0.0074 | CD8: 0.0083 | CE8: 0.009 | CF8: 0.0095 | CG8: 0.0099 | CH8: 0.01
A9: 26 | B9: 0.0092 | C9: 0.0128 | D9: 0.0161 | E9: 0.0186 | F9: 0.0198 | G9: 0.0198 | H9: 0.0182 | I9: 0.0152 | J9: 0.0107 | K9: 0.0049 | L9: -0.0018 | M9: -0.009 | N9: -0.0159 | O9: -0.0216 | P9: -0.0254 | Q9: -0.0269 | R9: -0.0255 | S9: -0.0216 | T9: -0.0154 | U9: -0.0081 | V9: -0.0008 | W9: 0.0055 | X9: 0.0102 | Y9: 0.013 | Z9: 0.0138 | AA9: 0.0134 | AB9: 0.0127 | AC9: 0.0128 | AD9: 0.0143 | AE9: 0.017 | AF9: 0.0194 | AG9: 0.0196 | AH9: 0.0164 | AI9: 0.01 | AJ9: 0.0022 | AK9: -0.0047 | AL9: -0.0091 | AM9: -0.01 | AN9: -0.0073 | AO9: -0.0013 | AP9: 0.0072 | AQ9: 0.017 | AR9: 0.027 | AS9: 0.036 | AT9: 0.0425 | AU9: 0.0447 | AV9: 0.0413 | AW9: 0.0326 | AX9: 0.0201 | AY9: 0.0062 | AZ9: -0.0063 | BA9: -0.015 | BB9: -0.0192 | BC9: -0.0186 | BD9: -0.0136 | BE9: -0.0057 | BF9: 0.0033 | BG9: 0.0108 | BH9: 0.015 | BI9: 0.0146 | BJ9: 0.0098 | BK9: 0.0009 | BL9: -0.0113 | BM9: -0.0259 | BN9: -0.0418 | BO9: -0.039 | BP9: -0.0347 | BQ9: -0.0294 | BR9: -0.0236 | BS9: -0.0177 | BT9: -0.012 | BU9: -0.0074 | BV9: -0.0034 | BW9: -0.0002 | BX9: 0.0018 | BY9: 0.003 | BZ9: 0.0042 | CA9: 0.0054 | CB9: 0.0064 | CC9: 0.0074 | CD9: 0.0083 | CE9: 0.009 | CF9: 0.0095 | CG9: 0.0099 | CH9: 0.01
A10: 27 | B10: 0.0154 | C10: 0.0177 | D10: 0.0196 | E10: 0.0207 | F10: 0.0206 | G10: 0.0195 | H10: 0.0171 | I10: 0.0135 | J10: 0.0089 | K10: 0.0033 | L10: -0.003 | M10: -0.0096 | N10: -0.0158 | O10: -0.0208 | P10: -0.024 | Q10: -0.0249 | R10: -0.0233 | S10: -0.0193 | T10: -0.0134 | U10: -0.0064 | V10: 0.0005 | W10: 0.0066 | X10: 0.0112 | Y10: 0.0139 | Z10: 0.0148 | AA10: 0.0142 | AB10: 0.013 | AC10: 0.0124 | AD10: 0.0129 | AE10: 0.0146 | AF10: 0.016 | AG10: 0.0154 | AH10: 0.0118 | AI10: 0.0052 | AJ10: -0.0025 | AK10: -0.0092 | AL10: -0.0132 | AM10: -0.0136 | AN10: -0.0103 | AO10: -0.0035 | AP10: 0.006 | AQ10: 0.0169 | AR10: 0.0282 | AS10: 0.0386 | AT10: 0.0464 | AU10: 0.0497 | AV10: 0.0469 | AW10: 0.038 | AX10: 0.0248 | AY10: 0.01 | AZ10: -0.0035 | BA10: -0.0134 | BB10: -0.0184 | BC10: -0.0186 | BD10: -0.0144 | BE10: -0.0072 | BF10: 0.0011 | BG10: 0.0081 | BH10: 0.0118 | BI10: 0.0112 | BJ10: 0.0062 | BK10: -0.0027 | BL10: -0.0148 | BM10: -0.0295 | BN10: -0.0454 | BO10: -0.0426 | BP10: -0.0381 | BQ10: -0.0325 | BR10: -0.0262 | BS10: -0.0197 | BT10: -0.0134 | BU10: -0.0078 | BV10: -0.0036 | BW10: -0.0002 | BX10: 0.0018 | BY10: 0.003 | BZ10: 0.0042 | CA10: 0.0054 | CB10: 0.0064 | CC10: 0.0074 | CD10: 0.0083 | CE10: 0.009 | CF10: 0.0095 | CG10: 0.0099 | CH10: 0.01
A11: 28 | B11: 0.0213 | C11: 0.0221 | D11: 0.0227 | E11: 0.0224 | F11: 0.0212 | G11: 0.019 | H11: 0.0159 | I11: 0.0119 | J11: 0.0072 | K11: 0.0018 | L11: -0.004 | M11: -0.0101 | N11: -0.0157 | O11: -0.0201 | P11: -0.0227 | Q11: -0.0231 | R11: -0.0213 | S11: -0.0174 | T11: -0.0117 | U11: -0.0049 | V11: 0.0018 | W11: 0.0078 | X11: 0.0125 | Y11: 0.0154 | Z11: 0.0163 | AA11: 0.0156 | AB11: 0.014 | AC11: 0.0126 | AD11: 0.0121 | AE11: 0.0124 | AF11: 0.0126 | AG11: 0.0111 | AH11: 0.0068 | AI11: 0 | AJ11: -0.0076 | AK11: -0.0141 | AL11: -0.0176 | AM11: -0.0174 | AN11: -0.0135 | AO11: -0.006 | AP11: 0.0041 | AQ11: 0.016 | AR11: 0.0285 | AS11: 0.0405 | AT11: 0.0499 | AU11: 0.0544 | AV11: 0.0524 | AW11: 0.0438 | AX11: 0.0302 | AY11: 0.0146 | AZ11: 0.0002 | BA11: -0.0106 | BB11: -0.0166 | BC11: -0.0177 | BD11: -0.0143 | BE11: -0.008 | BF11: -0.0005 | BG11: 0.0058 | BH11: 0.009 | BI11: 0.0081 | BJ11: 0.0029 | BK11: -0.006 | BL11: -0.0182 | BM11: -0.0328 | BN11: -0.0488 | BO11: -0.0461 | BP11: -0.0415 | BQ11: -0.0356 | BR11: -0.0288 | BS11: -0.0218 | BT11: -0.015 | BU11: -0.0089 | BV11: -0.0037 | BW11: -0.0003 | BX11: 0.0018 | BY11: 0.003 | BZ11: 0.0042 | CA11: 0.0054 | CB11: 0.0064 | CC11: 0.0074 | CD11: 0.0083 | CE11: 0.009 | CF11: 0.0095 | CG11: 0.0099 | CH11: 0.01
A12: 29 | B12: 0.0265 | C12: 0.026 | D12: 0.0253 | E12: 0.0238 | F12: 0.0215 | G12: 0.0183 | H12: 0.0146 | I12: 0.0104 | J12: 0.0057 | K12: 0.0006 | L12: -0.0049 | M12: -0.0105 | N12: -0.0155 | O12: -0.0193 | P12: -0.0214 | Q12: -0.0216 | R12: -0.0196 | S12: -0.0157 | T12: -0.0101 | U12: -0.0035 | V12: 0.0032 | W12: 0.0093 | X12: 0.0141 | Y12: 0.0172 | Z12: 0.0183 | AA12: 0.0176 | AB12: 0.0156 | AC12: 0.0135 | AD12: 0.0118 | AE12: 0.0108 | AF12: 0.0096 | AG12: 0.0069 | AH12: 0.0018 | AI12: -0.0054 | AJ12: -0.013 | AK12: -0.0191 | AL12: -0.0221 | AM12: -0.0213 | AN12: -0.0168 | AO12: -0.0089 | AP12: 0.0018 | AQ12: 0.0144 | AR12: 0.0281 | AS12: 0.0415 | AT12: 0.0526 | AU12: 0.0586 | AV12: 0.0575 | AW12: 0.0493 | AX12: 0.0356 | AY12: 0.0196 | AZ12: 0.0046 | BA12: -0.007 | BB12: -0.0138 | BC12: -0.0157 | BD12: -0.0133 | BE12: -0.0079 | BF12: -0.0014 | BG12: 0.0041 | BH12: 0.0067 | BI12: 0.0054 | BJ12: 0.0001 | BK12: -0.0089 | BL12: -0.0211 | BM12: -0.0357 | BN12: -0.0517 | BO12: -0.0492 | BP12: -0.0446 | BQ12: -0.0385 | BR12: -0.0315 | BS12: -0.024 | BT12: -0.0168 | BU12: -0.0101 | BV12: -0.0045 | BW12: -0.0003 | BX12: 0.0018 | BY12: 0.003 | BZ12: 0.0042 | CA12: 0.0054 | CB12: 0.0064 | CC12: 0.0074 | CD12: 0.0083 | CE12: 0.009 | CF12: 0.0095 | CG12: 0.0099 | CH12: 0.01
A13: 30 | B13: 0.031 | C13: 0.0293 | D13: 0.0273 | E13: 0.0248 | F13: 0.0215 | G13: 0.0176 | H13: 0.0134 | I13: 0.009 | J13: 0.0044 | K13: -0.0004 | L13: -0.0056 | M13: -0.0107 | N13: -0.0152 | O13: -0.0186 | P13: -0.0204 | Q13: -0.0203 | R13: -0.0182 | S13: -0.0143 | T13: -0.0088 | U13: -0.0022 | V13: 0.0045 | W13: 0.0108 | X13: 0.0159 | Y13: 0.0193 | Z13: 0.0206 | AA13: 0.02 | AB13: 0.0178 | AC13: 0.015 | AD13: 0.0123 | AE13: 0.01 | AF13: 0.0073 | AG13: 0.0032 | AH13: -0.0029 | AI13: -0.0105 | AJ13: -0.0182 | AK13: -0.024 | AL13: -0.0265 | AM13: -0.0252 | AN13: -0.0202 | AO13: -0.0119 | AP13: -0.0008 | AQ13: 0.0124 | AR13: 0.027 | AS13: 0.0418 | AT13: 0.0543 | AU13: 0.0618 | AV13: 0.0618 | AW13: 0.0541 | AX13: 0.0407 | AY13: 0.0246 | AZ13: 0.0092 | BA13: -0.0028 | BB13: -0.0102 | BC13: -0.0129 | BD13: -0.0114 | BE13: -0.007 | BF13: -0.0015 | BG13: 0.0031 | BH13: 0.0051 | BI13: 0.0034 | BJ13: -0.0021 | BK13: -0.0113 | BL13: -0.0235 | BM13: -0.038 | BN13: -0.054 | BO13: -0.0517 | BP13: -0.0473 | BQ13: -0.0411 | BR13: -0.0339 | BS13: -0.0262 | BT13: -0.0186 | BU13: -0.0115 | BV13: -0.0055 | BW13: -0.0009 | BX13: 0.0018 | BY13: 0.003 | BZ13: 0.0042 | CA13: 0.0054 | CB13: 0.0064 | CC13: 0.0074 | CD13: 0.0083 | CE13: 0.009 | CF13: 0.0095 | CG13: 0.0099 | CH13: 0.01
A14: 31 | B14: 0.0345 | C14: 0.0318 | D14: 0.0289 | E14: 0.0254 | F14: 0.0213 | G14: 0.0168 | H14: 0.0123 | I14: 0.0078 | J14: 0.0033 | K14: -0.0013 | L14: -0.0061 | M14: -0.0108 | N14: -0.0149 | O14: -0.018 | P14: -0.0194 | Q14: -0.0192 | R14: -0.017 | S14: -0.0131 | T14: -0.0076 | U14: -0.001 | V14: 0.0059 | W14: 0.0123 | X14: 0.0177 | Y14: 0.0215 | Z14: 0.0231 | AA14: 0.0226 | AB14: 0.0202 | AC14: 0.0169 | AD14: 0.0134 | AE14: 0.0099 | AF14: 0.0058 | AG14: 0.0004 | AH14: -0.0067 | AI14: -0.0149 | AJ14: -0.0228 | AK14: -0.0285 | AL14: -0.0306 | AM14: -0.0289 | AN14: -0.0235 | AO14: -0.0149 | AP14: -0.0036 | AQ14: 0.01 | AR14: 0.0254 | AS14: 0.0413 | AT14: 0.0552 | AU14: 0.0639 | AV14: 0.0649 | AW14: 0.0579 | AX14: 0.0448 | AY14: 0.029 | AZ14: 0.0137 | BA14: 0.0016 | BB14: -0.0061 | BC14: -0.0093 | BD14: -0.0087 | BE14: -0.0053 | BF14: -0.0007 | BG14: 0.003 | BH14: 0.0043 | BI14: 0.0022 | BJ14: -0.0037 | BK14: -0.013 | BL14: -0.0253 | BM14: -0.0398 | BN14: -0.0558 | BO14: -0.0538 | BP14: -0.0495 | BQ14: -0.0434 | BR14: -0.0362 | BS14: -0.0283 | BT14: -0.0204 | BU14: -0.013 | BV14: -0.0066 | BW14: -0.0017 | BX14: 0.0013 | BY14: 0.003 | BZ14: 0.0042 | CA14: 0.0054 | CB14: 0.0064 | CC14: 0.0074 | CD14: 0.0083 | CE14: 0.009 | CF14: 0.0095 | CG14: 0.0099 | CH14: 0.01
A15: 32 | B15: 0.0372 | C15: 0.0337 | D15: 0.0299 | E15: 0.0258 | F15: 0.0211 | G15: 0.0161 | H15: 0.0113 | I15: 0.0068 | J15: 0.0024 | K15: -0.0019 | L15: -0.0064 | M15: -0.0108 | N15: -0.0146 | O15: -0.0173 | P15: -0.0186 | Q15: -0.0182 | R15: -0.016 | S15: -0.0121 | T15: -0.0065 | U15: 0.0001 | V15: 0.0071 | W15: 0.0138 | X15: 0.0195 | Y15: 0.0236 | Z15: 0.0255 | AA15: 0.0252 | AB15: 0.0228 | AC15: 0.0193 | AD15: 0.0151 | AE15: 0.0106 | AF15: 0.0053 | AG15: -0.0013 | AH15: -0.0093 | AI15: -0.0182 | AJ15: -0.0265 | AK15: -0.0322 | AL15: -0.0342 | AM15: -0.0322 | AN15: -0.0266 | AO15: -0.0178 | AP15: -0.0063 | AQ15: 0.0076 | AR15: 0.0236 | AS15: 0.0403 | AT15: 0.0551 | AU15: 0.0648 | AV15: 0.0667 | AW15: 0.0603 | AX15: 0.0478 | AY15: 0.0325 | AZ15: 0.0176 | BA15: 0.0057 | BB15: -0.0019 | BC15: -0.0053 | BD15: -0.0053 | BE15: -0.0027 | BF15: 0.0009 | BG15: 0.0037 | BH15: 0.0043 | BI15: 0.0017 | BJ15: -0.0044 | BK15: -0.0139 | BL15: -0.0263 | BM15: -0.041 | BN15: -0.057 | BO15: -0.0552 | BP15: -0.0511 | BQ15: -0.0452 | BR15: -0.038 | BS15: -0.0301 | BT15: -0.0221 | BU15: -0.0145 | BV15: -0.0078 | BW15: -0.0026 | BX15: 0.0006 | BY15: 0.0026 | BZ15: 0.0042 | CA15: 0.0054 | CB15: 0.0064 | CC15: 0.0074 | CD15: 0.0083 | CE15: 0.009 | CF15: 0.0095 | CG15: 0.0099 | CH15: 0.01
A16: 33 | B16: 0.039 | C16: 0.0349 | D16: 0.0305 | E16: 0.0259 | F16: 0.0208 | G16: 0.0155 | H16: 0.0105 | I16: 0.006 | J16: 0.0018 | K16: -0.0024 | L16: -0.0067 | M16: -0.0107 | N16: -0.0143 | O16: -0.0167 | P16: -0.0178 | Q16: -0.0173 | R16: -0.0151 | S16: -0.0111 | T16: -0.0055 | U16: 0.0012 | V16: 0.0083 | W16: 0.0152 | X16: 0.0212 | Y16: 0.0256 | Z16: 0.0278 | AA16: 0.0276 | AB16: 0.0254 | AC16: 0.0218 | AD16: 0.0172 | AE16: 0.012 | AF16: 0.0059 | AG16: -0.0017 | AH16: -0.0106 | AI16: -0.0202 | AJ16: -0.0289 | AK16: -0.035 | AL16: -0.037 | AM16: -0.035 | AN16: -0.0294 | AO16: -0.0205 | AP16: -0.0089 | AQ16: 0.0052 | AR16: 0.0215 | AS16: 0.0387 | AT16: 0.0541 | AU16: 0.0644 | AV16: 0.067 | AW16: 0.0613 | AX16: 0.0494 | AY16: 0.0348 | AZ16: 0.0206 | BA16: 0.0094 | BB16: 0.0022 | BC16: -0.0011 | BD16: -0.0014 | BE16: 0.0005 | BF16: 0.0033 | BG16: 0.0053 | BH16: 0.0052 | BI16: 0.0021 | BJ16: -0.0043 | BK16: -0.0141 | BL16: -0.0267 | BM16: -0.0414 | BN16: -0.0574 | BO16: -0.056 | BP16: -0.0522 | BQ16: -0.0465 | BR16: -0.0395 | BS16: -0.0316 | BT16: -0.0236 | BU16: -0.0159 | BV16: -0.009 | BW16: -0.0036 | BX16: -0.0001 | BY16: 0.002 | BZ16: 0.0039 | CA16: 0.0054 | CB16: 0.0064 | CC16: 0.0074 | CD16: 0.0083 | CE16: 0.009 | CF16: 0.0095 | CG16: 0.0099 | CH16: 0.01
A17: 34 | B17: 0.04 | C17: 0.0355 | D17: 0.0308 | E17: 0.0258 | F17: 0.0205 | G17: 0.0151 | H17: 0.01 | I17: 0.0055 | J17: 0.0013 | K17: -0.0028 | L17: -0.0068 | M17: -0.0106 | N17: -0.0139 | O17: -0.0161 | P17: -0.0171 | Q17: -0.0165 | R17: -0.0143 | S17: -0.0103 | T17: -0.0046 | U17: 0.0022 | V17: 0.0094 | W17: 0.0165 | X17: 0.0226 | Y17: 0.0272 | Z17: 0.0297 | AA17: 0.0298 | AB17: 0.0278 | AC17: 0.0243 | AD17: 0.0197 | AE17: 0.0141 | AF17: 0.0073 | AG17: -0.0009 | AH17: -0.0105 | AI17: -0.0208 | AJ17: -0.03 | AK17: -0.0364 | AL17: -0.0388 | AM17: -0.0371 | AN17: -0.0316 | AO17: -0.0229 | AP17: -0.0113 | AQ17: 0.0029 | AR17: 0.0193 | AS17: 0.0366 | AT17: 0.0522 | AU17: 0.0629 | AV17: 0.0659 | AW17: 0.0608 | AX17: 0.0497 | AY17: 0.0359 | AZ17: 0.0227 | BA17: 0.0124 | BB17: 0.006 | BC17: 0.003 | BD17: 0.0027 | BE17: 0.0042 | BF17: 0.0063 | BG17: 0.0077 | BH17: 0.007 | BI17: 0.0035 | BJ17: -0.0034 | BK17: -0.0134 | BL17: -0.0261 | BM17: -0.041 | BN17: -0.057 | BO17: -0.056 | BP17: -0.0526 | BQ17: -0.0472 | BR17: -0.0404 | BS17: -0.0328 | BT17: -0.0248 | BU17: -0.0172 | BV17: -0.0103 | BW17: -0.0047 | BX17: -0.001 | BY17: 0.0014 | BZ17: 0.0034 | CA17: 0.0051 | CB17: 0.0064 | CC17: 0.0074 | CD17: 0.0083 | CE17: 0.009 | CF17: 0.0095 | CG17: 0.0099 | CH17: 0.01
A18: 35 | B18: 0.0402 | C18: 0.0356 | D18: 0.0308 | E18: 0.0256 | F18: 0.0202 | G18: 0.0148 | H18: 0.0097 | I18: 0.0052 | J18: 0.0011 | K18: -0.0029 | L18: -0.0067 | M18: -0.0104 | N18: -0.0134 | O18: -0.0155 | P18: -0.0164 | Q18: -0.0158 | R18: -0.0135 | S18: -0.0094 | T18: -0.0037 | U18: 0.0031 | V18: 0.0105 | W18: 0.0176 | X18: 0.0238 | Y18: 0.0285 | Z18: 0.0312 | AA18: 0.0315 | AB18: 0.0299 | AC18: 0.0267 | AD18: 0.0222 | AE18: 0.0165 | AF18: 0.0095 | AG18: 0.0009 | AH18: -0.0092 | AI18: -0.0199 | AJ18: -0.0295 | AK18: -0.0364 | AL18: -0.0394 | AM18: -0.0382 | AN18: -0.0331 | AO18: -0.0247 | AP18: -0.0134 | AQ18: 0.0006 | AR18: 0.0168 | AS18: 0.0339 | AT18: 0.0495 | AU18: 0.0603 | AV18: 0.0636 | AW18: 0.059 | AX18: 0.0486 | AY18: 0.0358 | AZ18: 0.0237 | BA18: 0.0146 | BB18: 0.0091 | BC18: 0.0067 | BD18: 0.0066 | BE18: 0.008 | BF18: 0.0098 | BG18: 0.0106 | BH18: 0.0095 | BI18: 0.0056 | BJ18: -0.0016 | BK18: -0.0118 | BL18: -0.0248 | BM18: -0.0397 | BN18: -0.0558 | BO18: -0.0553 | BP18: -0.0522 | BQ18: -0.0472 | BR18: -0.0408 | BS18: -0.0335 | BT18: -0.0258 | BU18: -0.0182 | BV18: -0.0114 | BW18: -0.0058 | BX18: -0.002 | BY18: 0.0006 | BZ18: 0.0029 | CA18: 0.0047 | CB18: 0.0062 | CC18: 0.0074 | CD18: 0.0083 | CE18: 0.009 | CF18: 0.0095 | CG18: 0.0099 | CH18: 0.01
A19: 36 | B19: 0.0398 | C19: 0.0352 | D19: 0.0305 | E19: 0.0254 | F19: 0.02 | G19: 0.0147 | H19: 0.0097 | I19: 0.0052 | J19: 0.0011 | K19: -0.0028 | L19: -0.0065 | M19: -0.01 | N19: -0.0129 | O19: -0.0149 | P19: -0.0157 | Q19: -0.0151 | R19: -0.0128 | S19: -0.0087 | T19: -0.0029 | U19: 0.004 | V19: 0.0114 | W19: 0.0185 | X19: 0.0248 | Y19: 0.0295 | Z19: 0.0323 | AA19: 0.0329 | AB19: 0.0316 | AC19: 0.0288 | AD19: 0.0247 | AE19: 0.0192 | AF19: 0.0122 | AG19: 0.0035 | AH19: -0.0067 | AI19: -0.0177 | AJ19: -0.0277 | AK19: -0.035 | AL19: -0.0386 | AM19: -0.0381 | AN19: -0.0337 | AO19: -0.026 | AP19: -0.0152 | AQ19: -0.0017 | AR19: 0.0141 | AS19: 0.0308 | AT19: 0.0461 | AU19: 0.0568 | AV19: 0.0603 | AW19: 0.0562 | AX19: 0.0466 | AY19: 0.0347 | AZ19: 0.0238 | BA19: 0.0159 | BB19: 0.0114 | BC19: 0.0098 | BD19: 0.0103 | BE19: 0.0118 | BF19: 0.0134 | BG19: 0.014 | BH19: 0.0126 | BI19: 0.0083 | BJ19: 0.0009 | BK19: -0.0096 | BL19: -0.0226 | BM19: -0.0376 | BN19: -0.0537 | BO19: -0.0536 | BP19: -0.0511 | BQ19: -0.0466 | BR19: -0.0406 | BS19: -0.0337 | BT19: -0.0263 | BU19: -0.019 | BV19: -0.0124 | BW19: -0.0068 | BX19: -0.0029 | BY19: -0.0002 | BZ19: 0.0022 | CA19: 0.0043 | CB19: 0.006 | CC19: 0.0073 | CD19: 0.0083 | CE19: 0.009 | CF19: 0.0095 | CG19: 0.0099 | CH19: 0.01
A20: 37 | B20: 0.0389 | C20: 0.0345 | D20: 0.0299 | E20: 0.025 | F20: 0.0198 | G20: 0.0147 | H20: 0.0097 | I20: 0.0053 | J20: 0.0013 | K20: -0.0025 | L20: -0.0061 | M20: -0.0094 | N20: -0.0122 | O20: -0.0141 | P20: -0.0149 | Q20: -0.0143 | R20: -0.012 | S20: -0.0079 | T20: -0.0022 | U20: 0.0048 | V20: 0.0121 | W20: 0.0192 | X20: 0.0254 | Y20: 0.0302 | Z20: 0.033 | AA20: 0.0339 | AB20: 0.033 | AC20: 0.0307 | AD20: 0.027 | AE20: 0.0218 | AF20: 0.0151 | AG20: 0.0066 | AH20: -0.0036 | AI20: -0.0145 | AJ20: -0.0245 | AK20: -0.0322 | AL20: -0.0364 | AM20: -0.0367 | AN20: -0.0333 | AO20: -0.0265 | AP20: -0.0166 | AQ20: -0.0039 | AR20: 0.0111 | AS20: 0.0272 | AT20: 0.042 | AU20: 0.0526 | AV20: 0.0562 | AW20: 0.0526 | AX20: 0.0437 | AY20: 0.0329 | AZ20: 0.0232 | BA20: 0.0164 | BB20: 0.013 | BC20: 0.0122 | BD20: 0.0133 | BE20: 0.0152 | BF20: 0.017 | BG20: 0.0175 | BH20: 0.016 | BI20: 0.0115 | BJ20: 0.0039 | BK20: -0.0066 | BL20: -0.0197 | BM20: -0.0347 | BN20: -0.0505 | BO20: -0.051 | BP20: -0.0491 | BQ20: -0.0452 | BR20: -0.0398 | BS20: -0.0334 | BT20: -0.0265 | BU20: -0.0195 | BV20: -0.0131 | BW20: -0.0077 | BX20: -0.0039 | BY20: -0.001 | BZ20: 0.0016 | CA20: 0.0038 | CB20: 0.0056 | CC20: 0.0071 | CD20: 0.0082 | CE20: 0.009 | CF20: 0.0095 | CG20: 0.0099 | CH20: 0.01
A21: 38 | B21: 0.0375 | C21: 0.0334 | D21: 0.0292 | E21: 0.0246 | F21: 0.0197 | G21: 0.0147 | H21: 0.0099 | I21: 0.0057 | J21: 0.0017 | K21: -0.0019 | L21: -0.0054 | M21: -0.0087 | N21: -0.0114 | O21: -0.0133 | P21: -0.0141 | Q21: -0.0135 | R21: -0.0113 | S21: -0.0072 | T21: -0.0015 | U21: 0.0054 | V21: 0.0127 | W21: 0.0198 | X21: 0.0259 | Y21: 0.0305 | Z21: 0.0335 | AA21: 0.0346 | AB21: 0.0341 | AC21: 0.0322 | AD21: 0.029 | AE21: 0.0243 | AF21: 0.018 | AG21: 0.0098 | AH21: 0 | AI21: -0.0105 | AJ21: -0.0204 | AK21: -0.0281 | AL21: -0.0328 | AM21: -0.034 | AN21: -0.0318 | AO21: -0.0262 | AP21: -0.0176 | AQ21: -0.006 | AR21: 0.008 | AS21: 0.0233 | AT21: 0.0376 | AU21: 0.0478 | AV21: 0.0515 | AW21: 0.0483 | AX21: 0.0403 | AY21: 0.0305 | AZ21: 0.0219 | BA21: 0.0162 | BB21: 0.0137 | BC21: 0.0138 | BD21: 0.0156 | BE21: 0.0181 | BF21: 0.0202 | BG21: 0.0209 | BH21: 0.0194 | BI21: 0.015 | BJ21: 0.0073 | BK21: -0.0032 | BL21: -0.0162 | BM21: -0.0309 | BN21: -0.0465 | BO21: -0.0475 | BP21: -0.0462 | BQ21: -0.043 | BR21: -0.0383 | BS21: -0.0325 | BT21: -0.0262 | BU21: -0.0197 | BV21: -0.0137 | BW21: -0.0085 | BX21: -0.0047 | BY21: -0.0018 | BZ21: 0.0009 | CA21: 0.0032 | CB21: 0.0052 | CC21: 0.0068 | CD21: 0.0081 | CE21: 0.0089 | CF21: 0.0095 | CG21: 0.0099 | CH21: 0.01
A22: 39 | B22: 0.0358 | C22: 0.0322 | D22: 0.0284 | E22: 0.0241 | F22: 0.0195 | G22: 0.0147 | H22: 0.0102 | I22: 0.0061 | J22: 0.0023 | K22: -0.0012 | L22: -0.0046 | M22: -0.0078 | N22: -0.0105 | O22: -0.0124 | P22: -0.0132 | Q22: -0.0127 | R22: -0.0105 | S22: -0.0065 | T22: -0.0009 | U22: 0.0059 | V22: 0.0132 | W22: 0.0201 | X22: 0.026 | Y22: 0.0306 | Z22: 0.0336 | AA22: 0.0349 | AB22: 0.0348 | AC22: 0.0334 | AD22: 0.0306 | AE22: 0.0264 | AF22: 0.0206 | AG22: 0.013 | AH22: 0.0038 | AI22: -0.0061 | AJ22: -0.0155 | AK22: -0.0232 | AL22: -0.0283 | AM22: -0.0303 | AN22: -0.0293 | AO22: -0.0251 | AP22: -0.018 | AQ22: -0.0078 | AR22: 0.005 | AS22: 0.0194 | AT22: 0.0328 | AU22: 0.0426 | AV22: 0.0464 | AW22: 0.0437 | AX22: 0.0365 | AY22: 0.0277 | AZ22: 0.0201 | BA22: 0.0153 | BB22: 0.0137 | BC22: 0.0147 | BD22: 0.0172 | BE22: 0.0203 | BF22: 0.0229 | BG22: 0.024 | BH22: 0.0226 | BI22: 0.0183 | BJ22: 0.0108 | BK22: 0.0004 | BL22: -0.0122 | BM22: -0.0265 | BN22: -0.0416 | BO22: -0.0431 | BP22: -0.0425 | BQ22: -0.0401 | BR22: -0.0362 | BS22: -0.0312 | BT22: -0.0255 | BU22: -0.0196 | BV22: -0.014 | BW22: -0.0091 | BX22: -0.0054 | BY22: -0.0025 | BZ22: 0.0002 | CA22: 0.0027 | CB22: 0.0048 | CC22: 0.0066 | CD22: 0.0079 | CE22: 0.0089 | CF22: 0.0095 | CG22: 0.0099 | CH22: 0.01
A23: 40 | B23: 0.0339 | C23: 0.0308 | D23: 0.0274 | E23: 0.0235 | F23: 0.0192 | G23: 0.0147 | H23: 0.0104 | I23: 0.0065 | J23: 0.0029 | K23: -0.0005 | L23: -0.0038 | M23: -0.0068 | N23: -0.0095 | O23: -0.0114 | P23: -0.0122 | Q23: -0.0118 | R23: -0.0097 | S23: -0.0059 | T23: -0.0004 | U23: 0.0063 | V23: 0.0134 | W23: 0.0202 | X23: 0.026 | Y23: 0.0305 | Z23: 0.0335 | AA23: 0.0351 | AB23: 0.0352 | AC23: 0.0342 | AD23: 0.0319 | AE23: 0.0282 | AF23: 0.023 | AG23: 0.016 | AH23: 0.0076 | AI23: -0.0015 | AJ23: -0.0103 | AK23: -0.0177 | AL23: -0.023 | AM23: -0.0258 | AN23: -0.0259 | AO23: -0.0233 | AP23: -0.0177 | AQ23: -0.0091 | AR23: 0.0024 | AS23: 0.0156 | AT23: 0.0281 | AU23: 0.0374 | AV23: 0.041 | AW23: 0.0387 | AX23: 0.0324 | AY23: 0.0246 | AZ23: 0.018 | BA23: 0.014 | BB23: 0.0132 | BC23: 0.0149 | BD23: 0.0181 | BE23: 0.0218 | BF23: 0.0249 | BG23: 0.0264 | BH23: 0.0253 | BI23: 0.0213 | BJ23: 0.0141 | BK23: 0.0042 | BL23: -0.008 | BM23: -0.0216 | BN23: -0.0361 | BO23: -0.038 | BP23: -0.0381 | BQ23: -0.0365 | BR23: -0.0334 | BS23: -0.0293 | BT23: -0.0244 | BU23: -0.0192 | BV23: -0.0141 | BW23: -0.0096 | BX23: -0.006 | BY23: -0.0031 | BZ23: -0.0003 | CA23: 0.0022 | CB23: 0.0044 | CC23: 0.0063 | CD23: 0.0077 | CE23: 0.0088 | CF23: 0.0095 | CG23: 0.0099 | CH23: 0.01
A24: 41 | B24: 0.032 | C24: 0.0292 | D24: 0.0262 | E24: 0.0228 | F24: 0.0188 | G24: 0.0146 | H24: 0.0106 | I24: 0.0069 | J24: 0.0035 | K24: 0.0002 | L24: -0.0029 | M24: -0.0059 | N24: -0.0084 | O24: -0.0103 | P24: -0.0112 | Q24: -0.0107 | R24: -0.0088 | S24: -0.0051 | T24: 0.0001 | U24: 0.0066 | V24: 0.0135 | W24: 0.02 | X24: 0.0257 | Y24: 0.0302 | Z24: 0.0333 | AA24: 0.035 | AB24: 0.0354 | AC24: 0.0346 | AD24: 0.0327 | AE24: 0.0295 | AF24: 0.0249 | AG24: 0.0188 | AH24: 0.0112 | AI24: 0.003 | AJ24: -0.005 | AK24: -0.012 | AL24: -0.0174 | AM24: -0.0209 | AN24: -0.022 | AO24: -0.0207 | AP24: -0.0166 | AQ24: -0.0095 | AR24: 0.0005 | AS24: 0.0123 | AT24: 0.0237 | AU24: 0.0322 | AV24: 0.0356 | AW24: 0.0337 | AX24: 0.0281 | AY24: 0.0213 | AZ24: 0.0156 | BA24: 0.0124 | BB24: 0.0123 | BC24: 0.0146 | BD24: 0.0183 | BE24: 0.0225 | BF24: 0.0261 | BG24: 0.028 | BH24: 0.0273 | BI24: 0.0237 | BJ24: 0.0171 | BK24: 0.0077 | BL24: -0.0036 | BM24: -0.0165 | BN24: -0.0301 | BO24: -0.0324 | BP24: -0.033 | BQ24: -0.0322 | BR24: -0.0301 | BS24: -0.0269 | BT24: -0.0229 | BU24: -0.0184 | BV24: -0.0139 | BW24: -0.0098 | BX24: -0.0065 | BY24: -0.0036 | BZ24: -0.0009 | CA24: 0.0017 | CB24: 0.004 | CC24: 0.006 | CD24: 0.0075 | CE24: 0.0087 | CF24: 0.0094 | CG24: 0.0099 | CH24: 0.01
A25: 42 | B25: 0.0302 | C25: 0.0277 | D25: 0.025 | E25: 0.0219 | F25: 0.0183 | G25: 0.0144 | H25: 0.0107 | I25: 0.0072 | J25: 0.004 | K25: 0.0009 | L25: -0.0021 | M25: -0.0049 | N25: -0.0073 | O25: -0.0091 | P25: -0.01 | Q25: -0.0096 | R25: -0.0078 | S25: -0.0043 | T25: 0.0007 | U25: 0.0068 | V25: 0.0134 | W25: 0.0197 | X25: 0.0253 | Y25: 0.0298 | Z25: 0.0329 | AA25: 0.0347 | AB25: 0.0353 | AC25: 0.0348 | AD25: 0.0331 | AE25: 0.0304 | AF25: 0.0264 | AG25: 0.0211 | AH25: 0.0145 | AI25: 0.0073 | AJ25: 0.0001 | AK25: -0.0065 | AL25: -0.0119 | AM25: -0.0157 | AN25: -0.0177 | AO25: -0.0174 | AP25: -0.0147 | AQ25: -0.009 | AR25: -0.0006 | AS25: 0.0097 | AT25: 0.0198 | AU25: 0.0273 | AV25: 0.0303 | AW25: 0.0286 | AX25: 0.0237 | AY25: 0.0178 | AZ25: 0.013 | BA25: 0.0107 | BB25: 0.0111 | BC25: 0.0139 | BD25: 0.018 | BE25: 0.0226 | BF25: 0.0265 | BG25: 0.0287 | BH25: 0.0285 | BI25: 0.0254 | BJ25: 0.0195 | BK25: 0.011 | BL25: 0.0005 | BM25: -0.0113 | BN25: -0.024 | BO25: -0.0264 | BP25: -0.0276 | BQ25: -0.0276 | BR25: -0.0263 | BS25: -0.024 | BT25: -0.0209 | BU25: -0.0173 | BV25: -0.0135 | BW25: -0.0098 | BX25: -0.0067 | BY25: -0.004 | BZ25: -0.0013 | CA25: 0.0013 | CB25: 0.0037 | CC25: 0.0057 | CD25: 0.0073 | CE25: 0.0085 | CF25: 0.0094 | CG25: 0.0099 | CH25: 0.01
A26: 43 | B26: 0.0285 | C26: 0.0262 | D26: 0.0238 | E26: 0.0209 | F26: 0.0176 | G26: 0.0141 | H26: 0.0106 | I26: 0.0073 | J26: 0.0043 | K26: 0.0014 | L26: -0.0014 | M26: -0.004 | N26: -0.0063 | O26: -0.0079 | P26: -0.0087 | Q26: -0.0084 | R26: -0.0066 | S26: -0.0034 | T26: 0.0012 | U26: 0.007 | V26: 0.0132 | W26: 0.0192 | X26: 0.0247 | Y26: 0.0292 | Z26: 0.0324 | AA26: 0.0343 | AB26: 0.035 | AC26: 0.0346 | AD26: 0.0332 | AE26: 0.0308 | AF26: 0.0275 | AG26: 0.023 | AH26: 0.0174 | AI26: 0.0111 | AJ26: 0.0047 | AK26: -0.0013 | AL26: -0.0066 | AM26: -0.0107 | AN26: -0.0132 | AO26: -0.0137 | AP26: -0.012 | AQ26: -0.0076 | AR26: -0.0006 | AS26: 0.008 | AT26: 0.0165 | AU26: 0.0229 | AV26: 0.0253 | AW26: 0.0237 | AX26: 0.0194 | AY26: 0.0143 | AZ26: 0.0104 | BA26: 0.0087 | BB26: 0.0098 | BC26: 0.0129 | BD26: 0.0173 | BE26: 0.022 | BF26: 0.0261 | BG26: 0.0286 | BH26: 0.0288 | BI26: 0.0264 | BJ26: 0.0212 | BK26: 0.0137 | BL26: 0.0043 | BM26: -0.0064 | BN26: -0.018 | BO26: -0.0205 | BP26: -0.0221 | BQ26: -0.0226 | BR26: -0.0222 | BS26: -0.0208 | BT26: -0.0187 | BU26: -0.0159 | BV26: -0.0128 | BW26: -0.0097 | BX26: -0.0068 | BY26: -0.0042 | BZ26: -0.0016 | CA26: 0.001 | CB26: 0.0033 | CC26: 0.0054 | CD26: 0.0071 | CE26: 0.0084 | CF26: 0.0093 | CG26: 0.0098 | CH26: 0.01
A27: 44 | B27: 0.0269 | C27: 0.0247 | D27: 0.0225 | E27: 0.0199 | F27: 0.0168 | G27: 0.0136 | H27: 0.0103 | I27: 0.0073 | J27: 0.0044 | K27: 0.0017 | L27: -0.0009 | M27: -0.0033 | N27: -0.0053 | O27: -0.0067 | P27: -0.0074 | Q27: -0.007 | R27: -0.0054 | S27: -0.0024 | T27: 0.0019 | U27: 0.0073 | V27: 0.013 | W27: 0.0187 | X27: 0.024 | Y27: 0.0285 | Z27: 0.0318 | AA27: 0.0337 | AB27: 0.0345 | AC27: 0.0342 | AD27: 0.033 | AE27: 0.031 | AF27: 0.0282 | AG27: 0.0245 | AH27: 0.0198 | AI27: 0.0144 | AJ27: 0.0087 | AK27: 0.0032 | AL27: -0.0018 | AM27: -0.0059 | AN27: -0.0086 | AO27: -0.0096 | AP27: -0.0086 | AQ27: -0.0053 | AR27: 0.0003 | AS27: 0.0073 | AT27: 0.0142 | AU27: 0.0192 | AV27: 0.021 | AW27: 0.0193 | AX27: 0.0153 | AY27: 0.0109 | AZ27: 0.0077 | BA27: 0.0067 | BB27: 0.0082 | BC27: 0.0116 | BD27: 0.0161 | BE27: 0.0209 | BF27: 0.0251 | BG27: 0.0277 | BH27: 0.0283 | BI27: 0.0265 | BJ27: 0.0222 | BK27: 0.0158 | BL27: 0.0076 | BM27: -0.002 | BN27: -0.0125 | BO27: -0.0148 | BP27: -0.0166 | BQ27: -0.0176 | BR27: -0.0179 | BS27: -0.0174 | BT27: -0.0161 | BU27: -0.0142 | BV27: -0.0118 | BW27: -0.0092 | BX27: -0.0068 | BY27: -0.0043 | BZ27: -0.0018 | CA27: 0.0007 | CB27: 0.0031 | CC27: 0.0052 | CD27: 0.0069 | CE27: 0.0083 | CF27: 0.0093 | CG27: 0.0098 | CH27: 0.01
A28: 45 | B28: 0.0254 | C28: 0.0233 | D28: 0.0212 | E28: 0.0188 | F28: 0.016 | G28: 0.013 | H28: 0.01 | I28: 0.0071 | J28: 0.0044 | K28: 0.0018 | L28: -0.0005 | M28: -0.0026 | N28: -0.0044 | O28: -0.0056 | P28: -0.0061 | Q28: -0.0056 | R28: -0.004 | S28: -0.0012 | T28: 0.0028 | U28: 0.0076 | V28: 0.0129 | W28: 0.0183 | X28: 0.0233 | Y28: 0.0277 | Z28: 0.031 | AA28: 0.033 | AB28: 0.0337 | AC28: 0.0335 | AD28: 0.0324 | AE28: 0.0308 | AF28: 0.0285 | AG28: 0.0255 | AH28: 0.0217 | AI28: 0.0171 | AJ28: 0.0121 | AK28: 0.0071 | AL28: 0.0025 | AM28: -0.0014 | AN28: -0.0042 | AO28: -0.0054 | AP28: -0.0048 | AQ28: -0.0023 | AR28: 0.002 | AS28: 0.0074 | AT28: 0.0127 | AU28: 0.0164 | AV28: 0.0174 | AW28: 0.0155 | AX28: 0.0118 | AY28: 0.0079 | AZ28: 0.0052 | BA28: 0.0047 | BB28: 0.0064 | BC28: 0.01 | BD28: 0.0145 | BE28: 0.0193 | BF28: 0.0234 | BG28: 0.0262 | BH28: 0.0271 | BI28: 0.0259 | BJ28: 0.0226 | BK28: 0.0172 | BL28: 0.0101 | BM28: 0.0017 | BN28: -0.0075 | BO28: -0.0096 | BP28: -0.0115 | BQ28: -0.0128 | BR28: -0.0136 | BS28: -0.0138 | BT28: -0.0133 | BU28: -0.0122 | BV28: -0.0105 | BW28: -0.0085 | BX28: -0.0065 | BY28: -0.0043 | BZ28: -0.0019 | CA28: 0.0006 | CB28: 0.0029 | CC28: 0.005 | CD28: 0.0068 | CE28: 0.0082 | CF28: 0.0092 | CG28: 0.0098 | CH28: 0.01
A29: 46 | B29: 0.024 | C29: 0.022 | D29: 0.02 | E29: 0.0177 | F29: 0.0151 | G29: 0.0123 | H29: 0.0095 | I29: 0.0067 | J29: 0.0042 | K29: 0.0019 | L29: -0.0002 | M29: -0.0021 | N29: -0.0036 | O29: -0.0045 | P29: -0.0048 | Q29: -0.0042 | R29: -0.0026 | S29: 0 | T29: 0.0037 | U29: 0.0082 | V29: 0.013 | W29: 0.018 | X29: 0.0227 | Y29: 0.0269 | Z29: 0.0301 | AA29: 0.032 | AB29: 0.0328 | AC29: 0.0326 | AD29: 0.0317 | AE29: 0.0303 | AF29: 0.0285 | AG29: 0.0261 | AH29: 0.023 | AI29: 0.0191 | AJ29: 0.0148 | AK29: 0.0104 | AL29: 0.0062 | AM29: 0.0027 | AN29: 0.0001 | AO29: -0.0011 | AP29: -0.0009 | AQ29: 0.001 | AR29: 0.0042 | AS29: 0.0082 | AT29: 0.0121 | AU29: 0.0146 | AV29: 0.0148 | AW29: 0.0126 | AX29: 0.009 | AY29: 0.0053 | AZ29: 0.003 | BA29: 0.0026 | BB29: 0.0044 | BC29: 0.008 | BD29: 0.0125 | BE29: 0.0173 | BF29: 0.0214 | BG29: 0.0243 | BH29: 0.0255 | BI29: 0.0248 | BJ29: 0.0222 | BK29: 0.0178 | BL29: 0.0118 | BM29: 0.0047 | BN29: -0.0033 | BO29: -0.0051 | BP29: -0.0069 | BQ29: -0.0084 | BR29: -0.0095 | BS29: -0.0102 | BT29: -0.0104 | BU29: -0.01 | BV29: -0.009 | BW29: -0.0076 | BX29: -0.0059 | BY29: -0.004 | BZ29: -0.0018 | CA29: 0.0005 | CB29: 0.0028 | CC29: 0.0049 | CD29: 0.0067 | CE29: 0.0081 | CF29: 0.0092 | CG29: 0.0098 | CH29: 0.01
A30: 47 | B30: 0.0226 | C30: 0.0207 | D30: 0.0188 | E30: 0.0167 | F30: 0.0143 | G30: 0.0116 | H30: 0.0089 | I30: 0.0063 | J30: 0.0039 | K30: 0.0018 | L30: 0 | M30: -0.0016 | N30: -0.0029 | O30: -0.0035 | P30: -0.0036 | Q30: -0.0029 | R30: -0.0013 | S30: 0.0013 | T30: 0.0048 | U30: 0.0089 | V30: 0.0133 | W30: 0.0178 | X30: 0.0222 | Y30: 0.0261 | Z30: 0.0291 | AA30: 0.0309 | AB30: 0.0316 | AC30: 0.0315 | AD30: 0.0308 | AE30: 0.0297 | AF30: 0.0283 | AG30: 0.0263 | AH30: 0.0237 | AI30: 0.0204 | AJ30: 0.0167 | AK30: 0.013 | AL30: 0.0094 | AM30: 0.0064 | AN30: 0.0042 | AO30: 0.003 | AP30: 0.0031 | AQ30: 0.0043 | AR30: 0.0066 | AS30: 0.0095 | AT30: 0.0122 | AU30: 0.0138 | AV30: 0.0133 | AW30: 0.0108 | AX30: 0.0071 | AY30: 0.0034 | AZ30: 0.001 | BA30: 0.0007 | BB30: 0.0024 | BC30: 0.0058 | BD30: 0.0103 | BE30: 0.015 | BF30: 0.0191 | BG30: 0.022 | BH30: 0.0234 | BI30: 0.0232 | BJ30: 0.0212 | BK30: 0.0176 | BL30: 0.0127 | BM30: 0.0067 | BN30: 0 | BO30: -0.0015 | BP30: -0.003 | BQ30: -0.0045 | BR30: -0.0058 | BS30: -0.0069 | BT30: -0.0075 | BU30: -0.0076 | BV30: -0.0072 | BW30: -0.0064 | BX30: -0.0051 | BY30: -0.0035 | BZ30: -0.0016 | CA30: 0.0006 | CB30: 0.0027 | CC30: 0.0048 | CD30: 0.0066 | CE30: 0.0081 | CF30: 0.0091 | CG30: 0.0098 | CH30: 0.01
A31: 48 | B31: 0.0213 | C31: 0.0196 | D31: 0.0178 | E31: 0.0158 | F31: 0.0135 | G31: 0.0109 | H31: 0.0083 | I31: 0.0059 | J31: 0.0036 | K31: 0.0017 | L31: 0.0001 | M31: -0.0013 | N31: -0.0023 | O31: -0.0027 | P31: -0.0026 | Q31: -0.0017 | R31: 0 | S31: 0.0026 | T31: 0.0059 | U31: 0.0097 | V31: 0.0138 | W31: 0.0179 | X31: 0.0219 | Y31: 0.0254 | Z31: 0.0281 | AA31: 0.0297 | AB31: 0.0303 | AC31: 0.0303 | AD31: 0.0298 | AE31: 0.0289 | AF31: 0.0277 | AG31: 0.0261 | AH31: 0.0239 | AI31: 0.0212 | AJ31: 0.0181 | AK31: 0.015 | AL31: 0.0121 | AM31: 0.0097 | AN31: 0.0079 | AO31: 0.0069 | AP31: 0.0068 | AQ31: 0.0076 | AR31: 0.0092 | AS31: 0.0112 | AT31: 0.013 | AU31: 0.0138 | AV31: 0.0129 | AW31: 0.01 | AX31: 0.0061 | AY31: 0.0022 | AZ31: -0.0004 | BA31: -0.0011 | BB31: 0.0004 | BC31: 0.0036 | BD31: 0.0079 | BE31: 0.0125 | BF31: 0.0166 | BG31: 0.0196 | BH31: 0.0212 | BI31: 0.0212 | BJ31: 0.0197 | BK31: 0.0168 | BL31: 0.0127 | BM31: 0.0078 | BN31: 0.0024 | BO31: 0.0013 | BP31: 0.0001 | BQ31: -0.0012 | BR31: -0.0025 | BS31: -0.0037 | BT31: -0.0047 | BU31: -0.0052 | BV31: -0.0053 | BW31: -0.0049 | BX31: -0.0041 | BY31: -0.0029 | BZ31: -0.0012 | CA31: 0.0007 | CB31: 0.0028 | CC31: 0.0047 | CD31: 0.0065 | CE31: 0.008 | CF31: 0.0091 | CG31: 0.0098 | CH31: 0.01
A32: 49 | B32: 0.02 | C32: 0.0185 | D32: 0.0169 | E32: 0.015 | F32: 0.0128 | G32: 0.0103 | H32: 0.0078 | I32: 0.0054 | J32: 0.0034 | K32: 0.0016 | L32: 0.0002 | M32: -0.001 | N32: -0.0018 | O32: -0.0021 | P32: -0.0017 | Q32: -0.0007 | R32: 0.0011 | S32: 0.0037 | T32: 0.0069 | U32: 0.0106 | V32: 0.0144 | W32: 0.0182 | X32: 0.0218 | Y32: 0.0249 | Z32: 0.0271 | AA32: 0.0285 | AB32: 0.0291 | AC32: 0.029 | AD32: 0.0286 | AE32: 0.0279 | AF32: 0.0269 | AG32: 0.0256 | AH32: 0.0237 | AI32: 0.0214 | AJ32: 0.0189 | AK32: 0.0164 | AL32: 0.0143 | AM32: 0.0125 | AN32: 0.0112 | AO32: 0.0104 | AP32: 0.0102 | AQ32: 0.0106 | AR32: 0.0116 | AS32: 0.013 | AT32: 0.0143 | AU32: 0.0146 | AV32: 0.0133 | AW32: 0.0102 | AX32: 0.006 | AY32: 0.0019 | AZ32: -0.0012 | BA32: -0.0023 | BB32: -0.0013 | BC32: 0.0015 | BD32: 0.0055 | BE32: 0.01 | BF32: 0.014 | BG32: 0.017 | BH32: 0.0187 | BI32: 0.0189 | BJ32: 0.0178 | BK32: 0.0154 | BL32: 0.0121 | BM32: 0.0082 | BN32: 0.0039 | BO32: 0.0032 | BP32: 0.0024 | BQ32: 0.0014 | BR32: 0.0002 | BS32: -0.001 | BT32: -0.0021 | BU32: -0.0029 | BV32: -0.0033 | BW32: -0.0033 | BX32: -0.0029 | BY32: -0.002 | BZ32: -0.0007 | CA32: 0.001 | CB32: 0.0029 | CC32: 0.0048 | CD32: 0.0065 | CE32: 0.008 | CF32: 0.0091 | CG32: 0.0098 | CH32: 0.01
A33: 50 | B33: 0.019 | C33: 0.0176 | D33: 0.0161 | E33: 0.0143 | F33: 0.0122 | G33: 0.0097 | H33: 0.0073 | I33: 0.005 | J33: 0.0032 | K33: 0.0016 | L33: 0.0003 | M33: -0.0007 | N33: -0.0014 | O33: -0.0016 | P33: -0.0012 | Q33: 0 | R33: 0.0019 | S33: 0.0045 | T33: 0.0078 | U33: 0.0113 | V33: 0.015 | W33: 0.0186 | X33: 0.0219 | Y33: 0.0246 | Z33: 0.0265 | AA33: 0.0275 | AB33: 0.0279 | AC33: 0.0278 | AD33: 0.0274 | AE33: 0.0268 | AF33: 0.0259 | AG33: 0.0247 | AH33: 0.0231 | AI33: 0.0212 | AJ33: 0.0192 | AK33: 0.0175 | AL33: 0.016 | AM33: 0.0149 | AN33: 0.014 | AO33: 0.0134 | AP33: 0.0132 | AQ33: 0.0133 | AR33: 0.0139 | AS33: 0.0149 | AT33: 0.0158 | AU33: 0.0158 | AV33: 0.0142 | AW33: 0.011 | AX33: 0.0066 | AY33: 0.0022 | AZ33: -0.0012 | BA33: -0.0029 | BB33: -0.0025 | BC33: -0.0001 | BD33: 0.0035 | BE33: 0.0077 | BF33: 0.0115 | BG33: 0.0145 | BH33: 0.0161 | BI33: 0.0164 | BJ33: 0.0155 | BK33: 0.0135 | BL33: 0.0109 | BM33: 0.0078 | BN33: 0.0046 | BO33: 0.0043 | BP33: 0.0039 | BQ33: 0.0032 | BR33: 0.0023 | BS33: 0.0013 | BT33: 0.0002 | BU33: -0.0007 | BV33: -0.0013 | BW33: -0.0016 | BX33: -0.0015 | BY33: -0.001 | BZ33: 0.0001 | CA33: 0.0015 | CB33: 0.0031 | CC33: 0.0049 | CD33: 0.0065 | CE33: 0.008 | CF33: 0.0091 | CG33: 0.0098 | CH33: 0.01
A34: 51 | B34: 0.0181 | C34: 0.0168 | D34: 0.0154 | E34: 0.0137 | F34: 0.0116 | G34: 0.0093 | H34: 0.0069 | I34: 0.0048 | J34: 0.003 | K34: 0.0016 | L34: 0.0004 | M34: -0.0006 | N34: -0.0012 | O34: -0.0013 | P34: -0.0008 | Q34: 0.0004 | R34: 0.0024 | S34: 0.005 | T34: 0.0083 | U34: 0.0119 | V34: 0.0156 | W34: 0.0191 | X34: 0.0221 | Y34: 0.0245 | Z34: 0.0261 | AA34: 0.0269 | AB34: 0.027 | AC34: 0.0268 | AD34: 0.0263 | AE34: 0.0256 | AF34: 0.0247 | AG34: 0.0235 | AH34: 0.0222 | AI34: 0.0207 | AJ34: 0.0193 | AK34: 0.0181 | AL34: 0.0173 | AM34: 0.0167 | AN34: 0.0163 | AO34: 0.0159 | AP34: 0.0156 | AQ34: 0.0156 | AR34: 0.016 | AS34: 0.0167 | AT34: 0.0173 | AU34: 0.0171 | AV34: 0.0155 | AW34: 0.0122 | AX34: 0.0078 | AY34: 0.0033 | AZ34: -0.0005 | BA34: -0.0027 | BB34: -0.0028 | BC34: -0.0011 | BD34: 0.002 | BE34: 0.0057 | BF34: 0.0092 | BG34: 0.0118 | BH34: 0.0134 | BI34: 0.0137 | BJ34: 0.0129 | BK34: 0.0113 | BL34: 0.0093 | BM34: 0.007 | BN34: 0.0046 | BO34: 0.0047 | BP34: 0.0046 | BQ34: 0.0043 | BR34: 0.0038 | BS34: 0.003 | BT34: 0.0022 | BU34: 0.0013 | BV34: 0.0006 | BW34: 0.0001 | BX34: 0 | BY34: 0.0002 | BZ34: 0.0009 | CA34: 0.002 | CB34: 0.0035 | CC34: 0.005 | CD34: 0.0066 | CE34: 0.008 | CF34: 0.0091 | CG34: 0.0098 | CH34: 0.01
A35: 52 | B35: 0.0174 | C35: 0.0162 | D35: 0.0149 | E35: 0.0132 | F35: 0.0111 | G35: 0.0088 | H35: 0.0065 | I35: 0.0046 | J35: 0.0029 | K35: 0.0016 | L35: 0.0005 | M35: -0.0005 | N35: -0.0011 | O35: -0.0012 | P35: -0.0008 | Q35: 0.0005 | R35: 0.0025 | S35: 0.0052 | T35: 0.0086 | U35: 0.0122 | V35: 0.016 | W35: 0.0195 | X35: 0.0225 | Y35: 0.0247 | Z35: 0.0261 | AA35: 0.0266 | AB35: 0.0264 | AC35: 0.0259 | AD35: 0.0251 | AE35: 0.0242 | AF35: 0.0233 | AG35: 0.0222 | AH35: 0.021 | AI35: 0.02 | AJ35: 0.0191 | AK35: 0.0185 | AL35: 0.0182 | AM35: 0.018 | AN35: 0.018 | AO35: 0.0178 | AP35: 0.0176 | AQ35: 0.0176 | AR35: 0.0178 | AS35: 0.0184 | AT35: 0.0188 | AU35: 0.0185 | AV35: 0.0168 | AW35: 0.0136 | AX35: 0.0094 | AY35: 0.0049 | AZ35: 0.001 | BA35: -0.0015 | BB35: -0.0022 | BC35: -0.0011 | BD35: 0.0012 | BE35: 0.0041 | BF35: 0.0071 | BG35: 0.0093 | BH35: 0.0106 | BI35: 0.0109 | BJ35: 0.0102 | BK35: 0.009 | BL35: 0.0074 | BM35: 0.0057 | BN35: 0.004 | BO35: 0.0044 | BP35: 0.0047 | BQ35: 0.0048 | BR35: 0.0046 | BS35: 0.0043 | BT35: 0.0037 | BU35: 0.0031 | BV35: 0.0024 | BW35: 0.0019 | BX35: 0.0015 | BY35: 0.0015 | BZ35: 0.0019 | CA35: 0.0027 | CB35: 0.0039 | CC35: 0.0053 | CD35: 0.0067 | CE35: 0.008 | CF35: 0.0091 | CG35: 0.0098 | CH35: 0.01
A36: 53 | B36: 0.0169 | C36: 0.0157 | D36: 0.0143 | E36: 0.0127 | F36: 0.0107 | G36: 0.0084 | H36: 0.0063 | I36: 0.0044 | J36: 0.0029 | K36: 0.0016 | L36: 0.0005 | M36: -0.0005 | N36: -0.0011 | O36: -0.0013 | P36: -0.0009 | Q36: 0.0003 | R36: 0.0023 | S36: 0.0051 | T36: 0.0085 | U36: 0.0123 | V36: 0.0162 | W36: 0.0199 | X36: 0.0229 | Y36: 0.0251 | Z36: 0.0263 | AA36: 0.0266 | AB36: 0.0262 | AC36: 0.0252 | AD36: 0.0241 | AE36: 0.0229 | AF36: 0.0218 | AG36: 0.0207 | AH36: 0.0198 | AI36: 0.0191 | AJ36: 0.0187 | AK36: 0.0185 | AL36: 0.0187 | AM36: 0.0189 | AN36: 0.0191 | AO36: 0.0192 | AP36: 0.0192 | AQ36: 0.0192 | AR36: 0.0194 | AS36: 0.0198 | AT36: 0.0201 | AU36: 0.0197 | AV36: 0.018 | AW36: 0.0151 | AX36: 0.0111 | AY36: 0.0069 | AZ36: 0.0032 | BA36: 0.0006 | BB36: -0.0006 | BC36: -0.0002 | BD36: 0.0012 | BE36: 0.0033 | BF36: 0.0054 | BG36: 0.007 | BH36: 0.008 | BI36: 0.0081 | BJ36: 0.0075 | BK36: 0.0065 | BL36: 0.0053 | BM36: 0.0041 | BN36: 0.003 | BO36: 0.0037 | BP36: 0.0042 | BQ36: 0.0047 | BR36: 0.005 | BS36: 0.005 | BT36: 0.0049 | BU36: 0.0045 | BV36: 0.004 | BW36: 0.0034 | BX36: 0.003 | BY36: 0.0028 | BZ36: 0.0029 | CA36: 0.0035 | CB36: 0.0044 | CC36: 0.0056 | CD36: 0.0069 | CE36: 0.0081 | CF36: 0.0091 | CG36: 0.0098 | CH36: 0.01
A37: 54 | B37: 0.0164 | C37: 0.0152 | D37: 0.0139 | E37: 0.0122 | F37: 0.0102 | G37: 0.008 | H37: 0.006 | I37: 0.0042 | J37: 0.0028 | K37: 0.0015 | L37: 0.0004 | M37: -0.0006 | N37: -0.0013 | O37: -0.0015 | P37: -0.0012 | Q37: -0.0001 | R37: 0.0019 | S37: 0.0047 | T37: 0.0083 | U37: 0.0122 | V37: 0.0163 | W37: 0.0201 | X37: 0.0233 | Y37: 0.0256 | Z37: 0.0268 | AA37: 0.0269 | AB37: 0.0262 | AC37: 0.0248 | AD37: 0.0232 | AE37: 0.0217 | AF37: 0.0203 | AG37: 0.0193 | AH37: 0.0186 | AI37: 0.0182 | AJ37: 0.0181 | AK37: 0.0184 | AL37: 0.0188 | AM37: 0.0193 | AN37: 0.0198 | AO37: 0.0201 | AP37: 0.0202 | AQ37: 0.0204 | AR37: 0.0207 | AS37: 0.021 | AT37: 0.0212 | AU37: 0.0206 | AV37: 0.0191 | AW37: 0.0164 | AX37: 0.0129 | AY37: 0.0092 | AZ37: 0.0058 | BA37: 0.0033 | BB37: 0.0018 | BC37: 0.0015 | BD37: 0.002 | BE37: 0.003 | BF37: 0.0042 | BG37: 0.0051 | BH37: 0.0056 | BI37: 0.0055 | BJ37: 0.005 | BK37: 0.0041 | BL37: 0.0032 | BM37: 0.0023 | BN37: 0.0017 | BO37: 0.0025 | BP37: 0.0034 | BQ37: 0.0042 | BR37: 0.0049 | BS37: 0.0053 | BT37: 0.0055 | BU37: 0.0055 | BV37: 0.0053 | BW37: 0.0049 | BX37: 0.0044 | BY37: 0.004 | BZ37: 0.004 | CA37: 0.0043 | CB37: 0.005 | CC37: 0.006 | CD37: 0.0071 | CE37: 0.0082 | CF37: 0.0091 | CG37: 0.0098 | CH37: 0.01
A38: 55 | B38: 0.0161 | C38: 0.0148 | D38: 0.0134 | E38: 0.0117 | F38: 0.0096 | G38: 0.0075 | H38: 0.0056 | I38: 0.004 | J38: 0.0026 | K38: 0.0014 | L38: 0.0003 | M38: -0.0008 | N38: -0.0015 | O38: -0.0018 | P38: -0.0016 | Q38: -0.0005 | R38: 0.0014 | S38: 0.0043 | T38: 0.0079 | U38: 0.012 | V38: 0.0163 | W38: 0.0203 | X38: 0.0237 | Y38: 0.0261 | Z38: 0.0274 | AA38: 0.0274 | AB38: 0.0264 | AC38: 0.0246 | AD38: 0.0226 | AE38: 0.0206 | AF38: 0.0191 | AG38: 0.018 | AH38: 0.0174 | AI38: 0.0172 | AJ38: 0.0175 | AK38: 0.018 | AL38: 0.0187 | AM38: 0.0194 | AN38: 0.02 | AO38: 0.0206 | AP38: 0.0209 | AQ38: 0.0213 | AR38: 0.0216 | AS38: 0.0219 | AT38: 0.0219 | AU38: 0.0213 | AV38: 0.0199 | AW38: 0.0176 | AX38: 0.0147 | AY38: 0.0116 | AZ38: 0.0087 | BA38: 0.0064 | BB38: 0.0048 | BC38: 0.0039 | BD38: 0.0035 | BE38: 0.0036 | BF38: 0.0037 | BG38: 0.0039 | BH38: 0.0038 | BI38: 0.0033 | BJ38: 0.0027 | BK38: 0.0018 | BL38: 0.0011 | BM38: 0.0005 | BN38: 0 | BO38: 0.001 | BP38: 0.0022 | BQ38: 0.0033 | BR38: 0.0043 | BS38: 0.0052 | BT38: 0.0058 | BU38: 0.0062 | BV38: 0.0062 | BW38: 0.006 | BX38: 0.0056 | BY38: 0.0052 | BZ38: 0.0051 | CA38: 0.0052 | CB38: 0.0057 | CC38: 0.0064 | CD38: 0.0073 | CE38: 0.0083 | CF38: 0.0092 | CG38: 0.0098 | CH38: 0.01
A39: 56 | B39: 0.0157 | C39: 0.0143 | D39: 0.0128 | E39: 0.011 | F39: 0.009 | G39: 0.007 | H39: 0.0051 | I39: 0.0036 | J39: 0.0022 | K39: 0.001 | L39: -0.0001 | M39: -0.0011 | N39: -0.0019 | O39: -0.0022 | P39: -0.0019 | Q39: -0.0009 | R39: 0.001 | S39: 0.0039 | T39: 0.0076 | U39: 0.0118 | V39: 0.0162 | W39: 0.0203 | X39: 0.0239 | Y39: 0.0265 | Z39: 0.0278 | AA39: 0.0278 | AB39: 0.0266 | AC39: 0.0246 | AD39: 0.0222 | AE39: 0.0199 | AF39: 0.0181 | AG39: 0.0169 | AH39: 0.0163 | AI39: 0.0163 | AJ39: 0.0167 | AK39: 0.0175 | AL39: 0.0183 | AM39: 0.0192 | AN39: 0.02 | AO39: 0.0207 | AP39: 0.0213 | AQ39: 0.0217 | AR39: 0.0221 | AS39: 0.0224 | AT39: 0.0223 | AU39: 0.0218 | AV39: 0.0206 | AW39: 0.0187 | AX39: 0.0164 | AY39: 0.014 | AZ39: 0.0116 | BA39: 0.0096 | BB39: 0.008 | BC39: 0.0067 | BD39: 0.0056 | BE39: 0.0048 | BF39: 0.004 | BG39: 0.0033 | BH39: 0.0026 | BI39: 0.0017 | BJ39: 0.0008 | BK39: -0.0002 | BL39: -0.0009 | BM39: -0.0015 | BN39: -0.0018 | BO39: -0.0007 | BP39: 0.0007 | BQ39: 0.0021 | BR39: 0.0035 | BS39: 0.0048 | BT39: 0.0058 | BU39: 0.0065 | BV39: 0.0069 | BW39: 0.007 | BX39: 0.0067 | BY39: 0.0063 | BZ39: 0.006 | CA39: 0.006 | CB39: 0.0063 | CC39: 0.0069 | CD39: 0.0076 | CE39: 0.0084 | CF39: 0.0092 | CG39: 0.0098 | CH39: 0.01
A40: 57 | B40: 0.0152 | C40: 0.0137 | D40: 0.0121 | E40: 0.0103 | F40: 0.0083 | G40: 0.0063 | H40: 0.0045 | I40: 0.003 | J40: 0.0017 | K40: 0.0005 | L40: -0.0006 | M40: -0.0016 | N40: -0.0023 | O40: -0.0026 | P40: -0.0023 | Q40: -0.0012 | R40: 0.0008 | S40: 0.0037 | T40: 0.0074 | U40: 0.0116 | V40: 0.016 | W40: 0.0202 | X40: 0.0239 | Y40: 0.0266 | Z40: 0.028 | AA40: 0.028 | AB40: 0.0268 | AC40: 0.0246 | AD40: 0.022 | AE40: 0.0195 | AF40: 0.0175 | AG40: 0.0161 | AH40: 0.0154 | AI40: 0.0154 | AJ40: 0.0159 | AK40: 0.0168 | AL40: 0.0178 | AM40: 0.0188 | AN40: 0.0197 | AO40: 0.0206 | AP40: 0.0213 | AQ40: 0.0218 | AR40: 0.0223 | AS40: 0.0225 | AT40: 0.0225 | AU40: 0.0221 | AV40: 0.0212 | AW40: 0.0198 | AX40: 0.018 | AY40: 0.0162 | AZ40: 0.0144 | BA40: 0.0127 | BB40: 0.0112 | BC40: 0.0097 | BD40: 0.0081 | BE40: 0.0066 | BF40: 0.0051 | BG40: 0.0037 | BH40: 0.0022 | BI40: 0.0008 | BJ40: -0.0006 | BK40: -0.0018 | BL40: -0.0028 | BM40: -0.0034 | BN40: -0.0037 | BO40: -0.0025 | BP40: -0.001 | BQ40: 0.0007 | BR40: 0.0025 | BS40: 0.0041 | BT40: 0.0055 | BU40: 0.0066 | BV40: 0.0073 | BW40: 0.0076 | BX40: 0.0075 | BY40: 0.0072 | BZ40: 0.0069 | CA40: 0.0068 | CB40: 0.007 | CC40: 0.0073 | CD40: 0.0079 | CE40: 0.0086 | CF40: 0.0093 | CG40: 0.0098 | CH40: 0.01
A41: 58 | B41: 0.0146 | C41: 0.013 | D41: 0.0113 | E41: 0.0094 | F41: 0.0074 | G41: 0.0054 | H41: 0.0037 | I41: 0.0022 | J41: 0.001 | K41: -0.0001 | L41: -0.0012 | M41: -0.0021 | N41: -0.0028 | O41: -0.0029 | P41: -0.0024 | Q41: -0.0012 | R41: 0.0008 | S41: 0.0037 | T41: 0.0074 | U41: 0.0115 | V41: 0.0159 | W41: 0.02 | X41: 0.0237 | Y41: 0.0264 | Z41: 0.0278 | AA41: 0.0279 | AB41: 0.0268 | AC41: 0.0247 | AD41: 0.0221 | AE41: 0.0194 | AF41: 0.0172 | AG41: 0.0156 | AH41: 0.0148 | AI41: 0.0147 | AJ41: 0.0152 | AK41: 0.0161 | AL41: 0.0172 | AM41: 0.0183 | AN41: 0.0193 | AO41: 0.0203 | AP41: 0.021 | AQ41: 0.0216 | AR41: 0.022 | AS41: 0.0223 | AT41: 0.0224 | AU41: 0.0222 | AV41: 0.0216 | AW41: 0.0207 | AX41: 0.0195 | AY41: 0.0182 | AZ41: 0.0169 | BA41: 0.0155 | BB41: 0.0141 | BC41: 0.0126 | BD41: 0.0108 | BE41: 0.0089 | BF41: 0.0069 | BG41: 0.0048 | BH41: 0.0027 | BI41: 0.0007 | BJ41: -0.0013 | BK41: -0.003 | BL41: -0.0043 | BM41: -0.0051 | BN41: -0.0055 | BO41: -0.0043 | BP41: -0.0027 | BQ41: -0.0007 | BR41: 0.0013 | BS41: 0.0032 | BT41: 0.0049 | BU41: 0.0064 | BV41: 0.0074 | BW41: 0.008 | BX41: 0.0081 | BY41: 0.0079 | BZ41: 0.0077 | CA41: 0.0075 | CB41: 0.0076 | CC41: 0.0078 | CD41: 0.0082 | CE41: 0.0088 | CF41: 0.0094 | CG41: 0.0098 | CH41: 0.01
A42: 59 | B42: 0.0138 | C42: 0.0121 | D42: 0.0104 | E42: 0.0085 | F42: 0.0065 | G42: 0.0045 | H42: 0.0028 | I42: 0.0014 | J42: 0.0002 | K42: -0.0009 | L42: -0.0019 | M42: -0.0027 | N42: -0.0032 | O42: -0.0031 | P42: -0.0025 | Q42: -0.0011 | R42: 0.001 | S42: 0.0039 | T42: 0.0075 | U42: 0.0115 | V42: 0.0157 | W42: 0.0197 | X42: 0.0232 | Y42: 0.0259 | Z42: 0.0273 | AA42: 0.0275 | AB42: 0.0265 | AC42: 0.0246 | AD42: 0.0222 | AE42: 0.0195 | AF42: 0.0172 | AG42: 0.0154 | AH42: 0.0144 | AI42: 0.0141 | AJ42: 0.0145 | AK42: 0.0154 | AL42: 0.0165 | AM42: 0.0177 | AN42: 0.0189 | AO42: 0.0198 | AP42: 0.0206 | AQ42: 0.0211 | AR42: 0.0215 | AS42: 0.0218 | AT42: 0.0221 | AU42: 0.0221 | AV42: 0.022 | AW42: 0.0215 | AX42: 0.0208 | AY42: 0.0199 | AZ42: 0.019 | BA42: 0.0179 | BB42: 0.0167 | BC42: 0.0153 | BD42: 0.0135 | BE42: 0.0115 | BF42: 0.0091 | BG42: 0.0066 | BH42: 0.004 | BI42: 0.0013 | BJ42: -0.0013 | BK42: -0.0036 | BL42: -0.0054 | BM42: -0.0065 | BN42: -0.007 | BO42: -0.0059 | BP42: -0.0043 | BQ42: -0.0022 | BR42: 0 | BS42: 0.0022 | BT42: 0.0043 | BU42: 0.006 | BV42: 0.0074 | BW42: 0.0082 | BX42: 0.0085 | BY42: 0.0084 | BZ42: 0.0082 | CA42: 0.0081 | CB42: 0.0081 | CC42: 0.0082 | CD42: 0.0085 | CE42: 0.009 | CF42: 0.0094 | CG42: 0.0098 | CH42: 0.01
A43: 60 | B43: 0.013 | C43: 0.0112 | D43: 0.0094 | E43: 0.0074 | F43: 0.0054 | G43: 0.0035 | H43: 0.0018 | I43: 0.0004 | J43: -0.0007 | K43: -0.0017 | L43: -0.0026 | M43: -0.0032 | N43: -0.0035 | O43: -0.0033 | P43: -0.0024 | Q43: -0.0008 | R43: 0.0014 | S43: 0.0043 | T43: 0.0078 | U43: 0.0116 | V43: 0.0155 | W43: 0.0192 | X43: 0.0225 | Y43: 0.0251 | Z43: 0.0266 | AA43: 0.0269 | AB43: 0.0261 | AC43: 0.0244 | AD43: 0.0222 | AE43: 0.0197 | AF43: 0.0174 | AG43: 0.0154 | AH43: 0.0141 | AI43: 0.0137 | AJ43: 0.0139 | AK43: 0.0148 | AL43: 0.0159 | AM43: 0.0171 | AN43: 0.0183 | AO43: 0.0193 | AP43: 0.02 | AQ43: 0.0204 | AR43: 0.0208 | AS43: 0.0211 | AT43: 0.0215 | AU43: 0.0219 | AV43: 0.0222 | AW43: 0.0222 | AX43: 0.0219 | AY43: 0.0214 | AZ43: 0.0207 | BA43: 0.0199 | BB43: 0.019 | BC43: 0.0177 | BD43: 0.0161 | BE43: 0.0141 | BF43: 0.0116 | BG43: 0.0088 | BH43: 0.0058 | BI43: 0.0026 | BJ43: -0.0007 | BK43: -0.0036 | BL43: -0.0058 | BM43: -0.0073 | BN43: -0.0081 | BO43: -0.0073 | BP43: -0.0056 | BQ43: -0.0035 | BR43: -0.0011 | BS43: 0.0013 | BT43: 0.0035 | BU43: 0.0055 | BV43: 0.0071 | BW43: 0.0082 | BX43: 0.0086 | BY43: 0.0087 | BZ43: 0.0087 | CA43: 0.0086 | CB43: 0.0086 | CC43: 0.0086 | CD43: 0.0088 | CE43: 0.0091 | CF43: 0.0095 | CG43: 0.0099 | CH43: 0.01
A44: 61 | B44: 0.0119 | C44: 0.0101 | D44: 0.0083 | E44: 0.0064 | F44: 0.0044 | G44: 0.0025 | H44: 0.0008 | I44: -0.0005 | J44: -0.0016 | K44: -0.0025 | L44: -0.0032 | M44: -0.0037 | N44: -0.0037 | O44: -0.0032 | P44: -0.0021 | Q44: -0.0004 | R44: 0.0019 | S44: 0.0047 | T44: 0.008 | U44: 0.0116 | V44: 0.0152 | W44: 0.0186 | X44: 0.0217 | Y44: 0.0241 | Z44: 0.0255 | AA44: 0.026 | AB44: 0.0254 | AC44: 0.0241 | AD44: 0.0221 | AE44: 0.0199 | AF44: 0.0176 | AG44: 0.0155 | AH44: 0.0141 | AI44: 0.0135 | AJ44: 0.0136 | AK44: 0.0143 | AL44: 0.0154 | AM44: 0.0166 | AN44: 0.0178 | AO44: 0.0187 | AP44: 0.0193 | AQ44: 0.0196 | AR44: 0.0199 | AS44: 0.0203 | AT44: 0.0209 | AU44: 0.0216 | AV44: 0.0223 | AW44: 0.0227 | AX44: 0.0228 | AY44: 0.0226 | AZ44: 0.0222 | BA44: 0.0216 | BB44: 0.0209 | BC44: 0.0199 | BD44: 0.0185 | BE44: 0.0166 | BF44: 0.0142 | BG44: 0.0113 | BH44: 0.0079 | BI44: 0.0043 | BJ44: 0.0006 | BK44: -0.0029 | BL44: -0.0056 | BM44: -0.0075 | BN44: -0.0087 | BO44: -0.0081 | BP44: -0.0066 | BQ44: -0.0046 | BR44: -0.0022 | BS44: 0.0004 | BT44: 0.0028 | BU44: 0.005 | BV44: 0.0068 | BW44: 0.008 | BX44: 0.0086 | BY44: 0.0088 | BZ44: 0.0089 | CA44: 0.0089 | CB44: 0.0089 | CC44: 0.009 | CD44: 0.0091 | CE44: 0.0093 | CF44: 0.0096 | CG44: 0.0099 | CH44: 0.01
A45: 62 | B45: 0.0109 | C45: 0.009 | D45: 0.0072 | E45: 0.0053 | F45: 0.0033 | G45: 0.0015 | H45: -0.0001 | I45: -0.0013 | J45: -0.0023 | K45: -0.0031 | L45: -0.0037 | M45: -0.004 | N45: -0.0038 | O45: -0.0031 | P45: -0.0018 | Q45: 0.0001 | R45: 0.0024 | S45: 0.0052 | T45: 0.0083 | U45: 0.0115 | V45: 0.0148 | W45: 0.0179 | X45: 0.0208 | Y45: 0.023 | Z45: 0.0244 | AA45: 0.0249 | AB45: 0.0245 | AC45: 0.0235 | AD45: 0.0219 | AE45: 0.0198 | AF45: 0.0177 | AG45: 0.0157 | AH45: 0.0142 | AI45: 0.0135 | AJ45: 0.0134 | AK45: 0.014 | AL45: 0.0151 | AM45: 0.0162 | AN45: 0.0173 | AO45: 0.018 | AP45: 0.0185 | AQ45: 0.0187 | AR45: 0.0189 | AS45: 0.0194 | AT45: 0.0202 | AU45: 0.0211 | AV45: 0.0221 | AW45: 0.0229 | AX45: 0.0233 | AY45: 0.0235 | AZ45: 0.0233 | BA45: 0.023 | BB45: 0.0225 | BC45: 0.0218 | BD45: 0.0206 | BE45: 0.0189 | BF45: 0.0166 | BG45: 0.0136 | BH45: 0.0102 | BI45: 0.0063 | BJ45: 0.0023 | BK45: -0.0015 | BL45: -0.0046 | BM45: -0.0069 | BN45: -0.0085 | BO45: -0.0083 | BP45: -0.0071 | BQ45: -0.0053 | BR45: -0.0029 | BS45: -0.0004 | BT45: 0.0021 | BU45: 0.0044 | BV45: 0.0063 | BW45: 0.0077 | BX45: 0.0085 | BY45: 0.0088 | BZ45: 0.009 | CA45: 0.0091 | CB45: 0.0092 | CC45: 0.0092 | CD45: 0.0093 | CE45: 0.0095 | CF45: 0.0097 | CG45: 0.0099 | CH45: 0.01
A46: 63 | B46: 0.0098 | C46: 0.008 | D46: 0.0062 | E46: 0.0043 | F46: 0.0024 | G46: 0.0006 | H46: -0.0009 | I46: -0.0021 | J46: -0.003 | K46: -0.0036 | L46: -0.004 | M46: -0.0041 | N46: -0.0037 | O46: -0.0028 | P46: -0.0014 | Q46: 0.0005 | R46: 0.0028 | S46: 0.0055 | T46: 0.0084 | U46: 0.0113 | V46: 0.0143 | W46: 0.0172 | X46: 0.0197 | Y46: 0.0218 | Z46: 0.0231 | AA46: 0.0237 | AB46: 0.0235 | AC46: 0.0227 | AD46: 0.0214 | AE46: 0.0196 | AF46: 0.0177 | AG46: 0.0159 | AH46: 0.0144 | AI46: 0.0136 | AJ46: 0.0135 | AK46: 0.014 | AL46: 0.0149 | AM46: 0.0159 | AN46: 0.0168 | AO46: 0.0174 | AP46: 0.0177 | AQ46: 0.0178 | AR46: 0.018 | AS46: 0.0185 | AT46: 0.0193 | AU46: 0.0205 | AV46: 0.0218 | AW46: 0.0229 | AX46: 0.0236 | AY46: 0.0241 | AZ46: 0.0242 | BA46: 0.0241 | BB46: 0.0239 | BC46: 0.0233 | BD46: 0.0223 | BE46: 0.0208 | BF46: 0.0186 | BG46: 0.0158 | BH46: 0.0124 | BI46: 0.0085 | BJ46: 0.0043 | BK46: 0.0003 | BL46: -0.0031 | BM46: -0.0057 | BN46: -0.0077 | BO46: -0.0078 | BP46: -0.007 | BQ46: -0.0055 | BR46: -0.0034 | BS46: -0.001 | BT46: 0.0015 | BU46: 0.0039 | BV46: 0.0059 | BW46: 0.0074 | BX46: 0.0083 | BY46: 0.0087 | BZ46: 0.009 | CA46: 0.0092 | CB46: 0.0093 | CC46: 0.0094 | CD46: 0.0095 | CE46: 0.0096 | CF46: 0.0098 | CG46: 0.0099 | CH46: 0.01
A47: 64 | B47: 0.0089 | C47: 0.0071 | D47: 0.0053 | E47: 0.0034 | F47: 0.0016 | G47: -0.0001 | H47: -0.0016 | I47: -0.0026 | J47: -0.0034 | K47: -0.004 | L47: -0.0042 | M47: -0.0041 | N47: -0.0036 | O47: -0.0025 | P47: -0.001 | Q47: 0.0009 | R47: 0.0031 | S47: 0.0056 | T47: 0.0083 | U47: 0.011 | V47: 0.0137 | W47: 0.0163 | X47: 0.0187 | Y47: 0.0206 | Z47: 0.0219 | AA47: 0.0225 | AB47: 0.0224 | AC47: 0.0218 | AD47: 0.0206 | AE47: 0.0191 | AF47: 0.0175 | AG47: 0.0159 | AH47: 0.0146 | AI47: 0.0138 | AJ47: 0.0137 | AK47: 0.0141 | AL47: 0.0149 | AM47: 0.0158 | AN47: 0.0165 | AO47: 0.0169 | AP47: 0.017 | AQ47: 0.017 | AR47: 0.0171 | AS47: 0.0176 | AT47: 0.0185 | AU47: 0.0198 | AV47: 0.0212 | AW47: 0.0226 | AX47: 0.0237 | AY47: 0.0244 | AZ47: 0.0249 | BA47: 0.025 | BB47: 0.025 | BC47: 0.0246 | BD47: 0.0238 | BE47: 0.0224 | BF47: 0.0204 | BG47: 0.0177 | BH47: 0.0144 | BI47: 0.0106 | BJ47: 0.0065 | BK47: 0.0025 | BL47: -0.001 | BM47: -0.004 | BN47: -0.0064 | BO47: -0.0068 | BP47: -0.0063 | BQ47: -0.0052 | BR47: -0.0034 | BS47: -0.0013 | BT47: 0.0011 | BU47: 0.0033 | BV47: 0.0053 | BW47: 0.0069 | BX47: 0.0079 | BY47: 0.0085 | BZ47: 0.0089 | CA47: 0.0092 | CB47: 0.0094 | CC47: 0.0095 | CD47: 0.0096 | CE47: 0.0097 | CF47: 0.0098 | CG47: 0.0099 | CH47: 0.01
A48: 65 | B48: 0.0082 | C48: 0.0064 | D48: 0.0046 | E48: 0.0028 | F48: 0.001 | G48: -0.0007 | H48: -0.002 | I48: -0.003 | J48: -0.0037 | K48: -0.0041 | L48: -0.0042 | M48: -0.004 | N48: -0.0033 | O48: -0.0022 | P48: -0.0007 | Q48: 0.0011 | R48: 0.0032 | S48: 0.0056 | T48: 0.008 | U48: 0.0106 | V48: 0.0131 | W48: 0.0155 | X48: 0.0177 | Y48: 0.0195 | Z48: 0.0207 | AA48: 0.0213 | AB48: 0.0212 | AC48: 0.0207 | AD48: 0.0197 | AE48: 0.0185 | AF48: 0.0171 | AG48: 0.0157 | AH48: 0.0147 | AI48: 0.014 | AJ48: 0.014 | AK48: 0.0143 | AL48: 0.015 | AM48: 0.0157 | AN48: 0.0163 | AO48: 0.0165 | AP48: 0.0165 | AQ48: 0.0163 | AR48: 0.0163 | AS48: 0.0167 | AT48: 0.0176 | AU48: 0.019 | AV48: 0.0205 | AW48: 0.0221 | AX48: 0.0234 | AY48: 0.0245 | AZ48: 0.0253 | BA48: 0.0257 | BB48: 0.0259 | BC48: 0.0257 | BD48: 0.0249 | BE48: 0.0236 | BF48: 0.0218 | BG48: 0.0193 | BH48: 0.0162 | BI48: 0.0126 | BJ48: 0.0087 | BK48: 0.0048 | BL48: 0.0013 | BM48: -0.0018 | BN48: -0.0045 | BO48: -0.0052 | BP48: -0.0051 | BQ48: -0.0044 | BR48: -0.0031 | BS48: -0.0013 | BT48: 0.0008 | BU48: 0.0029 | BV48: 0.0048 | BW48: 0.0064 | BX48: 0.0075 | BY48: 0.0082 | BZ48: 0.0088 | CA48: 0.0092 | CB48: 0.0094 | CC48: 0.0096 | CD48: 0.0097 | CE48: 0.0098 | CF48: 0.0099 | CG48: 0.01 | CH48: 0.01
A49: 66 | B49: 0.0077 | C49: 0.0059 | D49: 0.0041 | E49: 0.0023 | F49: 0.0006 | G49: -0.001 | H49: -0.0023 | I49: -0.0031 | J49: -0.0037 | K49: -0.004 | L49: -0.0041 | M49: -0.0038 | N49: -0.0031 | O49: -0.002 | P49: -0.0006 | Q49: 0.0012 | R49: 0.0032 | S49: 0.0053 | T49: 0.0077 | U49: 0.01 | V49: 0.0124 | W49: 0.0147 | X49: 0.0167 | Y49: 0.0184 | Z49: 0.0196 | AA49: 0.0201 | AB49: 0.02 | AC49: 0.0195 | AD49: 0.0187 | AE49: 0.0176 | AF49: 0.0165 | AG49: 0.0154 | AH49: 0.0146 | AI49: 0.0142 | AJ49: 0.0142 | AK49: 0.0146 | AL49: 0.0152 | AM49: 0.0158 | AN49: 0.0163 | AO49: 0.0163 | AP49: 0.0161 | AQ49: 0.0158 | AR49: 0.0157 | AS49: 0.016 | AT49: 0.0168 | AU49: 0.0181 | AV49: 0.0196 | AW49: 0.0214 | AX49: 0.023 | AY49: 0.0244 | AZ49: 0.0255 | BA49: 0.0262 | BB49: 0.0266 | BC49: 0.0265 | BD49: 0.0258 | BE49: 0.0246 | BF49: 0.0228 | BG49: 0.0205 | BH49: 0.0176 | BI49: 0.0143 | BJ49: 0.0107 | BK49: 0.0071 | BL49: 0.0036 | BM49: 0.0004 | BN49: -0.0025 | BO49: -0.0033 | BP49: -0.0035 | BQ49: -0.0032 | BR49: -0.0023 | BS49: -0.001 | BT49: 0.0007 | BU49: 0.0025 | BV49: 0.0043 | BW49: 0.0059 | BX49: 0.0071 | BY49: 0.0079 | BZ49: 0.0085 | CA49: 0.009 | CB49: 0.0094 | CC49: 0.0096 | CD49: 0.0097 | CE49: 0.0098 | CF49: 0.0099 | CG49: 0.01 | CH49: 0.01
A50: 67 | B50: 0.0075 | C50: 0.0057 | D50: 0.0039 | E50: 0.0021 | F50: 0.0004 | G50: -0.0011 | H50: -0.0023 | I50: -0.0031 | J50: -0.0036 | K50: -0.0039 | L50: -0.0039 | M50: -0.0036 | N50: -0.0029 | O50: -0.0018 | P50: -0.0005 | Q50: 0.0011 | R50: 0.0029 | S50: 0.005 | T50: 0.0072 | U50: 0.0094 | V50: 0.0117 | W50: 0.0139 | X50: 0.0159 | Y50: 0.0175 | Z50: 0.0185 | AA50: 0.019 | AB50: 0.0189 | AC50: 0.0184 | AD50: 0.0176 | AE50: 0.0166 | AF50: 0.0157 | AG50: 0.015 | AH50: 0.0144 | AI50: 0.0142 | AJ50: 0.0144 | AK50: 0.0149 | AL50: 0.0155 | AM50: 0.016 | AN50: 0.0163 | AO50: 0.0163 | AP50: 0.0159 | AQ50: 0.0154 | AR50: 0.0152 | AS50: 0.0153 | AT50: 0.016 | AU50: 0.0172 | AV50: 0.0187 | AW50: 0.0205 | AX50: 0.0223 | AY50: 0.024 | AZ50: 0.0254 | BA50: 0.0265 | BB50: 0.027 | BC50: 0.0271 | BD50: 0.0265 | BE50: 0.0254 | BF50: 0.0237 | BG50: 0.0215 | BH50: 0.0188 | BI50: 0.0158 | BJ50: 0.0124 | BK50: 0.009 | BL50: 0.0057 | BM50: 0.0026 | BN50: -0.0004 | BO50: -0.0012 | BP50: -0.0017 | BQ50: -0.0017 | BR50: -0.0013 | BS50: -0.0004 | BT50: 0.0009 | BU50: 0.0024 | BV50: 0.0039 | BW50: 0.0054 | BX50: 0.0066 | BY50: 0.0075 | BZ50: 0.0082 | CA50: 0.0088 | CB50: 0.0092 | CC50: 0.0095 | CD50: 0.0097 | CE50: 0.0098 | CF50: 0.0099 | CG50: 0.01 | CH50: 0.01
A51: 68 | B51: 0.0076 | C51: 0.0058 | D51: 0.004 | E51: 0.0022 | F51: 0.0005 | G51: -0.001 | H51: -0.0022 | I51: -0.0029 | J51: -0.0034 | K51: -0.0036 | L51: -0.0036 | M51: -0.0033 | N51: -0.0027 | O51: -0.0018 | P51: -0.0006 | Q51: 0.0009 | R51: 0.0026 | S51: 0.0045 | T51: 0.0066 | U51: 0.0088 | V51: 0.0111 | W51: 0.0132 | X51: 0.0151 | Y51: 0.0167 | Z51: 0.0176 | AA51: 0.018 | AB51: 0.0178 | AC51: 0.0172 | AD51: 0.0165 | AE51: 0.0156 | AF51: 0.0149 | AG51: 0.0143 | AH51: 0.014 | AI51: 0.014 | AJ51: 0.0144 | AK51: 0.0151 | AL51: 0.0157 | AM51: 0.0163 | AN51: 0.0165 | AO51: 0.0164 | AP51: 0.0159 | AQ51: 0.0153 | AR51: 0.0148 | AS51: 0.0148 | AT51: 0.0153 | AU51: 0.0163 | AV51: 0.0178 | AW51: 0.0196 | AX51: 0.0216 | AY51: 0.0235 | AZ51: 0.0252 | BA51: 0.0265 | BB51: 0.0273 | BC51: 0.0275 | BD51: 0.027 | BE51: 0.0259 | BF51: 0.0243 | BG51: 0.0222 | BH51: 0.0197 | BI51: 0.0169 | BJ51: 0.0138 | BK51: 0.0106 | BL51: 0.0075 | BM51: 0.0045 | BN51: 0.0016 | BO51: 0.0008 | BP51: 0.0002 | BQ51: -0.0001 | BR51: 0 | BS51: 0.0004 | BT51: 0.0013 | BU51: 0.0024 | BV51: 0.0037 | BW51: 0.005 | BX51: 0.0061 | BY51: 0.0071 | BZ51: 0.0079 | CA51: 0.0086 | CB51: 0.0091 | CC51: 0.0095 | CD51: 0.0097 | CE51: 0.0098 | CF51: 0.0099 | CG51: 0.01 | CH51: 0.01
A52: 69 | B52: 0.0079 | C52: 0.0061 | D52: 0.0042 | E52: 0.0024 | F52: 0.0007 | G52: -0.0007 | H52: -0.0019 | I52: -0.0026 | J52: -0.0031 | K52: -0.0033 | L52: -0.0033 | M52: -0.0031 | N52: -0.0026 | O52: -0.0018 | P52: -0.0008 | Q52: 0.0005 | R52: 0.0021 | S52: 0.004 | T52: 0.0061 | U52: 0.0083 | V52: 0.0105 | W52: 0.0126 | X52: 0.0145 | Y52: 0.016 | Z52: 0.0169 | AA52: 0.0171 | AB52: 0.0168 | AC52: 0.0162 | AD52: 0.0154 | AE52: 0.0146 | AF52: 0.0139 | AG52: 0.0135 | AH52: 0.0134 | AI52: 0.0137 | AJ52: 0.0143 | AK52: 0.0151 | AL52: 0.0159 | AM52: 0.0165 | AN52: 0.0168 | AO52: 0.0166 | AP52: 0.016 | AQ52: 0.0152 | AR52: 0.0146 | AS52: 0.0144 | AT52: 0.0147 | AU52: 0.0155 | AV52: 0.0168 | AW52: 0.0186 | AX52: 0.0207 | AY52: 0.0228 | AZ52: 0.0247 | BA52: 0.0263 | BB52: 0.0273 | BC52: 0.0277 | BD52: 0.0273 | BE52: 0.0264 | BF52: 0.0248 | BG52: 0.0228 | BH52: 0.0204 | BI52: 0.0177 | BJ52: 0.0148 | BK52: 0.0118 | BL52: 0.0088 | BM52: 0.006 | BN52: 0.0034 | BO52: 0.0026 | BP52: 0.002 | BQ52: 0.0015 | BR52: 0.0013 | BS52: 0.0014 | BT52: 0.0019 | BU52: 0.0026 | BV52: 0.0036 | BW52: 0.0047 | BX52: 0.0057 | BY52: 0.0067 | BZ52: 0.0076 | CA52: 0.0083 | CB52: 0.0089 | CC52: 0.0093 | CD52: 0.0096 | CE52: 0.0098 | CF52: 0.0099 | CG52: 0.01 | CH52: 0.01
A53: 70 | B53: 0.0084 | C53: 0.0066 | D53: 0.0047 | E53: 0.0029 | F53: 0.0012 | G53: -0.0003 | H53: -0.0014 | I53: -0.0022 | J53: -0.0027 | K53: -0.0029 | L53: -0.003 | M53: -0.0029 | N53: -0.0025 | O53: -0.0019 | P53: -0.001 | Q53: 0.0002 | R53: 0.0017 | S53: 0.0035 | T53: 0.0056 | U53: 0.0078 | V53: 0.01 | W53: 0.0121 | X53: 0.014 | Y53: 0.0154 | Z53: 0.0162 | AA53: 0.0163 | AB53: 0.016 | AC53: 0.0152 | AD53: 0.0144 | AE53: 0.0136 | AF53: 0.013 | AG53: 0.0127 | AH53: 0.0127 | AI53: 0.0132 | AJ53: 0.014 | AK53: 0.015 | AL53: 0.016 | AM53: 0.0167 | AN53: 0.017 | AO53: 0.0168 | AP53: 0.0162 | AQ53: 0.0153 | AR53: 0.0145 | AS53: 0.0141 | AT53: 0.0142 | AU53: 0.0148 | AV53: 0.016 | AW53: 0.0177 | AX53: 0.0198 | AY53: 0.022 | AZ53: 0.0242 | BA53: 0.0259 | BB53: 0.0272 | BC53: 0.0277 | BD53: 0.0275 | BE53: 0.0266 | BF53: 0.0252 | BG53: 0.0232 | BH53: 0.0209 | BI53: 0.0183 | BJ53: 0.0155 | BK53: 0.0126 | BL53: 0.0099 | BM53: 0.0072 | BN53: 0.0048 | BO53: 0.0042 | BP53: 0.0036 | BQ53: 0.0031 | BR53: 0.0027 | BS53: 0.0026 | BT53: 0.0027 | BU53: 0.0031 | BV53: 0.0037 | BW53: 0.0046 | BX53: 0.0055 | BY53: 0.0064 | BZ53: 0.0073 | CA53: 0.0081 | CB53: 0.0087 | CC53: 0.0092 | CD53: 0.0096 | CE53: 0.0098 | CF53: 0.0099 | CG53: 0.01 | CH53: 0.01
A54: 71 | B54: 0.009 | C54: 0.0071 | D54: 0.0052 | E54: 0.0034 | F54: 0.0017 | G54: 0.0003 | H54: -0.0009 | I54: -0.0017 | J54: -0.0022 | K54: -0.0026 | L54: -0.0027 | M54: -0.0028 | N54: -0.0026 | O54: -0.0021 | P54: -0.0013 | Q54: -0.0002 | R54: 0.0013 | S54: 0.0031 | T54: 0.0052 | U54: 0.0074 | V54: 0.0096 | W54: 0.0117 | X54: 0.0136 | Y54: 0.0149 | Z54: 0.0156 | AA54: 0.0157 | AB54: 0.0152 | AC54: 0.0144 | AD54: 0.0135 | AE54: 0.0126 | AF54: 0.012 | AG54: 0.0118 | AH54: 0.0119 | AI54: 0.0125 | AJ54: 0.0135 | AK54: 0.0147 | AL54: 0.0159 | AM54: 0.0167 | AN54: 0.0171 | AO54: 0.017 | AP54: 0.0163 | AQ54: 0.0154 | AR54: 0.0145 | AS54: 0.0139 | AT54: 0.0138 | AU54: 0.0142 | AV54: 0.0152 | AW54: 0.0168 | AX54: 0.0189 | AY54: 0.0212 | AZ54: 0.0235 | BA54: 0.0254 | BB54: 0.0268 | BC54: 0.0276 | BD54: 0.0275 | BE54: 0.0268 | BF54: 0.0254 | BG54: 0.0235 | BH54: 0.0212 | BI54: 0.0186 | BJ54: 0.0159 | BK54: 0.0132 | BL54: 0.0105 | BM54: 0.0081 | BN54: 0.0059 | BO54: 0.0054 | BP54: 0.0049 | BQ54: 0.0044 | BR54: 0.004 | BS54: 0.0037 | BT54: 0.0036 | BU54: 0.0037 | BV54: 0.004 | BW54: 0.0046 | BX54: 0.0053 | BY54: 0.0061 | BZ54: 0.007 | CA54: 0.0078 | CB54: 0.0085 | CC54: 0.0091 | CD54: 0.0095 | CE54: 0.0097 | CF54: 0.0099 | CG54: 0.01 | CH54: 0.01
A55: 72 | B55: 0.0096 | C55: 0.0077 | D55: 0.0058 | E55: 0.004 | F55: 0.0023 | G55: 0.0008 | H55: -0.0003 | I55: -0.0012 | J55: -0.0018 | K55: -0.0023 | L55: -0.0025 | M55: -0.0027 | N55: -0.0026 | O55: -0.0022 | P55: -0.0016 | Q55: -0.0005 | R55: 0.0009 | S55: 0.0028 | T55: 0.0049 | U55: 0.0071 | V55: 0.0094 | W55: 0.0115 | X55: 0.0133 | Y55: 0.0145 | Z55: 0.0152 | AA55: 0.0151 | AB55: 0.0146 | AC55: 0.0137 | AD55: 0.0127 | AE55: 0.0117 | AF55: 0.0111 | AG55: 0.0108 | AH55: 0.011 | AI55: 0.0118 | AJ55: 0.0129 | AK55: 0.0143 | AL55: 0.0156 | AM55: 0.0166 | AN55: 0.0171 | AO55: 0.017 | AP55: 0.0164 | AQ55: 0.0155 | AR55: 0.0145 | AS55: 0.0138 | AT55: 0.0135 | AU55: 0.0137 | AV55: 0.0146 | AW55: 0.0161 | AX55: 0.0181 | AY55: 0.0204 | AZ55: 0.0227 | BA55: 0.0248 | BB55: 0.0264 | BC55: 0.0273 | BD55: 0.0274 | BE55: 0.0268 | BF55: 0.0255 | BG55: 0.0236 | BH55: 0.0214 | BI55: 0.0188 | BJ55: 0.0161 | BK55: 0.0134 | BL55: 0.0109 | BM55: 0.0086 | BN55: 0.0066 | BO55: 0.0063 | BP55: 0.0059 | BQ55: 0.0055 | BR55: 0.0051 | BS55: 0.0047 | BT55: 0.0045 | BU55: 0.0044 | BV55: 0.0045 | BW55: 0.0049 | BX55: 0.0054 | BY55: 0.006 | BZ55: 0.0068 | CA55: 0.0076 | CB55: 0.0083 | CC55: 0.0089 | CD55: 0.0094 | CE55: 0.0097 | CF55: 0.0099 | CG55: 0.01 | CH55: 0.01
A56: 73 | B56: 0.0101 | C56: 0.0082 | D56: 0.0064 | E56: 0.0046 | F56: 0.0029 | G56: 0.0014 | H56: 0.0002 | I56: -0.0007 | J56: -0.0014 | K56: -0.002 | L56: -0.0024 | M56: -0.0026 | N56: -0.0027 | O56: -0.0024 | P56: -0.0017 | Q56: -0.0007 | R56: 0.0007 | S56: 0.0026 | T56: 0.0047 | U56: 0.007 | V56: 0.0092 | W56: 0.0113 | X56: 0.013 | Y56: 0.0142 | Z56: 0.0148 | AA56: 0.0147 | AB56: 0.014 | AC56: 0.013 | AD56: 0.0119 | AE56: 0.0109 | AF56: 0.0102 | AG56: 0.0099 | AH56: 0.0102 | AI56: 0.0109 | AJ56: 0.0122 | AK56: 0.0137 | AL56: 0.0151 | AM56: 0.0163 | AN56: 0.0169 | AO56: 0.017 | AP56: 0.0164 | AQ56: 0.0155 | AR56: 0.0145 | AS56: 0.0137 | AT56: 0.0132 | AU56: 0.0134 | AV56: 0.0141 | AW56: 0.0154 | AX56: 0.0173 | AY56: 0.0196 | AZ56: 0.0219 | BA56: 0.0241 | BB56: 0.0258 | BC56: 0.0268 | BD56: 0.0271 | BE56: 0.0266 | BF56: 0.0254 | BG56: 0.0236 | BH56: 0.0214 | BI56: 0.0188 | BJ56: 0.0162 | BK56: 0.0136 | BL56: 0.0111 | BM56: 0.0089 | BN56: 0.007 | BO56: 0.0068 | BP56: 0.0066 | BQ56: 0.0063 | BR56: 0.006 | BS56: 0.0057 | BT56: 0.0054 | BU56: 0.0052 | BV56: 0.0051 | BW56: 0.0053 | BX56: 0.0056 | BY56: 0.0061 | BZ56: 0.0067 | CA56: 0.0074 | CB56: 0.0082 | CC56: 0.0088 | CD56: 0.0093 | CE56: 0.0096 | CF56: 0.0099 | CG56: 0.01 | CH56: 0.01
A57: 74 | B57: 0.0104 | C57: 0.0086 | D57: 0.0068 | E57: 0.0051 | F57: 0.0034 | G57: 0.002 | H57: 0.0007 | I57: -0.0003 | J57: -0.0011 | K57: -0.0017 | L57: -0.0022 | M57: -0.0026 | N57: -0.0027 | O57: -0.0024 | P57: -0.0018 | Q57: -0.0008 | R57: 0.0007 | S57: 0.0025 | T57: 0.0047 | U57: 0.0069 | V57: 0.0091 | W57: 0.0111 | X57: 0.0128 | Y57: 0.014 | Z57: 0.0145 | AA57: 0.0143 | AB57: 0.0136 | AC57: 0.0125 | AD57: 0.0113 | AE57: 0.0102 | AF57: 0.0094 | AG57: 0.0091 | AH57: 0.0093 | AI57: 0.0101 | AJ57: 0.0114 | AK57: 0.0129 | AL57: 0.0145 | AM57: 0.0158 | AN57: 0.0165 | AO57: 0.0167 | AP57: 0.0162 | AQ57: 0.0154 | AR57: 0.0144 | AS57: 0.0135 | AT57: 0.013 | AU57: 0.0131 | AV57: 0.0137 | AW57: 0.0149 | AX57: 0.0167 | AY57: 0.0188 | AZ57: 0.0211 | BA57: 0.0233 | BB57: 0.0251 | BC57: 0.0263 | BD57: 0.0267 | BE57: 0.0263 | BF57: 0.0252 | BG57: 0.0235 | BH57: 0.0213 | BI57: 0.0188 | BJ57: 0.0162 | BK57: 0.0136 | BL57: 0.0112 | BM57: 0.009 | BN57: 0.0071 | BO57: 0.0071 | BP57: 0.007 | BQ57: 0.0069 | BR57: 0.0067 | BS57: 0.0064 | BT57: 0.0062 | BU57: 0.0059 | BV57: 0.0058 | BW57: 0.0058 | BX57: 0.0059 | BY57: 0.0062 | BZ57: 0.0067 | CA57: 0.0074 | CB57: 0.008 | CC57: 0.0087 | CD57: 0.0092 | CE57: 0.0096 | CF57: 0.0098 | CG57: 0.01 | CH57: 0.01
A58: 75 | B58: 0.0105 | C58: 0.0088 | D58: 0.0071 | E58: 0.0054 | F58: 0.0038 | G58: 0.0024 | H58: 0.0012 | I58: 0.0001 | J58: -0.0008 | K58: -0.0015 | L58: -0.0021 | M58: -0.0025 | N58: -0.0027 | O58: -0.0024 | P58: -0.0018 | Q58: -0.0007 | R58: 0.0007 | S58: 0.0026 | T58: 0.0047 | U58: 0.0069 | V58: 0.0091 | W58: 0.0111 | X58: 0.0127 | Y58: 0.0138 | Z58: 0.0143 | AA58: 0.014 | AB58: 0.0133 | AC58: 0.0121 | AD58: 0.0108 | AE58: 0.0096 | AF58: 0.0087 | AG58: 0.0083 | AH58: 0.0085 | AI58: 0.0092 | AJ58: 0.0105 | AK58: 0.0121 | AL58: 0.0137 | AM58: 0.015 | AN58: 0.0159 | AO58: 0.0162 | AP58: 0.0158 | AQ58: 0.0151 | AR58: 0.0141 | AS58: 0.0133 | AT58: 0.0128 | AU58: 0.0128 | AV58: 0.0133 | AW58: 0.0144 | AX58: 0.0161 | AY58: 0.0181 | AZ58: 0.0204 | BA58: 0.0225 | BB58: 0.0244 | BC58: 0.0256 | BD58: 0.0262 | BE58: 0.0259 | BF58: 0.0249 | BG58: 0.0233 | BH58: 0.0211 | BI58: 0.0187 | BJ58: 0.0161 | BK58: 0.0135 | BL58: 0.0111 | BM58: 0.009 | BN58: 0.007 | BO58: 0.0071 | BP58: 0.0072 | BQ58: 0.0072 | BR58: 0.0071 | BS58: 0.007 | BT58: 0.0068 | BU58: 0.0066 | BV58: 0.0064 | BW58: 0.0063 | BX58: 0.0064 | BY58: 0.0065 | BZ58: 0.0069 | CA58: 0.0074 | CB58: 0.008 | CC58: 0.0086 | CD58: 0.0091 | CE58: 0.0095 | CF58: 0.0098 | CG58: 0.01 | CH58: 0.01
A59: 76 | B59: 0.0105 | C59: 0.0089 | D59: 0.0072 | E59: 0.0056 | F59: 0.0041 | G59: 0.0027 | H59: 0.0015 | I59: 0.0004 | J59: -0.0006 | K59: -0.0014 | L59: -0.002 | M59: -0.0024 | N59: -0.0026 | O59: -0.0023 | P59: -0.0016 | Q59: -0.0006 | R59: 0.0009 | S59: 0.0028 | T59: 0.0048 | U59: 0.007 | V59: 0.0092 | W59: 0.0111 | X59: 0.0127 | Y59: 0.0137 | Z59: 0.0141 | AA59: 0.0138 | AB59: 0.013 | AC59: 0.0118 | AD59: 0.0104 | AE59: 0.0091 | AF59: 0.0082 | AG59: 0.0076 | AH59: 0.0077 | AI59: 0.0084 | AJ59: 0.0096 | AK59: 0.0111 | AL59: 0.0127 | AM59: 0.0141 | AN59: 0.0151 | AO59: 0.0154 | AP59: 0.0152 | AQ59: 0.0146 | AR59: 0.0137 | AS59: 0.013 | AT59: 0.0125 | AU59: 0.0125 | AV59: 0.013 | AW59: 0.014 | AX59: 0.0156 | AY59: 0.0175 | AZ59: 0.0197 | BA59: 0.0218 | BB59: 0.0236 | BC59: 0.025 | BD59: 0.0256 | BE59: 0.0254 | BF59: 0.0245 | BG59: 0.0229 | BH59: 0.0208 | BI59: 0.0184 | BJ59: 0.0159 | BK59: 0.0134 | BL59: 0.011 | BM59: 0.0088 | BN59: 0.0068 | BO59: 0.007 | BP59: 0.0071 | BQ59: 0.0073 | BR59: 0.0074 | BS59: 0.0074 | BT59: 0.0073 | BU59: 0.0072 | BV59: 0.007 | BW59: 0.0069 | BX59: 0.0068 | BY59: 0.0069 | BZ59: 0.0071 | CA59: 0.0075 | CB59: 0.008 | CC59: 0.0085 | CD59: 0.0091 | CE59: 0.0095 | CF59: 0.0098 | CG59: 0.01 | CH59: 0.01
A60: 77 | B60: 0.0102 | C60: 0.0087 | D60: 0.0072 | E60: 0.0057 | F60: 0.0042 | G60: 0.0028 | H60: 0.0016 | I60: 0.0005 | J60: -0.0004 | K60: -0.0012 | L60: -0.0019 | M60: -0.0023 | N60: -0.0024 | O60: -0.0021 | P60: -0.0014 | Q60: -0.0003 | R60: 0.0012 | S60: 0.003 | T60: 0.0051 | U60: 0.0072 | V60: 0.0093 | W60: 0.0112 | X60: 0.0127 | Y60: 0.0137 | Z60: 0.014 | AA60: 0.0137 | AB60: 0.0128 | AC60: 0.0116 | AD60: 0.0101 | AE60: 0.0088 | AF60: 0.0077 | AG60: 0.0071 | AH60: 0.007 | AI60: 0.0076 | AJ60: 0.0087 | AK60: 0.0101 | AL60: 0.0117 | AM60: 0.0131 | AN60: 0.0141 | AO60: 0.0145 | AP60: 0.0144 | AQ60: 0.0139 | AR60: 0.0131 | AS60: 0.0125 | AT60: 0.0121 | AU60: 0.0121 | AV60: 0.0126 | AW60: 0.0136 | AX60: 0.0151 | AY60: 0.017 | AZ60: 0.019 | BA60: 0.0211 | BB60: 0.0229 | BC60: 0.0242 | BD60: 0.0249 | BE60: 0.0248 | BF60: 0.024 | BG60: 0.0225 | BH60: 0.0205 | BI60: 0.0181 | BJ60: 0.0157 | BK60: 0.0132 | BL60: 0.0108 | BM60: 0.0086 | BN60: 0.0065 | BO60: 0.0067 | BP60: 0.007 | BQ60: 0.0072 | BR60: 0.0075 | BS60: 0.0076 | BT60: 0.0077 | BU60: 0.0077 | BV60: 0.0076 | BW60: 0.0074 | BX60: 0.0073 | BY60: 0.0073 | BZ60: 0.0074 | CA60: 0.0077 | CB60: 0.0081 | CC60: 0.0086 | CD60: 0.009 | CE60: 0.0094 | CF60: 0.0098 | CG60: 0.0099 | CH60: 0.01
A61: 78 | B61: 0.0097 | C61: 0.0083 | D61: 0.0069 | E61: 0.0055 | F61: 0.0041 | G61: 0.0028 | H61: 0.0016 | I61: 0.0005 | J61: -0.0004 | K61: -0.0012 | L61: -0.0018 | M61: -0.0021 | N61: -0.0022 | O61: -0.0018 | P61: -0.0011 | Q61: 0.0001 | R61: 0.0015 | S61: 0.0033 | T61: 0.0053 | U61: 0.0074 | V61: 0.0095 | W61: 0.0113 | X61: 0.0128 | Y61: 0.0137 | Z61: 0.014 | AA61: 0.0136 | AB61: 0.0127 | AC61: 0.0114 | AD61: 0.0099 | AE61: 0.0085 | AF61: 0.0073 | AG61: 0.0066 | AH61: 0.0064 | AI61: 0.0068 | AJ61: 0.0078 | AK61: 0.0091 | AL61: 0.0106 | AM61: 0.0119 | AN61: 0.0129 | AO61: 0.0134 | AP61: 0.0134 | AQ61: 0.013 | AR61: 0.0124 | AS61: 0.0119 | AT61: 0.0116 | AU61: 0.0116 | AV61: 0.0122 | AW61: 0.0132 | AX61: 0.0146 | AY61: 0.0165 | AZ61: 0.0185 | BA61: 0.0204 | BB61: 0.0222 | BC61: 0.0235 | BD61: 0.0242 | BE61: 0.0241 | BF61: 0.0233 | BG61: 0.0219 | BH61: 0.02 | BI61: 0.0178 | BJ61: 0.0154 | BK61: 0.0129 | BL61: 0.0106 | BM61: 0.0083 | BN61: 0.0062 | BO61: 0.0064 | BP61: 0.0067 | BQ61: 0.0071 | BR61: 0.0074 | BS61: 0.0077 | BT61: 0.0079 | BU61: 0.008 | BV61: 0.008 | BW61: 0.0079 | BX61: 0.0078 | BY61: 0.0077 | BZ61: 0.0078 | CA61: 0.008 | CB61: 0.0082 | CC61: 0.0086 | CD61: 0.009 | CE61: 0.0094 | CF61: 0.0097 | CG61: 0.0099 | CH61: 0.01
A62: 79 | B62: 0.0091 | C62: 0.0078 | D62: 0.0065 | E62: 0.0052 | F62: 0.0038 | G62: 0.0026 | H62: 0.0014 | I62: 0.0004 | J62: -0.0005 | K62: -0.0012 | L62: -0.0017 | M62: -0.002 | N62: -0.0019 | O62: -0.0015 | P62: -0.0007 | Q62: 0.0005 | R62: 0.002 | S62: 0.0037 | T62: 0.0057 | U62: 0.0077 | V62: 0.0097 | W62: 0.0114 | X62: 0.0128 | Y62: 0.0137 | Z62: 0.014 | AA62: 0.0136 | AB62: 0.0126 | AC62: 0.0113 | AD62: 0.0098 | AE62: 0.0083 | AF62: 0.007 | AG62: 0.0062 | AH62: 0.0059 | AI62: 0.0062 | AJ62: 0.007 | AK62: 0.0081 | AL62: 0.0094 | AM62: 0.0106 | AN62: 0.0116 | AO62: 0.0121 | AP62: 0.0122 | AQ62: 0.0119 | AR62: 0.0114 | AS62: 0.011 | AT62: 0.0109 | AU62: 0.011 | AV62: 0.0116 | AW62: 0.0127 | AX62: 0.0141 | AY62: 0.0159 | AZ62: 0.0179 | BA62: 0.0198 | BB62: 0.0215 | BC62: 0.0228 | BD62: 0.0234 | BE62: 0.0234 | BF62: 0.0227 | BG62: 0.0213 | BH62: 0.0195 | BI62: 0.0174 | BJ62: 0.015 | BK62: 0.0126 | BL62: 0.0103 | BM62: 0.0081 | BN62: 0.0059 | BO62: 0.0061 | BP62: 0.0065 | BQ62: 0.0068 | BR62: 0.0073 | BS62: 0.0076 | BT62: 0.008 | BU62: 0.0082 | BV62: 0.0083 | BW62: 0.0083 | BX62: 0.0082 | BY62: 0.0081 | BZ62: 0.0081 | CA62: 0.0082 | CB62: 0.0084 | CC62: 0.0087 | CD62: 0.0091 | CE62: 0.0094 | CF62: 0.0097 | CG62: 0.0099 | CH62: 0.01
A63: 80 | B63: 0.0084 | C63: 0.0072 | D63: 0.0059 | E63: 0.0047 | F63: 0.0034 | G63: 0.0022 | H63: 0.0011 | I63: 0.0001 | J63: -0.0007 | K63: -0.0013 | L63: -0.0017 | M63: -0.0018 | N63: -0.0016 | O63: -0.0011 | P63: -0.0003 | Q63: 0.0009 | R63: 0.0024 | S63: 0.0041 | T63: 0.0061 | U63: 0.008 | V63: 0.0099 | W63: 0.0116 | X63: 0.0129 | Y63: 0.0138 | Z63: 0.014 | AA63: 0.0135 | AB63: 0.0126 | AC63: 0.0112 | AD63: 0.0097 | AE63: 0.0082 | AF63: 0.0069 | AG63: 0.0059 | AH63: 0.0055 | AI63: 0.0056 | AJ63: 0.0062 | AK63: 0.0071 | AL63: 0.0082 | AM63: 0.0093 | AN63: 0.0102 | AO63: 0.0107 | AP63: 0.0108 | AQ63: 0.0106 | AR63: 0.0103 | AS63: 0.0101 | AT63: 0.01 | AU63: 0.0103 | AV63: 0.011 | AW63: 0.0121 | AX63: 0.0136 | AY63: 0.0154 | AZ63: 0.0173 | BA63: 0.0192 | BB63: 0.0208 | BC63: 0.022 | BD63: 0.0226 | BE63: 0.0226 | BF63: 0.022 | BG63: 0.0207 | BH63: 0.019 | BI63: 0.0169 | BJ63: 0.0146 | BK63: 0.0123 | BL63: 0.01 | BM63: 0.0078 | BN63: 0.0056 | BO63: 0.0058 | BP63: 0.0062 | BQ63: 0.0066 | BR63: 0.0071 | BS63: 0.0075 | BT63: 0.0079 | BU63: 0.0083 | BV63: 0.0085 | BW63: 0.0086 | BX63: 0.0085 | BY63: 0.0084 | BZ63: 0.0084 | CA63: 0.0084 | CB63: 0.0086 | CC63: 0.0089 | CD63: 0.0091 | CE63: 0.0095 | CF63: 0.0097 | CG63: 0.0099 | CH63: 0.01
A64: 81 | B64: 0.0077 | C64: 0.0065 | D64: 0.0053 | E64: 0.004 | F64: 0.0028 | G64: 0.0017 | H64: 0.0006 | I64: -0.0003 | J64: -0.001 | K64: -0.0015 | L64: -0.0017 | M64: -0.0017 | N64: -0.0014 | O64: -0.0008 | P64: 0.0002 | Q64: 0.0014 | R64: 0.0029 | S64: 0.0046 | T64: 0.0065 | U64: 0.0084 | V64: 0.0102 | W64: 0.0118 | X64: 0.0131 | Y64: 0.0138 | Z64: 0.014 | AA64: 0.0135 | AB64: 0.0126 | AC64: 0.0112 | AD64: 0.0097 | AE64: 0.0081 | AF64: 0.0068 | AG64: 0.0057 | AH64: 0.0051 | AI64: 0.005 | AJ64: 0.0054 | AK64: 0.0061 | AL64: 0.0071 | AM64: 0.008 | AN64: 0.0087 | AO64: 0.0092 | AP64: 0.0093 | AQ64: 0.0092 | AR64: 0.009 | AS64: 0.0089 | AT64: 0.009 | AU64: 0.0094 | AV64: 0.0102 | AW64: 0.0114 | AX64: 0.0129 | AY64: 0.0147 | AZ64: 0.0166 | BA64: 0.0185 | BB64: 0.0201 | BC64: 0.0212 | BD64: 0.0218 | BE64: 0.0218 | BF64: 0.0212 | BG64: 0.02 | BH64: 0.0184 | BI64: 0.0164 | BJ64: 0.0142 | BK64: 0.0119 | BL64: 0.0097 | BM64: 0.0075 | BN64: 0.0053 | BO64: 0.0055 | BP64: 0.0059 | BQ64: 0.0063 | BR64: 0.0068 | BS64: 0.0073 | BT64: 0.0078 | BU64: 0.0083 | BV64: 0.0086 | BW64: 0.0087 | BX64: 0.0087 | BY64: 0.0087 | BZ64: 0.0086 | CA64: 0.0087 | CB64: 0.0088 | CC64: 0.009 | CD64: 0.0092 | CE64: 0.0095 | CF64: 0.0098 | CG64: 0.0099 | CH64: 0.01
A65: 82 | B65: 0.0068 | C65: 0.0056 | D65: 0.0045 | E65: 0.0033 | F65: 0.0021 | G65: 0.001 | H65: 0 | I65: -0.0008 | J65: -0.0014 | K65: -0.0018 | L65: -0.0019 | M65: -0.0017 | N65: -0.0012 | O65: -0.0004 | P65: 0.0006 | Q65: 0.0019 | R65: 0.0034 | S65: 0.0051 | T65: 0.0069 | U65: 0.0088 | V65: 0.0105 | W65: 0.012 | X65: 0.0132 | Y65: 0.0139 | Z65: 0.014 | AA65: 0.0135 | AB65: 0.0126 | AC65: 0.0113 | AD65: 0.0097 | AE65: 0.0082 | AF65: 0.0067 | AG65: 0.0056 | AH65: 0.0049 | AI65: 0.0046 | AJ65: 0.0047 | AK65: 0.0052 | AL65: 0.0059 | AM65: 0.0066 | AN65: 0.0072 | AO65: 0.0076 | AP65: 0.0078 | AQ65: 0.0078 | AR65: 0.0077 | AS65: 0.0077 | AT65: 0.0079 | AU65: 0.0084 | AV65: 0.0093 | AW65: 0.0105 | AX65: 0.0122 | AY65: 0.014 | AZ65: 0.0159 | BA65: 0.0178 | BB65: 0.0193 | BC65: 0.0204 | BD65: 0.021 | BE65: 0.021 | BF65: 0.0204 | BG65: 0.0193 | BH65: 0.0177 | BI65: 0.0158 | BJ65: 0.0137 | BK65: 0.0115 | BL65: 0.0093 | BM65: 0.0072 | BN65: 0.0051 | BO65: 0.0053 | BP65: 0.0056 | BQ65: 0.006 | BR65: 0.0066 | BS65: 0.0071 | BT65: 0.0077 | BU65: 0.0082 | BV65: 0.0086 | BW65: 0.0088 | BX65: 0.0089 | BY65: 0.0089 | BZ65: 0.0088 | CA65: 0.0089 | CB65: 0.0089 | CC65: 0.0091 | CD65: 0.0093 | CE65: 0.0096 | CF65: 0.0098 | CG65: 0.0099 | CH65: 0.01
A66: 83 | B66: 0.0059 | C66: 0.0047 | D66: 0.0036 | E66: 0.0024 | F66: 0.0013 | G66: 0.0002 | H66: -0.0007 | I66: -0.0014 | J66: -0.0019 | K66: -0.0021 | L66: -0.0021 | M66: -0.0017 | N66: -0.0011 | O66: -0.0002 | P66: 0.001 | Q66: 0.0024 | R66: 0.0039 | S66: 0.0056 | T66: 0.0074 | U66: 0.0092 | V66: 0.0108 | W66: 0.0122 | X66: 0.0133 | Y66: 0.0139 | Z66: 0.014 | AA66: 0.0135 | AB66: 0.0126 | AC66: 0.0113 | AD66: 0.0098 | AE66: 0.0082 | AF66: 0.0068 | AG66: 0.0055 | AH66: 0.0046 | AI66: 0.0041 | AJ66: 0.0041 | AK66: 0.0043 | AL66: 0.0048 | AM66: 0.0053 | AN66: 0.0058 | AO66: 0.0061 | AP66: 0.0062 | AQ66: 0.0062 | AR66: 0.0062 | AS66: 0.0063 | AT66: 0.0067 | AU66: 0.0073 | AV66: 0.0083 | AW66: 0.0096 | AX66: 0.0113 | AY66: 0.0132 | AZ66: 0.0151 | BA66: 0.0169 | BB66: 0.0185 | BC66: 0.0196 | BD66: 0.0202 | BE66: 0.0202 | BF66: 0.0196 | BG66: 0.0186 | BH66: 0.0171 | BI66: 0.0152 | BJ66: 0.0132 | BK66: 0.0111 | BL66: 0.009 | BM66: 0.0069 | BN66: 0.0048 | BO66: 0.005 | BP66: 0.0053 | BQ66: 0.0058 | BR66: 0.0063 | BS66: 0.0069 | BT66: 0.0075 | BU66: 0.008 | BV66: 0.0085 | BW66: 0.0088 | BX66: 0.0089 | BY66: 0.009 | BZ66: 0.009 | CA66: 0.009 | CB66: 0.009 | CC66: 0.0092 | CD66: 0.0093 | CE66: 0.0096 | CF66: 0.0098 | CG66: 0.0099 | CH66: 0.01
A67: 84 | B67: 0.0049 | C67: 0.0038 | D67: 0.0026 | E67: 0.0014 | F67: 0.0003 | G67: -0.0007 | H67: -0.0015 | I67: -0.0021 | J67: -0.0025 | K67: -0.0025 | L67: -0.0023 | M67: -0.0018 | N67: -0.001 | O67: 0.0001 | P67: 0.0014 | Q67: 0.0028 | R67: 0.0044 | S67: 0.0062 | T67: 0.0079 | U67: 0.0096 | V67: 0.0111 | W67: 0.0124 | X67: 0.0134 | Y67: 0.014 | Z67: 0.014 | AA67: 0.0135 | AB67: 0.0126 | AC67: 0.0114 | AD67: 0.0099 | AE67: 0.0083 | AF67: 0.0068 | AG67: 0.0055 | AH67: 0.0045 | AI67: 0.0038 | AJ67: 0.0035 | AK67: 0.0035 | AL67: 0.0037 | AM67: 0.004 | AN67: 0.0043 | AO67: 0.0045 | AP67: 0.0046 | AQ67: 0.0046 | AR67: 0.0047 | AS67: 0.0049 | AT67: 0.0053 | AU67: 0.0061 | AV67: 0.0072 | AW67: 0.0086 | AX67: 0.0103 | AY67: 0.0122 | AZ67: 0.0142 | BA67: 0.016 | BB67: 0.0176 | BC67: 0.0187 | BD67: 0.0193 | BE67: 0.0193 | BF67: 0.0188 | BG67: 0.0178 | BH67: 0.0164 | BI67: 0.0146 | BJ67: 0.0127 | BK67: 0.0107 | BL67: 0.0086 | BM67: 0.0066 | BN67: 0.0046 | BO67: 0.0048 | BP67: 0.0051 | BQ67: 0.0055 | BR67: 0.0061 | BS67: 0.0067 | BT67: 0.0073 | BU67: 0.0078 | BV67: 0.0083 | BW67: 0.0087 | BX67: 0.0089 | BY67: 0.009 | BZ67: 0.0091 | CA67: 0.0091 | CB67: 0.0091 | CC67: 0.0092 | CD67: 0.0094 | CE67: 0.0095 | CF67: 0.0098 | CG67: 0.0099 | CH67: 0.01
A68: 85 | B68: 0.0038 | C68: 0.0026 | D68: 0.0015 | E68: 0.0004 | F68: -0.0007 | G68: -0.0016 | H68: -0.0023 | I68: -0.0028 | J68: -0.0031 | K68: -0.003 | L68: -0.0026 | M68: -0.002 | N68: -0.001 | O68: 0.0002 | P68: 0.0017 | Q68: 0.0032 | R68: 0.0049 | S68: 0.0067 | T68: 0.0084 | U68: 0.01 | V68: 0.0114 | W68: 0.0126 | X68: 0.0135 | Y68: 0.014 | Z68: 0.014 | AA68: 0.0135 | AB68: 0.0126 | AC68: 0.0114 | AD68: 0.0099 | AE68: 0.0084 | AF68: 0.0069 | AG68: 0.0055 | AH68: 0.0043 | AI68: 0.0035 | AJ68: 0.0029 | AK68: 0.0027 | AL68: 0.0026 | AM68: 0.0027 | AN68: 0.0029 | AO68: 0.003 | AP68: 0.003 | AQ68: 0.003 | AR68: 0.0031 | AS68: 0.0034 | AT68: 0.004 | AU68: 0.0048 | AV68: 0.006 | AW68: 0.0075 | AX68: 0.0092 | AY68: 0.0112 | AZ68: 0.0131 | BA68: 0.015 | BB68: 0.0166 | BC68: 0.0177 | BD68: 0.0183 | BE68: 0.0184 | BF68: 0.018 | BG68: 0.017 | BH68: 0.0157 | BI68: 0.014 | BJ68: 0.0122 | BK68: 0.0102 | BL68: 0.0083 | BM68: 0.0063 | BN68: 0.0043 | BO68: 0.0045 | BP68: 0.0049 | BQ68: 0.0053 | BR68: 0.0059 | BS68: 0.0064 | BT68: 0.0071 | BU68: 0.0076 | BV68: 0.0082 | BW68: 0.0086 | BX68: 0.0089 | BY68: 0.009 | BZ68: 0.0091 | CA68: 0.0091 | CB68: 0.0092 | CC68: 0.0093 | CD68: 0.0094 | CE68: 0.0095 | CF68: 0.0097 | CG68: 0.0099 | CH68: 0.01
A69: 86 | B69: 0.0025 | C69: 0.0014 | D69: 0.0003 | E69: -0.0008 | F69: -0.0018 | G69: -0.0026 | H69: -0.0032 | I69: -0.0036 | J69: -0.0037 | K69: -0.0035 | L69: -0.003 | M69: -0.0021 | N69: -0.001 | O69: 0.0004 | P69: 0.0019 | Q69: 0.0036 | R69: 0.0054 | S69: 0.0071 | T69: 0.0088 | U69: 0.0103 | V69: 0.0117 | W69: 0.0128 | X69: 0.0136 | Y69: 0.014 | Z69: 0.014 | AA69: 0.0135 | AB69: 0.0126 | AC69: 0.0114 | AD69: 0.01 | AE69: 0.0085 | AF69: 0.0069 | AG69: 0.0055 | AH69: 0.0042 | AI69: 0.0032 | AJ69: 0.0024 | AK69: 0.002 | AL69: 0.0017 | AM69: 0.0016 | AN69: 0.0015 | AO69: 0.0015 | AP69: 0.0014 | AQ69: 0.0015 | AR69: 0.0016 | AS69: 0.002 | AT69: 0.0026 | AU69: 0.0035 | AV69: 0.0047 | AW69: 0.0063 | AX69: 0.008 | AY69: 0.01 | AZ69: 0.012 | BA69: 0.0138 | BB69: 0.0154 | BC69: 0.0166 | BD69: 0.0173 | BE69: 0.0175 | BF69: 0.0171 | BG69: 0.0162 | BH69: 0.015 | BI69: 0.0134 | BJ69: 0.0117 | BK69: 0.0098 | BL69: 0.0079 | BM69: 0.006 | BN69: 0.0041 | BO69: 0.0043 | BP69: 0.0046 | BQ69: 0.0051 | BR69: 0.0056 | BS69: 0.0062 | BT69: 0.0068 | BU69: 0.0074 | BV69: 0.0079 | BW69: 0.0083 | BX69: 0.0086 | BY69: 0.0089 | BZ69: 0.009 | CA69: 0.0091 | CB69: 0.0091 | CC69: 0.0092 | CD69: 0.0093 | CE69: 0.0094 | CF69: 0.0096 | CG69: 0.0097 | CH69: 0.0099
A70: 87 | B70: 0.001 | C70: 0 | D70: -0.001 | E70: -0.002 | F70: -0.0029 | G70: -0.0036 | H70: -0.0041 | I70: -0.0043 | J70: -0.0043 | K70: -0.0039 | L70: -0.0033 | M70: -0.0023 | N70: -0.001 | O70: 0.0005 | P70: 0.0022 | Q70: 0.004 | R70: 0.0057 | S70: 0.0075 | T70: 0.0092 | U70: 0.0107 | V70: 0.012 | W70: 0.013 | X70: 0.0137 | Y70: 0.014 | Z70: 0.014 | AA70: 0.0135 | AB70: 0.0126 | AC70: 0.0115 | AD70: 0.0101 | AE70: 0.0086 | AF70: 0.007 | AG70: 0.0055 | AH70: 0.0041 | AI70: 0.0029 | AJ70: 0.002 | AK70: 0.0013 | AL70: 0.0008 | AM70: 0.0004 | AN70: 0.0002 | AO70: 0 | AP70: -0.0001 | AQ70: -0.0001 | AR70: 0.0001 | AS70: 0.0005 | AT70: 0.0012 | AU70: 0.0021 | AV70: 0.0034 | AW70: 0.005 | AX70: 0.0068 | AY70: 0.0087 | AZ70: 0.0107 | BA70: 0.0126 | BB70: 0.0142 | BC70: 0.0154 | BD70: 0.0162 | BE70: 0.0164 | BF70: 0.0161 | BG70: 0.0154 | BH70: 0.0142 | BI70: 0.0128 | BJ70: 0.0112 | BK70: 0.0094 | BL70: 0.0076 | BM70: 0.0058 | BN70: 0.004 | BO70: 0.0041 | BP70: 0.0045 | BQ70: 0.0049 | BR70: 0.0054 | BS70: 0.006 | BT70: 0.0066 | BU70: 0.0071 | BV70: 0.0077 | BW70: 0.0081 | BX70: 0.0084 | BY70: 0.0086 | BZ70: 0.0088 | CA70: 0.009 | CB70: 0.0091 | CC70: 0.0091 | CD70: 0.0092 | CE70: 0.0093 | CF70: 0.0095 | CG70: 0.0096 | CH70: 0.0097
A71: 88 | B71: -0.0007 | C71: -0.0016 | D71: -0.0025 | E71: -0.0033 | F71: -0.0041 | G71: -0.0046 | H71: -0.005 | I71: -0.0051 | J71: -0.0049 | K71: -0.0044 | L71: -0.0035 | M71: -0.0024 | N71: -0.001 | O71: 0.0006 | P71: 0.0024 | Q71: 0.0042 | R71: 0.0061 | S71: 0.0079 | T71: 0.0095 | U71: 0.0109 | V71: 0.0122 | W71: 0.0131 | X71: 0.0137 | Y71: 0.014 | Z71: 0.0139 | AA71: 0.0134 | AB71: 0.0126 | AC71: 0.0115 | AD71: 0.0101 | AE71: 0.0086 | AF71: 0.0071 | AG71: 0.0055 | AH71: 0.004 | AI71: 0.0027 | AJ71: 0.0016 | AK71: 0.0007 | AL71: -0.0001 | AM71: -0.0006 | AN71: -0.001 | AO71: -0.0013 | AP71: -0.0015 | AQ71: -0.0015 | AR71: -0.0014 | AS71: -0.0009 | AT71: -0.0002 | AU71: 0.0008 | AV71: 0.0021 | AW71: 0.0036 | AX71: 0.0055 | AY71: 0.0074 | AZ71: 0.0094 | BA71: 0.0112 | BB71: 0.0129 | BC71: 0.0141 | BD71: 0.015 | BE71: 0.0153 | BF71: 0.0151 | BG71: 0.0145 | BH71: 0.0135 | BI71: 0.0122 | BJ71: 0.0107 | BK71: 0.009 | BL71: 0.0073 | BM71: 0.0056 | BN71: 0.0039 | BO71: 0.004 | BP71: 0.0043 | BQ71: 0.0047 | BR71: 0.0052 | BS71: 0.0058 | BT71: 0.0064 | BU71: 0.0069 | BV71: 0.0074 | BW71: 0.0078 | BX71: 0.0081 | BY71: 0.0084 | BZ71: 0.0086 | CA71: 0.0088 | CB71: 0.0089 | CC71: 0.009 | CD71: 0.0091 | CE71: 0.0092 | CF71: 0.0093 | CG71: 0.0095 | CH71: 0.0096
A72: 89 | B72: -0.0027 | C72: -0.0034 | D72: -0.0041 | E72: -0.0047 | F72: -0.0053 | G72: -0.0057 | H72: -0.0058 | I72: -0.0058 | J72: -0.0054 | K72: -0.0047 | L72: -0.0038 | M72: -0.0025 | N72: -0.001 | O72: 0.0008 | P72: 0.0026 | Q72: 0.0045 | R72: 0.0064 | S72: 0.0081 | T72: 0.0098 | U72: 0.0112 | V72: 0.0123 | W72: 0.0132 | X72: 0.0138 | Y72: 0.014 | Z72: 0.0139 | AA72: 0.0134 | AB72: 0.0126 | AC72: 0.0115 | AD72: 0.0102 | AE72: 0.0087 | AF72: 0.0071 | AG72: 0.0055 | AH72: 0.0039 | AI72: 0.0025 | AJ72: 0.0012 | AK72: 0.0001 | AL72: -0.0008 | AM72: -0.0016 | AN72: -0.0021 | AO72: -0.0025 | AP72: -0.0028 | AQ72: -0.0029 | AR72: -0.0028 | AS72: -0.0023 | AT72: -0.0016 | AU72: -0.0006 | AV72: 0.0007 | AW72: 0.0023 | AX72: 0.0041 | AY72: 0.006 | AZ72: 0.0079 | BA72: 0.0098 | BB72: 0.0114 | BC72: 0.0128 | BD72: 0.0136 | BE72: 0.0141 | BF72: 0.014 | BG72: 0.0135 | BH72: 0.0127 | BI72: 0.0115 | BJ72: 0.0102 | BK72: 0.0087 | BL72: 0.0071 | BM72: 0.0055 | BN72: 0.0039 | BO72: 0.004 | BP72: 0.0042 | BQ72: 0.0046 | BR72: 0.0051 | BS72: 0.0056 | BT72: 0.0062 | BU72: 0.0067 | BV72: 0.0072 | BW72: 0.0076 | BX72: 0.0079 | BY72: 0.0081 | BZ72: 0.0083 | CA72: 0.0086 | CB72: 0.0088 | CC72: 0.0089 | CD72: 0.009 | CE72: 0.0091 | CF72: 0.0092 | CG72: 0.0093 | CH72: 0.0094
A73: 90 | B73: -0.0049 | C73: -0.0054 | D73: -0.0058 | E73: -0.0062 | F73: -0.0066 | G73: -0.0067 | H73: -0.0067 | I73: -0.0064 | J73: -0.0059 | K73: -0.005 | L73: -0.0039 | M73: -0.0025 | N73: -0.0009 | O73: 0.0009 | P73: 0.0028 | Q73: 0.0047 | R73: 0.0066 | S73: 0.0084 | T73: 0.01 | U73: 0.0113 | V73: 0.0124 | W73: 0.0132 | X73: 0.0138 | Y73: 0.0139 | Z73: 0.0138 | AA73: 0.0133 | AB73: 0.0125 | AC73: 0.0114 | AD73: 0.0102 | AE73: 0.0087 | AF73: 0.0071 | AG73: 0.0054 | AH73: 0.0038 | AI73: 0.0023 | AJ73: 0.0008 | AK73: -0.0004 | AL73: -0.0015 | AM73: -0.0024 | AN73: -0.0032 | AO73: -0.0037 | AP73: -0.004 | AQ73: -0.0042 | AR73: -0.0041 | AS73: -0.0037 | AT73: -0.003 | AU73: -0.002 | AV73: -0.0007 | AW73: 0.0009 | AX73: 0.0026 | AY73: 0.0045 | AZ73: 0.0064 | BA73: 0.0083 | BB73: 0.0099 | BC73: 0.0113 | BD73: 0.0122 | BE73: 0.0128 | BF73: 0.0129 | BG73: 0.0125 | BH73: 0.0119 | BI73: 0.0109 | BJ73: 0.0097 | BK73: 0.0083 | BL73: 0.0069 | BM73: 0.0055 | BN73: 0.004 | BO73: 0.004 | BP73: 0.0042 | BQ73: 0.0045 | BR73: 0.005 | BS73: 0.0055 | BT73: 0.006 | BU73: 0.0065 | BV73: 0.007 | BW73: 0.0073 | BX73: 0.0076 | BY73: 0.0078 | BZ73: 0.0081 | CA73: 0.0083 | CB73: 0.0085 | CC73: 0.0088 | CD73: 0.0089 | CE73: 0.009 | CF73: 0.0091 | CG73: 0.0092 | CH73: 0.0093
A74: 91 | B74: -0.0073 | C74: -0.0075 | D74: -0.0077 | E74: -0.0078 | F74: -0.0079 | G74: -0.0078 | H74: -0.0075 | I74: -0.007 | J74: -0.0063 | K74: -0.0053 | L74: -0.004 | M74: -0.0025 | N74: -0.0008 | O74: 0.001 | P74: 0.0029 | Q74: 0.0049 | R74: 0.0068 | S74: 0.0085 | T74: 0.0101 | U74: 0.0114 | V74: 0.0125 | W74: 0.0132 | X74: 0.0137 | Y74: 0.0139 | Z74: 0.0137 | AA74: 0.0132 | AB74: 0.0124 | AC74: 0.0114 | AD74: 0.0101 | AE74: 0.0087 | AF74: 0.0071 | AG74: 0.0054 | AH74: 0.0037 | AI74: 0.002 | AJ74: 0.0005 | AK74: -0.0009 | AL74: -0.0022 | AM74: -0.0032 | AN74: -0.0041 | AO74: -0.0047 | AP74: -0.0052 | AQ74: -0.0054 | AR74: -0.0053 | AS74: -0.005 | AT74: -0.0043 | AU74: -0.0033 | AV74: -0.0021 | AW74: -0.0006 | AX74: 0.0011 | AY74: 0.003 | AZ74: 0.0048 | BA74: 0.0066 | BB74: 0.0083 | BC74: 0.0097 | BD74: 0.0107 | BE74: 0.0114 | BF74: 0.0116 | BG74: 0.0115 | BH74: 0.011 | BI74: 0.0102 | BJ74: 0.0092 | BK74: 0.008 | BL74: 0.0068 | BM74: 0.0055 | BN74: 0.0042 | BO74: 0.0042 | BP74: 0.0043 | BQ74: 0.0046 | BR74: 0.0049 | BS74: 0.0054 | BT74: 0.0058 | BU74: 0.0063 | BV74: 0.0067 | BW74: 0.0071 | BX74: 0.0074 | BY74: 0.0076 | BZ74: 0.0078 | CA74: 0.008 | CB74: 0.0083 | CC74: 0.0085 | CD74: 0.0087 | CE74: 0.0088 | CF74: 0.0089 | CG74: 0.009 | CH74: 0.0091
A75: 92 | B75: -0.01 | C75: -0.0098 | D75: -0.0097 | E75: -0.0095 | F75: -0.0092 | G75: -0.0088 | H75: -0.0083 | I75: -0.0076 | J75: -0.0066 | K75: -0.0055 | L75: -0.0041 | M75: -0.0025 | N75: -0.0007 | O75: 0.0012 | P75: 0.0031 | Q75: 0.005 | R75: 0.0069 | S75: 0.0086 | T75: 0.0101 | U75: 0.0114 | V75: 0.0125 | W75: 0.0132 | X75: 0.0136 | Y75: 0.0138 | Z75: 0.0136 | AA75: 0.0131 | AB75: 0.0123 | AC75: 0.0113 | AD75: 0.0101 | AE75: 0.0086 | AF75: 0.007 | AG75: 0.0053 | AH75: 0.0036 | AI75: 0.0018 | AJ75: 0.0002 | AK75: -0.0013 | AL75: -0.0027 | AM75: -0.0039 | AN75: -0.0049 | AO75: -0.0057 | AP75: -0.0062 | AQ75: -0.0065 | AR75: -0.0065 | AS75: -0.0062 | AT75: -0.0056 | AU75: -0.0047 | AV75: -0.0035 | AW75: -0.002 | AX75: -0.0004 | AY75: 0.0013 | AZ75: 0.0032 | BA75: 0.0049 | BB75: 0.0066 | BC75: 0.008 | BD75: 0.0091 | BE75: 0.0099 | BF75: 0.0103 | BG75: 0.0103 | BH75: 0.0101 | BI75: 0.0095 | BJ75: 0.0087 | BK75: 0.0078 | BL75: 0.0067 | BM75: 0.0056 | BN75: 0.0045 | BO75: 0.0044 | BP75: 0.0045 | BQ75: 0.0046 | BR75: 0.0049 | BS75: 0.0053 | BT75: 0.0057 | BU75: 0.0062 | BV75: 0.0065 | BW75: 0.0069 | BX75: 0.0071 | BY75: 0.0073 | BZ75: 0.0075 | CA75: 0.0078 | CB75: 0.008 | CC75: 0.0082 | CD75: 0.0084 | CE75: 0.0087 | CF75: 0.0088 | CG75: 0.0089 | CH75: 0.009
A76: 93 | B76: -0.0128 | C76: -0.0123 | D76: -0.0118 | E76: -0.0112 | F76: -0.0106 | G76: -0.0099 | H76: -0.0091 | I76: -0.0081 | J76: -0.0069 | K76: -0.0056 | L76: -0.0041 | M76: -0.0024 | N76: -0.0006 | O76: 0.0013 | P76: 0.0033 | Q76: 0.0052 | R76: 0.007 | S76: 0.0087 | T76: 0.0101 | U76: 0.0114 | V76: 0.0124 | W76: 0.0131 | X76: 0.0135 | Y76: 0.0136 | Z76: 0.0134 | AA76: 0.013 | AB76: 0.0122 | AC76: 0.0112 | AD76: 0.01 | AE76: 0.0085 | AF76: 0.0069 | AG76: 0.0052 | AH76: 0.0034 | AI76: 0.0017 | AJ76: -0.0001 | AK76: -0.0017 | AL76: -0.0032 | AM76: -0.0045 | AN76: -0.0056 | AO76: -0.0065 | AP76: -0.0071 | AQ76: -0.0075 | AR76: -0.0076 | AS76: -0.0073 | AT76: -0.0068 | AU76: -0.006 | AV76: -0.0049 | AW76: -0.0035 | AX76: -0.002 | AY76: -0.0003 | AZ76: 0.0014 | BA76: 0.0032 | BB76: 0.0048 | BC76: 0.0062 | BD76: 0.0074 | BE76: 0.0083 | BF76: 0.0089 | BG76: 0.0092 | BH76: 0.0091 | BI76: 0.0088 | BJ76: 0.0082 | BK76: 0.0076 | BL76: 0.0068 | BM76: 0.0059 | BN76: 0.005 | BO76: 0.0048 | BP76: 0.0047 | BQ76: 0.0048 | BR76: 0.005 | BS76: 0.0053 | BT76: 0.0057 | BU76: 0.006 | BV76: 0.0064 | BW76: 0.0066 | BX76: 0.0069 | BY76: 0.0071 | BZ76: 0.0073 | CA76: 0.0075 | CB76: 0.0077 | CC76: 0.0079 | CD76: 0.0082 | CE76: 0.0084 | CF76: 0.0086 | CG76: 0.0087 | CH76: 0.0088
A77: 94 | B77: -0.0159 | C77: -0.015 | D77: -0.014 | E77: -0.0131 | F77: -0.0121 | G77: -0.011 | H77: -0.0098 | I77: -0.0086 | J77: -0.0072 | K77: -0.0056 | L77: -0.004 | M77: -0.0022 | N77: -0.0004 | O77: 0.0015 | P77: 0.0034 | Q77: 0.0053 | R77: 0.007 | S77: 0.0087 | T77: 0.0101 | U77: 0.0113 | V77: 0.0122 | W77: 0.0129 | X77: 0.0133 | Y77: 0.0134 | Z77: 0.0133 | AA77: 0.0128 | AB77: 0.0121 | AC77: 0.0111 | AD77: 0.0098 | AE77: 0.0084 | AF77: 0.0068 | AG77: 0.0051 | AH77: 0.0033 | AI77: 0.0015 | AJ77: -0.0003 | AK77: -0.002 | AL77: -0.0036 | AM77: -0.005 | AN77: -0.0062 | AO77: -0.0072 | AP77: -0.0079 | AQ77: -0.0084 | AR77: -0.0085 | AS77: -0.0084 | AT77: -0.008 | AU77: -0.0073 | AV77: -0.0063 | AW77: -0.005 | AX77: -0.0036 | AY77: -0.002 | AZ77: -0.0004 | BA77: 0.0013 | BB77: 0.0029 | BC77: 0.0044 | BD77: 0.0056 | BE77: 0.0067 | BF77: 0.0074 | BG77: 0.0079 | BH77: 0.0081 | BI77: 0.008 | BJ77: 0.0078 | BK77: 0.0074 | BL77: 0.0068 | BM77: 0.0062 | BN77: 0.0056 | BO77: 0.0053 | BP77: 0.0052 | BQ77: 0.0051 | BR77: 0.0052 | BS77: 0.0054 | BT77: 0.0056 | BU77: 0.0059 | BV77: 0.0062 | BW77: 0.0064 | BX77: 0.0066 | BY77: 0.0068 | BZ77: 0.007 | CA77: 0.0072 | CB77: 0.0074 | CC77: 0.0077 | CD77: 0.0079 | CE77: 0.0081 | CF77: 0.0083 | CG77: 0.0086 | CH77: 0.0087
A78: 95 | B78: -0.0192 | C78: -0.0178 | D78: -0.0164 | E78: -0.015 | F78: -0.0135 | G78: -0.0121 | H78: -0.0105 | I78: -0.009 | J78: -0.0073 | K78: -0.0056 | L78: -0.0038 | M78: -0.002 | N78: -0.0001 | O78: 0.0017 | P78: 0.0036 | Q78: 0.0054 | R78: 0.007 | S78: 0.0086 | T78: 0.01 | U78: 0.0111 | V78: 0.012 | W78: 0.0127 | X78: 0.0131 | Y78: 0.0132 | Z78: 0.0131 | AA78: 0.0126 | AB78: 0.0119 | AC78: 0.0109 | AD78: 0.0097 | AE78: 0.0083 | AF78: 0.0067 | AG78: 0.0049 | AH78: 0.0031 | AI78: 0.0013 | AJ78: -0.0005 | AK78: -0.0023 | AL78: -0.0039 | AM78: -0.0054 | AN78: -0.0067 | AO78: -0.0078 | AP78: -0.0086 | AQ78: -0.0092 | AR78: -0.0094 | AS78: -0.0094 | AT78: -0.0091 | AU78: -0.0085 | AV78: -0.0077 | AW78: -0.0066 | AX78: -0.0053 | AY78: -0.0038 | AZ78: -0.0022 | BA78: -0.0006 | BB78: 0.0009 | BC78: 0.0024 | BD78: 0.0038 | BE78: 0.0049 | BF78: 0.0059 | BG78: 0.0066 | BH78: 0.007 | BI78: 0.0073 | BJ78: 0.0073 | BK78: 0.0072 | BL78: 0.007 | BM78: 0.0067 | BN78: 0.0063 | BO78: 0.0059 | BP78: 0.0057 | BQ78: 0.0055 | BR78: 0.0055 | BS78: 0.0056 | BT78: 0.0057 | BU78: 0.0058 | BV78: 0.006 | BW78: 0.0062 | BX78: 0.0064 | BY78: 0.0066 | BZ78: 0.0067 | CA78: 0.0069 | CB78: 0.0072 | CC78: 0.0074 | CD78: 0.0076 | CE78: 0.0078 | CF78: 0.0081 | CG78: 0.0083 | CH78: 0.0085
A79: 96 | B79: -0.0183 | C79: -0.0169 | D79: -0.0156 | E79: -0.0142 | F79: -0.0129 | G79: -0.0115 | H79: -0.01 | I79: -0.0085 | J79: -0.007 | K79: -0.0053 | L79: -0.0036 | M79: -0.0019 | N79: -0.0001 | O79: 0.0017 | P79: 0.0034 | Q79: 0.0051 | R79: 0.0067 | S79: 0.0082 | T79: 0.0095 | U79: 0.0106 | V79: 0.0114 | W79: 0.0121 | X79: 0.0125 | Y79: 0.0126 | Z79: 0.0124 | AA79: 0.012 | AB79: 0.0113 | AC79: 0.0104 | AD79: 0.0092 | AE79: 0.0079 | AF79: 0.0063 | AG79: 0.0047 | AH79: 0.003 | AI79: 0.0012 | AJ79: -0.0005 | AK79: -0.0022 | AL79: -0.0037 | AM79: -0.0052 | AN79: -0.0064 | AO79: -0.0074 | AP79: -0.0082 | AQ79: -0.0087 | AR79: -0.009 | AS79: -0.009 | AT79: -0.0087 | AU79: -0.0081 | AV79: -0.0073 | AW79: -0.0062 | AX79: -0.005 | AY79: -0.0036 | AZ79: -0.0021 | BA79: -0.0006 | BB79: 0.0009 | BC79: 0.0023 | BD79: 0.0036 | BE79: 0.0047 | BF79: 0.0056 | BG79: 0.0062 | BH79: 0.0067 | BI79: 0.0069 | BJ79: 0.0069 | BK79: 0.0068 | BL79: 0.0066 | BM79: 0.0063 | BN79: 0.006 | BO79: 0.0056 | BP79: 0.0054 | BQ79: 0.0053 | BR79: 0.0052 | BS79: 0.0053 | BT79: 0.0054 | BU79: 0.0055 | BV79: 0.0057 | BW79: 0.0059 | BX79: 0.0061 | BY79: 0.0062 | BZ79: 0.0064 | CA79: 0.0066 | CB79: 0.0068 | CC79: 0.007 | CD79: 0.0072 | CE79: 0.0074 | CF79: 0.0077 | CG79: 0.0079 | CH79: 0.0081
A80: 97 | B80: -0.0173 | C80: -0.016 | D80: -0.0148 | E80: -0.0135 | F80: -0.0122 | G80: -0.0109 | H80: -0.0095 | I80: -0.0081 | J80: -0.0066 | K80: -0.005 | L80: -0.0034 | M80: -0.0018 | N80: -0.0001 | O80: 0.0016 | P80: 0.0032 | Q80: 0.0048 | R80: 0.0063 | S80: 0.0077 | T80: 0.009 | U80: 0.01 | V80: 0.0108 | W80: 0.0114 | X80: 0.0118 | Y80: 0.0119 | Z80: 0.0118 | AA80: 0.0113 | AB80: 0.0107 | AC80: 0.0098 | AD80: 0.0087 | AE80: 0.0074 | AF80: 0.006 | AG80: 0.0045 | AH80: 0.0028 | AI80: 0.0012 | AJ80: -0.0005 | AK80: -0.0021 | AL80: -0.0035 | AM80: -0.0049 | AN80: -0.006 | AO80: -0.007 | AP80: -0.0077 | AQ80: -0.0082 | AR80: -0.0085 | AS80: -0.0085 | AT80: -0.0082 | AU80: -0.0077 | AV80: -0.0069 | AW80: -0.0059 | AX80: -0.0047 | AY80: -0.0034 | AZ80: -0.002 | BA80: -0.0006 | BB80: 0.0008 | BC80: 0.0022 | BD80: 0.0034 | BE80: 0.0044 | BF80: 0.0053 | BG80: 0.0059 | BH80: 0.0063 | BI80: 0.0065 | BJ80: 0.0066 | BK80: 0.0065 | BL80: 0.0063 | BM80: 0.006 | BN80: 0.0057 | BO80: 0.0054 | BP80: 0.0051 | BQ80: 0.005 | BR80: 0.005 | BS80: 0.005 | BT80: 0.0051 | BU80: 0.0053 | BV80: 0.0054 | BW80: 0.0056 | BX80: 0.0058 | BY80: 0.0059 | BZ80: 0.0061 | CA80: 0.0063 | CB80: 0.0064 | CC80: 0.0066 | CD80: 0.0068 | CE80: 0.007 | CF80: 0.0073 | CG80: 0.0075 | CH80: 0.0077
A81: 98 | B81: -0.0163 | C81: -0.0151 | D81: -0.0139 | E81: -0.0127 | F81: -0.0115 | G81: -0.0103 | H81: -0.009 | I81: -0.0076 | J81: -0.0062 | K81: -0.0048 | L81: -0.0033 | M81: -0.0017 | N81: -0.0001 | O81: 0.0015 | P81: 0.003 | Q81: 0.0046 | R81: 0.006 | S81: 0.0073 | T81: 0.0085 | U81: 0.0095 | V81: 0.0102 | W81: 0.0108 | X81: 0.0111 | Y81: 0.0112 | Z81: 0.0111 | AA81: 0.0107 | AB81: 0.0101 | AC81: 0.0093 | AD81: 0.0082 | AE81: 0.007 | AF81: 0.0057 | AG81: 0.0042 | AH81: 0.0027 | AI81: 0.0011 | AJ81: -0.0005 | AK81: -0.0019 | AL81: -0.0033 | AM81: -0.0046 | AN81: -0.0057 | AO81: -0.0066 | AP81: -0.0073 | AQ81: -0.0078 | AR81: -0.008 | AS81: -0.008 | AT81: -0.0078 | AU81: -0.0072 | AV81: -0.0065 | AW81: -0.0056 | AX81: -0.0045 | AY81: -0.0032 | AZ81: -0.0019 | BA81: -0.0005 | BB81: 0.0008 | BC81: 0.0021 | BD81: 0.0032 | BE81: 0.0042 | BF81: 0.005 | BG81: 0.0056 | BH81: 0.006 | BI81: 0.0062 | BJ81: 0.0062 | BK81: 0.0061 | BL81: 0.0059 | BM81: 0.0057 | BN81: 0.0054 | BO81: 0.0051 | BP81: 0.0048 | BQ81: 0.0047 | BR81: 0.0047 | BS81: 0.0047 | BT81: 0.0048 | BU81: 0.005 | BV81: 0.0051 | BW81: 0.0053 | BX81: 0.0054 | BY81: 0.0056 | BZ81: 0.0057 | CA81: 0.0059 | CB81: 0.0061 | CC81: 0.0063 | CD81: 0.0065 | CE81: 0.0067 | CF81: 0.0069 | CG81: 0.007 | CH81: 0.0072
A82: 99 | B82: -0.0154 | C82: -0.0143 | D82: -0.0131 | E82: -0.012 | F82: -0.0108 | G82: -0.0097 | H82: -0.0084 | I82: -0.0072 | J82: -0.0059 | K82: -0.0045 | L82: -0.0031 | M82: -0.0016 | N82: -0.0001 | O82: 0.0014 | P82: 0.0029 | Q82: 0.0043 | R82: 0.0056 | S82: 0.0069 | T82: 0.008 | U82: 0.0089 | V82: 0.0096 | W82: 0.0102 | X82: 0.0105 | Y82: 0.0106 | Z82: 0.0104 | AA82: 0.0101 | AB82: 0.0095 | AC82: 0.0087 | AD82: 0.0078 | AE82: 0.0066 | AF82: 0.0053 | AG82: 0.004 | AH82: 0.0025 | AI82: 0.001 | AJ82: -0.0004 | AK82: -0.0018 | AL82: -0.0031 | AM82: -0.0043 | AN82: -0.0054 | AO82: -0.0062 | AP82: -0.0069 | AQ82: -0.0073 | AR82: -0.0076 | AS82: -0.0075 | AT82: -0.0073 | AU82: -0.0068 | AV82: -0.0061 | AW82: -0.0053 | AX82: -0.0042 | AY82: -0.003 | AZ82: -0.0018 | BA82: -0.0005 | BB82: 0.0007 | BC82: 0.0019 | BD82: 0.003 | BE82: 0.004 | BF82: 0.0047 | BG82: 0.0053 | BH82: 0.0056 | BI82: 0.0058 | BJ82: 0.0058 | BK82: 0.0058 | BL82: 0.0056 | BM82: 0.0053 | BN82: 0.005 | BO82: 0.0048 | BP82: 0.0046 | BQ82: 0.0044 | BR82: 0.0044 | BS82: 0.0044 | BT82: 0.0045 | BU82: 0.0047 | BV82: 0.0048 | BW82: 0.005 | BX82: 0.0051 | BY82: 0.0052 | BZ82: 0.0054 | CA82: 0.0056 | CB82: 0.0057 | CC82: 0.0059 | CD82: 0.0061 | CE82: 0.0063 | CF82: 0.0064 | CG82: 0.0066 | CH82: 0.0068
A83: 100 | B83: -0.0144 | C83: -0.0134 | D83: -0.0123 | E83: -0.0112 | F83: -0.0102 | G83: -0.0091 | H83: -0.0079 | I83: -0.0067 | J83: -0.0055 | K83: -0.0042 | L83: -0.0029 | M83: -0.0015 | N83: -0.0001 | O83: 0.0013 | P83: 0.0027 | Q83: 0.004 | R83: 0.0053 | S83: 0.0064 | T83: 0.0075 | U83: 0.0083 | V83: 0.009 | W83: 0.0095 | X83: 0.0098 | Y83: 0.0099 | Z83: 0.0098 | AA83: 0.0095 | AB83: 0.0089 | AC83: 0.0082 | AD83: 0.0073 | AE83: 0.0062 | AF83: 0.005 | AG83: 0.0037 | AH83: 0.0024 | AI83: 0.001 | AJ83: -0.0004 | AK83: -0.0017 | AL83: -0.003 | AM83: -0.0041 | AN83: -0.005 | AO83: -0.0058 | AP83: -0.0065 | AQ83: -0.0069 | AR83: -0.0071 | AS83: -0.0071 | AT83: -0.0068 | AU83: -0.0064 | AV83: -0.0058 | AW83: -0.0049 | AX83: -0.0039 | AY83: -0.0029 | AZ83: -0.0017 | BA83: -0.0005 | BB83: 0.0007 | BC83: 0.0018 | BD83: 0.0028 | BE83: 0.0037 | BF83: 0.0044 | BG83: 0.0049 | BH83: 0.0053 | BI83: 0.0054 | BJ83: 0.0055 | BK83: 0.0054 | BL83: 0.0052 | BM83: 0.005 | BN83: 0.0047 | BO83: 0.0045 | BP83: 0.0043 | BQ83: 0.0042 | BR83: 0.0041 | BS83: 0.0042 | BT83: 0.0043 | BU83: 0.0044 | BV83: 0.0045 | BW83: 0.0047 | BX83: 0.0048 | BY83: 0.0049 | BZ83: 0.0051 | CA83: 0.0052 | CB83: 0.0054 | CC83: 0.0055 | CD83: 0.0057 | CE83: 0.0059 | CF83: 0.006 | CG83: 0.0062 | CH83: 0.0064
A84: 101 | B84: -0.0135 | C84: -0.0125 | D84: -0.0115 | E84: -0.0105 | F84: -0.0095 | G84: -0.0084 | H84: -0.0074 | I84: -0.0063 | J84: -0.0051 | K84: -0.0039 | L84: -0.0027 | M84: -0.0014 | N84: -0.0001 | O84: 0.0012 | P84: 0.0025 | Q84: 0.0038 | R84: 0.0049 | S84: 0.006 | T84: 0.007 | U84: 0.0078 | V84: 0.0084 | W84: 0.0089 | X84: 0.0092 | Y84: 0.0093 | Z84: 0.0091 | AA84: 0.0088 | AB84: 0.0083 | AC84: 0.0076 | AD84: 0.0068 | AE84: 0.0058 | AF84: 0.0047 | AG84: 0.0035 | AH84: 0.0022 | AI84: 0.0009 | AJ84: -0.0004 | AK84: -0.0016 | AL84: -0.0028 | AM84: -0.0038 | AN84: -0.0047 | AO84: -0.0054 | AP84: -0.006 | AQ84: -0.0064 | AR84: -0.0066 | AS84: -0.0066 | AT84: -0.0064 | AU84: -0.006 | AV84: -0.0054 | AW84: -0.0046 | AX84: -0.0037 | AY84: -0.0027 | AZ84: -0.0016 | BA84: -0.0005 | BB84: 0.0007 | BC84: 0.0017 | BD84: 0.0026 | BE84: 0.0035 | BF84: 0.0041 | BG84: 0.0046 | BH84: 0.0049 | BI84: 0.0051 | BJ84: 0.0051 | BK84: 0.005 | BL84: 0.0049 | BM84: 0.0047 | BN84: 0.0044 | BO84: 0.0042 | BP84: 0.004 | BQ84: 0.0039 | BR84: 0.0039 | BS84: 0.0039 | BT84: 0.004 | BU84: 0.0041 | BV84: 0.0042 | BW84: 0.0044 | BX84: 0.0045 | BY84: 0.0046 | BZ84: 0.0047 | CA84: 0.0049 | CB84: 0.005 | CC84: 0.0052 | CD84: 0.0053 | CE84: 0.0055 | CF84: 0.0056 | CG84: 0.0058 | CH84: 0.006
A85: 102 | B85: -0.0125 | C85: -0.0116 | D85: -0.0107 | E85: -0.0097 | F85: -0.0088 | G85: -0.0078 | H85: -0.0069 | I85: -0.0058 | J85: -0.0048 | K85: -0.0036 | L85: -0.0025 | M85: -0.0013 | N85: -0.0001 | O85: 0.0011 | P85: 0.0023 | Q85: 0.0035 | R85: 0.0046 | S85: 0.0056 | T85: 0.0065 | U85: 0.0072 | V85: 0.0078 | W85: 0.0083 | X85: 0.0085 | Y85: 0.0086 | Z85: 0.0085 | AA85: 0.0082 | AB85: 0.0077 | AC85: 0.0071 | AD85: 0.0063 | AE85: 0.0054 | AF85: 0.0043 | AG85: 0.0032 | AH85: 0.002 | AI85: 0.0008 | AJ85: -0.0003 | AK85: -0.0015 | AL85: -0.0026 | AM85: -0.0035 | AN85: -0.0044 | AO85: -0.0051 | AP85: -0.0056 | AQ85: -0.006 | AR85: -0.0061 | AS85: -0.0061 | AT85: -0.0059 | AU85: -0.0055 | AV85: -0.005 | AW85: -0.0043 | AX85: -0.0034 | AY85: -0.0025 | AZ85: -0.0015 | BA85: -0.0004 | BB85: 0.0006 | BC85: 0.0016 | BD85: 0.0025 | BE85: 0.0032 | BF85: 0.0038 | BG85: 0.0043 | BH85: 0.0046 | BI85: 0.0047 | BJ85: 0.0047 | BK85: 0.0047 | BL85: 0.0045 | BM85: 0.0043 | BN85: 0.0041 | BO85: 0.0039 | BP85: 0.0037 | BQ85: 0.0036 | BR85: 0.0036 | BS85: 0.0036 | BT85: 0.0037 | BU85: 0.0038 | BV85: 0.0039 | BW85: 0.004 | BX85: 0.0042 | BY85: 0.0043 | BZ85: 0.0044 | CA85: 0.0045 | CB85: 0.0047 | CC85: 0.0048 | CD85: 0.0049 | CE85: 0.0051 | CF85: 0.0052 | CG85: 0.0054 | CH85: 0.0055
A86: 103 | B86: -0.0115 | C86: -0.0107 | D86: -0.0098 | E86: -0.009 | F86: -0.0081 | G86: -0.0072 | H86: -0.0063 | I86: -0.0054 | J86: -0.0044 | K86: -0.0034 | L86: -0.0023 | M86: -0.0012 | N86: -0.0001 | O86: 0.001 | P86: 0.0021 | Q86: 0.0032 | R86: 0.0042 | S86: 0.0052 | T86: 0.006 | U86: 0.0067 | V86: 0.0072 | W86: 0.0076 | X86: 0.0079 | Y86: 0.0079 | Z86: 0.0078 | AA86: 0.0076 | AB86: 0.0071 | AC86: 0.0065 | AD86: 0.0058 | AE86: 0.005 | AF86: 0.004 | AG86: 0.003 | AH86: 0.0019 | AI86: 0.0008 | AJ86: -0.0003 | AK86: -0.0014 | AL86: -0.0024 | AM86: -0.0033 | AN86: -0.004 | AO86: -0.0047 | AP86: -0.0052 | AQ86: -0.0055 | AR86: -0.0057 | AS86: -0.0057 | AT86: -0.0055 | AU86: -0.0051 | AV86: -0.0046 | AW86: -0.0039 | AX86: -0.0032 | AY86: -0.0023 | AZ86: -0.0013 | BA86: -0.0004 | BB86: 0.0006 | BC86: 0.0015 | BD86: 0.0023 | BE86: 0.003 | BF86: 0.0035 | BG86: 0.0039 | BH86: 0.0042 | BI86: 0.0044 | BJ86: 0.0044 | BK86: 0.0043 | BL86: 0.0042 | BM86: 0.004 | BN86: 0.0038 | BO86: 0.0036 | BP86: 0.0034 | BQ86: 0.0033 | BR86: 0.0033 | BS86: 0.0033 | BT86: 0.0034 | BU86: 0.0035 | BV86: 0.0036 | BW86: 0.0037 | BX86: 0.0038 | BY86: 0.0039 | BZ86: 0.004 | CA86: 0.0042 | CB86: 0.0043 | CC86: 0.0044 | CD86: 0.0046 | CE86: 0.0047 | CF86: 0.0048 | CG86: 0.005 | CH86: 0.0051
A87: 104 | B87: -0.0106 | C87: -0.0098 | D87: -0.009 | E87: -0.0082 | F87: -0.0074 | G87: -0.0066 | H87: -0.0058 | I87: -0.0049 | J87: -0.004 | K87: -0.0031 | L87: -0.0021 | M87: -0.0011 | N87: -0.0001 | O87: 0.001 | P87: 0.002 | Q87: 0.0029 | R87: 0.0039 | S87: 0.0047 | T87: 0.0055 | U87: 0.0061 | V87: 0.0066 | W87: 0.007 | X87: 0.0072 | Y87: 0.0073 | Z87: 0.0072 | AA87: 0.0069 | AB87: 0.0065 | AC87: 0.006 | AD87: 0.0053 | AE87: 0.0045 | AF87: 0.0037 | AG87: 0.0027 | AH87: 0.0017 | AI87: 0.0007 | AJ87: -0.0003 | AK87: -0.0013 | AL87: -0.0022 | AM87: -0.003 | AN87: -0.0037 | AO87: -0.0043 | AP87: -0.0047 | AQ87: -0.005 | AR87: -0.0052 | AS87: -0.0052 | AT87: -0.005 | AU87: -0.0047 | AV87: -0.0042 | AW87: -0.0036 | AX87: -0.0029 | AY87: -0.0021 | AZ87: -0.0012 | BA87: -0.0004 | BB87: 0.0005 | BC87: 0.0013 | BD87: 0.0021 | BE87: 0.0027 | BF87: 0.0032 | BG87: 0.0036 | BH87: 0.0039 | BI87: 0.004 | BJ87: 0.004 | BK87: 0.004 | BL87: 0.0038 | BM87: 0.0037 | BN87: 0.0035 | BO87: 0.0033 | BP87: 0.0031 | BQ87: 0.0031 | BR87: 0.003 | BS87: 0.0031 | BT87: 0.0031 | BU87: 0.0032 | BV87: 0.0033 | BW87: 0.0034 | BX87: 0.0035 | BY87: 0.0036 | BZ87: 0.0037 | CA87: 0.0038 | CB87: 0.0039 | CC87: 0.0041 | CD87: 0.0042 | CE87: 0.0043 | CF87: 0.0044 | CG87: 0.0046 | CH87: 0.0047
A88: 105 | B88: -0.0096 | C88: -0.0089 | D88: -0.0082 | E88: -0.0075 | F88: -0.0068 | G88: -0.006 | H88: -0.0053 | I88: -0.0045 | J88: -0.0037 | K88: -0.0028 | L88: -0.0019 | M88: -0.001 | N88: -0.0001 | O88: 0.0009 | P88: 0.0018 | Q88: 0.0027 | R88: 0.0035 | S88: 0.0043 | T88: 0.005 | U88: 0.0056 | V88: 0.006 | W88: 0.0064 | X88: 0.0066 | Y88: 0.0066 | Z88: 0.0065 | AA88: 0.0063 | AB88: 0.0059 | AC88: 0.0055 | AD88: 0.0048 | AE88: 0.0041 | AF88: 0.0033 | AG88: 0.0025 | AH88: 0.0016 | AI88: 0.0006 | AJ88: -0.0003 | AK88: -0.0011 | AL88: -0.002 | AM88: -0.0027 | AN88: -0.0034 | AO88: -0.0039 | AP88: -0.0043 | AQ88: -0.0046 | AR88: -0.0047 | AS88: -0.0047 | AT88: -0.0046 | AU88: -0.0043 | AV88: -0.0038 | AW88: -0.0033 | AX88: -0.0026 | AY88: -0.0019 | AZ88: -0.0011 | BA88: -0.0003 | BB88: 0.0005 | BC88: 0.0012 | BD88: 0.0019 | BE88: 0.0025 | BF88: 0.0029 | BG88: 0.0033 | BH88: 0.0035 | BI88: 0.0036 | BJ88: 0.0037 | BK88: 0.0036 | BL88: 0.0035 | BM88: 0.0033 | BN88: 0.0032 | BO88: 0.003 | BP88: 0.0028 | BQ88: 0.0028 | BR88: 0.0028 | BS88: 0.0028 | BT88: 0.0028 | BU88: 0.0029 | BV88: 0.003 | BW88: 0.0031 | BX88: 0.0032 | BY88: 0.0033 | BZ88: 0.0034 | CA88: 0.0035 | CB88: 0.0036 | CC88: 0.0037 | CD88: 0.0038 | CE88: 0.0039 | CF88: 0.004 | CG88: 0.0041 | CH88: 0.0043
A89: 106 | B89: -0.0087 | C89: -0.008 | D89: -0.0074 | E89: -0.0067 | F89: -0.0061 | G89: -0.0054 | H89: -0.0047 | I89: -0.004 | J89: -0.0033 | K89: -0.0025 | L89: -0.0017 | M89: -0.0009 | N89: -0.0001 | O89: 0.0008 | P89: 0.0016 | Q89: 0.0024 | R89: 0.0032 | S89: 0.0039 | T89: 0.0045 | U89: 0.005 | V89: 0.0054 | W89: 0.0057 | X89: 0.0059 | Y89: 0.006 | Z89: 0.0059 | AA89: 0.0057 | AB89: 0.0053 | AC89: 0.0049 | AD89: 0.0044 | AE89: 0.0037 | AF89: 0.003 | AG89: 0.0022 | AH89: 0.0014 | AI89: 0.0006 | AJ89: -0.0002 | AK89: -0.001 | AL89: -0.0018 | AM89: -0.0024 | AN89: -0.003 | AO89: -0.0035 | AP89: -0.0039 | AQ89: -0.0041 | AR89: -0.0042 | AS89: -0.0042 | AT89: -0.0041 | AU89: -0.0038 | AV89: -0.0035 | AW89: -0.003 | AX89: -0.0024 | AY89: -0.0017 | AZ89: -0.001 | BA89: -0.0003 | BB89: 0.0004 | BC89: 0.0011 | BD89: 0.0017 | BE89: 0.0022 | BF89: 0.0026 | BG89: 0.003 | BH89: 0.0032 | BI89: 0.0033 | BJ89: 0.0033 | BK89: 0.0032 | BL89: 0.0031 | BM89: 0.003 | BN89: 0.0028 | BO89: 0.0027 | BP89: 0.0026 | BQ89: 0.0025 | BR89: 0.0025 | BS89: 0.0025 | BT89: 0.0026 | BU89: 0.0026 | BV89: 0.0027 | BW89: 0.0028 | BX89: 0.0029 | BY89: 0.003 | BZ89: 0.003 | CA89: 0.0031 | CB89: 0.0032 | CC89: 0.0033 | CD89: 0.0034 | CE89: 0.0035 | CF89: 0.0036 | CG89: 0.0037 | CH89: 0.0038
A90: 107 | B90: -0.0077 | C90: -0.0071 | D90: -0.0066 | E90: -0.006 | F90: -0.0054 | G90: -0.0048 | H90: -0.0042 | I90: -0.0036 | J90: -0.0029 | K90: -0.0022 | L90: -0.0015 | M90: -0.0008 | N90: -0.0001 | O90: 0.0007 | P90: 0.0014 | Q90: 0.0021 | R90: 0.0028 | S90: 0.0034 | T90: 0.004 | U90: 0.0044 | V90: 0.0048 | W90: 0.0051 | X90: 0.0052 | Y90: 0.0053 | Z90: 0.0052 | AA90: 0.005 | AB90: 0.0048 | AC90: 0.0044 | AD90: 0.0039 | AE90: 0.0033 | AF90: 0.0027 | AG90: 0.002 | AH90: 0.0013 | AI90: 0.0005 | AJ90: -0.0002 | AK90: -0.0009 | AL90: -0.0016 | AM90: -0.0022 | AN90: -0.0027 | AO90: -0.0031 | AP90: -0.0034 | AQ90: -0.0037 | AR90: -0.0038 | AS90: -0.0038 | AT90: -0.0036 | AU90: -0.0034 | AV90: -0.0031 | AW90: -0.0026 | AX90: -0.0021 | AY90: -0.0015 | AZ90: -0.0009 | BA90: -0.0003 | BB90: 0.0004 | BC90: 0.001 | BD90: 0.0015 | BE90: 0.002 | BF90: 0.0024 | BG90: 0.0026 | BH90: 0.0028 | BI90: 0.0029 | BJ90: 0.0029 | BK90: 0.0029 | BL90: 0.0028 | BM90: 0.0027 | BN90: 0.0025 | BO90: 0.0024 | BP90: 0.0023 | BQ90: 0.0022 | BR90: 0.0022 | BS90: 0.0022 | BT90: 0.0023 | BU90: 0.0023 | BV90: 0.0024 | BW90: 0.0025 | BX90: 0.0026 | BY90: 0.0026 | BZ90: 0.0027 | CA90: 0.0028 | CB90: 0.0029 | CC90: 0.003 | CD90: 0.003 | CE90: 0.0031 | CF90: 0.0032 | CG90: 0.0033 | CH90: 0.0034
A91: 108 | B91: -0.0067 | C91: -0.0062 | D91: -0.0057 | E91: -0.0052 | F91: -0.0047 | G91: -0.0042 | H91: -0.0037 | I91: -0.0031 | J91: -0.0026 | K91: -0.002 | L91: -0.0013 | M91: -0.0007 | N91: 0 | O91: 0.0006 | P91: 0.0013 | Q91: 0.0019 | R91: 0.0025 | S91: 0.003 | T91: 0.0035 | U91: 0.0039 | V91: 0.0042 | W91: 0.0045 | X91: 0.0046 | Y91: 0.0046 | Z91: 0.0046 | AA91: 0.0044 | AB91: 0.0042 | AC91: 0.0038 | AD91: 0.0034 | AE91: 0.0029 | AF91: 0.0023 | AG91: 0.0017 | AH91: 0.0011 | AI91: 0.0005 | AJ91: -0.0002 | AK91: -0.0008 | AL91: -0.0014 | AM91: -0.0019 | AN91: -0.0023 | AO91: -0.0027 | AP91: -0.003 | AQ91: -0.0032 | AR91: -0.0033 | AS91: -0.0033 | AT91: -0.0032 | AU91: -0.003 | AV91: -0.0027 | AW91: -0.0023 | AX91: -0.0018 | AY91: -0.0013 | AZ91: -0.0008 | BA91: -0.0002 | BB91: 0.0003 | BC91: 0.0009 | BD91: 0.0013 | BE91: 0.0017 | BF91: 0.0021 | BG91: 0.0023 | BH91: 0.0025 | BI91: 0.0025 | BJ91: 0.0026 | BK91: 0.0025 | BL91: 0.0024 | BM91: 0.0023 | BN91: 0.0022 | BO91: 0.0021 | BP91: 0.002 | BQ91: 0.0019 | BR91: 0.0019 | BS91: 0.0019 | BT91: 0.002 | BU91: 0.002 | BV91: 0.0021 | BW91: 0.0022 | BX91: 0.0022 | BY91: 0.0023 | BZ91: 0.0024 | CA91: 0.0024 | CB91: 0.0025 | CC91: 0.0026 | CD91: 0.0027 | CE91: 0.0027 | CF91: 0.0028 | CG91: 0.0029 | CH91: 0.003
A92: 109 | B92: -0.0058 | C92: -0.0053 | D92: -0.0049 | E92: -0.0045 | F92: -0.0041 | G92: -0.0036 | H92: -0.0032 | I92: -0.0027 | J92: -0.0022 | K92: -0.0017 | L92: -0.0011 | M92: -0.0006 | N92: 0 | O92: 0.0005 | P92: 0.0011 | Q92: 0.0016 | R92: 0.0021 | S92: 0.0026 | T92: 0.003 | U92: 0.0033 | V92: 0.0036 | W92: 0.0038 | X92: 0.0039 | Y92: 0.004 | Z92: 0.0039 | AA92: 0.0038 | AB92: 0.0036 | AC92: 0.0033 | AD92: 0.0029 | AE92: 0.0025 | AF92: 0.002 | AG92: 0.0015 | AH92: 0.0009 | AI92: 0.0004 | AJ92: -0.0002 | AK92: -0.0007 | AL92: -0.0012 | AM92: -0.0016 | AN92: -0.002 | AO92: -0.0023 | AP92: -0.0026 | AQ92: -0.0027 | AR92: -0.0028 | AS92: -0.0028 | AT92: -0.0027 | AU92: -0.0026 | AV92: -0.0023 | AW92: -0.002 | AX92: -0.0016 | AY92: -0.0011 | AZ92: -0.0007 | BA92: -0.0002 | BB92: 0.0003 | BC92: 0.0007 | BD92: 0.0011 | BE92: 0.0015 | BF92: 0.0018 | BG92: 0.002 | BH92: 0.0021 | BI92: 0.0022 | BJ92: 0.0022 | BK92: 0.0022 | BL92: 0.0021 | BM92: 0.002 | BN92: 0.0019 | BO92: 0.0018 | BP92: 0.0017 | BQ92: 0.0017 | BR92: 0.0017 | BS92: 0.0017 | BT92: 0.0017 | BU92: 0.0018 | BV92: 0.0018 | BW92: 0.0019 | BX92: 0.0019 | BY92: 0.002 | BZ92: 0.002 | CA92: 0.0021 | CB92: 0.0021 | CC92: 0.0022 | CD92: 0.0023 | CE92: 0.0023 | CF92: 0.0024 | CG92: 0.0025 | CH92: 0.0026
A93: 110 | B93: -0.0048 | C93: -0.0045 | D93: -0.0041 | E93: -0.0037 | F93: -0.0034 | G93: -0.003 | H93: -0.0026 | I93: -0.0022 | J93: -0.0018 | K93: -0.0014 | L93: -0.001 | M93: -0.0005 | N93: 0 | O93: 0.0004 | P93: 0.0009 | Q93: 0.0013 | R93: 0.0018 | S93: 0.0021 | T93: 0.0025 | U93: 0.0028 | V93: 0.003 | W93: 0.0032 | X93: 0.0033 | Y93: 0.0033 | Z93: 0.0033 | AA93: 0.0032 | AB93: 0.003 | AC93: 0.0027 | AD93: 0.0024 | AE93: 0.0021 | AF93: 0.0017 | AG93: 0.0012 | AH93: 0.0008 | AI93: 0.0003 | AJ93: -0.0001 | AK93: -0.0006 | AL93: -0.001 | AM93: -0.0014 | AN93: -0.0017 | AO93: -0.0019 | AP93: -0.0022 | AQ93: -0.0023 | AR93: -0.0024 | AS93: -0.0024 | AT93: -0.0023 | AU93: -0.0021 | AV93: -0.0019 | AW93: -0.0016 | AX93: -0.0013 | AY93: -0.001 | AZ93: -0.0006 | BA93: -0.0002 | BB93: 0.0002 | BC93: 0.0006 | BD93: 0.0009 | BE93: 0.0012 | BF93: 0.0015 | BG93: 0.0016 | BH93: 0.0018 | BI93: 0.0018 | BJ93: 0.0018 | BK93: 0.0018 | BL93: 0.0017 | BM93: 0.0017 | BN93: 0.0016 | BO93: 0.0015 | BP93: 0.0014 | BQ93: 0.0014 | BR93: 0.0014 | BS93: 0.0014 | BT93: 0.0014 | BU93: 0.0015 | BV93: 0.0015 | BW93: 0.0016 | BX93: 0.0016 | BY93: 0.0016 | BZ93: 0.0017 | CA93: 0.0017 | CB93: 0.0018 | CC93: 0.0018 | CD93: 0.0019 | CE93: 0.002 | CF93: 0.002 | CG93: 0.0021 | CH93: 0.0021
A94: 111 | B94: -0.0038 | C94: -0.0036 | D94: -0.0033 | E94: -0.003 | F94: -0.0027 | G94: -0.0024 | H94: -0.0021 | I94: -0.0018 | J94: -0.0015 | K94: -0.0011 | L94: -0.0008 | M94: -0.0004 | N94: 0 | O94: 0.0003 | P94: 0.0007 | Q94: 0.0011 | R94: 0.0014 | S94: 0.0017 | T94: 0.002 | U94: 0.0022 | V94: 0.0024 | W94: 0.0025 | X94: 0.0026 | Y94: 0.0026 | Z94: 0.0026 | AA94: 0.0025 | AB94: 0.0024 | AC94: 0.0022 | AD94: 0.0019 | AE94: 0.0017 | AF94: 0.0013 | AG94: 0.001 | AH94: 0.0006 | AI94: 0.0003 | AJ94: -0.0001 | AK94: -0.0005 | AL94: -0.0008 | AM94: -0.0011 | AN94: -0.0013 | AO94: -0.0016 | AP94: -0.0017 | AQ94: -0.0018 | AR94: -0.0019 | AS94: -0.0019 | AT94: -0.0018 | AU94: -0.0017 | AV94: -0.0015 | AW94: -0.0013 | AX94: -0.0011 | AY94: -0.0008 | AZ94: -0.0004 | BA94: -0.0001 | BB94: 0.0002 | BC94: 0.0005 | BD94: 0.0008 | BE94: 0.001 | BF94: 0.0012 | BG94: 0.0013 | BH94: 0.0014 | BI94: 0.0015 | BJ94: 0.0015 | BK94: 0.0014 | BL94: 0.0014 | BM94: 0.0013 | BN94: 0.0013 | BO94: 0.0012 | BP94: 0.0011 | BQ94: 0.0011 | BR94: 0.0011 | BS94: 0.0011 | BT94: 0.0011 | BU94: 0.0012 | BV94: 0.0012 | BW94: 0.0012 | BX94: 0.0013 | BY94: 0.0013 | BZ94: 0.0013 | CA94: 0.0014 | CB94: 0.0014 | CC94: 0.0015 | CD94: 0.0015 | CE94: 0.0016 | CF94: 0.0016 | CG94: 0.0017 | CH94: 0.0017
A95: 112 | B95: -0.0029 | C95: -0.0027 | D95: -0.0025 | E95: -0.0022 | F95: -0.002 | G95: -0.0018 | H95: -0.0016 | I95: -0.0013 | J95: -0.0011 | K95: -0.0008 | L95: -0.0006 | M95: -0.0003 | N95: 0 | O95: 0.0003 | P95: 0.0005 | Q95: 0.0008 | R95: 0.0011 | S95: 0.0013 | T95: 0.0015 | U95: 0.0017 | V95: 0.0018 | W95: 0.0019 | X95: 0.002 | Y95: 0.002 | Z95: 0.002 | AA95: 0.0019 | AB95: 0.0018 | AC95: 0.0016 | AD95: 0.0015 | AE95: 0.0012 | AF95: 0.001 | AG95: 0.0007 | AH95: 0.0005 | AI95: 0.0002 | AJ95: -0.0001 | AK95: -0.0003 | AL95: -0.0006 | AM95: -0.0008 | AN95: -0.001 | AO95: -0.0012 | AP95: -0.0013 | AQ95: -0.0014 | AR95: -0.0014 | AS95: -0.0014 | AT95: -0.0014 | AU95: -0.0013 | AV95: -0.0012 | AW95: -0.001 | AX95: -0.0008 | AY95: -0.0006 | AZ95: -0.0003 | BA95: -0.0001 | BB95: 0.0001 | BC95: 0.0004 | BD95: 0.0006 | BE95: 0.0007 | BF95: 0.0009 | BG95: 0.001 | BH95: 0.0011 | BI95: 0.0011 | BJ95: 0.0011 | BK95: 0.0011 | BL95: 0.001 | BM95: 0.001 | BN95: 0.0009 | BO95: 0.0009 | BP95: 0.0009 | BQ95: 0.0008 | BR95: 0.0008 | BS95: 0.0008 | BT95: 0.0009 | BU95: 0.0009 | BV95: 0.0009 | BW95: 0.0009 | BX95: 0.001 | BY95: 0.001 | BZ95: 0.001 | CA95: 0.001 | CB95: 0.0011 | CC95: 0.0011 | CD95: 0.0011 | CE95: 0.0012 | CF95: 0.0012 | CG95: 0.0012 | CH95: 0.0013
A96: 113 | B96: -0.0019 | C96: -0.0018 | D96: -0.0016 | E96: -0.0015 | F96: -0.0014 | G96: -0.0012 | H96: -0.0011 | I96: -0.0009 | J96: -0.0007 | K96: -0.0006 | L96: -0.0004 | M96: -0.0002 | N96: 0 | O96: 0.0002 | P96: 0.0004 | Q96: 0.0005 | R96: 0.0007 | S96: 0.0009 | T96: 0.001 | U96: 0.0011 | V96: 0.0012 | W96: 0.0013 | X96: 0.0013 | Y96: 0.0013 | Z96: 0.0013 | AA96: 0.0013 | AB96: 0.0012 | AC96: 0.0011 | AD96: 0.001 | AE96: 0.0008 | AF96: 0.0007 | AG96: 0.0005 | AH96: 0.0003 | AI96: 0.0001 | AJ96: -0.0001 | AK96: -0.0002 | AL96: -0.0004 | AM96: -0.0005 | AN96: -0.0007 | AO96: -0.0008 | AP96: -0.0009 | AQ96: -0.0009 | AR96: -0.0009 | AS96: -0.0009 | AT96: -0.0009 | AU96: -0.0009 | AV96: -0.0008 | AW96: -0.0007 | AX96: -0.0005 | AY96: -0.0004 | AZ96: -0.0002 | BA96: -0.0001 | BB96: 0.0001 | BC96: 0.0002 | BD96: 0.0004 | BE96: 0.0005 | BF96: 0.0006 | BG96: 0.0007 | BH96: 0.0007 | BI96: 0.0007 | BJ96: 0.0007 | BK96: 0.0007 | BL96: 0.0007 | BM96: 0.0007 | BN96: 0.0006 | BO96: 0.0006 | BP96: 0.0006 | BQ96: 0.0006 | BR96: 0.0006 | BS96: 0.0006 | BT96: 0.0006 | BU96: 0.0006 | BV96: 0.0006 | BW96: 0.0006 | BX96: 0.0006 | BY96: 0.0007 | BZ96: 0.0007 | CA96: 0.0007 | CB96: 0.0007 | CC96: 0.0007 | CD96: 0.0008 | CE96: 0.0008 | CF96: 0.0008 | CG96: 0.0008 | CH96: 0.0009
A97: 114 | B97: -0.001 | C97: -0.0009 | D97: -0.0008 | E97: -0.0007 | F97: -0.0007 | G97: -0.0006 | H97: -0.0005 | I97: -0.0004 | J97: -0.0004 | K97: -0.0003 | L97: -0.0002 | M97: -0.0001 | N97: 0 | O97: 0.0001 | P97: 0.0002 | Q97: 0.0003 | R97: 0.0004 | S97: 0.0004 | T97: 0.0005 | U97: 0.0006 | V97: 0.0006 | W97: 0.0006 | X97: 0.0007 | Y97: 0.0007 | Z97: 0.0007 | AA97: 0.0006 | AB97: 0.0006 | AC97: 0.0005 | AD97: 0.0005 | AE97: 0.0004 | AF97: 0.0003 | AG97: 0.0002 | AH97: 0.0002 | AI97: 0.0001 | AJ97: 0 | AK97: -0.0001 | AL97: -0.0002 | AM97: -0.0003 | AN97: -0.0003 | AO97: -0.0004 | AP97: -0.0004 | AQ97: -0.0005 | AR97: -0.0005 | AS97: -0.0005 | AT97: -0.0005 | AU97: -0.0004 | AV97: -0.0004 | AW97: -0.0003 | AX97: -0.0003 | AY97: -0.0002 | AZ97: -0.0001 | BA97: 0 | BB97: 0 | BC97: 0.0001 | BD97: 0.0002 | BE97: 0.0002 | BF97: 0.0003 | BG97: 0.0003 | BH97: 0.0004 | BI97: 0.0004 | BJ97: 0.0004 | BK97: 0.0004 | BL97: 0.0003 | BM97: 0.0003 | BN97: 0.0003 | BO97: 0.0003 | BP97: 0.0003 | BQ97: 0.0003 | BR97: 0.0003 | BS97: 0.0003 | BT97: 0.0003 | BU97: 0.0003 | BV97: 0.0003 | BW97: 0.0003 | BX97: 0.0003 | BY97: 0.0003 | BZ97: 0.0003 | CA97: 0.0003 | CB97: 0.0004 | CC97: 0.0004 | CD97: 0.0004 | CE97: 0.0004 | CF97: 0.0004 | CG97: 0.0004 | CH97: 0.0004
A98: 115 | B98: 0 | C98: 0 | D98: 0 | E98: 0 | F98: 0 | G98: 0 | H98: 0 | I98: 0 | J98: 0 | K98: 0 | L98: 0 | M98: 0 | N98: 0 | O98: 0 | P98: 0 | Q98: 0 | R98: 0 | S98: 0 | T98: 0 | U98: 0 | V98: 0 | W98: 0 | X98: 0 | Y98: 0 | Z98: 0 | AA98: 0 | AB98: 0 | AC98: 0 | AD98: 0 | AE98: 0 | AF98: 0 | AG98: 0 | AH98: 0 | AI98: 0 | AJ98: 0 | AK98: 0 | AL98: 0 | AM98: 0 | AN98: 0 | AO98: 0 | AP98: 0 | AQ98: 0 | AR98: 0 | AS98: 0 | AT98: 0 | AU98: 0 | AV98: 0 | AW98: 0 | AX98: 0 | AY98: 0 | AZ98: 0 | BA98: 0 | BB98: 0 | BC98: 0 | BD98: 0 | BE98: 0 | BF98: 0 | BG98: 0 | BH98: 0 | BI98: 0 | BJ98: 0 | BK98: 0 | BL98: 0 | BM98: 0 | BN98: 0 | BO98: 0 | BP98: 0 | BQ98: 0 | BR98: 0 | BS98: 0 | BT98: 0 | BU98: 0 | BV98: 0 | BW98: 0 | BX98: 0 | BY98: 0 | BZ98: 0 | CA98: 0 | CB98: 0 | CC98: 0 | CD98: 0 | CE98: 0 | CF98: 0 | CG98: 0 | CH98: 0
A99: 116 | B99: 0 | C99: 0 | D99: 0 | E99: 0 | F99: 0 | G99: 0 | H99: 0 | I99: 0 | J99: 0 | K99: 0 | L99: 0 | M99: 0 | N99: 0 | O99: 0 | P99: 0 | Q99: 0 | R99: 0 | S99: 0 | T99: 0 | U99: 0 | V99: 0 | W99: 0 | X99: 0 | Y99: 0 | Z99: 0 | AA99: 0 | AB99: 0 | AC99: 0 | AD99: 0 | AE99: 0 | AF99: 0 | AG99: 0 | AH99: 0 | AI99: 0 | AJ99: 0 | AK99: 0 | AL99: 0 | AM99: 0 | AN99: 0 | AO99: 0 | AP99: 0 | AQ99: 0 | AR99: 0 | AS99: 0 | AT99: 0 | AU99: 0 | AV99: 0 | AW99: 0 | AX99: 0 | AY99: 0 | AZ99: 0 | BA99: 0 | BB99: 0 | BC99: 0 | BD99: 0 | BE99: 0 | BF99: 0 | BG99: 0 | BH99: 0 | BI99: 0 | BJ99: 0 | BK99: 0 | BL99: 0 | BM99: 0 | BN99: 0 | BO99: 0 | BP99: 0 | BQ99: 0 | BR99: 0 | BS99: 0 | BT99: 0 | BU99: 0 | BV99: 0 | BW99: 0 | BX99: 0 | BY99: 0 | BZ99: 0 | CA99: 0 | CB99: 0 | CC99: 0 | CD99: 0 | CE99: 0 | CF99: 0 | CG99: 0 | CH99: 0
A100: 117 | B100: 0 | C100: 0 | D100: 0 | E100: 0 | F100: 0 | G100: 0 | H100: 0 | I100: 0 | J100: 0 | K100: 0 | L100: 0 | M100: 0 | N100: 0 | O100: 0 | P100: 0 | Q100: 0 | R100: 0 | S100: 0 | T100: 0 | U100: 0 | V100: 0 | W100: 0 | X100: 0 | Y100: 0 | Z100: 0 | AA100: 0 | AB100: 0 | AC100: 0 | AD100: 0 | AE100: 0 | AF100: 0 | AG100: 0 | AH100: 0 | AI100: 0 | AJ100: 0 | AK100: 0 | AL100: 0 | AM100: 0 | AN100: 0 | AO100: 0 | AP100: 0 | AQ100: 0 | AR100: 0 | AS100: 0 | AT100: 0 | AU100: 0 | AV100: 0 | AW100: 0 | AX100: 0 | AY100: 0 | AZ100: 0 | BA100: 0 | BB100: 0 | BC100: 0 | BD100: 0 | BE100: 0 | BF100: 0 | BG100: 0 | BH100: 0 | BI100: 0 | BJ100: 0 | BK100: 0 | BL100: 0 | BM100: 0 | BN100: 0 | BO100: 0 | BP100: 0 | BQ100: 0 | BR100: 0 | BS100: 0 | BT100: 0 | BU100: 0 | BV100: 0 | BW100: 0 | BX100: 0 | BY100: 0 | BZ100: 0 | CA100: 0 | CB100: 0 | CC100: 0 | CD100: 0 | CE100: 0 | CF100: 0 | CG100: 0 | CH100: 0
A101: 118 | B101: 0 | C101: 0 | D101: 0 | E101: 0 | F101: 0 | G101: 0 | H101: 0 | I101: 0 | J101: 0 | K101: 0 | L101: 0 | M101: 0 | N101: 0 | O101: 0 | P101: 0 | Q101: 0 | R101: 0 | S101: 0 | T101: 0 | U101: 0 | V101: 0 | W101: 0 | X101: 0 | Y101: 0 | Z101: 0 | AA101: 0 | AB101: 0 | AC101: 0 | AD101: 0 | AE101: 0 | AF101: 0 | AG101: 0 | AH101: 0 | AI101: 0 | AJ101: 0 | AK101: 0 | AL101: 0 | AM101: 0 | AN101: 0 | AO101: 0 | AP101: 0 | AQ101: 0 | AR101: 0 | AS101: 0 | AT101: 0 | AU101: 0 | AV101: 0 | AW101: 0 | AX101: 0 | AY101: 0 | AZ101: 0 | BA101: 0 | BB101: 0 | BC101: 0 | BD101: 0 | BE101: 0 | BF101: 0 | BG101: 0 | BH101: 0 | BI101: 0 | BJ101: 0 | BK101: 0 | BL101: 0 | BM101: 0 | BN101: 0 | BO101: 0 | BP101: 0 | BQ101: 0 | BR101: 0 | BS101: 0 | BT101: 0 | BU101: 0 | BV101: 0 | BW101: 0 | BX101: 0 | BY101: 0 | BZ101: 0 | CA101: 0 | CB101: 0 | CC101: 0 | CD101: 0 | CE101: 0 | CF101: 0 | CG101: 0 | CH101: 0
A102: 119 | B102: 0 | C102: 0 | D102: 0 | E102: 0 | F102: 0 | G102: 0 | H102: 0 | I102: 0 | J102: 0 | K102: 0 | L102: 0 | M102: 0 | N102: 0 | O102: 0 | P102: 0 | Q102: 0 | R102: 0 | S102: 0 | T102: 0 | U102: 0 | V102: 0 | W102: 0 | X102: 0 | Y102: 0 | Z102: 0 | AA102: 0 | AB102: 0 | AC102: 0 | AD102: 0 | AE102: 0 | AF102: 0 | AG102: 0 | AH102: 0 | AI102: 0 | AJ102: 0 | AK102: 0 | AL102: 0 | AM102: 0 | AN102: 0 | AO102: 0 | AP102: 0 | AQ102: 0 | AR102: 0 | AS102: 0 | AT102: 0 | AU102: 0 | AV102: 0 | AW102: 0 | AX102: 0 | AY102: 0 | AZ102: 0 | BA102: 0 | BB102: 0 | BC102: 0 | BD102: 0 | BE102: 0 | BF102: 0 | BG102: 0 | BH102: 0 | BI102: 0 | BJ102: 0 | BK102: 0 | BL102: 0 | BM102: 0 | BN102: 0 | BO102: 0 | BP102: 0 | BQ102: 0 | BR102: 0 | BS102: 0 | BT102: 0 | BU102: 0 | BV102: 0 | BW102: 0 | BX102: 0 | BY102: 0 | BZ102: 0 | CA102: 0 | CB102: 0 | CC102: 0 | CD102: 0 | CE102: 0 | CF102: 0 | CG102: 0 | CH102: 0
A103: 120 | B103: 0 | C103: 0 | D103: 0 | E103: 0 | F103: 0 | G103: 0 | H103: 0 | I103: 0 | J103: 0 | K103: 0 | L103: 0 | M103: 0 | N103: 0 | O103: 0 | P103: 0 | Q103: 0 | R103: 0 | S103: 0 | T103: 0 | U103: 0 | V103: 0 | W103: 0 | X103: 0 | Y103: 0 | Z103: 0 | AA103: 0 | AB103: 0 | AC103: 0 | AD103: 0 | AE103: 0 | AF103: 0 | AG103: 0 | AH103: 0 | AI103: 0 | AJ103: 0 | AK103: 0 | AL103: 0 | AM103: 0 | AN103: 0 | AO103: 0 | AP103: 0 | AQ103: 0 | AR103: 0 | AS103: 0 | AT103: 0 | AU103: 0 | AV103: 0 | AW103: 0 | AX103: 0 | AY103: 0 | AZ103: 0 | BA103: 0 | BB103: 0 | BC103: 0 | BD103: 0 | BE103: 0 | BF103: 0 | BG103: 0 | BH103: 0 | BI103: 0 | BJ103: 0 | BK103: 0 | BL103: 0 | BM103: 0 | BN103: 0 | BO103: 0 | BP103: 0 | BQ103: 0 | BR103: 0 | BS103: 0 | BT103: 0 | BU103: 0 | BV103: 0 | BW103: 0 | BX103: 0 | BY103: 0 | BZ103: 0 | CA103: 0 | CB103: 0 | CC103: 0 | CD103: 0 | CE103: 0 | CF103: 0 | CG103: 0 | CH103: 0

Sheet Female
A1: MP-2019 - Female
B2: 1951 | C2: 1952 | D2: 1953 | E2: 1954 | F2: 1955 | G2: 1956 | H2: 1957 | I2: 1958 | J2: 1959 | K2: 1960 | L2: 1961 | M2: 1962 | N2: 1963 | O2: 1964 | P2: 1965 | Q2: 1966 | R2: 1967 | S2: 1968 | T2: 1969 | U2: 1970 | V2: 1971 | W2: 1972 | X2: 1973 | Y2: 1974 | Z2: 1975 | AA2: 1976 | AB2: 1977 | AC2: 1978 | AD2: 1979 | AE2: 1980 | AF2: 1981 | AG2: 1982 | AH2: 1983 | AI2: 1984 | AJ2: 1985 | AK2: 1986 | AL2: 1987 | AM2: 1988 | AN2: 1989 | AO2: 1990 | AP2: 1991 | AQ2: 1992 | AR2: 1993 | AS2: 1994 | AT2: 1995 | AU2: 1996 | AV2: 1997 | AW2: 1998 | AX2: 1999 | AY2: 2000 | AZ2: 2001 | BA2: 2002 | BB2: 2003 | BC2: 2004 | BD2: 2005 | BE2: 2006 | BF2: 2007 | BG2: 2008 | BH2: =BG2+1 -> 2009 | BI2: 2010 | BJ2: 2011 | BK2: 2012 | BL2: 2013 | BM2: 2014 | BN2: 2015 | BO2: 2016 | BP2: 2017 | BQ2: 2018 | BR2: 2019 | BS2: 2020 | BT2: 2021 | BU2: 2022 | BV2: 2023 | BW2: 2024 | BX2: 2025 | BY2: 2026 | BZ2: 2027 | CA2: 2028 | CB2: 2029 | CC2: 2030 | CD2: 2031 | CE2: 2032 | CF2: 2033 | CG2: 2034 | CH2: 2035+
A3: ≤ 20 | B3: 0.0667 | C3: 0.0602 | D3: 0.0537 | E3: 0.0468 | F3: 0.0398 | G3: 0.0331 | H3: 0.0269 | I3: 0.0209 | J3: 0.0149 | K3: 0.0088 | L3: 0.0026 | M3: -0.0035 | N3: -0.0089 | O3: -0.0132 | P3: -0.0161 | Q3: -0.0173 | R3: -0.0165 | S3: -0.0135 | T3: -0.0084 | U3: -0.0019 | V3: 0.0051 | W3: 0.0116 | X3: 0.0167 | Y3: 0.0199 | Z3: 0.021 | AA3: 0.0209 | AB3: 0.0207 | AC3: 0.0214 | AD3: 0.0231 | AE3: 0.0247 | AF3: 0.0252 | AG3: 0.0237 | AH3: 0.02 | AI3: 0.0152 | AJ3: 0.0105 | AK3: 0.007 | AL3: 0.0054 | AM3: 0.0057 | AN3: 0.0073 | AO3: 0.0095 | AP3: 0.0117 | AQ3: 0.0136 | AR3: 0.0148 | AS3: 0.0154 | AT3: 0.0153 | AU3: 0.0142 | AV3: 0.012 | AW3: 0.0088 | AX3: 0.0051 | AY3: 0.0017 | AZ3: -0.0007 | BA3: -0.0012 | BB3: 0.0008 | BC3: 0.0053 | BD3: 0.0116 | BE3: 0.0186 | BF3: 0.025 | BG3: 0.0294 | BH3: 0.0307 | BI3: 0.0283 | BJ3: 0.0224 | BK3: 0.0133 | BL3: 0.0018 | BM3: -0.0114 | BN3: -0.0253 | BO3: -0.0247 | BP3: -0.023 | BQ3: -0.0204 | BR3: -0.0173 | BS3: -0.0137 | BT3: -0.0101 | BU3: -0.0065 | BV3: -0.0033 | BW3: -0.0006 | BX3: 0.0012 | BY3: 0.0025 | BZ3: 0.0038 | CA3: 0.005 | CB3: 0.0062 | CC3: 0.0072 | CD3: 0.0082 | CE3: 0.0089 | CF3: 0.0095 | CG3: 0.0099 | CH3: 0.01
A4: 21 | B4: 0.0691 | C4: 0.0618 | D4: 0.0544 | E4: 0.0468 | F4: 0.0393 | G4: 0.0322 | H4: 0.0256 | I4: 0.0196 | J4: 0.0137 | K4: 0.008 | L4: 0.0023 | M4: -0.003 | N4: -0.0075 | O4: -0.0111 | P4: -0.0134 | Q4: -0.0143 | R4: -0.0135 | S4: -0.0107 | T4: -0.0061 | U4: -0.0002 | V4: 0.0063 | W4: 0.0123 | X4: 0.0171 | Y4: 0.0201 | Z4: 0.0212 | AA4: 0.0212 | AB4: 0.0209 | AC4: 0.0215 | AD4: 0.0229 | AE4: 0.0243 | AF4: 0.0248 | AG4: 0.0234 | AH4: 0.0202 | AI4: 0.0157 | AJ4: 0.0111 | AK4: 0.0076 | AL4: 0.0058 | AM4: 0.0059 | AN4: 0.0073 | AO4: 0.0094 | AP4: 0.0116 | AQ4: 0.0136 | AR4: 0.0151 | AS4: 0.016 | AT4: 0.0161 | AU4: 0.0149 | AV4: 0.0123 | AW4: 0.0086 | AX4: 0.0043 | AY4: 0.0002 | AZ4: -0.0028 | BA4: -0.004 | BB4: -0.0027 | BC4: 0.001 | BD4: 0.0065 | BE4: 0.0128 | BF4: 0.0188 | BG4: 0.0231 | BH4: 0.0246 | BI4: 0.0228 | BJ4: 0.0177 | BK4: 0.0095 | BL4: -0.0012 | BM4: -0.0137 | BN4: -0.0273 | BO4: -0.0256 | BP4: -0.0239 | BQ4: -0.0212 | BR4: -0.0179 | BS4: -0.0142 | BT4: -0.0104 | BU4: -0.0067 | BV4: -0.0034 | BW4: -0.0007 | BX4: 0.0012 | BY4: 0.0025 | BZ4: 0.0038 | CA4: 0.005 | CB4: 0.0062 | CC4: 0.0072 | CD4: 0.0082 | CE4: 0.0089 | CF4: 0.0095 | CG4: 0.0099 | CH4: 0.01
A5: 22 | B5: 0.071 | C5: 0.0631 | D5: 0.0551 | E5: 0.0468 | F5: 0.0388 | G5: 0.0312 | H5: 0.0244 | I5: 0.0182 | J5: 0.0125 | K5: 0.0072 | L5: 0.0022 | M5: -0.0023 | N5: -0.006 | O5: -0.0088 | P5: -0.0105 | Q5: -0.0112 | R5: -0.0103 | S5: -0.0079 | T5: -0.0037 | U5: 0.0018 | V5: 0.0078 | W5: 0.0135 | X5: 0.0181 | Y5: 0.0209 | Z5: 0.022 | AA5: 0.0219 | AB5: 0.0215 | AC5: 0.0216 | AD5: 0.0226 | AE5: 0.0237 | AF5: 0.0241 | AG5: 0.0228 | AH5: 0.0197 | AI5: 0.0154 | AJ5: 0.0109 | AK5: 0.0073 | AL5: 0.0054 | AM5: 0.0053 | AN5: 0.0067 | AO5: 0.0088 | AP5: 0.0111 | AQ5: 0.0134 | AR5: 0.0153 | AS5: 0.0167 | AT5: 0.0172 | AU5: 0.0161 | AV5: 0.0135 | AW5: 0.0094 | AX5: 0.0044 | AY5: -0.0004 | AZ5: -0.0041 | BA5: -0.0061 | BB5: -0.0056 | BC5: -0.0026 | BD5: 0.002 | BE5: 0.0076 | BF5: 0.0131 | BG5: 0.0172 | BH5: 0.0189 | BI5: 0.0176 | BJ5: 0.0131 | BK5: 0.0057 | BL5: -0.0042 | BM5: -0.0162 | BN5: -0.0293 | BO5: -0.0276 | BP5: -0.0248 | BQ5: -0.022 | BR5: -0.0186 | BS5: -0.0147 | BT5: -0.0108 | BU5: -0.0069 | BV5: -0.0035 | BW5: -0.0007 | BX5: 0.0012 | BY5: 0.0025 | BZ5: 0.0038 | CA5: 0.005 | CB5: 0.0062 | CC5: 0.0072 | CD5: 0.0082 | CE5: 0.0089 | CF5: 0.0095 | CG5: 0.0099 | CH5: 0.01
A6: 23 | B6: 0.0724 | C6: 0.0641 | D6: 0.0556 | E6: 0.0469 | F6: 0.0383 | G6: 0.0303 | H6: 0.0232 | I6: 0.0169 | J6: 0.0113 | K6: 0.0064 | L6: 0.0021 | M6: -0.0016 | N6: -0.0045 | O6: -0.0065 | P6: -0.0077 | Q6: -0.0081 | R6: -0.0073 | S6: -0.005 | T6: -0.0012 | U6: 0.0039 | V6: 0.0096 | W6: 0.0151 | X6: 0.0194 | Y6: 0.0222 | Z6: 0.0232 | AA6: 0.0229 | AB6: 0.0222 | AC6: 0.022 | AD6: 0.0225 | AE6: 0.0231 | AF6: 0.0232 | AG6: 0.0218 | AH6: 0.0188 | AI6: 0.0145 | AJ6: 0.0099 | AK6: 0.0061 | AL6: 0.004 | AM6: 0.0039 | AN6: 0.0054 | AO6: 0.0077 | AP6: 0.0103 | AQ6: 0.013 | AR6: 0.0154 | AS6: 0.0174 | AT6: 0.0184 | AU6: 0.0178 | AV6: 0.0153 | AW6: 0.011 | AX6: 0.0055 | AY6: 0 | AZ6: -0.0046 | BA6: -0.0073 | BB6: -0.0076 | BC6: -0.0056 | BD6: -0.0019 | BE6: 0.003 | BF6: 0.008 | BG6: 0.0119 | BH6: 0.0137 | BI6: 0.0128 | BJ6: 0.0089 | BK6: 0.0021 | BL6: -0.0073 | BM6: -0.0187 | BN6: -0.0315 | BO6: -0.0297 | BP6: -0.0267 | BQ6: -0.0229 | BR6: -0.0193 | BS6: -0.0153 | BT6: -0.0112 | BU6: -0.0072 | BV6: -0.0036 | BW6: -0.0007 | BX6: 0.0012 | BY6: 0.0025 | BZ6: 0.0038 | CA6: 0.005 | CB6: 0.0062 | CC6: 0.0072 | CD6: 0.0082 | CE6: 0.0089 | CF6: 0.0095 | CG6: 0.0099 | CH6: 0.01
A7: 24 | B7: 0.0732 | C7: 0.0646 | D7: 0.0559 | E7: 0.0468 | F7: 0.0378 | G7: 0.0294 | H7: 0.022 | I7: 0.0156 | J7: 0.0102 | K7: 0.0057 | L7: 0.002 | M7: -0.0009 | N7: -0.003 | O7: -0.0044 | P7: -0.0051 | Q7: -0.0052 | R7: -0.0044 | S7: -0.0023 | T7: 0.0013 | U7: 0.0062 | V7: 0.0117 | W7: 0.017 | X7: 0.0212 | Y7: 0.0239 | Z7: 0.0248 | AA7: 0.0244 | AB7: 0.0234 | AC7: 0.0226 | AD7: 0.0224 | AE7: 0.0225 | AF7: 0.0221 | AG7: 0.0205 | AH7: 0.0174 | AI7: 0.0129 | AJ7: 0.0081 | AK7: 0.0041 | AL7: 0.0019 | AM7: 0.0019 | AN7: 0.0036 | AO7: 0.0063 | AP7: 0.0093 | AQ7: 0.0123 | AR7: 0.0153 | AS7: 0.0179 | AT7: 0.0197 | AU7: 0.0198 | AV7: 0.0176 | AW7: 0.0133 | AX7: 0.0074 | AY7: 0.0011 | AZ7: -0.0042 | BA7: -0.0076 | BB7: -0.0088 | BC7: -0.0077 | BD7: -0.0049 | BE7: -0.0009 | BF7: 0.0036 | BG7: 0.0072 | BH7: 0.0091 | BI7: 0.0086 | BJ7: 0.0051 | BK7: -0.0012 | BL7: -0.0102 | BM7: -0.0213 | BN7: -0.0338 | BO7: -0.0319 | BP7: -0.0287 | BQ7: -0.0247 | BR7: -0.02 | BS7: -0.0159 | BT7: -0.0116 | BU7: -0.0074 | BV7: -0.0037 | BW7: -0.0008 | BX7: 0.0012 | BY7: 0.0025 | BZ7: 0.0038 | CA7: 0.005 | CB7: 0.0062 | CC7: 0.0072 | CD7: 0.0082 | CE7: 0.0089 | CF7: 0.0095 | CG7: 0.0099 | CH7: 0.01
A8: 25 | B8: 0.0735 | C8: 0.0648 | D8: 0.0559 | E8: 0.0466 | F8: 0.0373 | G8: 0.0285 | H8: 0.0208 | I8: 0.0143 | J8: 0.0091 | K8: 0.005 | L8: 0.0019 | M8: -0.0004 | N8: -0.0018 | O8: -0.0026 | P8: -0.0029 | Q8: -0.0028 | R8: -0.0018 | S8: 0.0003 | T8: 0.0037 | U8: 0.0084 | V8: 0.0138 | W8: 0.0191 | X8: 0.0233 | Y8: 0.026 | Z8: 0.0268 | AA8: 0.0262 | AB8: 0.0248 | AC8: 0.0234 | AD8: 0.0226 | AE8: 0.022 | AF8: 0.021 | AG8: 0.019 | AH8: 0.0155 | AI8: 0.0108 | AJ8: 0.0057 | AK8: 0.0014 | AL8: -0.0008 | AM8: -0.0006 | AN8: 0.0015 | AO8: 0.0045 | AP8: 0.0079 | AQ8: 0.0114 | AR8: 0.0149 | AS8: 0.0183 | AT8: 0.0209 | AU8: 0.0218 | AV8: 0.0202 | AW8: 0.016 | AX8: 0.0098 | AY8: 0.003 | AZ8: -0.003 | BA8: -0.0072 | BB8: -0.0092 | BC8: -0.009 | BD8: -0.007 | BE8: -0.0038 | BF8: 0 | BG8: 0.0034 | BH8: 0.0053 | BI8: 0.0049 | BJ8: 0.0018 | BK8: -0.0043 | BL8: -0.013 | BM8: -0.0239 | BN8: -0.0361 | BO8: -0.0342 | BP8: -0.0309 | BQ8: -0.0266 | BR8: -0.0216 | BS8: -0.0164 | BT8: -0.012 | BU8: -0.0077 | BV8: -0.0038 | BW8: -0.0008 | BX8: 0.0012 | BY8: 0.0025 | BZ8: 0.0038 | CA8: 0.005 | CB8: 0.0062 | CC8: 0.0072 | CD8: 0.0082 | CE8: 0.0089 | CF8: 0.0095 | CG8: 0.0099 | CH8: 0.01
A9: 26 | B9: 0.0732 | C9: 0.0645 | D9: 0.0555 | E9: 0.0461 | F9: 0.0366 | G9: 0.0275 | H9: 0.0196 | I9: 0.0132 | J9: 0.0082 | K9: 0.0044 | L9: 0.0018 | M9: 0 | N9: -0.0009 | O9: -0.0012 | P9: -0.0012 | Q9: -0.0008 | R9: 0.0004 | S9: 0.0025 | T9: 0.006 | U9: 0.0106 | V9: 0.016 | W9: 0.0213 | X9: 0.0256 | Y9: 0.0283 | Z9: 0.0292 | AA9: 0.0284 | AB9: 0.0266 | AC9: 0.0247 | AD9: 0.0231 | AE9: 0.0216 | AF9: 0.02 | AG9: 0.0174 | AH9: 0.0134 | AI9: 0.0082 | AJ9: 0.0028 | AK9: -0.0017 | AL9: -0.0038 | AM9: -0.0034 | AN9: -0.0009 | AO9: 0.0026 | AP9: 0.0064 | AQ9: 0.0102 | AR9: 0.0142 | AS9: 0.0183 | AT9: 0.0217 | AU9: 0.0235 | AV9: 0.0227 | AW9: 0.0188 | AX9: 0.0126 | AY9: 0.0054 | AZ9: -0.0011 | BA9: -0.006 | BB9: -0.0087 | BC9: -0.0093 | BD9: -0.0082 | BE9: -0.0058 | BF9: -0.0026 | BG9: 0.0004 | BH9: 0.0021 | BI9: 0.0018 | BJ9: -0.0012 | BK9: -0.0071 | BL9: -0.0156 | BM9: -0.0263 | BN9: -0.0385 | BO9: -0.0365 | BP9: -0.033 | BQ9: -0.0285 | BR9: -0.0233 | BS9: -0.0178 | BT9: -0.0124 | BU9: -0.0079 | BV9: -0.004 | BW9: -0.0008 | BX9: 0.0012 | BY9: 0.0025 | BZ9: 0.0038 | CA9: 0.005 | CB9: 0.0062 | CC9: 0.0072 | CD9: 0.0082 | CE9: 0.0089 | CF9: 0.0095 | CG9: 0.0099 | CH9: 0.01
A10: 27 | B10: 0.0725 | C10: 0.0638 | D10: 0.0548 | E10: 0.0454 | F10: 0.0357 | G10: 0.0265 | H10: 0.0186 | I10: 0.0122 | J10: 0.0074 | K10: 0.0039 | L10: 0.0016 | M10: 0.0002 | N10: -0.0004 | O10: -0.0004 | P10: -0.0001 | Q10: 0.0007 | R10: 0.0022 | S10: 0.0045 | T10: 0.0081 | U10: 0.0128 | V10: 0.0182 | W10: 0.0236 | X10: 0.028 | Y10: 0.0308 | Z10: 0.0317 | AA10: 0.0308 | AB10: 0.0288 | AC10: 0.0263 | AD10: 0.0239 | AE10: 0.0216 | AF10: 0.0191 | AG10: 0.0157 | AH10: 0.0111 | AI10: 0.0055 | AJ10: -0.0003 | AK10: -0.0048 | AL10: -0.0069 | AM10: -0.0062 | AN10: -0.0034 | AO10: 0.0005 | AP10: 0.0046 | AQ10: 0.0088 | AR10: 0.0132 | AS10: 0.0178 | AT10: 0.0221 | AU10: 0.0248 | AV10: 0.0247 | AW10: 0.0214 | AX10: 0.0154 | AY10: 0.0081 | AZ10: 0.0012 | BA10: -0.0041 | BB10: -0.0075 | BC10: -0.0089 | BD10: -0.0085 | BE10: -0.0068 | BF10: -0.0042 | BG10: -0.0018 | BH10: -0.0003 | BI10: -0.0007 | BJ10: -0.0038 | BK10: -0.0096 | BL10: -0.018 | BM10: -0.0286 | BN10: -0.0407 | BO10: -0.0387 | BP10: -0.0352 | BQ10: -0.0305 | BR10: -0.025 | BS10: -0.0193 | BT10: -0.0135 | BU10: -0.0082 | BV10: -0.0041 | BW10: -0.0009 | BX10: 0.0012 | BY10: 0.0025 | BZ10: 0.0038 | CA10: 0.005 | CB10: 0.0062 | CC10: 0.0072 | CD10: 0.0082 | CE10: 0.0089 | CF10: 0.0095 | CG10: 0.0099 | CH10: 0.01
A11: 28 | B11: 0.0715 | C11: 0.0628 | D11: 0.0538 | E11: 0.0443 | F11: 0.0347 | G11: 0.0255 | H11: 0.0176 | I11: 0.0114 | J11: 0.0068 | K11: 0.0036 | L11: 0.0014 | M11: 0.0002 | N11: -0.0003 | O11: -0.0002 | P11: 0.0005 | Q11: 0.0016 | R11: 0.0035 | S11: 0.0062 | T11: 0.0099 | U11: 0.0147 | V11: 0.0202 | W11: 0.0257 | X11: 0.0303 | Y11: 0.0333 | Z11: 0.0344 | AA11: 0.0335 | AB11: 0.0312 | AC11: 0.0282 | AD11: 0.0251 | AE11: 0.0219 | AF11: 0.0184 | AG11: 0.0142 | AH11: 0.0089 | AI11: 0.0027 | AJ11: -0.0033 | AK11: -0.0078 | AL11: -0.0097 | AM11: -0.0088 | AN11: -0.0058 | AO11: -0.0018 | AP11: 0.0026 | AQ11: 0.007 | AR11: 0.0118 | AS11: 0.017 | AT11: 0.022 | AU11: 0.0255 | AV11: 0.0262 | AW11: 0.0235 | AX11: 0.0179 | AY11: 0.0108 | AZ11: 0.0039 | BA11: -0.0018 | BB11: -0.0056 | BC11: -0.0076 | BD11: -0.0078 | BE11: -0.0068 | BF11: -0.0049 | BG11: -0.003 | BH11: -0.0021 | BI11: -0.0028 | BJ11: -0.0059 | BK11: -0.0117 | BL11: -0.0201 | BM11: -0.0307 | BN11: -0.0428 | BO11: -0.0409 | BP11: -0.0372 | BQ11: -0.0324 | BR11: -0.0267 | BS11: -0.0207 | BT11: -0.0147 | BU11: -0.0091 | BV11: -0.0042 | BW11: -0.0009 | BX11: 0.0012 | BY11: 0.0025 | BZ11: 0.0038 | CA11: 0.005 | CB11: 0.0062 | CC11: 0.0072 | CD11: 0.0082 | CE11: 0.0089 | CF11: 0.0095 | CG11: 0.0099 | CH11: 0.01
A12: 29 | B12: 0.0701 | C12: 0.0614 | D12: 0.0525 | E12: 0.0431 | F12: 0.0335 | G12: 0.0245 | H12: 0.0168 | I12: 0.0108 | J12: 0.0064 | K12: 0.0033 | L12: 0.0012 | M12: -0.0001 | N12: -0.0006 | O12: -0.0004 | P12: 0.0005 | Q12: 0.0021 | R12: 0.0044 | S12: 0.0074 | T12: 0.0115 | U12: 0.0165 | V12: 0.0221 | W12: 0.0277 | X12: 0.0325 | Y12: 0.0357 | Z12: 0.037 | AA12: 0.0361 | AB12: 0.0337 | AC12: 0.0303 | AD12: 0.0265 | AE12: 0.0225 | AF12: 0.0181 | AG12: 0.013 | AH12: 0.0069 | AI12: 0.0003 | AJ12: -0.0058 | AK12: -0.0103 | AL12: -0.0121 | AM12: -0.0111 | AN12: -0.0081 | AO12: -0.004 | AP12: 0.0004 | AQ12: 0.005 | AR12: 0.01 | AS12: 0.0156 | AT12: 0.0212 | AU12: 0.0254 | AV12: 0.0269 | AW12: 0.0249 | AX12: 0.02 | AY12: 0.0133 | AZ12: 0.0065 | BA12: 0.0009 | BB12: -0.0032 | BC12: -0.0056 | BD12: -0.0064 | BE12: -0.0059 | BF12: -0.0046 | BG12: -0.0035 | BH12: -0.0031 | BI12: -0.0042 | BJ12: -0.0075 | BK12: -0.0134 | BL12: -0.0218 | BM12: -0.0325 | BN12: -0.0446 | BO12: -0.0428 | BP12: -0.0391 | BQ12: -0.0342 | BR12: -0.0284 | BS12: -0.0221 | BT12: -0.0159 | BU12: -0.01 | BV12: -0.0049 | BW12: -0.0009 | BX12: 0.0012 | BY12: 0.0025 | BZ12: 0.0038 | CA12: 0.005 | CB12: 0.0062 | CC12: 0.0072 | CD12: 0.0082 | CE12: 0.0089 | CF12: 0.0095 | CG12: 0.0099 | CH12: 0.01
A13: 30 | B13: 0.0684 | C13: 0.0598 | D13: 0.051 | E13: 0.0418 | F13: 0.0324 | G13: 0.0236 | H13: 0.0162 | I13: 0.0104 | J13: 0.0061 | K13: 0.003 | L13: 0.0008 | M13: -0.0006 | N13: -0.0012 | O13: -0.001 | P13: 0.0001 | Q13: 0.0021 | R13: 0.0048 | S13: 0.0082 | T13: 0.0126 | U13: 0.0179 | V13: 0.0236 | W13: 0.0295 | X13: 0.0345 | Y13: 0.038 | Z13: 0.0394 | AA13: 0.0387 | AB13: 0.0362 | AC13: 0.0325 | AD13: 0.0282 | AE13: 0.0234 | AF13: 0.0182 | AG13: 0.0123 | AH13: 0.0056 | AI13: -0.0015 | AJ13: -0.0077 | AK13: -0.0121 | AL13: -0.0138 | AM13: -0.013 | AN13: -0.0101 | AO13: -0.0062 | AP13: -0.0018 | AQ13: 0.0028 | AR13: 0.008 | AS13: 0.0138 | AT13: 0.0198 | AU13: 0.0247 | AV13: 0.0268 | AW13: 0.0255 | AX13: 0.0213 | AY13: 0.0153 | AZ13: 0.009 | BA13: 0.0035 | BB13: -0.0005 | BC13: -0.0031 | BD13: -0.0041 | BE13: -0.0041 | BF13: -0.0035 | BG13: -0.0031 | BH13: -0.0034 | BI13: -0.0051 | BJ13: -0.0087 | BK13: -0.0146 | BL13: -0.0231 | BM13: -0.0338 | BN13: -0.046 | BO13: -0.0443 | BP13: -0.0408 | BQ13: -0.0358 | BR13: -0.0299 | BS13: -0.0235 | BT13: -0.017 | BU13: -0.011 | BV13: -0.0057 | BW13: -0.0015 | BX13: 0.0012 | BY13: 0.0025 | BZ13: 0.0038 | CA13: 0.005 | CB13: 0.0062 | CC13: 0.0072 | CD13: 0.0082 | CE13: 0.0089 | CF13: 0.0095 | CG13: 0.0099 | CH13: 0.01
A14: 31 | B14: 0.0665 | C14: 0.0581 | D14: 0.0494 | E14: 0.0405 | F14: 0.0314 | G14: 0.0229 | H14: 0.0157 | I14: 0.0101 | J14: 0.0059 | K14: 0.0028 | L14: 0.0004 | M14: -0.0012 | N14: -0.002 | O14: -0.0019 | P14: -0.0006 | Q14: 0.0017 | R14: 0.0048 | S14: 0.0086 | T14: 0.0134 | U14: 0.0189 | V14: 0.0249 | W14: 0.0309 | X14: 0.0362 | Y14: 0.04 | Z14: 0.0417 | AA14: 0.0411 | AB14: 0.0386 | AC14: 0.0347 | AD14: 0.0299 | AE14: 0.0246 | AF14: 0.0187 | AG14: 0.0122 | AH14: 0.0049 | AI14: -0.0024 | AJ14: -0.0087 | AK14: -0.0131 | AL14: -0.0149 | AM14: -0.0143 | AN14: -0.0118 | AO14: -0.0082 | AP14: -0.0041 | AQ14: 0.0005 | AR14: 0.0057 | AS14: 0.0117 | AT14: 0.018 | AU14: 0.0232 | AV14: 0.0259 | AW14: 0.0252 | AX14: 0.0218 | AY14: 0.0165 | AZ14: 0.0109 | BA14: 0.006 | BB14: 0.0023 | BC14: -0.0001 | BD14: -0.0013 | BE14: -0.0016 | BF14: -0.0016 | BG14: -0.0019 | BH14: -0.003 | BI14: -0.0053 | BJ14: -0.0093 | BK14: -0.0154 | BL14: -0.0239 | BM14: -0.0347 | BN14: -0.0468 | BO14: -0.0454 | BP14: -0.042 | BQ14: -0.0371 | BR14: -0.0311 | BS14: -0.0246 | BT14: -0.0181 | BU14: -0.0119 | BV14: -0.0064 | BW14: -0.0021 | BX14: 0.0007 | BY14: 0.0025 | BZ14: 0.0038 | CA14: 0.005 | CB14: 0.0062 | CC14: 0.0072 | CD14: 0.0082 | CE14: 0.0089 | CF14: 0.0095 | CG14: 0.0099 | CH14: 0.01
A15: 32 | B15: 0.0644 | C15: 0.0562 | D15: 0.0479 | E15: 0.0393 | F15: 0.0306 | G15: 0.0225 | H15: 0.0155 | I15: 0.01 | J15: 0.0058 | K15: 0.0025 | L15: -0.0001 | M15: -0.0019 | N15: -0.0029 | O15: -0.0028 | P15: -0.0014 | Q15: 0.001 | R15: 0.0044 | S15: 0.0086 | T15: 0.0136 | U15: 0.0195 | V15: 0.0258 | W15: 0.0321 | X15: 0.0376 | Y15: 0.0416 | Z15: 0.0435 | AA15: 0.043 | AB15: 0.0406 | AC15: 0.0366 | AD15: 0.0316 | AE15: 0.0259 | AF15: 0.0197 | AG15: 0.0127 | AH15: 0.0052 | AI15: -0.0023 | AJ15: -0.0087 | AK15: -0.0132 | AL15: -0.0152 | AM15: -0.0149 | AN15: -0.013 | AO15: -0.0099 | AP15: -0.0062 | AQ15: -0.0019 | AR15: 0.0031 | AS15: 0.0092 | AT15: 0.0156 | AU15: 0.0211 | AV15: 0.0242 | AW15: 0.0241 | AX15: 0.0214 | AY15: 0.017 | AZ15: 0.0122 | BA15: 0.0081 | BB15: 0.005 | BC15: 0.003 | BD15: 0.0018 | BE15: 0.0014 | BF15: 0.0009 | BG15: 0 | BH15: -0.0018 | BI15: -0.0048 | BJ15: -0.0093 | BK15: -0.0157 | BL15: -0.0243 | BM15: -0.035 | BN15: -0.0469 | BO15: -0.0458 | BP15: -0.0427 | BQ15: -0.0379 | BR15: -0.0321 | BS15: -0.0256 | BT15: -0.019 | BU15: -0.0127 | BV15: -0.0072 | BW15: -0.0027 | BX15: 0.0002 | BY15: 0.0021 | BZ15: 0.0038 | CA15: 0.005 | CB15: 0.0062 | CC15: 0.0072 | CD15: 0.0082 | CE15: 0.0089 | CF15: 0.0095 | CG15: 0.0099 | CH15: 0.01
A16: 33 | B16: 0.062 | C16: 0.0543 | D16: 0.0465 | E16: 0.0383 | F16: 0.0301 | G16: 0.0223 | H16: 0.0156 | I16: 0.0101 | J16: 0.0058 | K16: 0.0022 | L16: -0.0006 | M16: -0.0027 | N16: -0.0038 | O16: -0.0037 | P16: -0.0023 | Q16: 0.0002 | R16: 0.0037 | S16: 0.0081 | T16: 0.0135 | U16: 0.0197 | V16: 0.0263 | W16: 0.0328 | X16: 0.0386 | Y16: 0.0428 | Z16: 0.0448 | AA16: 0.0446 | AB16: 0.0422 | AC16: 0.0382 | AD16: 0.0332 | AE16: 0.0274 | AF16: 0.021 | AG16: 0.0139 | AH16: 0.0063 | AI16: -0.0012 | AJ16: -0.0077 | AK16: -0.0123 | AL16: -0.0147 | AM16: -0.015 | AN16: -0.0136 | AO16: -0.0113 | AP16: -0.0082 | AQ16: -0.0043 | AR16: 0.0006 | AS16: 0.0065 | AT16: 0.0129 | AU16: 0.0185 | AV16: 0.0218 | AW16: 0.0221 | AX16: 0.02 | AY16: 0.0165 | AZ16: 0.0128 | BA16: 0.0096 | BB16: 0.0074 | BC16: 0.006 | BD16: 0.0052 | BE16: 0.0046 | BF16: 0.0039 | BG16: 0.0024 | BH16: 0 | BI16: -0.0036 | BJ16: -0.0087 | BK16: -0.0154 | BL16: -0.0242 | BM16: -0.0346 | BN16: -0.0462 | BO16: -0.0455 | BP16: -0.0428 | BQ16: -0.0383 | BR16: -0.0327 | BS16: -0.0263 | BT16: -0.0198 | BU16: -0.0135 | BV16: -0.0079 | BW16: -0.0034 | BX16: -0.0004 | BY16: 0.0016 | BZ16: 0.0034 | CA16: 0.005 | CB16: 0.0062 | CC16: 0.0072 | CD16: 0.0082 | CE16: 0.0089 | CF16: 0.0095 | CG16: 0.0099 | CH16: 0.01
A17: 34 | B17: 0.0596 | C17: 0.0525 | D17: 0.0451 | E17: 0.0375 | F17: 0.0298 | G17: 0.0224 | H17: 0.0158 | I17: 0.0104 | J17: 0.0058 | K17: 0.002 | L17: -0.0011 | M17: -0.0034 | N17: -0.0046 | O17: -0.0045 | P17: -0.0032 | Q17: -0.0007 | R17: 0.0028 | S17: 0.0074 | T17: 0.013 | U17: 0.0195 | V17: 0.0264 | W17: 0.0331 | X17: 0.0391 | Y17: 0.0435 | Z17: 0.0457 | AA17: 0.0456 | AB17: 0.0434 | AC17: 0.0395 | AD17: 0.0346 | AE17: 0.0289 | AF17: 0.0226 | AG17: 0.0156 | AH17: 0.0081 | AI17: 0.0007 | AJ17: -0.0058 | AK17: -0.0106 | AL17: -0.0134 | AM17: -0.0143 | AN17: -0.0137 | AO17: -0.0121 | AP17: -0.0097 | AQ17: -0.0064 | AR17: -0.002 | AS17: 0.0037 | AT17: 0.01 | AU17: 0.0155 | AV17: 0.0188 | AW17: 0.0194 | AX17: 0.0179 | AY17: 0.0152 | AZ17: 0.0125 | BA17: 0.0105 | BB17: 0.0093 | BC17: 0.0087 | BD17: 0.0084 | BE17: 0.008 | BF17: 0.0071 | BG17: 0.0053 | BH17: 0.0023 | BI17: -0.0018 | BJ17: -0.0074 | BK17: -0.0145 | BL17: -0.0234 | BM17: -0.0336 | BN17: -0.0447 | BO17: -0.0444 | BP17: -0.0421 | BQ17: -0.0381 | BR17: -0.0328 | BS17: -0.0267 | BT17: -0.0203 | BU17: -0.0141 | BV17: -0.0085 | BW17: -0.004 | BX17: -0.001 | BY17: 0.0012 | BZ17: 0.0031 | CA17: 0.0047 | CB17: 0.0062 | CC17: 0.0072 | CD17: 0.0082 | CE17: 0.0089 | CF17: 0.0095 | CG17: 0.0099 | CH17: 0.01
A18: 35 | B18: 0.0572 | C18: 0.0506 | D18: 0.0439 | E18: 0.0369 | F18: 0.0296 | G18: 0.0226 | H18: 0.0162 | I18: 0.0107 | J18: 0.0059 | K18: 0.0018 | L18: -0.0015 | M18: -0.0039 | N18: -0.0052 | O18: -0.0052 | P18: -0.004 | Q18: -0.0016 | R18: 0.0018 | S18: 0.0064 | T18: 0.0122 | U18: 0.0189 | V18: 0.026 | W18: 0.033 | X18: 0.0391 | Y18: 0.0437 | Z18: 0.046 | AA18: 0.0461 | AB18: 0.0441 | AC18: 0.0405 | AD18: 0.0358 | AE18: 0.0304 | AF18: 0.0243 | AG18: 0.0177 | AH18: 0.0105 | AI18: 0.0033 | AJ18: -0.0031 | AK18: -0.0081 | AL18: -0.0114 | AM18: -0.0128 | AN18: -0.013 | AO18: -0.0123 | AP18: -0.0108 | AQ18: -0.0082 | AR18: -0.0042 | AS18: 0.0011 | AT18: 0.007 | AU18: 0.0123 | AV18: 0.0155 | AW18: 0.0162 | AX18: 0.0151 | AY18: 0.0132 | AZ18: 0.0115 | BA18: 0.0106 | BB18: 0.0106 | BC18: 0.011 | BD18: 0.0112 | BE18: 0.0112 | BF18: 0.0104 | BG18: 0.0084 | BH18: 0.0051 | BI18: 0.0005 | BJ18: -0.0056 | BK18: -0.013 | BL18: -0.0219 | BM18: -0.0319 | BN18: -0.0424 | BO18: -0.0426 | BP18: -0.0408 | BQ18: -0.0372 | BR18: -0.0324 | BS18: -0.0267 | BT18: -0.0206 | BU18: -0.0146 | BV18: -0.0092 | BW18: -0.0047 | BX18: -0.0015 | BY18: 0.0007 | BZ18: 0.0027 | CA18: 0.0045 | CB18: 0.006 | CC18: 0.0072 | CD18: 0.0082 | CE18: 0.0089 | CF18: 0.0095 | CG18: 0.0099 | CH18: 0.01
A19: 36 | B19: 0.0548 | C19: 0.0489 | D19: 0.0428 | E19: 0.0363 | F19: 0.0296 | G19: 0.0229 | H19: 0.0167 | I19: 0.0111 | J19: 0.0062 | K19: 0.0018 | L19: -0.0017 | M19: -0.0043 | N19: -0.0056 | O19: -0.0057 | P19: -0.0046 | Q19: -0.0025 | R19: 0.0007 | S19: 0.0053 | T19: 0.0111 | U19: 0.018 | V19: 0.0253 | W19: 0.0324 | X19: 0.0387 | Y19: 0.0433 | Z19: 0.0458 | AA19: 0.0461 | AB19: 0.0443 | AC19: 0.0411 | AD19: 0.0368 | AE19: 0.0317 | AF19: 0.0261 | AG19: 0.0199 | AH19: 0.0131 | AI19: 0.0063 | AJ19: 0 | AK19: -0.005 | AL19: -0.0087 | AM19: -0.0107 | AN19: -0.0116 | AO19: -0.0119 | AP19: -0.0112 | AQ19: -0.0094 | AR19: -0.0061 | AS19: -0.0014 | AT19: 0.004 | AU19: 0.0089 | AV19: 0.0119 | AW19: 0.0126 | AX19: 0.0118 | AY19: 0.0105 | AZ19: 0.0097 | BA19: 0.01 | BB19: 0.0111 | BC19: 0.0125 | BD19: 0.0135 | BE19: 0.014 | BF19: 0.0134 | BG19: 0.0115 | BH19: 0.0081 | BI19: 0.0031 | BJ19: -0.0032 | BK19: -0.0109 | BL19: -0.0198 | BM19: -0.0294 | BN19: -0.0394 | BO19: -0.04 | BP19: -0.0387 | BQ19: -0.0357 | BR19: -0.0315 | BS19: -0.0263 | BT19: -0.0206 | BU19: -0.015 | BV19: -0.0097 | BW19: -0.0053 | BX19: -0.0021 | BY19: 0.0002 | BZ19: 0.0023 | CA19: 0.0041 | CB19: 0.0058 | CC19: 0.0071 | CD19: 0.0082 | CE19: 0.0089 | CF19: 0.0095 | CG19: 0.0099 | CH19: 0.01
A20: 37 | B20: 0.0526 | C20: 0.0473 | D20: 0.0418 | E20: 0.0359 | F20: 0.0296 | G20: 0.0233 | H20: 0.0172 | I20: 0.0116 | J20: 0.0065 | K20: 0.0019 | L20: -0.0018 | M20: -0.0044 | N20: -0.0058 | O20: -0.006 | P20: -0.0051 | Q20: -0.0032 | R20: -0.0002 | S20: 0.0042 | T20: 0.01 | U20: 0.0169 | V20: 0.0243 | W20: 0.0315 | X20: 0.0378 | Y20: 0.0425 | Z20: 0.0452 | AA20: 0.0457 | AB20: 0.0443 | AC20: 0.0414 | AD20: 0.0375 | AE20: 0.033 | AF20: 0.0278 | AG20: 0.022 | AH20: 0.0157 | AI20: 0.0093 | AJ20: 0.0034 | AK20: -0.0016 | AL20: -0.0055 | AM20: -0.008 | AN20: -0.0096 | AO20: -0.0107 | AP20: -0.011 | AQ20: -0.01 | AR20: -0.0075 | AS20: -0.0035 | AT20: 0.0013 | AU20: 0.0056 | AV20: 0.0082 | AW20: 0.0089 | AX20: 0.0083 | AY20: 0.0075 | AZ20: 0.0075 | BA20: 0.0087 | BB20: 0.0108 | BC20: 0.0132 | BD20: 0.0151 | BE20: 0.0162 | BF20: 0.0161 | BG20: 0.0144 | BH20: 0.0111 | BI20: 0.0061 | BJ20: -0.0004 | BK20: -0.0082 | BL20: -0.017 | BM20: -0.0263 | BN20: -0.0357 | BO20: -0.0367 | BP20: -0.036 | BQ20: -0.0336 | BR20: -0.03 | BS20: -0.0254 | BT20: -0.0203 | BU20: -0.015 | BV20: -0.0101 | BW20: -0.0058 | BX20: -0.0027 | BY20: -0.0003 | BZ20: 0.0019 | CA20: 0.0038 | CB20: 0.0055 | CC20: 0.0069 | CD20: 0.0081 | CE20: 0.0089 | CF20: 0.0095 | CG20: 0.0099 | CH20: 0.01
A21: 38 | B21: 0.0506 | C21: 0.0458 | D21: 0.0408 | E21: 0.0354 | F21: 0.0295 | G21: 0.0235 | H21: 0.0176 | I21: 0.012 | J21: 0.0068 | K21: 0.0022 | L21: -0.0016 | M21: -0.0043 | N21: -0.0058 | O21: -0.0062 | P21: -0.0055 | Q21: -0.0039 | R21: -0.001 | S21: 0.0032 | T21: 0.0089 | U21: 0.0157 | V21: 0.0231 | W21: 0.0302 | X21: 0.0365 | Y21: 0.0413 | Z21: 0.0441 | AA21: 0.0449 | AB21: 0.0438 | AC21: 0.0414 | AD21: 0.038 | AE21: 0.0339 | AF21: 0.0292 | AG21: 0.024 | AH21: 0.0182 | AI21: 0.0123 | AJ21: 0.0068 | AK21: 0.002 | AL21: -0.0019 | AM21: -0.0049 | AN21: -0.0071 | AO21: -0.0089 | AP21: -0.01 | AQ21: -0.0099 | AR21: -0.0083 | AS21: -0.0051 | AT21: -0.0011 | AU21: 0.0025 | AV21: 0.0047 | AW21: 0.0052 | AX21: 0.0047 | AY21: 0.0043 | AZ21: 0.0048 | BA21: 0.0067 | BB21: 0.0097 | BC21: 0.013 | BD21: 0.0158 | BE21: 0.0177 | BF21: 0.0182 | BG21: 0.017 | BH21: 0.0139 | BI21: 0.009 | BJ21: 0.0026 | BK21: -0.0052 | BL21: -0.0138 | BM21: -0.0227 | BN21: -0.0316 | BO21: -0.0329 | BP21: -0.0326 | BQ21: -0.0309 | BR21: -0.028 | BS21: -0.0241 | BT21: -0.0196 | BU21: -0.0149 | BV21: -0.0103 | BW21: -0.0063 | BX21: -0.0032 | BY21: -0.0008 | BZ21: 0.0015 | CA21: 0.0035 | CB21: 0.0053 | CC21: 0.0068 | CD21: 0.008 | CE21: 0.0089 | CF21: 0.0095 | CG21: 0.0099 | CH21: 0.01
A22: 39 | B22: 0.0489 | C22: 0.0444 | D22: 0.0398 | E22: 0.0348 | F22: 0.0294 | G22: 0.0236 | H22: 0.0179 | I22: 0.0124 | J22: 0.0072 | K22: 0.0026 | L22: -0.0012 | M22: -0.004 | N22: -0.0057 | O22: -0.0062 | P22: -0.0058 | Q22: -0.0043 | R22: -0.0017 | S22: 0.0024 | T22: 0.0079 | U22: 0.0145 | V22: 0.0217 | W22: 0.0288 | X22: 0.035 | Y22: 0.0398 | Z22: 0.0428 | AA22: 0.0438 | AB22: 0.0432 | AC22: 0.0412 | AD22: 0.0383 | AE22: 0.0346 | AF22: 0.0304 | AG22: 0.0256 | AH22: 0.0203 | AI22: 0.015 | AJ22: 0.01 | AK22: 0.0055 | AL22: 0.0017 | AM22: -0.0015 | AN22: -0.0042 | AO22: -0.0065 | AP22: -0.0083 | AQ22: -0.0091 | AR22: -0.0083 | AS22: -0.0061 | AT22: -0.003 | AU22: -0.0001 | AV22: 0.0016 | AW22: 0.0019 | AX22: 0.0013 | AY22: 0.001 | AZ22: 0.0018 | BA22: 0.0043 | BB22: 0.008 | BC22: 0.0121 | BD22: 0.0157 | BE22: 0.0183 | BF22: 0.0196 | BG22: 0.0189 | BH22: 0.0163 | BI22: 0.0118 | BJ22: 0.0056 | BK22: -0.0019 | BL22: -0.0102 | BM22: -0.0186 | BN22: -0.027 | BO22: -0.0286 | BP22: -0.0288 | BQ22: -0.0277 | BR22: -0.0255 | BS22: -0.0223 | BT22: -0.0185 | BU22: -0.0144 | BV22: -0.0103 | BW22: -0.0066 | BX22: -0.0037 | BY22: -0.0012 | BZ22: 0.0011 | CA22: 0.0032 | CB22: 0.005 | CC22: 0.0066 | CD22: 0.0078 | CE22: 0.0088 | CF22: 0.0095 | CG22: 0.0099 | CH22: 0.01
A23: 40 | B23: 0.0475 | C23: 0.0433 | D23: 0.0389 | E23: 0.0341 | F23: 0.029 | G23: 0.0236 | H23: 0.018 | I23: 0.0126 | J23: 0.0076 | K23: 0.003 | L23: -0.0008 | M23: -0.0036 | N23: -0.0054 | O23: -0.0062 | P23: -0.0059 | Q23: -0.0045 | R23: -0.0021 | S23: 0.0017 | T23: 0.007 | U23: 0.0134 | V23: 0.0204 | W23: 0.0272 | X23: 0.0334 | Y23: 0.0382 | Z23: 0.0413 | AA23: 0.0426 | AB23: 0.0422 | AC23: 0.0407 | AD23: 0.0382 | AE23: 0.0349 | AF23: 0.0311 | AG23: 0.0267 | AH23: 0.022 | AI23: 0.0173 | AJ23: 0.0128 | AK23: 0.0087 | AL23: 0.0051 | AM23: 0.0018 | AN23: -0.0011 | AO23: -0.0038 | AP23: -0.0062 | AQ23: -0.0076 | AR23: -0.0076 | AS23: -0.0063 | AT23: -0.0041 | AU23: -0.002 | AV23: -0.0009 | AW23: -0.001 | AX23: -0.0018 | AY23: -0.0021 | AZ23: -0.0012 | BA23: 0.0016 | BB23: 0.0057 | BC23: 0.0104 | BD23: 0.0147 | BE23: 0.0182 | BF23: 0.0201 | BG23: 0.0202 | BH23: 0.0182 | BI23: 0.0143 | BJ23: 0.0085 | BK23: 0.0014 | BL23: -0.0064 | BM23: -0.0144 | BN23: -0.0222 | BO23: -0.024 | BP23: -0.0246 | BQ23: -0.0241 | BR23: -0.0225 | BS23: -0.0201 | BT23: -0.0171 | BU23: -0.0136 | BV23: -0.0101 | BW23: -0.0068 | BX23: -0.004 | BY23: -0.0016 | BZ23: 0.0007 | CA23: 0.0029 | CB23: 0.0048 | CC23: 0.0064 | CD23: 0.0077 | CE23: 0.0087 | CF23: 0.0094 | CG23: 0.0099 | CH23: 0.01
A24: 41 | B24: 0.0464 | C24: 0.0422 | D24: 0.038 | E24: 0.0334 | F24: 0.0285 | G24: 0.0232 | H24: 0.0179 | I24: 0.0127 | J24: 0.0078 | K24: 0.0034 | L24: -0.0003 | M24: -0.0032 | N24: -0.0051 | O24: -0.006 | P24: -0.0058 | Q24: -0.0046 | R24: -0.0023 | S24: 0.0013 | T24: 0.0064 | U24: 0.0125 | V24: 0.0191 | W24: 0.0257 | X24: 0.0317 | Y24: 0.0365 | Z24: 0.0397 | AA24: 0.0412 | AB24: 0.0411 | AC24: 0.0399 | AD24: 0.0377 | AE24: 0.0348 | AF24: 0.0313 | AG24: 0.0274 | AH24: 0.0232 | AI24: 0.0191 | AJ24: 0.0151 | AK24: 0.0115 | AL24: 0.0082 | AM24: 0.005 | AN24: 0.0019 | AO24: -0.001 | AP24: -0.0037 | AQ24: -0.0056 | AR24: -0.0062 | AS24: -0.0057 | AT24: -0.0043 | AU24: -0.003 | AV24: -0.0026 | AW24: -0.0032 | AX24: -0.0043 | AY24: -0.0049 | AZ24: -0.004 | BA24: -0.0013 | BB24: 0.0031 | BC24: 0.0082 | BD24: 0.0131 | BE24: 0.0172 | BF24: 0.0199 | BG24: 0.0207 | BH24: 0.0194 | BI24: 0.0162 | BJ24: 0.011 | BK24: 0.0046 | BL24: -0.0026 | BM24: -0.01 | BN24: -0.0173 | BO24: -0.0192 | BP24: -0.0202 | BQ24: -0.0202 | BR24: -0.0193 | BS24: -0.0177 | BT24: -0.0153 | BU24: -0.0126 | BV24: -0.0096 | BW24: -0.0067 | BX24: -0.0042 | BY24: -0.0019 | BZ24: 0.0004 | CA24: 0.0026 | CB24: 0.0045 | CC24: 0.0062 | CD24: 0.0076 | CE24: 0.0087 | CF24: 0.0094 | CG24: 0.0099 | CH24: 0.01
A25: 42 | B25: 0.0455 | C25: 0.0414 | D25: 0.0371 | E25: 0.0326 | F25: 0.0278 | G25: 0.0227 | H25: 0.0177 | I25: 0.0127 | J25: 0.008 | K25: 0.0037 | L25: 0.0001 | M25: -0.0027 | N25: -0.0047 | O25: -0.0057 | P25: -0.0057 | Q25: -0.0045 | R25: -0.0023 | S25: 0.0012 | T25: 0.006 | U25: 0.0117 | V25: 0.018 | W25: 0.0244 | X25: 0.0302 | Y25: 0.0349 | Z25: 0.0381 | AA25: 0.0397 | AB25: 0.0398 | AC25: 0.0388 | AD25: 0.0369 | AE25: 0.0343 | AF25: 0.0311 | AG25: 0.0276 | AH25: 0.024 | AI25: 0.0203 | AJ25: 0.0169 | AK25: 0.0138 | AL25: 0.0108 | AM25: 0.0077 | AN25: 0.0047 | AO25: 0.0018 | AP25: -0.001 | AQ25: -0.0032 | AR25: -0.0043 | AS25: -0.0043 | AT25: -0.0037 | AU25: -0.0031 | AV25: -0.0034 | AW25: -0.0046 | AX25: -0.0062 | AY25: -0.0072 | AZ25: -0.0066 | BA25: -0.004 | BB25: 0.0003 | BC25: 0.0056 | BD25: 0.0109 | BE25: 0.0155 | BF25: 0.0188 | BG25: 0.0203 | BH25: 0.0198 | BI25: 0.0174 | BJ25: 0.013 | BK25: 0.0073 | BL25: 0.0008 | BM25: -0.0059 | BN25: -0.0125 | BO25: -0.0145 | BP25: -0.0157 | BQ25: -0.0162 | BR25: -0.0159 | BS25: -0.0149 | BT25: -0.0133 | BU25: -0.0112 | BV25: -0.0089 | BW25: -0.0065 | BX25: -0.0042 | BY25: -0.0021 | BZ25: 0.0001 | CA25: 0.0023 | CB25: 0.0043 | CC25: 0.006 | CD25: 0.0075 | CE25: 0.0086 | CF25: 0.0094 | CG25: 0.0098 | CH25: 0.01
A26: 43 | B26: 0.0447 | C26: 0.0405 | D26: 0.0362 | E26: 0.0318 | F26: 0.027 | G26: 0.0221 | H26: 0.0172 | I26: 0.0125 | J26: 0.0081 | K26: 0.004 | L26: 0.0005 | M26: -0.0023 | N26: -0.0043 | O26: -0.0054 | P26: -0.0054 | Q26: -0.0043 | R26: -0.0021 | S26: 0.0013 | T26: 0.0058 | U26: 0.0113 | V26: 0.0172 | W26: 0.0232 | X26: 0.0288 | Y26: 0.0333 | Z26: 0.0365 | AA26: 0.0381 | AB26: 0.0384 | AC26: 0.0375 | AD26: 0.0357 | AE26: 0.0333 | AF26: 0.0305 | AG26: 0.0274 | AH26: 0.0242 | AI26: 0.0211 | AJ26: 0.0182 | AK26: 0.0154 | AL26: 0.0128 | AM26: 0.01 | AN26: 0.0072 | AO26: 0.0044 | AP26: 0.0017 | AQ26: -0.0005 | AR26: -0.0018 | AS26: -0.0022 | AT26: -0.0022 | AU26: -0.0023 | AV26: -0.0033 | AW26: -0.0052 | AX26: -0.0074 | AY26: -0.0088 | AZ26: -0.0087 | BA26: -0.0065 | BB26: -0.0024 | BC26: 0.0029 | BD26: 0.0083 | BE26: 0.0133 | BF26: 0.017 | BG26: 0.0191 | BH26: 0.0194 | BI26: 0.0178 | BJ26: 0.0143 | BK26: 0.0095 | BL26: 0.0039 | BM26: -0.0021 | BN26: -0.008 | BO26: -0.0099 | BP26: -0.0113 | BQ26: -0.0122 | BR26: -0.0124 | BS26: -0.012 | BT26: -0.0111 | BU26: -0.0097 | BV26: -0.0079 | BW26: -0.006 | BX26: -0.004 | BY26: -0.0021 | BZ26: 0 | CA26: 0.0021 | CB26: 0.0041 | CC26: 0.0059 | CD26: 0.0074 | CE26: 0.0085 | CF26: 0.0094 | CG26: 0.0098 | CH26: 0.01
A27: 44 | B27: 0.0439 | C27: 0.0397 | D27: 0.0354 | E27: 0.0309 | F27: 0.0262 | G27: 0.0215 | H27: 0.0168 | I27: 0.0123 | J27: 0.0081 | K27: 0.0042 | L27: 0.0008 | M27: -0.002 | N27: -0.004 | O27: -0.005 | P27: -0.005 | Q27: -0.0039 | R27: -0.0017 | S27: 0.0016 | T27: 0.0059 | U27: 0.0111 | V27: 0.0167 | W27: 0.0223 | X27: 0.0275 | Y27: 0.0319 | Z27: 0.0349 | AA27: 0.0365 | AB27: 0.0368 | AC27: 0.0359 | AD27: 0.0343 | AE27: 0.032 | AF27: 0.0295 | AG27: 0.0268 | AH27: 0.0241 | AI27: 0.0214 | AJ27: 0.0189 | AK27: 0.0165 | AL27: 0.0142 | AM27: 0.0117 | AN27: 0.0092 | AO27: 0.0067 | AP27: 0.0043 | AQ27: 0.0023 | AR27: 0.0009 | AS27: 0.0003 | AT27: -0.0001 | AU27: -0.0008 | AV27: -0.0024 | AW27: -0.0049 | AX27: -0.0077 | AY27: -0.0097 | AZ27: -0.0101 | BA27: -0.0084 | BB27: -0.0047 | BC27: 0.0002 | BD27: 0.0056 | BE27: 0.0106 | BF27: 0.0147 | BG27: 0.0173 | BH27: 0.0183 | BI27: 0.0175 | BJ27: 0.0149 | BK27: 0.011 | BL27: 0.0063 | BM27: 0.0011 | BN27: -0.004 | BO27: -0.0058 | BP27: -0.0072 | BQ27: -0.0083 | BR27: -0.009 | BS27: -0.0091 | BT27: -0.0088 | BU27: -0.0079 | BV27: -0.0067 | BW27: -0.0053 | BX27: -0.0037 | BY27: -0.0019 | BZ27: 0 | CA27: 0.002 | CB27: 0.004 | CC27: 0.0057 | CD27: 0.0073 | CE27: 0.0085 | CF27: 0.0093 | CG27: 0.0098 | CH27: 0.01
A28: 45 | B28: 0.0429 | C28: 0.0387 | D28: 0.0345 | E28: 0.0301 | F28: 0.0255 | G28: 0.0209 | H28: 0.0164 | I28: 0.0121 | J28: 0.0081 | K28: 0.0043 | L28: 0.001 | M28: -0.0017 | N28: -0.0036 | O28: -0.0046 | P28: -0.0045 | Q28: -0.0034 | R28: -0.0012 | S28: 0.0021 | T28: 0.0063 | U28: 0.0111 | V28: 0.0163 | W28: 0.0216 | X28: 0.0265 | Y28: 0.0306 | Z28: 0.0334 | AA28: 0.0349 | AB28: 0.035 | AC28: 0.0342 | AD28: 0.0326 | AE28: 0.0304 | AF28: 0.0282 | AG28: 0.0258 | AH28: 0.0235 | AI28: 0.0212 | AJ28: 0.019 | AK28: 0.017 | AL28: 0.015 | AM28: 0.013 | AN28: 0.0109 | AO28: 0.0087 | AP28: 0.0067 | AQ28: 0.005 | AR28: 0.0037 | AS28: 0.003 | AT28: 0.0024 | AU28: 0.0013 | AV28: -0.0009 | AW28: -0.0039 | AX28: -0.0072 | AY28: -0.0098 | AZ28: -0.0108 | BA28: -0.0097 | BB28: -0.0066 | BC28: -0.0021 | BD28: 0.0029 | BE28: 0.0078 | BF28: 0.012 | BG28: 0.0149 | BH28: 0.0164 | BI28: 0.0164 | BJ28: 0.0147 | BK28: 0.0117 | BL28: 0.0079 | BM28: 0.0037 | BN28: -0.0007 | BO28: -0.0021 | BP28: -0.0035 | BQ28: -0.0047 | BR28: -0.0057 | BS28: -0.0062 | BT28: -0.0064 | BU28: -0.0061 | BV28: -0.0054 | BW28: -0.0043 | BX28: -0.0031 | BY28: -0.0016 | BZ28: 0.0001 | CA28: 0.002 | CB28: 0.0039 | CC28: 0.0056 | CD28: 0.0072 | CE28: 0.0084 | CF28: 0.0093 | CG28: 0.0098 | CH28: 0.01
A29: 46 | B29: 0.0415 | C29: 0.0376 | D29: 0.0336 | E29: 0.0294 | F29: 0.025 | G29: 0.0205 | H29: 0.0162 | I29: 0.0121 | J29: 0.0081 | K29: 0.0045 | L29: 0.0012 | M29: -0.0014 | N29: -0.0033 | O29: -0.0041 | P29: -0.004 | Q29: -0.0028 | R29: -0.0005 | S29: 0.0027 | T29: 0.0067 | U29: 0.0113 | V29: 0.0162 | W29: 0.0211 | X29: 0.0257 | Y29: 0.0294 | Z29: 0.032 | AA29: 0.0332 | AB29: 0.0332 | AC29: 0.0323 | AD29: 0.0307 | AE29: 0.0287 | AF29: 0.0266 | AG29: 0.0246 | AH29: 0.0225 | AI29: 0.0205 | AJ29: 0.0186 | AK29: 0.0169 | AL29: 0.0153 | AM29: 0.0138 | AN29: 0.0121 | AO29: 0.0104 | AP29: 0.0088 | AQ29: 0.0075 | AR29: 0.0064 | AS29: 0.0057 | AT29: 0.005 | AU29: 0.0036 | AV29: 0.0012 | AW29: -0.0022 | AX29: -0.0059 | AY29: -0.009 | AZ29: -0.0106 | BA29: -0.0102 | BB29: -0.0078 | BC29: -0.004 | BD29: 0.0005 | BE29: 0.0051 | BF29: 0.0091 | BG29: 0.0122 | BH29: 0.0141 | BI29: 0.0146 | BJ29: 0.0137 | BK29: 0.0116 | BL29: 0.0087 | BM29: 0.0053 | BN29: 0.0019 | BO29: 0.0008 | BP29: -0.0004 | BQ29: -0.0016 | BR29: -0.0027 | BS29: -0.0035 | BT29: -0.004 | BU29: -0.0042 | BV29: -0.0039 | BW29: -0.0033 | BX29: -0.0023 | BY29: -0.0011 | BZ29: 0.0004 | CA29: 0.0021 | CB29: 0.0039 | CC29: 0.0056 | CD29: 0.0071 | CE29: 0.0083 | CF29: 0.0093 | CG29: 0.0098 | CH29: 0.01
A30: 47 | B30: 0.0398 | C30: 0.0362 | D30: 0.0326 | E30: 0.0288 | F30: 0.0246 | G30: 0.0204 | H30: 0.0162 | I30: 0.0122 | J30: 0.0083 | K30: 0.0047 | L30: 0.0015 | M30: -0.0011 | N30: -0.0029 | O30: -0.0037 | P30: -0.0034 | Q30: -0.0022 | R30: 0.0001 | S30: 0.0033 | T30: 0.0072 | U30: 0.0116 | V30: 0.0162 | W30: 0.0208 | X30: 0.0249 | Y30: 0.0283 | Z30: 0.0305 | AA30: 0.0315 | AB30: 0.0314 | AC30: 0.0304 | AD30: 0.0288 | AE30: 0.0269 | AF30: 0.025 | AG30: 0.0231 | AH30: 0.0212 | AI30: 0.0194 | AJ30: 0.0178 | AK30: 0.0165 | AL30: 0.0153 | AM30: 0.0142 | AN30: 0.013 | AO30: 0.0118 | AP30: 0.0107 | AQ30: 0.0097 | AR30: 0.0089 | AS30: 0.0083 | AT30: 0.0075 | AU30: 0.0061 | AV30: 0.0036 | AW30: 0 | AX30: -0.0039 | AY30: -0.0074 | AZ30: -0.0095 | BA30: -0.0098 | BB30: -0.0082 | BC30: -0.0052 | BD30: -0.0014 | BE30: 0.0026 | BF30: 0.0063 | BG30: 0.0093 | BH30: 0.0114 | BI30: 0.0123 | BJ30: 0.012 | BK30: 0.0107 | BL30: 0.0086 | BM30: 0.0061 | BN30: 0.0036 | BO30: 0.0029 | BP30: 0.002 | BQ30: 0.0009 | BR30: -0.0001 | BS30: -0.0011 | BT30: -0.0018 | BU30: -0.0022 | BV30: -0.0023 | BW30: -0.002 | BX30: -0.0014 | BY30: -0.0005 | BZ30: 0.0008 | CA30: 0.0023 | CB30: 0.0039 | CC30: 0.0056 | CD30: 0.007 | CE30: 0.0083 | CF30: 0.0092 | CG30: 0.0098 | CH30: 0.01
A31: 48 | B31: 0.0377 | C31: 0.0347 | D31: 0.0316 | E31: 0.0282 | F31: 0.0245 | G31: 0.0204 | H31: 0.0164 | I31: 0.0124 | J31: 0.0087 | K31: 0.0051 | L31: 0.0019 | M31: -0.0007 | N31: -0.0024 | O31: -0.0031 | P31: -0.0028 | Q31: -0.0015 | R31: 0.0008 | S31: 0.0039 | T31: 0.0077 | U31: 0.0119 | V31: 0.0163 | W31: 0.0205 | X31: 0.0243 | Y31: 0.0273 | Z31: 0.0292 | AA31: 0.0298 | AB31: 0.0295 | AC31: 0.0285 | AD31: 0.0269 | AE31: 0.0251 | AF31: 0.0232 | AG31: 0.0214 | AH31: 0.0197 | AI31: 0.018 | AJ31: 0.0167 | AK31: 0.0157 | AL31: 0.0149 | AM31: 0.0143 | AN31: 0.0137 | AO31: 0.0129 | AP31: 0.0122 | AQ31: 0.0115 | AR31: 0.0109 | AS31: 0.0104 | AT31: 0.0098 | AU31: 0.0084 | AV31: 0.006 | AW31: 0.0025 | AX31: -0.0014 | AY31: -0.0051 | AZ31: -0.0076 | BA31: -0.0086 | BB31: -0.0078 | BC31: -0.0057 | BD31: -0.0027 | BE31: 0.0006 | BF31: 0.0038 | BG31: 0.0065 | BH31: 0.0085 | BI31: 0.0097 | BJ31: 0.0098 | BK31: 0.009 | BL31: 0.0076 | BM31: 0.006 | BN31: 0.0044 | BO31: 0.0041 | BP31: 0.0036 | BQ31: 0.0028 | BR31: 0.0019 | BS31: 0.001 | BT31: 0.0002 | BU31: -0.0004 | BV31: -0.0007 | BW31: -0.0007 | BX31: -0.0004 | BY31: 0.0003 | BZ31: 0.0013 | CA31: 0.0026 | CB31: 0.0041 | CC31: 0.0056 | CD31: 0.007 | CE31: 0.0083 | CF31: 0.0092 | CG31: 0.0098 | CH31: 0.01
A32: 49 | B32: 0.0355 | C32: 0.0331 | D32: 0.0306 | E32: 0.0277 | F32: 0.0244 | G32: 0.0207 | H32: 0.0168 | I32: 0.0129 | J32: 0.0092 | K32: 0.0056 | L32: 0.0024 | M32: -0.0001 | N32: -0.0019 | O32: -0.0026 | P32: -0.0023 | Q32: -0.001 | R32: 0.0013 | S32: 0.0043 | T32: 0.008 | U32: 0.012 | V32: 0.0162 | W32: 0.0203 | X32: 0.0237 | Y32: 0.0264 | Z32: 0.0279 | AA32: 0.0283 | AB32: 0.0278 | AC32: 0.0267 | AD32: 0.0251 | AE32: 0.0233 | AF32: 0.0214 | AG32: 0.0197 | AH32: 0.018 | AI32: 0.0165 | AJ32: 0.0154 | AK32: 0.0147 | AL32: 0.0144 | AM32: 0.0142 | AN32: 0.014 | AO32: 0.0137 | AP32: 0.0133 | AQ32: 0.0129 | AR32: 0.0125 | AS32: 0.0121 | AT32: 0.0116 | AU32: 0.0104 | AV32: 0.0083 | AW32: 0.0051 | AX32: 0.0013 | AY32: -0.0024 | AZ32: -0.0051 | BA32: -0.0065 | BB32: -0.0065 | BC32: -0.0053 | BD32: -0.0032 | BE32: -0.0007 | BF32: 0.0019 | BG32: 0.0041 | BH32: 0.0058 | BI32: 0.0069 | BJ32: 0.0072 | BK32: 0.0068 | BL32: 0.006 | BM32: 0.0051 | BN32: 0.0043 | BO32: 0.0044 | BP32: 0.0043 | BQ32: 0.0039 | BR32: 0.0034 | BS32: 0.0026 | BT32: 0.0019 | BU32: 0.0013 | BV32: 0.0009 | BW32: 0.0007 | BX32: 0.0008 | BY32: 0.0012 | BZ32: 0.002 | CA32: 0.003 | CB32: 0.0043 | CC32: 0.0057 | CD32: 0.0071 | CE32: 0.0083 | CF32: 0.0092 | CG32: 0.0098 | CH32: 0.01
A33: 50 | B33: 0.0333 | C33: 0.0315 | D33: 0.0296 | E33: 0.0272 | F33: 0.0243 | G33: 0.0209 | H33: 0.0172 | I33: 0.0135 | J33: 0.0099 | K33: 0.0064 | L33: 0.0032 | M33: 0.0006 | N33: -0.0012 | O33: -0.002 | P33: -0.0018 | Q33: -0.0005 | R33: 0.0016 | S33: 0.0044 | T33: 0.008 | U33: 0.012 | V33: 0.0161 | W33: 0.0199 | X33: 0.0232 | Y33: 0.0255 | Z33: 0.0268 | AA33: 0.0269 | AB33: 0.0263 | AC33: 0.025 | AD33: 0.0234 | AE33: 0.0215 | AF33: 0.0197 | AG33: 0.0178 | AH33: 0.0162 | AI33: 0.0148 | AJ33: 0.0139 | AK33: 0.0136 | AL33: 0.0136 | AM33: 0.0139 | AN33: 0.0142 | AO33: 0.0142 | AP33: 0.0141 | AQ33: 0.0138 | AR33: 0.0136 | AS33: 0.0134 | AT33: 0.013 | AU33: 0.0121 | AV33: 0.0103 | AW33: 0.0075 | AX33: 0.0041 | AY33: 0.0006 | AZ33: -0.0022 | BA33: -0.0039 | BB33: -0.0044 | BC33: -0.0039 | BD33: -0.0027 | BE33: -0.0011 | BF33: 0.0006 | BG33: 0.0022 | BH33: 0.0034 | BI33: 0.0041 | BJ33: 0.0044 | BK33: 0.0042 | BL33: 0.0037 | BM33: 0.0034 | BN33: 0.0033 | BO33: 0.0039 | BP33: 0.0043 | BQ33: 0.0044 | BR33: 0.0042 | BS33: 0.0038 | BT33: 0.0033 | BU33: 0.0028 | BV33: 0.0024 | BW33: 0.0021 | BX33: 0.002 | BY33: 0.0021 | BZ33: 0.0027 | CA33: 0.0036 | CB33: 0.0047 | CC33: 0.0059 | CD33: 0.0072 | CE33: 0.0083 | CF33: 0.0092 | CG33: 0.0098 | CH33: 0.01
A34: 51 | B34: 0.0314 | C34: 0.0301 | D34: 0.0286 | E34: 0.0267 | F34: 0.0242 | G34: 0.0211 | H34: 0.0177 | I34: 0.0142 | J34: 0.0107 | K34: 0.0073 | L34: 0.0041 | M34: 0.0015 | N34: -0.0004 | O34: -0.0013 | P34: -0.0013 | Q34: -0.0003 | R34: 0.0016 | S34: 0.0043 | T34: 0.0078 | U34: 0.0117 | V34: 0.0158 | W34: 0.0195 | X34: 0.0226 | Y34: 0.0248 | Z34: 0.0258 | AA34: 0.0258 | AB34: 0.025 | AC34: 0.0235 | AD34: 0.0218 | AE34: 0.0198 | AF34: 0.0179 | AG34: 0.016 | AH34: 0.0144 | AI34: 0.0132 | AJ34: 0.0125 | AK34: 0.0124 | AL34: 0.0128 | AM34: 0.0134 | AN34: 0.014 | AO34: 0.0144 | AP34: 0.0145 | AQ34: 0.0144 | AR34: 0.0143 | AS34: 0.0142 | AT34: 0.014 | AU34: 0.0134 | AV34: 0.0119 | AW34: 0.0096 | AX34: 0.0067 | AY34: 0.0036 | AZ34: 0.001 | BA34: -0.0008 | BB34: -0.0017 | BC34: -0.0018 | BD34: -0.0014 | BE34: -0.0006 | BF34: 0.0003 | BG34: 0.001 | BH34: 0.0014 | BI34: 0.0017 | BJ34: 0.0016 | BK34: 0.0014 | BL34: 0.0011 | BM34: 0.0012 | BN34: 0.0016 | BO34: 0.0026 | BP34: 0.0034 | BQ34: 0.0041 | BR34: 0.0044 | BS34: 0.0045 | BT34: 0.0043 | BU34: 0.0041 | BV34: 0.0037 | BW34: 0.0034 | BX34: 0.0032 | BY34: 0.0032 | BZ34: 0.0035 | CA34: 0.0041 | CB34: 0.0051 | CC34: 0.0061 | CD34: 0.0073 | CE34: 0.0083 | CF34: 0.0092 | CG34: 0.0098 | CH34: 0.01
A35: 52 | B35: 0.03 | C35: 0.0289 | D35: 0.0277 | E35: 0.0261 | F35: 0.0239 | G35: 0.0211 | H35: 0.018 | I35: 0.0148 | J35: 0.0115 | K35: 0.0083 | L35: 0.0052 | M35: 0.0026 | N35: 0.0005 | O35: -0.0006 | P35: -0.0008 | Q35: -0.0001 | R35: 0.0015 | S35: 0.004 | T35: 0.0073 | U35: 0.0112 | V35: 0.0152 | W35: 0.019 | X35: 0.022 | Y35: 0.0241 | Z35: 0.0251 | AA35: 0.025 | AB35: 0.0239 | AC35: 0.0223 | AD35: 0.0203 | AE35: 0.0182 | AF35: 0.0161 | AG35: 0.0142 | AH35: 0.0127 | AI35: 0.0117 | AJ35: 0.0112 | AK35: 0.0114 | AL35: 0.012 | AM35: 0.0128 | AN35: 0.0136 | AO35: 0.0142 | AP35: 0.0146 | AQ35: 0.0147 | AR35: 0.0147 | AS35: 0.0147 | AT35: 0.0146 | AU35: 0.0142 | AV35: 0.0131 | AW35: 0.0113 | AX35: 0.0089 | AY35: 0.0064 | AZ35: 0.0042 | BA35: 0.0025 | BB35: 0.0015 | BC35: 0.001 | BD35: 0.0008 | BE35: 0.0008 | BF35: 0.0008 | BG35: 0.0006 | BH35: 0.0002 | BI35: -0.0003 | BJ35: -0.0008 | BK35: -0.0013 | BL35: -0.0016 | BM35: -0.0014 | BN35: -0.0007 | BO35: 0.0006 | BP35: 0.002 | BQ35: 0.0031 | BR35: 0.004 | BS35: 0.0046 | BT35: 0.005 | BU35: 0.005 | BV35: 0.0049 | BW35: 0.0047 | BX35: 0.0044 | BY35: 0.0042 | BZ35: 0.0043 | CA35: 0.0048 | CB35: 0.0055 | CC35: 0.0064 | CD35: 0.0074 | CE35: 0.0084 | CF35: 0.0092 | CG35: 0.0098 | CH35: 0.01
A36: 53 | B36: 0.0291 | C36: 0.0281 | D36: 0.027 | E36: 0.0255 | F36: 0.0235 | G36: 0.0209 | H36: 0.0181 | I36: 0.0152 | J36: 0.0123 | K36: 0.0093 | L36: 0.0064 | M36: 0.0037 | N36: 0.0016 | O36: 0.0002 | P36: -0.0004 | Q36: 0 | R36: 0.0013 | S36: 0.0035 | T36: 0.0067 | U36: 0.0105 | V36: 0.0145 | W36: 0.0183 | X36: 0.0214 | Y36: 0.0236 | Z36: 0.0245 | AA36: 0.0243 | AB36: 0.0231 | AC36: 0.0213 | AD36: 0.019 | AE36: 0.0166 | AF36: 0.0144 | AG36: 0.0125 | AH36: 0.0111 | AI36: 0.0103 | AJ36: 0.0101 | AK36: 0.0104 | AL36: 0.0112 | AM36: 0.0121 | AN36: 0.0131 | AO36: 0.0138 | AP36: 0.0143 | AQ36: 0.0146 | AR36: 0.0147 | AS36: 0.0148 | AT36: 0.0148 | AU36: 0.0145 | AV36: 0.0138 | AW36: 0.0125 | AX36: 0.0107 | AY36: 0.0088 | AZ36: 0.0072 | BA36: 0.0059 | BB36: 0.005 | BC36: 0.0044 | BD36: 0.0037 | BE36: 0.0031 | BF36: 0.0022 | BG36: 0.0011 | BH36: -0.0002 | BI36: -0.0016 | BJ36: -0.0028 | BK36: -0.0038 | BL36: -0.0042 | BM36: -0.0041 | BN36: -0.0033 | BO36: -0.0017 | BP36: 0 | BQ36: 0.0016 | BR36: 0.0031 | BS36: 0.0043 | BT36: 0.0052 | BU36: 0.0057 | BV36: 0.0059 | BW36: 0.0058 | BX36: 0.0055 | BY36: 0.0052 | BZ36: 0.0052 | CA36: 0.0055 | CB36: 0.006 | CC36: 0.0068 | CD36: 0.0076 | CE36: 0.0085 | CF36: 0.0093 | CG36: 0.0098 | CH36: 0.01
A37: 54 | B37: 0.0288 | C37: 0.0277 | D37: 0.0264 | E37: 0.0249 | F37: 0.0228 | G37: 0.0205 | H37: 0.0179 | I37: 0.0154 | J37: 0.0129 | K37: 0.0102 | L37: 0.0075 | M37: 0.0049 | N37: 0.0026 | O37: 0.001 | P37: 0.0002 | Q37: 0.0002 | R37: 0.0011 | S37: 0.0031 | T37: 0.0061 | U37: 0.0097 | V37: 0.0137 | W37: 0.0175 | X37: 0.0208 | Y37: 0.023 | Z37: 0.0241 | AA37: 0.0238 | AB37: 0.0225 | AC37: 0.0204 | AD37: 0.0178 | AE37: 0.0151 | AF37: 0.0128 | AG37: 0.0109 | AH37: 0.0097 | AI37: 0.0091 | AJ37: 0.009 | AK37: 0.0095 | AL37: 0.0104 | AM37: 0.0114 | AN37: 0.0124 | AO37: 0.0133 | AP37: 0.0139 | AQ37: 0.0143 | AR37: 0.0145 | AS37: 0.0147 | AT37: 0.0147 | AU37: 0.0146 | AV37: 0.0141 | AW37: 0.0132 | AX37: 0.012 | AY37: 0.0108 | AZ37: 0.0098 | BA37: 0.0091 | BB37: 0.0085 | BC37: 0.0079 | BD37: 0.0071 | BE37: 0.0059 | BF37: 0.0043 | BG37: 0.0024 | BH37: 0.0001 | BI37: -0.0021 | BJ37: -0.0041 | BK37: -0.0057 | BL37: -0.0065 | BM37: -0.0066 | BN37: -0.006 | BO37: -0.0043 | BP37: -0.0023 | BQ37: -0.0002 | BR37: 0.0018 | BS37: 0.0036 | BT37: 0.005 | BU37: 0.006 | BV37: 0.0065 | BW37: 0.0067 | BX37: 0.0065 | BY37: 0.0062 | BZ37: 0.006 | CA37: 0.0062 | CB37: 0.0065 | CC37: 0.0071 | CD37: 0.0078 | CE37: 0.0086 | CF37: 0.0093 | CG37: 0.0098 | CH37: 0.01
A38: 55 | B38: 0.029 | C38: 0.0276 | D38: 0.026 | E38: 0.0242 | F38: 0.0221 | G38: 0.0198 | H38: 0.0175 | I38: 0.0153 | J38: 0.0131 | K38: 0.0108 | L38: 0.0084 | M38: 0.0059 | N38: 0.0037 | O38: 0.002 | P38: 0.0009 | Q38: 0.0005 | R38: 0.0011 | S38: 0.0028 | T38: 0.0056 | U38: 0.0091 | V38: 0.013 | W38: 0.0168 | X38: 0.0201 | Y38: 0.0225 | Z38: 0.0236 | AA38: 0.0234 | AB38: 0.0219 | AC38: 0.0196 | AD38: 0.0167 | AE38: 0.0138 | AF38: 0.0113 | AG38: 0.0095 | AH38: 0.0084 | AI38: 0.008 | AJ38: 0.0082 | AK38: 0.0088 | AL38: 0.0097 | AM38: 0.0107 | AN38: 0.0117 | AO38: 0.0126 | AP38: 0.0133 | AQ38: 0.0138 | AR38: 0.0141 | AS38: 0.0143 | AT38: 0.0143 | AU38: 0.0143 | AV38: 0.014 | AW38: 0.0135 | AX38: 0.0129 | AY38: 0.0124 | AZ38: 0.0121 | BA38: 0.012 | BB38: 0.0118 | BC38: 0.0115 | BD38: 0.0106 | BE38: 0.0091 | BF38: 0.007 | BG38: 0.0043 | BH38: 0.0013 | BI38: -0.0018 | BJ38: -0.0046 | BK38: -0.0068 | BL38: -0.0083 | BM38: -0.0088 | BN38: -0.0085 | BO38: -0.0069 | BP38: -0.0047 | BQ38: -0.0023 | BR38: 0.0002 | BS38: 0.0025 | BT38: 0.0045 | BU38: 0.006 | BV38: 0.007 | BW38: 0.0074 | BX38: 0.0073 | BY38: 0.007 | BZ38: 0.0068 | CA38: 0.0068 | CB38: 0.0071 | CC38: 0.0075 | CD38: 0.0081 | CE38: 0.0087 | CF38: 0.0094 | CG38: 0.0098 | CH38: 0.01
A39: 56 | B39: 0.0295 | C39: 0.0276 | D39: 0.0257 | E39: 0.0236 | F39: 0.0212 | G39: 0.0189 | H39: 0.0168 | I39: 0.0148 | J39: 0.013 | K39: 0.011 | L39: 0.0089 | M39: 0.0067 | N39: 0.0047 | O39: 0.003 | P39: 0.0018 | Q39: 0.0012 | R39: 0.0015 | S39: 0.0029 | T39: 0.0054 | U39: 0.0086 | V39: 0.0123 | W39: 0.0161 | X39: 0.0194 | Y39: 0.0218 | Z39: 0.023 | AA39: 0.0228 | AB39: 0.0213 | AC39: 0.0188 | AD39: 0.0157 | AE39: 0.0126 | AF39: 0.01 | AG39: 0.0082 | AH39: 0.0072 | AI39: 0.007 | AJ39: 0.0074 | AK39: 0.0081 | AL39: 0.009 | AM39: 0.01 | AN39: 0.0111 | AO39: 0.012 | AP39: 0.0127 | AQ39: 0.0132 | AR39: 0.0135 | AS39: 0.0136 | AT39: 0.0137 | AU39: 0.0137 | AV39: 0.0137 | AW39: 0.0135 | AX39: 0.0135 | AY39: 0.0136 | AZ39: 0.0139 | BA39: 0.0144 | BB39: 0.0147 | BC39: 0.0147 | BD39: 0.0139 | BE39: 0.0124 | BF39: 0.01 | BG39: 0.0068 | BH39: 0.0032 | BI39: -0.0006 | BJ39: -0.0042 | BK39: -0.0072 | BL39: -0.0092 | BM39: -0.0104 | BN39: -0.0106 | BO39: -0.0092 | BP39: -0.007 | BQ39: -0.0043 | BR39: -0.0015 | BS39: 0.0013 | BT39: 0.0037 | BU39: 0.0057 | BV39: 0.0071 | BW39: 0.0079 | BX39: 0.008 | BY39: 0.0077 | BZ39: 0.0075 | CA39: 0.0075 | CB39: 0.0076 | CC39: 0.0079 | CD39: 0.0083 | CE39: 0.0089 | CF39: 0.0094 | CG39: 0.0098 | CH39: 0.01
A40: 57 | B40: 0.0301 | C40: 0.0278 | D40: 0.0255 | E40: 0.023 | F40: 0.0204 | G40: 0.0179 | H40: 0.0158 | I40: 0.0141 | J40: 0.0124 | K40: 0.0108 | L40: 0.0091 | M40: 0.0073 | N40: 0.0055 | O40: 0.0041 | P40: 0.0029 | Q40: 0.0023 | R40: 0.0024 | S40: 0.0035 | T40: 0.0056 | U40: 0.0086 | V40: 0.012 | W40: 0.0155 | X40: 0.0187 | Y40: 0.0211 | Z40: 0.0222 | AA40: 0.022 | AB40: 0.0205 | AC40: 0.0179 | AD40: 0.0148 | AE40: 0.0116 | AF40: 0.0089 | AG40: 0.0071 | AH40: 0.0062 | AI40: 0.0061 | AJ40: 0.0066 | AK40: 0.0075 | AL40: 0.0084 | AM40: 0.0095 | AN40: 0.0105 | AO40: 0.0114 | AP40: 0.012 | AQ40: 0.0124 | AR40: 0.0127 | AS40: 0.0128 | AT40: 0.0129 | AU40: 0.013 | AV40: 0.0131 | AW40: 0.0134 | AX40: 0.0137 | AY40: 0.0144 | AZ40: 0.0153 | BA40: 0.0163 | BB40: 0.0171 | BC40: 0.0175 | BD40: 0.017 | BE40: 0.0155 | BF40: 0.013 | BG40: 0.0096 | BH40: 0.0056 | BI40: 0.0013 | BJ40: -0.003 | BK40: -0.0066 | BL40: -0.0094 | BM40: -0.0112 | BN40: -0.0122 | BO40: -0.011 | BP40: -0.0089 | BQ40: -0.0062 | BR40: -0.0031 | BS40: 0 | BT40: 0.0028 | BU40: 0.0052 | BV40: 0.007 | BW40: 0.0081 | BX40: 0.0084 | BY40: 0.0083 | BZ40: 0.0081 | CA40: 0.008 | CB40: 0.0081 | CC40: 0.0082 | CD40: 0.0086 | CE40: 0.009 | CF40: 0.0095 | CG40: 0.0098 | CH40: 0.01
A41: 58 | B41: 0.0306 | C41: 0.028 | D41: 0.0252 | E41: 0.0224 | F41: 0.0196 | G41: 0.017 | H41: 0.0148 | I41: 0.013 | J41: 0.0116 | K41: 0.0103 | L41: 0.0089 | M41: 0.0076 | N41: 0.0063 | O41: 0.0052 | P41: 0.0043 | Q41: 0.0037 | R41: 0.0037 | S41: 0.0046 | T41: 0.0064 | U41: 0.0089 | V41: 0.0119 | W41: 0.0151 | X41: 0.018 | Y41: 0.0202 | Z41: 0.0213 | AA41: 0.021 | AB41: 0.0195 | AC41: 0.017 | AD41: 0.0139 | AE41: 0.0107 | AF41: 0.008 | AG41: 0.0062 | AH41: 0.0053 | AI41: 0.0053 | AJ41: 0.0059 | AK41: 0.0069 | AL41: 0.008 | AM41: 0.0091 | AN41: 0.0101 | AO41: 0.0109 | AP41: 0.0114 | AQ41: 0.0117 | AR41: 0.0118 | AS41: 0.0119 | AT41: 0.012 | AU41: 0.0122 | AV41: 0.0125 | AW41: 0.0131 | AX41: 0.0138 | AY41: 0.0149 | AZ41: 0.0163 | BA41: 0.0177 | BB41: 0.0189 | BC41: 0.0197 | BD41: 0.0195 | BE41: 0.0182 | BF41: 0.0159 | BG41: 0.0125 | BH41: 0.0083 | BI41: 0.0037 | BJ41: -0.001 | BK41: -0.0052 | BL41: -0.0087 | BM41: -0.0112 | BN41: -0.013 | BO41: -0.0122 | BP41: -0.0103 | BQ41: -0.0077 | BR41: -0.0046 | BS41: -0.0013 | BT41: 0.0018 | BU41: 0.0045 | BV41: 0.0066 | BW41: 0.008 | BX41: 0.0086 | BY41: 0.0086 | BZ41: 0.0086 | CA41: 0.0085 | CB41: 0.0085 | CC41: 0.0086 | CD41: 0.0088 | CE41: 0.0092 | CF41: 0.0095 | CG41: 0.0099 | CH41: 0.01
A42: 59 | B42: 0.031 | C42: 0.028 | D42: 0.0249 | E42: 0.0218 | F42: 0.0188 | G42: 0.016 | H42: 0.0137 | I42: 0.0119 | J42: 0.0106 | K42: 0.0095 | L42: 0.0085 | M42: 0.0076 | N42: 0.0069 | O42: 0.0063 | P42: 0.0057 | Q42: 0.0054 | R42: 0.0054 | S42: 0.0061 | T42: 0.0076 | U42: 0.0097 | V42: 0.0122 | W42: 0.0149 | X42: 0.0174 | Y42: 0.0193 | Z42: 0.0202 | AA42: 0.0198 | AB42: 0.0184 | AC42: 0.0159 | AD42: 0.0129 | AE42: 0.0098 | AF42: 0.0072 | AG42: 0.0054 | AH42: 0.0045 | AI42: 0.0045 | AJ42: 0.0052 | AK42: 0.0063 | AL42: 0.0075 | AM42: 0.0087 | AN42: 0.0098 | AO42: 0.0105 | AP42: 0.0108 | AQ42: 0.0109 | AR42: 0.0108 | AS42: 0.0108 | AT42: 0.0109 | AU42: 0.0112 | AV42: 0.0118 | AW42: 0.0127 | AX42: 0.0138 | AY42: 0.0152 | AZ42: 0.0169 | BA42: 0.0186 | BB42: 0.0202 | BC42: 0.0213 | BD42: 0.0214 | BE42: 0.0205 | BF42: 0.0184 | BG42: 0.0152 | BH42: 0.0112 | BI42: 0.0065 | BJ42: 0.0016 | BK42: -0.0031 | BL42: -0.0072 | BM42: -0.0104 | BN42: -0.0129 | BO42: -0.0126 | BP42: -0.0111 | BQ42: -0.0087 | BR42: -0.0057 | BS42: -0.0025 | BT42: 0.0008 | BU42: 0.0037 | BV42: 0.0061 | BW42: 0.0077 | BX42: 0.0086 | BY42: 0.0088 | BZ42: 0.0089 | CA42: 0.0089 | CB42: 0.0088 | CC42: 0.0089 | CD42: 0.0091 | CE42: 0.0093 | CF42: 0.0096 | CG42: 0.0099 | CH42: 0.01
A43: 60 | B43: 0.0309 | C43: 0.0277 | D43: 0.0245 | E43: 0.0212 | F43: 0.018 | G43: 0.0151 | H43: 0.0127 | I43: 0.0109 | J43: 0.0096 | K43: 0.0086 | L43: 0.008 | M43: 0.0076 | N43: 0.0074 | O43: 0.0073 | P43: 0.0073 | Q43: 0.0073 | R43: 0.0074 | S43: 0.008 | T43: 0.0091 | U43: 0.0108 | V43: 0.0128 | W43: 0.015 | X43: 0.0169 | Y43: 0.0184 | Z43: 0.019 | AA43: 0.0185 | AB43: 0.0171 | AC43: 0.0148 | AD43: 0.0119 | AE43: 0.009 | AF43: 0.0065 | AG43: 0.0047 | AH43: 0.0038 | AI43: 0.0039 | AJ43: 0.0046 | AK43: 0.0058 | AL43: 0.0072 | AM43: 0.0085 | AN43: 0.0095 | AO43: 0.0101 | AP43: 0.0103 | AQ43: 0.0101 | AR43: 0.0098 | AS43: 0.0097 | AT43: 0.0098 | AU43: 0.0103 | AV43: 0.0111 | AW43: 0.0122 | AX43: 0.0136 | AY43: 0.0153 | AZ43: 0.0172 | BA43: 0.0192 | BB43: 0.021 | BC43: 0.0224 | BD43: 0.0229 | BE43: 0.0223 | BF43: 0.0205 | BG43: 0.0177 | BH43: 0.0139 | BI43: 0.0093 | BJ43: 0.0044 | BK43: -0.0006 | BL43: -0.0051 | BM43: -0.0089 | BN43: -0.012 | BO43: -0.0121 | BP43: -0.011 | BQ43: -0.009 | BR43: -0.0064 | BS43: -0.0033 | BT43: -0.0001 | BU43: 0.0029 | BV43: 0.0054 | BW43: 0.0073 | BX43: 0.0083 | BY43: 0.0088 | BZ43: 0.009 | CA43: 0.0091 | CB43: 0.0091 | CC43: 0.0092 | CD43: 0.0093 | CE43: 0.0095 | CF43: 0.0097 | CG43: 0.0099 | CH43: 0.01
A44: 61 | B44: 0.0305 | C44: 0.0272 | D44: 0.0239 | E44: 0.0205 | F44: 0.0172 | G44: 0.0143 | H44: 0.0118 | I44: 0.01 | J44: 0.0087 | K44: 0.0079 | L44: 0.0076 | M44: 0.0076 | N44: 0.0079 | O44: 0.0083 | P44: 0.0087 | Q44: 0.0091 | R44: 0.0095 | S44: 0.01 | T44: 0.011 | U44: 0.0122 | V44: 0.0137 | W44: 0.0152 | X44: 0.0166 | Y44: 0.0176 | Z44: 0.0178 | AA44: 0.0172 | AB44: 0.0157 | AC44: 0.0135 | AD44: 0.0109 | AE44: 0.0082 | AF44: 0.0058 | AG44: 0.0041 | AH44: 0.0032 | AI44: 0.0033 | AJ44: 0.0041 | AK44: 0.0054 | AL44: 0.0069 | AM44: 0.0082 | AN44: 0.0092 | AO44: 0.0097 | AP44: 0.0097 | AQ44: 0.0093 | AR44: 0.0089 | AS44: 0.0086 | AT44: 0.0087 | AU44: 0.0093 | AV44: 0.0103 | AW44: 0.0116 | AX44: 0.0132 | AY44: 0.0152 | AZ44: 0.0173 | BA44: 0.0195 | BB44: 0.0215 | BC44: 0.023 | BD44: 0.0238 | BE44: 0.0235 | BF44: 0.0222 | BG44: 0.0197 | BH44: 0.0162 | BI44: 0.012 | BJ44: 0.0071 | BK44: 0.0021 | BL44: -0.0025 | BM44: -0.0067 | BN44: -0.0102 | BO44: -0.0108 | BP44: -0.0102 | BQ44: -0.0087 | BR44: -0.0065 | BS44: -0.0038 | BT44: -0.0008 | BU44: 0.0021 | BV44: 0.0047 | BW44: 0.0067 | BX44: 0.0079 | BY44: 0.0086 | BZ44: 0.009 | CA44: 0.0092 | CB44: 0.0093 | CC44: 0.0094 | CD44: 0.0094 | CE44: 0.0096 | CF44: 0.0097 | CG44: 0.0099 | CH44: 0.01
A45: 62 | B45: 0.0296 | C45: 0.0264 | D45: 0.0231 | E45: 0.0197 | F45: 0.0165 | G45: 0.0136 | H45: 0.0111 | I45: 0.0093 | J45: 0.0081 | K45: 0.0075 | L45: 0.0073 | M45: 0.0076 | N45: 0.0083 | O45: 0.0092 | P45: 0.01 | Q45: 0.0108 | R45: 0.0115 | S45: 0.0121 | T45: 0.0129 | U45: 0.0137 | V45: 0.0147 | W45: 0.0157 | X45: 0.0165 | Y45: 0.017 | Z45: 0.0168 | AA45: 0.0159 | AB45: 0.0143 | AC45: 0.0122 | AD45: 0.0097 | AE45: 0.0072 | AF45: 0.005 | AG45: 0.0034 | AH45: 0.0026 | AI45: 0.0027 | AJ45: 0.0036 | AK45: 0.005 | AL45: 0.0066 | AM45: 0.008 | AN45: 0.009 | AO45: 0.0094 | AP45: 0.0092 | AQ45: 0.0086 | AR45: 0.008 | AS45: 0.0076 | AT45: 0.0077 | AU45: 0.0083 | AV45: 0.0094 | AW45: 0.011 | AX45: 0.0128 | AY45: 0.0149 | AZ45: 0.0172 | BA45: 0.0195 | BB45: 0.0216 | BC45: 0.0233 | BD45: 0.0243 | BE45: 0.0243 | BF45: 0.0232 | BG45: 0.0211 | BH45: 0.0181 | BI45: 0.0142 | BJ45: 0.0097 | BK45: 0.0049 | BL45: 0.0002 | BM45: -0.004 | BN45: -0.0078 | BO45: -0.0087 | BP45: -0.0087 | BQ45: -0.0078 | BR45: -0.0061 | BS45: -0.0038 | BT45: -0.0012 | BU45: 0.0014 | BV45: 0.0039 | BW45: 0.0059 | BX45: 0.0073 | BY45: 0.0082 | BZ45: 0.0088 | CA45: 0.0092 | CB45: 0.0094 | CC45: 0.0095 | CD45: 0.0096 | CE45: 0.0097 | CF45: 0.0098 | CG45: 0.0099 | CH45: 0.01
A46: 63 | B46: 0.0285 | C46: 0.0253 | D46: 0.0221 | E46: 0.0189 | F46: 0.0159 | G46: 0.0131 | H46: 0.0108 | I46: 0.0091 | J46: 0.008 | K46: 0.0074 | L46: 0.0074 | M46: 0.0078 | N46: 0.0087 | O46: 0.0099 | P46: 0.0111 | Q46: 0.0123 | R46: 0.0133 | S46: 0.014 | T46: 0.0147 | U46: 0.0153 | V46: 0.0158 | W46: 0.0163 | X46: 0.0167 | Y46: 0.0166 | Z46: 0.0161 | AA46: 0.0149 | AB46: 0.0131 | AC46: 0.011 | AD46: 0.0086 | AE46: 0.0062 | AF46: 0.0042 | AG46: 0.0028 | AH46: 0.0021 | AI46: 0.0023 | AJ46: 0.0032 | AK46: 0.0047 | AL46: 0.0063 | AM46: 0.0077 | AN46: 0.0087 | AO46: 0.009 | AP46: 0.0087 | AQ46: 0.0079 | AR46: 0.0071 | AS46: 0.0067 | AT46: 0.0067 | AU46: 0.0074 | AV46: 0.0086 | AW46: 0.0102 | AX46: 0.0122 | AY46: 0.0145 | AZ46: 0.0169 | BA46: 0.0194 | BB46: 0.0216 | BC46: 0.0234 | BD46: 0.0244 | BE46: 0.0246 | BF46: 0.0238 | BG46: 0.0221 | BH46: 0.0194 | BI46: 0.016 | BJ46: 0.0118 | BK46: 0.0074 | BL46: 0.003 | BM46: -0.0011 | BN46: -0.0049 | BO46: -0.0061 | BP46: -0.0065 | BQ46: -0.0062 | BR46: -0.0051 | BS46: -0.0034 | BT46: -0.0013 | BU46: 0.001 | BV46: 0.0032 | BW46: 0.0052 | BX46: 0.0067 | BY46: 0.0077 | BZ46: 0.0085 | CA46: 0.0091 | CB46: 0.0094 | CC46: 0.0096 | CD46: 0.0097 | CE46: 0.0098 | CF46: 0.0099 | CG46: 0.0099 | CH46: 0.01
A47: 64 | B47: 0.0271 | C47: 0.0241 | D47: 0.0211 | E47: 0.0182 | F47: 0.0153 | G47: 0.0127 | H47: 0.0106 | I47: 0.0091 | J47: 0.0081 | K47: 0.0076 | L47: 0.0077 | M47: 0.0082 | N47: 0.0092 | O47: 0.0105 | P47: 0.012 | Q47: 0.0135 | R47: 0.0147 | S47: 0.0157 | T47: 0.0163 | U47: 0.0167 | V47: 0.0169 | W47: 0.017 | X47: 0.017 | Y47: 0.0166 | Z47: 0.0156 | AA47: 0.0141 | AB47: 0.0121 | AC47: 0.0099 | AD47: 0.0075 | AE47: 0.0053 | AF47: 0.0035 | AG47: 0.0022 | AH47: 0.0017 | AI47: 0.0019 | AJ47: 0.0029 | AK47: 0.0044 | AL47: 0.006 | AM47: 0.0075 | AN47: 0.0084 | AO47: 0.0086 | AP47: 0.0082 | AQ47: 0.0073 | AR47: 0.0064 | AS47: 0.0059 | AT47: 0.0059 | AU47: 0.0065 | AV47: 0.0077 | AW47: 0.0094 | AX47: 0.0115 | AY47: 0.0139 | AZ47: 0.0165 | BA47: 0.0191 | BB47: 0.0214 | BC47: 0.0232 | BD47: 0.0243 | BE47: 0.0246 | BF47: 0.024 | BG47: 0.0226 | BH47: 0.0203 | BI47: 0.0172 | BJ47: 0.0136 | BK47: 0.0096 | BL47: 0.0056 | BM47: 0.0018 | BN47: -0.0019 | BO47: -0.0032 | BP47: -0.004 | BQ47: -0.0042 | BR47: -0.0037 | BS47: -0.0026 | BT47: -0.0011 | BU47: 0.0007 | BV47: 0.0027 | BW47: 0.0045 | BX47: 0.006 | BY47: 0.0072 | BZ47: 0.0081 | CA47: 0.0088 | CB47: 0.0093 | CC47: 0.0096 | CD47: 0.0097 | CE47: 0.0098 | CF47: 0.0099 | CG47: 0.01 | CH47: 0.01
A48: 65 | B48: 0.0257 | C48: 0.0229 | D48: 0.0202 | E48: 0.0175 | F48: 0.0149 | G48: 0.0126 | H48: 0.0107 | I48: 0.0094 | J48: 0.0086 | K48: 0.0082 | L48: 0.0082 | M48: 0.0087 | N48: 0.0097 | O48: 0.0111 | P48: 0.0127 | Q48: 0.0143 | R48: 0.0158 | S48: 0.0169 | T48: 0.0176 | U48: 0.0179 | V48: 0.018 | W48: 0.0179 | X48: 0.0175 | Y48: 0.0168 | Z48: 0.0155 | AA48: 0.0136 | AB48: 0.0114 | AC48: 0.009 | AD48: 0.0066 | AE48: 0.0044 | AF48: 0.0027 | AG48: 0.0017 | AH48: 0.0013 | AI48: 0.0016 | AJ48: 0.0027 | AK48: 0.0042 | AL48: 0.0058 | AM48: 0.0072 | AN48: 0.0081 | AO48: 0.0083 | AP48: 0.0077 | AQ48: 0.0068 | AR48: 0.0058 | AS48: 0.0052 | AT48: 0.0051 | AU48: 0.0057 | AV48: 0.0069 | AW48: 0.0086 | AX48: 0.0107 | AY48: 0.0133 | AZ48: 0.016 | BA48: 0.0187 | BB48: 0.0211 | BC48: 0.0229 | BD48: 0.024 | BE48: 0.0244 | BF48: 0.0239 | BG48: 0.0227 | BH48: 0.0207 | BI48: 0.018 | BJ48: 0.0148 | BK48: 0.0114 | BL48: 0.0079 | BM48: 0.0045 | BN48: 0.0011 | BO48: -0.0002 | BP48: -0.0012 | BQ48: -0.0018 | BR48: -0.0019 | BS48: -0.0015 | BT48: -0.0006 | BU48: 0.0008 | BV48: 0.0023 | BW48: 0.0039 | BX48: 0.0054 | BY48: 0.0066 | BZ48: 0.0077 | CA48: 0.0085 | CB48: 0.0091 | CC48: 0.0095 | CD48: 0.0097 | CE48: 0.0098 | CF48: 0.0099 | CG48: 0.01 | CH48: 0.01
A49: 66 | B49: 0.0243 | C49: 0.0218 | D49: 0.0194 | E49: 0.017 | F49: 0.0146 | G49: 0.0126 | H49: 0.0111 | I49: 0.01 | J49: 0.0093 | K49: 0.0089 | L49: 0.0089 | M49: 0.0094 | N49: 0.0103 | O49: 0.0116 | P49: 0.0131 | Q49: 0.0148 | R49: 0.0164 | S49: 0.0177 | T49: 0.0186 | U49: 0.0189 | V49: 0.0189 | W49: 0.0187 | X49: 0.0182 | Y49: 0.0172 | Z49: 0.0157 | AA49: 0.0136 | AB49: 0.0111 | AC49: 0.0084 | AD49: 0.0059 | AE49: 0.0037 | AF49: 0.0021 | AG49: 0.0012 | AH49: 0.0009 | AI49: 0.0014 | AJ49: 0.0025 | AK49: 0.004 | AL49: 0.0057 | AM49: 0.007 | AN49: 0.0079 | AO49: 0.008 | AP49: 0.0074 | AQ49: 0.0064 | AR49: 0.0053 | AS49: 0.0046 | AT49: 0.0045 | AU49: 0.0049 | AV49: 0.006 | AW49: 0.0077 | AX49: 0.0099 | AY49: 0.0125 | AZ49: 0.0154 | BA49: 0.0181 | BB49: 0.0206 | BC49: 0.0224 | BD49: 0.0235 | BE49: 0.0239 | BF49: 0.0236 | BG49: 0.0225 | BH49: 0.0207 | BI49: 0.0184 | BJ49: 0.0156 | BK49: 0.0127 | BL49: 0.0097 | BM49: 0.0067 | BN49: 0.0038 | BO49: 0.0026 | BP49: 0.0014 | BQ49: 0.0005 | BR49: 0 | BS49: -0.0001 | BT49: 0.0003 | BU49: 0.0011 | BV49: 0.0022 | BW49: 0.0035 | BX49: 0.0048 | BY49: 0.0061 | BZ49: 0.0072 | CA49: 0.0081 | CB49: 0.0088 | CC49: 0.0093 | CD49: 0.0097 | CE49: 0.0098 | CF49: 0.0099 | CG49: 0.01 | CH49: 0.01
A50: 67 | B50: 0.0232 | C50: 0.021 | D50: 0.0188 | E50: 0.0166 | F50: 0.0146 | G50: 0.0128 | H50: 0.0115 | I50: 0.0106 | J50: 0.01 | K50: 0.0097 | L50: 0.0097 | M50: 0.0101 | N50: 0.0108 | O50: 0.012 | P50: 0.0134 | Q50: 0.0151 | R50: 0.0168 | S50: 0.0182 | T50: 0.0191 | U50: 0.0196 | V50: 0.0197 | W50: 0.0195 | X50: 0.019 | Y50: 0.0179 | Z50: 0.0162 | AA50: 0.0138 | AB50: 0.0111 | AC50: 0.0082 | AD50: 0.0056 | AE50: 0.0033 | AF50: 0.0017 | AG50: 0.0008 | AH50: 0.0006 | AI50: 0.0012 | AJ50: 0.0024 | AK50: 0.0039 | AL50: 0.0056 | AM50: 0.0069 | AN50: 0.0077 | AO50: 0.0078 | AP50: 0.0071 | AQ50: 0.0061 | AR50: 0.005 | AS50: 0.0042 | AT50: 0.0039 | AU50: 0.0042 | AV50: 0.0052 | AW50: 0.0068 | AX50: 0.0091 | AY50: 0.0117 | AZ50: 0.0146 | BA50: 0.0174 | BB50: 0.0199 | BC50: 0.0218 | BD50: 0.0229 | BE50: 0.0234 | BF50: 0.0231 | BG50: 0.0222 | BH50: 0.0206 | BI50: 0.0185 | BJ50: 0.0161 | BK50: 0.0136 | BL50: 0.011 | BM50: 0.0085 | BN50: 0.0059 | BO50: 0.0049 | BP50: 0.0039 | BQ50: 0.0028 | BR50: 0.002 | BS50: 0.0015 | BT50: 0.0013 | BU50: 0.0017 | BV50: 0.0024 | BW50: 0.0033 | BX50: 0.0045 | BY50: 0.0056 | BZ50: 0.0067 | CA50: 0.0078 | CB50: 0.0086 | CC50: 0.0092 | CD50: 0.0096 | CE50: 0.0098 | CF50: 0.0099 | CG50: 0.01 | CH50: 0.01
A51: 68 | B51: 0.0223 | C51: 0.0203 | D51: 0.0184 | E51: 0.0165 | F51: 0.0147 | G51: 0.0132 | H51: 0.012 | I51: 0.0112 | J51: 0.0107 | K51: 0.0105 | L51: 0.0105 | M51: 0.0107 | N51: 0.0114 | O51: 0.0123 | P51: 0.0136 | Q51: 0.0152 | R51: 0.0168 | S51: 0.0182 | T51: 0.0193 | U51: 0.02 | V51: 0.0203 | W51: 0.0203 | X51: 0.0198 | Y51: 0.0188 | Z51: 0.0169 | AA51: 0.0144 | AB51: 0.0115 | AC51: 0.0084 | AD51: 0.0056 | AE51: 0.0032 | AF51: 0.0015 | AG51: 0.0006 | AH51: 0.0004 | AI51: 0.0011 | AJ51: 0.0023 | AK51: 0.0039 | AL51: 0.0055 | AM51: 0.0069 | AN51: 0.0076 | AO51: 0.0076 | AP51: 0.007 | AQ51: 0.0059 | AR51: 0.0047 | AS51: 0.0038 | AT51: 0.0034 | AU51: 0.0036 | AV51: 0.0045 | AW51: 0.006 | AX51: 0.0082 | AY51: 0.0109 | AZ51: 0.0138 | BA51: 0.0166 | BB51: 0.0191 | BC51: 0.021 | BD51: 0.0222 | BE51: 0.0227 | BF51: 0.0226 | BG51: 0.0217 | BH51: 0.0203 | BI51: 0.0185 | BJ51: 0.0163 | BK51: 0.014 | BL51: 0.0118 | BM51: 0.0096 | BN51: 0.0075 | BO51: 0.0067 | BP51: 0.0058 | BQ51: 0.0048 | BR51: 0.0039 | BS51: 0.0031 | BT51: 0.0026 | BU51: 0.0025 | BV51: 0.0027 | BW51: 0.0034 | BX51: 0.0043 | BY51: 0.0053 | BZ51: 0.0064 | CA51: 0.0074 | CB51: 0.0083 | CC51: 0.009 | CD51: 0.0094 | CE51: 0.0097 | CF51: 0.0099 | CG51: 0.01 | CH51: 0.01
A52: 69 | B52: 0.0217 | C52: 0.02 | D52: 0.0183 | E52: 0.0166 | F52: 0.015 | G52: 0.0136 | H52: 0.0125 | I52: 0.0118 | J52: 0.0114 | K52: 0.0112 | L52: 0.0111 | M52: 0.0113 | N52: 0.0118 | O52: 0.0126 | P52: 0.0137 | Q52: 0.0151 | R52: 0.0166 | S52: 0.0181 | T52: 0.0193 | U52: 0.0202 | V52: 0.0208 | W52: 0.021 | X52: 0.0207 | Y52: 0.0197 | Z52: 0.0179 | AA52: 0.0153 | AB52: 0.0122 | AC52: 0.009 | AD52: 0.0059 | AE52: 0.0033 | AF52: 0.0015 | AG52: 0.0005 | AH52: 0.0004 | AI52: 0.001 | AJ52: 0.0022 | AK52: 0.0039 | AL52: 0.0055 | AM52: 0.0069 | AN52: 0.0076 | AO52: 0.0076 | AP52: 0.0069 | AQ52: 0.0057 | AR52: 0.0045 | AS52: 0.0036 | AT52: 0.003 | AU52: 0.0031 | AV52: 0.0039 | AW52: 0.0053 | AX52: 0.0074 | AY52: 0.01 | AZ52: 0.0129 | BA52: 0.0157 | BB52: 0.0182 | BC52: 0.0202 | BD52: 0.0215 | BE52: 0.0221 | BF52: 0.022 | BG52: 0.0212 | BH52: 0.02 | BI52: 0.0182 | BJ52: 0.0163 | BK52: 0.0142 | BL52: 0.0122 | BM52: 0.0103 | BN52: 0.0084 | BO52: 0.008 | BP52: 0.0073 | BQ52: 0.0065 | BR52: 0.0055 | BS52: 0.0046 | BT52: 0.0039 | BU52: 0.0034 | BV52: 0.0034 | BW52: 0.0037 | BX52: 0.0043 | BY52: 0.0051 | BZ52: 0.0061 | CA52: 0.0071 | CB52: 0.008 | CC52: 0.0088 | CD52: 0.0093 | CE52: 0.0097 | CF52: 0.0099 | CG52: 0.01 | CH52: 0.01
A53: 70 | B53: 0.0213 | C53: 0.0198 | D53: 0.0183 | E53: 0.0168 | F53: 0.0153 | G53: 0.014 | H53: 0.013 | I53: 0.0123 | J53: 0.0119 | K53: 0.0117 | L53: 0.0116 | M53: 0.0118 | N53: 0.0122 | O53: 0.0128 | P53: 0.0137 | Q53: 0.0149 | R53: 0.0163 | S53: 0.0177 | T53: 0.0191 | U53: 0.0203 | V53: 0.0212 | W53: 0.0217 | X53: 0.0216 | Y53: 0.0208 | Z53: 0.019 | AA53: 0.0164 | AB53: 0.0132 | AC53: 0.0098 | AD53: 0.0066 | AE53: 0.0038 | AF53: 0.0018 | AG53: 0.0007 | AH53: 0.0004 | AI53: 0.001 | AJ53: 0.0022 | AK53: 0.0039 | AL53: 0.0055 | AM53: 0.0069 | AN53: 0.0076 | AO53: 0.0076 | AP53: 0.0069 | AQ53: 0.0057 | AR53: 0.0044 | AS53: 0.0034 | AT53: 0.0027 | AU53: 0.0027 | AV53: 0.0033 | AW53: 0.0046 | AX53: 0.0066 | AY53: 0.0091 | AZ53: 0.012 | BA53: 0.0148 | BB53: 0.0173 | BC53: 0.0193 | BD53: 0.0207 | BE53: 0.0214 | BF53: 0.0214 | BG53: 0.0207 | BH53: 0.0196 | BI53: 0.0179 | BJ53: 0.016 | BK53: 0.0141 | BL53: 0.0122 | BM53: 0.0104 | BN53: 0.0089 | BO53: 0.0087 | BP53: 0.0083 | BQ53: 0.0076 | BR53: 0.0068 | BS53: 0.006 | BT53: 0.0051 | BU53: 0.0045 | BV53: 0.0042 | BW53: 0.0042 | BX53: 0.0045 | BY53: 0.0051 | BZ53: 0.006 | CA53: 0.0069 | CB53: 0.0078 | CC53: 0.0086 | CD53: 0.0092 | CE53: 0.0096 | CF53: 0.0099 | CG53: 0.01 | CH53: 0.01
A54: 71 | B54: 0.0211 | C54: 0.0197 | D54: 0.0183 | E54: 0.0169 | F54: 0.0156 | G54: 0.0144 | H54: 0.0134 | I54: 0.0127 | J54: 0.0123 | K54: 0.0121 | L54: 0.012 | M54: 0.0121 | N54: 0.0124 | O54: 0.0129 | P54: 0.0137 | Q54: 0.0147 | R54: 0.0159 | S54: 0.0174 | T54: 0.0189 | U54: 0.0203 | V54: 0.0214 | W54: 0.0222 | X54: 0.0224 | Y54: 0.0218 | Z54: 0.0202 | AA54: 0.0176 | AB54: 0.0145 | AC54: 0.011 | AD54: 0.0075 | AE54: 0.0046 | AF54: 0.0024 | AG54: 0.0011 | AH54: 0.0006 | AI54: 0.0011 | AJ54: 0.0023 | AK54: 0.0039 | AL54: 0.0056 | AM54: 0.007 | AN54: 0.0077 | AO54: 0.0077 | AP54: 0.0069 | AQ54: 0.0057 | AR54: 0.0044 | AS54: 0.0032 | AT54: 0.0025 | AU54: 0.0023 | AV54: 0.0028 | AW54: 0.004 | AX54: 0.0059 | AY54: 0.0083 | AZ54: 0.0111 | BA54: 0.0138 | BB54: 0.0164 | BC54: 0.0185 | BD54: 0.0199 | BE54: 0.0207 | BF54: 0.0208 | BG54: 0.0202 | BH54: 0.0191 | BI54: 0.0175 | BJ54: 0.0157 | BK54: 0.0138 | BL54: 0.0119 | BM54: 0.0103 | BN54: 0.0089 | BO54: 0.0089 | BP54: 0.0087 | BQ54: 0.0084 | BR54: 0.0078 | BS54: 0.0071 | BT54: 0.0063 | BU54: 0.0056 | BV54: 0.0051 | BW54: 0.0049 | BX54: 0.0049 | BY54: 0.0053 | BZ54: 0.006 | CA54: 0.0068 | CB54: 0.0076 | CC54: 0.0084 | CD54: 0.009 | CE54: 0.0095 | CF54: 0.0098 | CG54: 0.01 | CH54: 0.01
A55: 72 | B55: 0.0209 | C55: 0.0196 | D55: 0.0183 | E55: 0.017 | F55: 0.0157 | G55: 0.0146 | H55: 0.0136 | I55: 0.0129 | J55: 0.0125 | K55: 0.0122 | L55: 0.0121 | M55: 0.0122 | N55: 0.0124 | O55: 0.0129 | P55: 0.0135 | Q55: 0.0144 | R55: 0.0156 | S55: 0.0171 | T55: 0.0187 | U55: 0.0202 | V55: 0.0217 | W55: 0.0227 | X55: 0.0232 | Y55: 0.0227 | Z55: 0.0213 | AA55: 0.0189 | AB55: 0.0158 | AC55: 0.0122 | AD55: 0.0087 | AE55: 0.0056 | AF55: 0.0032 | AG55: 0.0016 | AH55: 0.001 | AI55: 0.0013 | AJ55: 0.0024 | AK55: 0.004 | AL55: 0.0057 | AM55: 0.007 | AN55: 0.0078 | AO55: 0.0077 | AP55: 0.0069 | AQ55: 0.0057 | AR55: 0.0043 | AS55: 0.0031 | AT55: 0.0023 | AU55: 0.002 | AV55: 0.0024 | AW55: 0.0034 | AX55: 0.0052 | AY55: 0.0075 | AZ55: 0.0102 | BA55: 0.013 | BB55: 0.0155 | BC55: 0.0177 | BD55: 0.0192 | BE55: 0.02 | BF55: 0.0202 | BG55: 0.0196 | BH55: 0.0185 | BI55: 0.017 | BJ55: 0.0152 | BK55: 0.0133 | BL55: 0.0115 | BM55: 0.0099 | BN55: 0.0086 | BO55: 0.0088 | BP55: 0.0088 | BQ55: 0.0087 | BR55: 0.0084 | BS55: 0.0079 | BT55: 0.0073 | BU55: 0.0067 | BV55: 0.0061 | BW55: 0.0057 | BX55: 0.0055 | BY55: 0.0057 | BZ55: 0.0061 | CA55: 0.0068 | CB55: 0.0075 | CC55: 0.0083 | CD55: 0.0089 | CE55: 0.0094 | CF55: 0.0098 | CG55: 0.01 | CH55: 0.01
A56: 73 | B56: 0.0207 | C56: 0.0195 | D56: 0.0182 | E56: 0.017 | F56: 0.0157 | G56: 0.0146 | H56: 0.0137 | I56: 0.013 | J56: 0.0126 | K56: 0.0123 | L56: 0.0121 | M56: 0.0121 | N56: 0.0123 | O56: 0.0127 | P56: 0.0133 | Q56: 0.0142 | R56: 0.0154 | S56: 0.0169 | T56: 0.0185 | U56: 0.0202 | V56: 0.0218 | W56: 0.0231 | X56: 0.0238 | Y56: 0.0236 | Z56: 0.0224 | AA56: 0.0202 | AB56: 0.0171 | AC56: 0.0136 | AD56: 0.01 | AE56: 0.0067 | AF56: 0.0041 | AG56: 0.0023 | AH56: 0.0015 | AI56: 0.0017 | AJ56: 0.0027 | AK56: 0.0041 | AL56: 0.0057 | AM56: 0.0071 | AN56: 0.0078 | AO56: 0.0077 | AP56: 0.007 | AQ56: 0.0057 | AR56: 0.0043 | AS56: 0.003 | AT56: 0.0021 | AU56: 0.0017 | AV56: 0.002 | AW56: 0.0029 | AX56: 0.0046 | AY56: 0.0068 | AZ56: 0.0094 | BA56: 0.0122 | BB56: 0.0148 | BC56: 0.0169 | BD56: 0.0185 | BE56: 0.0194 | BF56: 0.0195 | BG56: 0.019 | BH56: 0.0179 | BI56: 0.0164 | BJ56: 0.0146 | BK56: 0.0128 | BL56: 0.011 | BM56: 0.0094 | BN56: 0.0081 | BO56: 0.0084 | BP56: 0.0086 | BQ56: 0.0087 | BR56: 0.0087 | BS56: 0.0084 | BT56: 0.008 | BU56: 0.0075 | BV56: 0.007 | BW56: 0.0066 | BX56: 0.0063 | BY56: 0.0062 | BZ56: 0.0064 | CA56: 0.0069 | CB56: 0.0075 | CC56: 0.0082 | CD56: 0.0088 | CE56: 0.0094 | CF56: 0.0097 | CG56: 0.0099 | CH56: 0.01
A57: 74 | B57: 0.0204 | C57: 0.0192 | D57: 0.0179 | E57: 0.0167 | F57: 0.0155 | G57: 0.0144 | H57: 0.0135 | I57: 0.0129 | J57: 0.0124 | K57: 0.0121 | L57: 0.012 | M57: 0.0119 | N57: 0.0121 | O57: 0.0125 | P57: 0.0131 | Q57: 0.014 | R57: 0.0153 | S57: 0.0168 | T57: 0.0185 | U57: 0.0203 | V57: 0.022 | W57: 0.0234 | X57: 0.0244 | Y57: 0.0244 | Z57: 0.0234 | AA57: 0.0214 | AB57: 0.0184 | AC57: 0.015 | AD57: 0.0113 | AE57: 0.0079 | AF57: 0.0052 | AG57: 0.0032 | AH57: 0.0022 | AI57: 0.0022 | AJ57: 0.003 | AK57: 0.0043 | AL57: 0.0058 | AM57: 0.0071 | AN57: 0.0078 | AO57: 0.0077 | AP57: 0.0069 | AQ57: 0.0056 | AR57: 0.0042 | AS57: 0.0028 | AT57: 0.0019 | AU57: 0.0015 | AV57: 0.0016 | AW57: 0.0025 | AX57: 0.004 | AY57: 0.0062 | AZ57: 0.0088 | BA57: 0.0115 | BB57: 0.0141 | BC57: 0.0163 | BD57: 0.0179 | BE57: 0.0188 | BF57: 0.0189 | BG57: 0.0184 | BH57: 0.0173 | BI57: 0.0158 | BJ57: 0.014 | BK57: 0.0122 | BL57: 0.0104 | BM57: 0.0089 | BN57: 0.0075 | BO57: 0.0078 | BP57: 0.0082 | BQ57: 0.0085 | BR57: 0.0086 | BS57: 0.0087 | BT57: 0.0085 | BU57: 0.0082 | BV57: 0.0078 | BW57: 0.0074 | BX57: 0.007 | BY57: 0.0068 | BZ57: 0.0069 | CA57: 0.0071 | CB57: 0.0076 | CC57: 0.0082 | CD57: 0.0088 | CE57: 0.0093 | CF57: 0.0097 | CG57: 0.0099 | CH57: 0.01
A58: 75 | B58: 0.0199 | C58: 0.0186 | D58: 0.0174 | E58: 0.0162 | F58: 0.015 | G58: 0.014 | H58: 0.0131 | I58: 0.0125 | J58: 0.0121 | K58: 0.0118 | L58: 0.0116 | M58: 0.0116 | N58: 0.0118 | O58: 0.0123 | P58: 0.013 | Q58: 0.0139 | R58: 0.0152 | S58: 0.0167 | T58: 0.0185 | U58: 0.0204 | V58: 0.0222 | W58: 0.0237 | X58: 0.0248 | Y58: 0.0251 | Z58: 0.0243 | AA58: 0.0224 | AB58: 0.0197 | AC58: 0.0163 | AD58: 0.0126 | AE58: 0.0092 | AF58: 0.0063 | AG58: 0.0042 | AH58: 0.003 | AI58: 0.0027 | AJ58: 0.0033 | AK58: 0.0045 | AL58: 0.0059 | AM58: 0.0071 | AN58: 0.0077 | AO58: 0.0077 | AP58: 0.0069 | AQ58: 0.0055 | AR58: 0.004 | AS58: 0.0027 | AT58: 0.0017 | AU58: 0.0012 | AV58: 0.0013 | AW58: 0.002 | AX58: 0.0035 | AY58: 0.0056 | AZ58: 0.0082 | BA58: 0.011 | BB58: 0.0136 | BC58: 0.0158 | BD58: 0.0174 | BE58: 0.0182 | BF58: 0.0183 | BG58: 0.0178 | BH58: 0.0167 | BI58: 0.0151 | BJ58: 0.0133 | BK58: 0.0115 | BL58: 0.0098 | BM58: 0.0082 | BN58: 0.0068 | BO58: 0.0072 | BP58: 0.0076 | BQ58: 0.0081 | BR58: 0.0084 | BS58: 0.0087 | BT58: 0.0088 | BU58: 0.0087 | BV58: 0.0085 | BW58: 0.0081 | BX58: 0.0078 | BY58: 0.0075 | BZ58: 0.0074 | CA58: 0.0075 | CB58: 0.0078 | CC58: 0.0083 | CD58: 0.0088 | CE58: 0.0093 | CF58: 0.0097 | CG58: 0.0099 | CH58: 0.01
A59: 76 | B59: 0.0191 | C59: 0.0178 | D59: 0.0166 | E59: 0.0154 | F59: 0.0143 | G59: 0.0133 | H59: 0.0125 | I59: 0.0119 | J59: 0.0116 | K59: 0.0113 | L59: 0.0112 | M59: 0.0113 | N59: 0.0115 | O59: 0.012 | P59: 0.0128 | Q59: 0.0138 | R59: 0.0152 | S59: 0.0168 | T59: 0.0186 | U59: 0.0205 | V59: 0.0223 | W59: 0.024 | X59: 0.0252 | Y59: 0.0256 | Z59: 0.025 | AA59: 0.0233 | AB59: 0.0207 | AC59: 0.0174 | AD59: 0.0139 | AE59: 0.0104 | AF59: 0.0075 | AG59: 0.0052 | AH59: 0.0038 | AI59: 0.0034 | AJ59: 0.0038 | AK59: 0.0048 | AL59: 0.006 | AM59: 0.0071 | AN59: 0.0077 | AO59: 0.0075 | AP59: 0.0067 | AQ59: 0.0054 | AR59: 0.0038 | AS59: 0.0024 | AT59: 0.0014 | AU59: 0.0008 | AV59: 0.0009 | AW59: 0.0016 | AX59: 0.003 | AY59: 0.0051 | AZ59: 0.0077 | BA59: 0.0105 | BB59: 0.0132 | BC59: 0.0154 | BD59: 0.0169 | BE59: 0.0177 | BF59: 0.0178 | BG59: 0.0172 | BH59: 0.016 | BI59: 0.0144 | BJ59: 0.0127 | BK59: 0.0108 | BL59: 0.0091 | BM59: 0.0075 | BN59: 0.0061 | BO59: 0.0065 | BP59: 0.007 | BQ59: 0.0075 | BR59: 0.008 | BS59: 0.0085 | BT59: 0.0088 | BU59: 0.0089 | BV59: 0.0089 | BW59: 0.0087 | BX59: 0.0084 | BY59: 0.0081 | BZ59: 0.0079 | CA59: 0.0079 | CB59: 0.0081 | CC59: 0.0084 | CD59: 0.0089 | CE59: 0.0093 | CF59: 0.0097 | CG59: 0.0099 | CH59: 0.01
A60: 77 | B60: 0.018 | C60: 0.0168 | D60: 0.0156 | E60: 0.0144 | F60: 0.0133 | G60: 0.0124 | H60: 0.0117 | I60: 0.0112 | J60: 0.0109 | K60: 0.0107 | L60: 0.0107 | M60: 0.0108 | N60: 0.0112 | O60: 0.0118 | P60: 0.0127 | Q60: 0.0138 | R60: 0.0152 | S60: 0.0169 | T60: 0.0187 | U60: 0.0207 | V60: 0.0225 | W60: 0.0242 | X60: 0.0255 | Y60: 0.026 | Z60: 0.0255 | AA60: 0.024 | AB60: 0.0216 | AC60: 0.0185 | AD60: 0.015 | AE60: 0.0116 | AF60: 0.0086 | AG60: 0.0063 | AH60: 0.0047 | AI60: 0.0041 | AJ60: 0.0043 | AK60: 0.0051 | AL60: 0.0061 | AM60: 0.0071 | AN60: 0.0076 | AO60: 0.0074 | AP60: 0.0065 | AQ60: 0.0051 | AR60: 0.0036 | AS60: 0.0021 | AT60: 0.001 | AU60: 0.0004 | AV60: 0.0004 | AW60: 0.0011 | AX60: 0.0025 | AY60: 0.0046 | AZ60: 0.0073 | BA60: 0.0101 | BB60: 0.0128 | BC60: 0.015 | BD60: 0.0166 | BE60: 0.0173 | BF60: 0.0173 | BG60: 0.0166 | BH60: 0.0154 | BI60: 0.0138 | BJ60: 0.012 | BK60: 0.0102 | BL60: 0.0084 | BM60: 0.0068 | BN60: 0.0053 | BO60: 0.0058 | BP60: 0.0063 | BQ60: 0.0069 | BR60: 0.0076 | BS60: 0.0082 | BT60: 0.0086 | BU60: 0.009 | BV60: 0.0091 | BW60: 0.0091 | BX60: 0.0089 | BY60: 0.0086 | BZ60: 0.0084 | CA60: 0.0083 | CB60: 0.0084 | CC60: 0.0086 | CD60: 0.0089 | CE60: 0.0093 | CF60: 0.0097 | CG60: 0.0099 | CH60: 0.01
A61: 78 | B61: 0.0167 | C61: 0.0155 | D61: 0.0143 | E61: 0.0132 | F61: 0.0122 | G61: 0.0113 | H61: 0.0106 | I61: 0.0102 | J61: 0.01 | K61: 0.0099 | L61: 0.0101 | M61: 0.0104 | N61: 0.0109 | O61: 0.0117 | P61: 0.0126 | Q61: 0.0139 | R61: 0.0153 | S61: 0.017 | T61: 0.0189 | U61: 0.0208 | V61: 0.0227 | W61: 0.0244 | X61: 0.0257 | Y61: 0.0262 | Z61: 0.0259 | AA61: 0.0245 | AB61: 0.0223 | AC61: 0.0193 | AD61: 0.016 | AE61: 0.0126 | AF61: 0.0097 | AG61: 0.0073 | AH61: 0.0056 | AI61: 0.0048 | AJ61: 0.0048 | AK61: 0.0054 | AL61: 0.0063 | AM61: 0.0071 | AN61: 0.0075 | AO61: 0.0072 | AP61: 0.0063 | AQ61: 0.0049 | AR61: 0.0032 | AS61: 0.0017 | AT61: 0.0005 | AU61: -0.0001 | AV61: -0.0001 | AW61: 0.0006 | AX61: 0.002 | AY61: 0.0042 | AZ61: 0.0069 | BA61: 0.0098 | BB61: 0.0125 | BC61: 0.0148 | BD61: 0.0163 | BE61: 0.017 | BF61: 0.0169 | BG61: 0.0162 | BH61: 0.0149 | BI61: 0.0132 | BJ61: 0.0114 | BK61: 0.0095 | BL61: 0.0078 | BM61: 0.0061 | BN61: 0.0046 | BO61: 0.005 | BP61: 0.0056 | BQ61: 0.0063 | BR61: 0.0071 | BS61: 0.0078 | BT61: 0.0084 | BU61: 0.0089 | BV61: 0.0092 | BW61: 0.0093 | BX61: 0.0093 | BY61: 0.009 | BZ61: 0.0089 | CA61: 0.0087 | CB61: 0.0087 | CC61: 0.0088 | CD61: 0.0091 | CE61: 0.0094 | CF61: 0.0097 | CG61: 0.0099 | CH61: 0.01
A62: 79 | B62: 0.0151 | C62: 0.014 | D62: 0.0129 | E62: 0.0118 | F62: 0.0108 | G62: 0.01 | H62: 0.0094 | I62: 0.009 | J62: 0.009 | K62: 0.0091 | L62: 0.0094 | M62: 0.0099 | N62: 0.0106 | O62: 0.0115 | P62: 0.0126 | Q62: 0.0139 | R62: 0.0155 | S62: 0.0172 | T62: 0.0191 | U62: 0.021 | V62: 0.0229 | W62: 0.0245 | X62: 0.0258 | Y62: 0.0264 | Z62: 0.0261 | AA62: 0.0248 | AB62: 0.0227 | AC62: 0.0199 | AD62: 0.0167 | AE62: 0.0135 | AF62: 0.0106 | AG62: 0.0082 | AH62: 0.0065 | AI62: 0.0055 | AJ62: 0.0054 | AK62: 0.0058 | AL62: 0.0064 | AM62: 0.0071 | AN62: 0.0073 | AO62: 0.007 | AP62: 0.006 | AQ62: 0.0045 | AR62: 0.0028 | AS62: 0.0012 | AT62: 0 | AU62: -0.0007 | AV62: -0.0007 | AW62: 0 | AX62: 0.0015 | AY62: 0.0038 | AZ62: 0.0065 | BA62: 0.0094 | BB62: 0.0122 | BC62: 0.0145 | BD62: 0.016 | BE62: 0.0167 | BF62: 0.0166 | BG62: 0.0158 | BH62: 0.0144 | BI62: 0.0127 | BJ62: 0.0108 | BK62: 0.0089 | BL62: 0.0071 | BM62: 0.0055 | BN62: 0.0039 | BO62: 0.0043 | BP62: 0.005 | BQ62: 0.0057 | BR62: 0.0065 | BS62: 0.0073 | BT62: 0.0081 | BU62: 0.0087 | BV62: 0.0092 | BW62: 0.0094 | BX62: 0.0095 | BY62: 0.0093 | BZ62: 0.0092 | CA62: 0.0091 | CB62: 0.009 | CC62: 0.0091 | CD62: 0.0092 | CE62: 0.0095 | CF62: 0.0097 | CG62: 0.0099 | CH62: 0.01
A63: 80 | B63: 0.0133 | C63: 0.0123 | D63: 0.0112 | E63: 0.0102 | F63: 0.0093 | G63: 0.0086 | H63: 0.008 | I63: 0.0078 | J63: 0.0078 | K63: 0.0081 | L63: 0.0087 | M63: 0.0094 | N63: 0.0103 | O63: 0.0113 | P63: 0.0126 | Q63: 0.014 | R63: 0.0156 | S63: 0.0174 | T63: 0.0193 | U63: 0.0212 | V63: 0.023 | W63: 0.0246 | X63: 0.0258 | Y63: 0.0264 | Z63: 0.0261 | AA63: 0.025 | AB63: 0.023 | AC63: 0.0203 | AD63: 0.0173 | AE63: 0.0142 | AF63: 0.0114 | AG63: 0.009 | AH63: 0.0073 | AI63: 0.0062 | AJ63: 0.0059 | AK63: 0.0061 | AL63: 0.0066 | AM63: 0.007 | AN63: 0.0071 | AO63: 0.0067 | AP63: 0.0056 | AQ63: 0.0041 | AR63: 0.0023 | AS63: 0.0007 | AT63: -0.0005 | AU63: -0.0013 | AV63: -0.0013 | AW63: -0.0006 | AX63: 0.001 | AY63: 0.0033 | AZ63: 0.0061 | BA63: 0.0091 | BB63: 0.0119 | BC63: 0.0142 | BD63: 0.0157 | BE63: 0.0164 | BF63: 0.0163 | BG63: 0.0154 | BH63: 0.014 | BI63: 0.0122 | BJ63: 0.0103 | BK63: 0.0083 | BL63: 0.0065 | BM63: 0.0049 | BN63: 0.0033 | BO63: 0.0037 | BP63: 0.0043 | BQ63: 0.0051 | BR63: 0.006 | BS63: 0.0069 | BT63: 0.0077 | BU63: 0.0084 | BV63: 0.009 | BW63: 0.0094 | BX63: 0.0095 | BY63: 0.0095 | BZ63: 0.0094 | CA63: 0.0093 | CB63: 0.0093 | CC63: 0.0093 | CD63: 0.0094 | CE63: 0.0095 | CF63: 0.0098 | CG63: 0.0099 | CH63: 0.01
A64: 81 | B64: 0.0114 | C64: 0.0104 | D64: 0.0095 | E64: 0.0086 | F64: 0.0077 | G64: 0.007 | H64: 0.0066 | I64: 0.0065 | J64: 0.0067 | K64: 0.0071 | L64: 0.0079 | M64: 0.0088 | N64: 0.0099 | O64: 0.0112 | P64: 0.0126 | Q64: 0.0141 | R64: 0.0158 | S64: 0.0176 | T64: 0.0195 | U64: 0.0214 | V64: 0.0231 | W64: 0.0247 | X64: 0.0258 | Y64: 0.0263 | Z64: 0.026 | AA64: 0.0249 | AB64: 0.0231 | AC64: 0.0206 | AD64: 0.0177 | AE64: 0.0148 | AF64: 0.0121 | AG64: 0.0097 | AH64: 0.0079 | AI64: 0.0068 | AJ64: 0.0064 | AK64: 0.0064 | AL64: 0.0067 | AM64: 0.007 | AN64: 0.007 | AO64: 0.0064 | AP64: 0.0052 | AQ64: 0.0036 | AR64: 0.0018 | AS64: 0.0001 | AT64: -0.0012 | AU64: -0.0019 | AV64: -0.002 | AW64: -0.0012 | AX64: 0.0004 | AY64: 0.0028 | AZ64: 0.0056 | BA64: 0.0087 | BB64: 0.0115 | BC64: 0.0138 | BD64: 0.0154 | BE64: 0.0161 | BF64: 0.016 | BG64: 0.0151 | BH64: 0.0136 | BI64: 0.0118 | BJ64: 0.0098 | BK64: 0.0079 | BL64: 0.006 | BM64: 0.0044 | BN64: 0.0028 | BO64: 0.0032 | BP64: 0.0038 | BQ64: 0.0045 | BR64: 0.0054 | BS64: 0.0064 | BT64: 0.0073 | BU64: 0.0081 | BV64: 0.0088 | BW64: 0.0093 | BX64: 0.0095 | BY64: 0.0095 | BZ64: 0.0095 | CA64: 0.0095 | CB64: 0.0094 | CC64: 0.0095 | CD64: 0.0095 | CE64: 0.0096 | CF64: 0.0098 | CG64: 0.0099 | CH64: 0.01
A65: 82 | B65: 0.0093 | C65: 0.0085 | D65: 0.0076 | E65: 0.0068 | F65: 0.0061 | G65: 0.0055 | H65: 0.0052 | I65: 0.0052 | J65: 0.0055 | K65: 0.0061 | L65: 0.007 | M65: 0.0082 | N65: 0.0095 | O65: 0.0109 | P65: 0.0125 | Q65: 0.0142 | R65: 0.016 | S65: 0.0178 | T65: 0.0197 | U65: 0.0216 | V65: 0.0232 | W65: 0.0246 | X65: 0.0256 | Y65: 0.0261 | Z65: 0.0258 | AA65: 0.0247 | AB65: 0.0229 | AC65: 0.0206 | AD65: 0.0179 | AE65: 0.0151 | AF65: 0.0125 | AG65: 0.0103 | AH65: 0.0085 | AI65: 0.0073 | AJ65: 0.0068 | AK65: 0.0067 | AL65: 0.0068 | AM65: 0.0069 | AN65: 0.0067 | AO65: 0.006 | AP65: 0.0048 | AQ65: 0.0031 | AR65: 0.0012 | AS65: -0.0005 | AT65: -0.0018 | AU65: -0.0026 | AV65: -0.0026 | AW65: -0.0018 | AX65: -0.0002 | AY65: 0.0022 | AZ65: 0.0051 | BA65: 0.0082 | BB65: 0.0111 | BC65: 0.0135 | BD65: 0.015 | BE65: 0.0158 | BF65: 0.0157 | BG65: 0.0148 | BH65: 0.0133 | BI65: 0.0115 | BJ65: 0.0095 | BK65: 0.0075 | BL65: 0.0057 | BM65: 0.004 | BN65: 0.0024 | BO65: 0.0027 | BP65: 0.0033 | BQ65: 0.0041 | BR65: 0.005 | BS65: 0.0059 | BT65: 0.0069 | BU65: 0.0078 | BV65: 0.0086 | BW65: 0.0091 | BX65: 0.0094 | BY65: 0.0095 | BZ65: 0.0096 | CA65: 0.0096 | CB65: 0.0095 | CC65: 0.0096 | CD65: 0.0096 | CE65: 0.0097 | CF65: 0.0098 | CG65: 0.0099 | CH65: 0.01
A66: 83 | B66: 0.0072 | C66: 0.0065 | D66: 0.0058 | E66: 0.005 | F66: 0.0044 | G66: 0.004 | H66: 0.0038 | I66: 0.0039 | J66: 0.0043 | K66: 0.0051 | L66: 0.0062 | M66: 0.0075 | N66: 0.009 | O66: 0.0107 | P66: 0.0125 | Q66: 0.0143 | R66: 0.0162 | S66: 0.0181 | T66: 0.0199 | U66: 0.0217 | V66: 0.0232 | W66: 0.0245 | X66: 0.0254 | Y66: 0.0257 | Z66: 0.0254 | AA66: 0.0244 | AB66: 0.0227 | AC66: 0.0205 | AD66: 0.0179 | AE66: 0.0153 | AF66: 0.0129 | AG66: 0.0107 | AH66: 0.0089 | AI66: 0.0078 | AJ66: 0.0071 | AK66: 0.0068 | AL66: 0.0068 | AM66: 0.0068 | AN66: 0.0065 | AO66: 0.0057 | AP66: 0.0043 | AQ66: 0.0026 | AR66: 0.0006 | AS66: -0.0011 | AT66: -0.0025 | AU66: -0.0033 | AV66: -0.0033 | AW66: -0.0025 | AX66: -0.0008 | AY66: 0.0016 | AZ66: 0.0045 | BA66: 0.0076 | BB66: 0.0106 | BC66: 0.013 | BD66: 0.0146 | BE66: 0.0154 | BF66: 0.0153 | BG66: 0.0145 | BH66: 0.0131 | BI66: 0.0112 | BJ66: 0.0092 | BK66: 0.0073 | BL66: 0.0054 | BM66: 0.0037 | BN66: 0.0021 | BO66: 0.0024 | BP66: 0.0029 | BQ66: 0.0036 | BR66: 0.0045 | BS66: 0.0055 | BT66: 0.0065 | BU66: 0.0075 | BV66: 0.0083 | BW66: 0.0089 | BX66: 0.0092 | BY66: 0.0094 | BZ66: 0.0095 | CA66: 0.0096 | CB66: 0.0096 | CC66: 0.0096 | CD66: 0.0097 | CE66: 0.0097 | CF66: 0.0099 | CG66: 0.01 | CH66: 0.01
A67: 84 | B67: 0.0051 | C67: 0.0045 | D67: 0.0038 | E67: 0.0033 | F67: 0.0028 | G67: 0.0025 | H67: 0.0024 | I67: 0.0027 | J67: 0.0032 | K67: 0.0042 | L67: 0.0054 | M67: 0.0069 | N67: 0.0086 | O67: 0.0104 | P67: 0.0124 | Q67: 0.0144 | R67: 0.0164 | S67: 0.0183 | T67: 0.0201 | U67: 0.0218 | V67: 0.0232 | W67: 0.0244 | X67: 0.0251 | Y67: 0.0253 | Z67: 0.025 | AA67: 0.0239 | AB67: 0.0223 | AC67: 0.0202 | AD67: 0.0178 | AE67: 0.0153 | AF67: 0.013 | AG67: 0.0109 | AH67: 0.0092 | AI67: 0.008 | AJ67: 0.0073 | AK67: 0.0069 | AL67: 0.0068 | AM67: 0.0066 | AN67: 0.0061 | AO67: 0.0052 | AP67: 0.0038 | AQ67: 0.002 | AR67: 0 | AS67: -0.0018 | AT67: -0.0031 | AU67: -0.0039 | AV67: -0.004 | AW67: -0.0032 | AX67: -0.0015 | AY67: 0.001 | AZ67: 0.0039 | BA67: 0.007 | BB67: 0.01 | BC67: 0.0124 | BD67: 0.0141 | BE67: 0.015 | BF67: 0.015 | BG67: 0.0142 | BH67: 0.0128 | BI67: 0.011 | BJ67: 0.0091 | BK67: 0.0071 | BL67: 0.0052 | BM67: 0.0035 | BN67: 0.0019 | BO67: 0.0021 | BP67: 0.0026 | BQ67: 0.0033 | BR67: 0.0042 | BS67: 0.0052 | BT67: 0.0061 | BU67: 0.0071 | BV67: 0.008 | BW67: 0.0086 | BX67: 0.009 | BY67: 0.0093 | BZ67: 0.0094 | CA67: 0.0095 | CB67: 0.0096 | CC67: 0.0096 | CD67: 0.0097 | CE67: 0.0097 | CF67: 0.0098 | CG67: 0.01 | CH67: 0.01
A68: 85 | B68: 0.0029 | C68: 0.0024 | D68: 0.002 | E68: 0.0015 | F68: 0.0012 | G68: 0.001 | H68: 0.0011 | I68: 0.0015 | J68: 0.0022 | K68: 0.0033 | L68: 0.0046 | M68: 0.0063 | N68: 0.0081 | O68: 0.0102 | P68: 0.0123 | Q68: 0.0144 | R68: 0.0165 | S68: 0.0185 | T68: 0.0203 | U68: 0.0218 | V68: 0.0231 | W68: 0.0241 | X68: 0.0247 | Y68: 0.0248 | Z68: 0.0244 | AA68: 0.0234 | AB68: 0.0218 | AC68: 0.0198 | AD68: 0.0175 | AE68: 0.0152 | AF68: 0.013 | AG68: 0.011 | AH68: 0.0094 | AI68: 0.0082 | AJ68: 0.0074 | AK68: 0.007 | AL68: 0.0067 | AM68: 0.0063 | AN68: 0.0057 | AO68: 0.0047 | AP68: 0.0032 | AQ68: 0.0014 | AR68: -0.0006 | AS68: -0.0024 | AT68: -0.0038 | AU68: -0.0046 | AV68: -0.0046 | AW68: -0.0038 | AX68: -0.0021 | AY68: 0.0003 | AZ68: 0.0032 | BA68: 0.0063 | BB68: 0.0093 | BC68: 0.0117 | BD68: 0.0135 | BE68: 0.0144 | BF68: 0.0145 | BG68: 0.0139 | BH68: 0.0126 | BI68: 0.0108 | BJ68: 0.0089 | BK68: 0.007 | BL68: 0.0052 | BM68: 0.0034 | BN68: 0.0018 | BO68: 0.0019 | BP68: 0.0024 | BQ68: 0.0031 | BR68: 0.0039 | BS68: 0.0048 | BT68: 0.0058 | BU68: 0.0068 | BV68: 0.0076 | BW68: 0.0083 | BX68: 0.0088 | BY68: 0.0091 | BZ68: 0.0093 | CA68: 0.0094 | CB68: 0.0095 | CC68: 0.0096 | CD68: 0.0096 | CE68: 0.0097 | CF68: 0.0098 | CG68: 0.0099 | CH68: 0.01
A69: 86 | B69: 0.0007 | C69: 0.0004 | D69: 0.0001 | E69: -0.0002 | F69: -0.0003 | G69: -0.0003 | H69: -0.0001 | I69: 0.0005 | J69: 0.0013 | K69: 0.0025 | L69: 0.004 | M69: 0.0057 | N69: 0.0077 | O69: 0.0099 | P69: 0.0122 | Q69: 0.0144 | R69: 0.0166 | S69: 0.0186 | T69: 0.0203 | U69: 0.0218 | V69: 0.023 | W69: 0.0238 | X69: 0.0243 | Y69: 0.0243 | Z69: 0.0237 | AA69: 0.0227 | AB69: 0.0212 | AC69: 0.0193 | AD69: 0.0171 | AE69: 0.015 | AF69: 0.0129 | AG69: 0.011 | AH69: 0.0094 | AI69: 0.0082 | AJ69: 0.0074 | AK69: 0.0068 | AL69: 0.0064 | AM69: 0.006 | AN69: 0.0053 | AO69: 0.0041 | AP69: 0.0026 | AQ69: 0.0007 | AR69: -0.0012 | AS69: -0.003 | AT69: -0.0044 | AU69: -0.0052 | AV69: -0.0052 | AW69: -0.0044 | AX69: -0.0028 | AY69: -0.0004 | AZ69: 0.0025 | BA69: 0.0056 | BB69: 0.0085 | BC69: 0.011 | BD69: 0.0128 | BE69: 0.0138 | BF69: 0.014 | BG69: 0.0135 | BH69: 0.0123 | BI69: 0.0107 | BJ69: 0.0088 | BK69: 0.007 | BL69: 0.0052 | BM69: 0.0034 | BN69: 0.0017 | BO69: 0.0019 | BP69: 0.0023 | BQ69: 0.0029 | BR69: 0.0036 | BS69: 0.0045 | BT69: 0.0055 | BU69: 0.0064 | BV69: 0.0073 | BW69: 0.008 | BX69: 0.0085 | BY69: 0.0088 | BZ69: 0.009 | CA69: 0.0092 | CB69: 0.0094 | CC69: 0.0095 | CD69: 0.0095 | CE69: 0.0096 | CF69: 0.0097 | CG69: 0.0098 | CH69: 0.0099
A70: 87 | B70: -0.0014 | C70: -0.0015 | D70: -0.0017 | E70: -0.0017 | F70: -0.0017 | G70: -0.0015 | H70: -0.0011 | I70: -0.0004 | J70: 0.0006 | K70: 0.0018 | L70: 0.0034 | M70: 0.0053 | N70: 0.0074 | O70: 0.0097 | P70: 0.0121 | Q70: 0.0144 | R70: 0.0166 | S70: 0.0186 | T70: 0.0203 | U70: 0.0217 | V70: 0.0227 | W70: 0.0234 | X70: 0.0237 | Y70: 0.0236 | Z70: 0.023 | AA70: 0.0219 | AB70: 0.0204 | AC70: 0.0186 | AD70: 0.0166 | AE70: 0.0146 | AF70: 0.0126 | AG70: 0.0108 | AH70: 0.0093 | AI70: 0.0081 | AJ70: 0.0073 | AK70: 0.0066 | AL70: 0.0061 | AM70: 0.0055 | AN70: 0.0047 | AO70: 0.0035 | AP70: 0.002 | AQ70: 0.0001 | AR70: -0.0019 | AS70: -0.0036 | AT70: -0.005 | AU70: -0.0057 | AV70: -0.0057 | AW70: -0.005 | AX70: -0.0034 | AY70: -0.0011 | AZ70: 0.0017 | BA70: 0.0048 | BB70: 0.0077 | BC70: 0.0102 | BD70: 0.012 | BE70: 0.0131 | BF70: 0.0134 | BG70: 0.013 | BH70: 0.012 | BI70: 0.0105 | BJ70: 0.0088 | BK70: 0.007 | BL70: 0.0052 | BM70: 0.0034 | BN70: 0.0017 | BO70: 0.0018 | BP70: 0.0022 | BQ70: 0.0028 | BR70: 0.0035 | BS70: 0.0043 | BT70: 0.0052 | BU70: 0.0061 | BV70: 0.0069 | BW70: 0.0076 | BX70: 0.0081 | BY70: 0.0085 | BZ70: 0.0088 | CA70: 0.009 | CB70: 0.0092 | CC70: 0.0093 | CD70: 0.0094 | CE70: 0.0095 | CF70: 0.0095 | CG70: 0.0096 | CH70: 0.0097
A71: 88 | B71: -0.0035 | C71: -0.0035 | D71: -0.0034 | E71: -0.0032 | F71: -0.003 | G71: -0.0026 | H71: -0.002 | I71: -0.0012 | J71: -0.0001 | K71: 0.0013 | L71: 0.003 | M71: 0.005 | N71: 0.0072 | O71: 0.0095 | P71: 0.012 | Q71: 0.0143 | R71: 0.0166 | S71: 0.0185 | T71: 0.0202 | U71: 0.0215 | V71: 0.0224 | W71: 0.023 | X71: 0.0231 | Y71: 0.0229 | Z71: 0.0222 | AA71: 0.0211 | AB71: 0.0197 | AC71: 0.0179 | AD71: 0.016 | AE71: 0.0141 | AF71: 0.0123 | AG71: 0.0106 | AH71: 0.0091 | AI71: 0.0079 | AJ71: 0.007 | AK71: 0.0063 | AL71: 0.0057 | AM71: 0.005 | AN71: 0.0041 | AO71: 0.0029 | AP71: 0.0013 | AQ71: -0.0006 | AR71: -0.0025 | AS71: -0.0042 | AT71: -0.0055 | AU71: -0.0062 | AV71: -0.0062 | AW71: -0.0055 | AX71: -0.004 | AY71: -0.0017 | AZ71: 0.001 | BA71: 0.0039 | BB71: 0.0068 | BC71: 0.0093 | BD71: 0.0112 | BE71: 0.0123 | BF71: 0.0128 | BG71: 0.0125 | BH71: 0.0116 | BI71: 0.0103 | BJ71: 0.0087 | BK71: 0.0069 | BL71: 0.0052 | BM71: 0.0035 | BN71: 0.0018 | BO71: 0.0019 | BP71: 0.0022 | BQ71: 0.0027 | BR71: 0.0033 | BS71: 0.0041 | BT71: 0.0049 | BU71: 0.0058 | BV71: 0.0066 | BW71: 0.0072 | BX71: 0.0077 | BY71: 0.0081 | BZ71: 0.0085 | CA71: 0.0088 | CB71: 0.009 | CC71: 0.0091 | CD71: 0.0092 | CE71: 0.0093 | CF71: 0.0094 | CG71: 0.0095 | CH71: 0.0096
A72: 89 | B72: -0.0056 | C72: -0.0053 | D72: -0.005 | E72: -0.0046 | F72: -0.0041 | G72: -0.0035 | H72: -0.0028 | I72: -0.0018 | J72: -0.0005 | K72: 0.001 | L72: 0.0028 | M72: 0.0048 | N72: 0.007 | O72: 0.0094 | P72: 0.0119 | Q72: 0.0143 | R72: 0.0165 | S72: 0.0184 | T72: 0.02 | U72: 0.0212 | V72: 0.022 | W72: 0.0224 | X72: 0.0224 | Y72: 0.0221 | Z72: 0.0213 | AA72: 0.0202 | AB72: 0.0188 | AC72: 0.0172 | AD72: 0.0154 | AE72: 0.0136 | AF72: 0.0118 | AG72: 0.0102 | AH72: 0.0088 | AI72: 0.0076 | AJ72: 0.0066 | AK72: 0.0058 | AL72: 0.0051 | AM72: 0.0044 | AN72: 0.0034 | AO72: 0.0022 | AP72: 0.0006 | AQ72: -0.0012 | AR72: -0.0031 | AS72: -0.0047 | AT72: -0.0059 | AU72: -0.0066 | AV72: -0.0067 | AW72: -0.006 | AX72: -0.0045 | AY72: -0.0023 | AZ72: 0.0003 | BA72: 0.0031 | BB72: 0.0059 | BC72: 0.0083 | BD72: 0.0102 | BE72: 0.0115 | BF72: 0.012 | BG72: 0.0119 | BH72: 0.0112 | BI72: 0.01 | BJ72: 0.0085 | BK72: 0.0069 | BL72: 0.0053 | BM72: 0.0036 | BN72: 0.0019 | BO72: 0.002 | BP72: 0.0022 | BQ72: 0.0027 | BR72: 0.0033 | BS72: 0.004 | BT72: 0.0047 | BU72: 0.0055 | BV72: 0.0063 | BW72: 0.0069 | BX72: 0.0074 | BY72: 0.0078 | BZ72: 0.0081 | CA72: 0.0085 | CB72: 0.0088 | CC72: 0.0089 | CD72: 0.0091 | CE72: 0.0092 | CF72: 0.0092 | CG72: 0.0093 | CH72: 0.0094
A73: 90 | B73: -0.0076 | C73: -0.007 | D73: -0.0064 | E73: -0.0058 | F73: -0.0051 | G73: -0.0043 | H73: -0.0034 | I73: -0.0022 | J73: -0.0008 | K73: 0.0008 | L73: 0.0027 | M73: 0.0048 | N73: 0.007 | O73: 0.0094 | P73: 0.0118 | Q73: 0.0142 | R73: 0.0163 | S73: 0.0181 | T73: 0.0196 | U73: 0.0207 | V73: 0.0214 | W73: 0.0217 | X73: 0.0217 | Y73: 0.0212 | Z73: 0.0204 | AA73: 0.0193 | AB73: 0.0179 | AC73: 0.0163 | AD73: 0.0146 | AE73: 0.0129 | AF73: 0.0113 | AG73: 0.0097 | AH73: 0.0083 | AI73: 0.0071 | AJ73: 0.0061 | AK73: 0.0053 | AL73: 0.0045 | AM73: 0.0037 | AN73: 0.0027 | AO73: 0.0014 | AP73: -0.0001 | AQ73: -0.0019 | AR73: -0.0036 | AS73: -0.0052 | AT73: -0.0064 | AU73: -0.007 | AV73: -0.007 | AW73: -0.0064 | AX73: -0.005 | AY73: -0.0029 | AZ73: -0.0004 | BA73: 0.0023 | BB73: 0.005 | BC73: 0.0074 | BD73: 0.0093 | BE73: 0.0106 | BF73: 0.0112 | BG73: 0.0112 | BH73: 0.0107 | BI73: 0.0097 | BJ73: 0.0084 | BK73: 0.0069 | BL73: 0.0053 | BM73: 0.0037 | BN73: 0.002 | BO73: 0.0021 | BP73: 0.0023 | BQ73: 0.0027 | BR73: 0.0033 | BS73: 0.0039 | BT73: 0.0046 | BU73: 0.0053 | BV73: 0.006 | BW73: 0.0066 | BX73: 0.007 | BY73: 0.0074 | BZ73: 0.0078 | CA73: 0.0081 | CB73: 0.0084 | CC73: 0.0087 | CD73: 0.0089 | CE73: 0.009 | CF73: 0.0091 | CG73: 0.0092 | CH73: 0.0093
A74: 91 | B74: -0.0095 | C74: -0.0086 | D74: -0.0078 | E74: -0.0069 | F74: -0.006 | G74: -0.0049 | H74: -0.0038 | I74: -0.0024 | J74: -0.0009 | K74: 0.0008 | L74: 0.0027 | M74: 0.0048 | N74: 0.0071 | O74: 0.0095 | P74: 0.0118 | Q74: 0.014 | R74: 0.0161 | S74: 0.0178 | T74: 0.0192 | U74: 0.0202 | V74: 0.0208 | W74: 0.021 | X74: 0.0208 | Y74: 0.0203 | Z74: 0.0194 | AA74: 0.0183 | AB74: 0.0169 | AC74: 0.0154 | AD74: 0.0138 | AE74: 0.0122 | AF74: 0.0106 | AG74: 0.0091 | AH74: 0.0078 | AI74: 0.0066 | AJ74: 0.0055 | AK74: 0.0046 | AL74: 0.0038 | AM74: 0.0029 | AN74: 0.0018 | AO74: 0.0006 | AP74: -0.0009 | AQ74: -0.0025 | AR74: -0.0042 | AS74: -0.0056 | AT74: -0.0067 | AU74: -0.0073 | AV74: -0.0073 | AW74: -0.0067 | AX74: -0.0054 | AY74: -0.0034 | AZ74: -0.0011 | BA74: 0.0015 | BB74: 0.004 | BC74: 0.0064 | BD74: 0.0082 | BE74: 0.0096 | BF74: 0.0104 | BG74: 0.0105 | BH74: 0.0101 | BI74: 0.0093 | BJ74: 0.0081 | BK74: 0.0068 | BL74: 0.0053 | BM74: 0.0038 | BN74: 0.0022 | BO74: 0.0022 | BP74: 0.0024 | BQ74: 0.0028 | BR74: 0.0033 | BS74: 0.0039 | BT74: 0.0045 | BU74: 0.0051 | BV74: 0.0058 | BW74: 0.0063 | BX74: 0.0067 | BY74: 0.0071 | BZ74: 0.0074 | CA74: 0.0078 | CB74: 0.0081 | CC74: 0.0084 | CD74: 0.0087 | CE74: 0.0088 | CF74: 0.0089 | CG74: 0.009 | CH74: 0.0091
A75: 92 | B75: -0.0113 | C75: -0.0102 | D75: -0.009 | E75: -0.0079 | F75: -0.0067 | G75: -0.0054 | H75: -0.004 | I75: -0.0025 | J75: -0.0008 | K75: 0.001 | L75: 0.003 | M75: 0.0051 | N75: 0.0073 | O75: 0.0096 | P75: 0.0118 | Q75: 0.0139 | R75: 0.0158 | S75: 0.0174 | T75: 0.0187 | U75: 0.0195 | V75: 0.02 | W75: 0.0201 | X75: 0.0199 | Y75: 0.0193 | Z75: 0.0184 | AA75: 0.0173 | AB75: 0.0159 | AC75: 0.0145 | AD75: 0.013 | AE75: 0.0114 | AF75: 0.0099 | AG75: 0.0084 | AH75: 0.0071 | AI75: 0.0059 | AJ75: 0.0048 | AK75: 0.0039 | AL75: 0.003 | AM75: 0.002 | AN75: 0.001 | AO75: -0.0002 | AP75: -0.0017 | AQ75: -0.0032 | AR75: -0.0047 | AS75: -0.006 | AT75: -0.007 | AU75: -0.0076 | AV75: -0.0076 | AW75: -0.0069 | AX75: -0.0057 | AY75: -0.0039 | AZ75: -0.0017 | BA75: 0.0007 | BB75: 0.0031 | BC75: 0.0053 | BD75: 0.0072 | BE75: 0.0086 | BF75: 0.0094 | BG75: 0.0097 | BH75: 0.0095 | BI75: 0.0088 | BJ75: 0.0079 | BK75: 0.0067 | BL75: 0.0053 | BM75: 0.0039 | BN75: 0.0025 | BO75: 0.0024 | BP75: 0.0026 | BQ75: 0.0029 | BR75: 0.0033 | BS75: 0.0039 | BT75: 0.0044 | BU75: 0.005 | BV75: 0.0056 | BW75: 0.0061 | BX75: 0.0065 | BY75: 0.0068 | BZ75: 0.0071 | CA75: 0.0075 | CB75: 0.0078 | CC75: 0.0081 | CD75: 0.0084 | CE75: 0.0087 | CF75: 0.0088 | CG75: 0.0089 | CH75: 0.009
A76: 93 | B76: -0.013 | C76: -0.0115 | D76: -0.0101 | E76: -0.0087 | F76: -0.0072 | G76: -0.0057 | H76: -0.0041 | I76: -0.0024 | J76: -0.0006 | K76: 0.0013 | L76: 0.0033 | M76: 0.0054 | N76: 0.0076 | O76: 0.0097 | P76: 0.0118 | Q76: 0.0138 | R76: 0.0155 | S76: 0.0169 | T76: 0.018 | U76: 0.0188 | V76: 0.0191 | W76: 0.0191 | X76: 0.0188 | Y76: 0.0182 | Z76: 0.0173 | AA76: 0.0162 | AB76: 0.0149 | AC76: 0.0135 | AD76: 0.012 | AE76: 0.0106 | AF76: 0.0091 | AG76: 0.0077 | AH76: 0.0063 | AI76: 0.0051 | AJ76: 0.004 | AK76: 0.003 | AL76: 0.0021 | AM76: 0.0011 | AN76: 0.0001 | AO76: -0.0011 | AP76: -0.0024 | AQ76: -0.0038 | AR76: -0.0052 | AS76: -0.0064 | AT76: -0.0073 | AU76: -0.0077 | AV76: -0.0077 | AW76: -0.0071 | AX76: -0.0059 | AY76: -0.0043 | AZ76: -0.0023 | BA76: 0 | BB76: 0.0022 | BC76: 0.0043 | BD76: 0.0061 | BE76: 0.0075 | BF76: 0.0084 | BG76: 0.0089 | BH76: 0.0088 | BI76: 0.0083 | BJ76: 0.0075 | BK76: 0.0065 | BL76: 0.0053 | BM76: 0.0041 | BN76: 0.0028 | BO76: 0.0027 | BP76: 0.0028 | BQ76: 0.0031 | BR76: 0.0034 | BS76: 0.0039 | BT76: 0.0044 | BU76: 0.0049 | BV76: 0.0054 | BW76: 0.0059 | BX76: 0.0062 | BY76: 0.0065 | BZ76: 0.0068 | CA76: 0.0072 | CB76: 0.0075 | CC76: 0.0078 | CD76: 0.0081 | CE76: 0.0084 | CF76: 0.0086 | CG76: 0.0087 | CH76: 0.0088
A77: 94 | B77: -0.0145 | C77: -0.0128 | D77: -0.0111 | E77: -0.0093 | F77: -0.0076 | G77: -0.0058 | H77: -0.004 | I77: -0.0021 | J77: -0.0001 | K77: 0.0018 | L77: 0.0039 | M77: 0.0059 | N77: 0.008 | O77: 0.01 | P77: 0.0119 | Q77: 0.0136 | R77: 0.0151 | S77: 0.0164 | T77: 0.0173 | U77: 0.0179 | V77: 0.0181 | W77: 0.0181 | X77: 0.0177 | Y77: 0.017 | Z77: 0.0161 | AA77: 0.015 | AB77: 0.0138 | AC77: 0.0125 | AD77: 0.0111 | AE77: 0.0096 | AF77: 0.0082 | AG77: 0.0068 | AH77: 0.0055 | AI77: 0.0043 | AJ77: 0.0031 | AK77: 0.0021 | AL77: 0.0011 | AM77: 0.0001 | AN77: -0.0009 | AO77: -0.002 | AP77: -0.0032 | AQ77: -0.0045 | AR77: -0.0057 | AS77: -0.0067 | AT77: -0.0074 | AU77: -0.0078 | AV77: -0.0078 | AW77: -0.0072 | AX77: -0.0061 | AY77: -0.0046 | AZ77: -0.0028 | BA77: -0.0007 | BB77: 0.0014 | BC77: 0.0033 | BD77: 0.005 | BE77: 0.0064 | BF77: 0.0074 | BG77: 0.0079 | BH77: 0.008 | BI77: 0.0077 | BJ77: 0.0071 | BK77: 0.0063 | BL77: 0.0053 | BM77: 0.0043 | BN77: 0.0032 | BO77: 0.003 | BP77: 0.0031 | BQ77: 0.0033 | BR77: 0.0036 | BS77: 0.0039 | BT77: 0.0044 | BU77: 0.0048 | BV77: 0.0053 | BW77: 0.0057 | BX77: 0.006 | BY77: 0.0062 | BZ77: 0.0065 | CA77: 0.0069 | CB77: 0.0072 | CC77: 0.0075 | CD77: 0.0078 | CE77: 0.0081 | CF77: 0.0083 | CG77: 0.0086 | CH77: 0.0087
A78: 95 | B78: -0.016 | C78: -0.0139 | D78: -0.0119 | E78: -0.0098 | F78: -0.0078 | G78: -0.0057 | H78: -0.0037 | I78: -0.0016 | J78: 0.0005 | K78: 0.0025 | L78: 0.0046 | M78: 0.0066 | N78: 0.0085 | O78: 0.0103 | P78: 0.012 | Q78: 0.0135 | R78: 0.0147 | S78: 0.0157 | T78: 0.0165 | U78: 0.0169 | V78: 0.017 | W78: 0.0169 | X78: 0.0165 | Y78: 0.0158 | Z78: 0.0149 | AA78: 0.0139 | AB78: 0.0127 | AC78: 0.0114 | AD78: 0.01 | AE78: 0.0087 | AF78: 0.0073 | AG78: 0.0059 | AH78: 0.0046 | AI78: 0.0033 | AJ78: 0.0022 | AK78: 0.0011 | AL78: 0.0001 | AM78: -0.0009 | AN78: -0.0019 | AO78: -0.003 | AP78: -0.004 | AQ78: -0.0051 | AR78: -0.0061 | AS78: -0.007 | AT78: -0.0076 | AU78: -0.0078 | AV78: -0.0077 | AW78: -0.0072 | AX78: -0.0062 | AY78: -0.0049 | AZ78: -0.0032 | BA78: -0.0014 | BB78: 0.0005 | BC78: 0.0023 | BD78: 0.0039 | BE78: 0.0053 | BF78: 0.0063 | BG78: 0.0069 | BH78: 0.0072 | BI78: 0.0071 | BJ78: 0.0067 | BK78: 0.0061 | BL78: 0.0053 | BM78: 0.0045 | BN78: 0.0036 | BO78: 0.0034 | BP78: 0.0034 | BQ78: 0.0035 | BR78: 0.0037 | BS78: 0.004 | BT78: 0.0044 | BU78: 0.0048 | BV78: 0.0052 | BW78: 0.0055 | BX78: 0.0058 | BY78: 0.006 | BZ78: 0.0063 | CA78: 0.0066 | CB78: 0.0069 | CC78: 0.0072 | CD78: 0.0075 | CE78: 0.0078 | CF78: 0.008 | CG78: 0.0083 | CH78: 0.0085
A79: 96 | B79: -0.0152 | C79: -0.0132 | D79: -0.0113 | E79: -0.0093 | F79: -0.0074 | G79: -0.0054 | H79: -0.0035 | I79: -0.0015 | J79: 0.0005 | K79: 0.0024 | L79: 0.0043 | M79: 0.0062 | N79: 0.0081 | O79: 0.0098 | P79: 0.0114 | Q79: 0.0128 | R79: 0.014 | S79: 0.0149 | T79: 0.0156 | U79: 0.0161 | V79: 0.0162 | W79: 0.0161 | X79: 0.0156 | Y79: 0.015 | Z79: 0.0142 | AA79: 0.0132 | AB79: 0.012 | AC79: 0.0108 | AD79: 0.0095 | AE79: 0.0082 | AF79: 0.0069 | AG79: 0.0056 | AH79: 0.0043 | AI79: 0.0032 | AJ79: 0.0021 | AK79: 0.001 | AL79: 0.0001 | AM79: -0.0009 | AN79: -0.0018 | AO79: -0.0028 | AP79: -0.0038 | AQ79: -0.0048 | AR79: -0.0058 | AS79: -0.0066 | AT79: -0.0072 | AU79: -0.0075 | AV79: -0.0073 | AW79: -0.0068 | AX79: -0.0059 | AY79: -0.0046 | AZ79: -0.0031 | BA79: -0.0013 | BB79: 0.0005 | BC79: 0.0022 | BD79: 0.0038 | BE79: 0.005 | BF79: 0.006 | BG79: 0.0066 | BH79: 0.0068 | BI79: 0.0067 | BJ79: 0.0064 | BK79: 0.0058 | BL79: 0.0051 | BM79: 0.0043 | BN79: 0.0034 | BO79: 0.0033 | BP79: 0.0032 | BQ79: 0.0034 | BR79: 0.0036 | BS79: 0.0038 | BT79: 0.0042 | BU79: 0.0045 | BV79: 0.0049 | BW79: 0.0052 | BX79: 0.0055 | BY79: 0.0057 | BZ79: 0.006 | CA79: 0.0062 | CB79: 0.0065 | CC79: 0.0068 | CD79: 0.0071 | CE79: 0.0074 | CF79: 0.0076 | CG79: 0.0079 | CH79: 0.0081
A80: 97 | B80: -0.0144 | C80: -0.0125 | D80: -0.0107 | E80: -0.0089 | F80: -0.007 | G80: -0.0052 | H80: -0.0033 | I80: -0.0014 | J80: 0.0004 | K80: 0.0023 | L80: 0.0041 | M80: 0.0059 | N80: 0.0076 | O80: 0.0093 | P80: 0.0108 | Q80: 0.0121 | R80: 0.0133 | S80: 0.0142 | T80: 0.0148 | U80: 0.0152 | V80: 0.0153 | W80: 0.0152 | X80: 0.0148 | Y80: 0.0142 | Z80: 0.0134 | AA80: 0.0125 | AB80: 0.0114 | AC80: 0.0102 | AD80: 0.009 | AE80: 0.0078 | AF80: 0.0065 | AG80: 0.0053 | AH80: 0.0041 | AI80: 0.003 | AJ80: 0.0019 | AK80: 0.001 | AL80: 0.0001 | AM80: -0.0008 | AN80: -0.0017 | AO80: -0.0027 | AP80: -0.0036 | AQ80: -0.0046 | AR80: -0.0055 | AS80: -0.0063 | AT80: -0.0068 | AU80: -0.0071 | AV80: -0.007 | AW80: -0.0065 | AX80: -0.0056 | AY80: -0.0044 | AZ80: -0.0029 | BA80: -0.0012 | BB80: 0.0005 | BC80: 0.0021 | BD80: 0.0036 | BE80: 0.0048 | BF80: 0.0057 | BG80: 0.0062 | BH80: 0.0065 | BI80: 0.0064 | BJ80: 0.006 | BK80: 0.0055 | BL80: 0.0048 | BM80: 0.004 | BN80: 0.0032 | BO80: 0.0031 | BP80: 0.0031 | BQ80: 0.0032 | BR80: 0.0034 | BS80: 0.0036 | BT80: 0.004 | BU80: 0.0043 | BV80: 0.0046 | BW80: 0.0049 | BX80: 0.0052 | BY80: 0.0054 | BZ80: 0.0056 | CA80: 0.0059 | CB80: 0.0062 | CC80: 0.0065 | CD80: 0.0067 | CE80: 0.007 | CF80: 0.0072 | CG80: 0.0075 | CH80: 0.0077
A81: 98 | B81: -0.0136 | C81: -0.0118 | D81: -0.0101 | E81: -0.0084 | F81: -0.0066 | G81: -0.0049 | H81: -0.0031 | I81: -0.0014 | J81: 0.0004 | K81: 0.0022 | L81: 0.0039 | M81: 0.0056 | N81: 0.0072 | O81: 0.0088 | P81: 0.0102 | Q81: 0.0114 | R81: 0.0125 | S81: 0.0134 | T81: 0.014 | U81: 0.0144 | V81: 0.0145 | W81: 0.0144 | X81: 0.014 | Y81: 0.0134 | Z81: 0.0127 | AA81: 0.0118 | AB81: 0.0108 | AC81: 0.0097 | AD81: 0.0085 | AE81: 0.0074 | AF81: 0.0062 | AG81: 0.005 | AH81: 0.0039 | AI81: 0.0028 | AJ81: 0.0018 | AK81: 0.0009 | AL81: 0.0001 | AM81: -0.0008 | AN81: -0.0016 | AO81: -0.0025 | AP81: -0.0034 | AQ81: -0.0043 | AR81: -0.0052 | AS81: -0.0059 | AT81: -0.0064 | AU81: -0.0067 | AV81: -0.0066 | AW81: -0.0061 | AX81: -0.0053 | AY81: -0.0041 | AZ81: -0.0027 | BA81: -0.0012 | BB81: 0.0004 | BC81: 0.002 | BD81: 0.0034 | BE81: 0.0045 | BF81: 0.0054 | BG81: 0.0059 | BH81: 0.0061 | BI81: 0.006 | BJ81: 0.0057 | BK81: 0.0052 | BL81: 0.0045 | BM81: 0.0038 | BN81: 0.003 | BO81: 0.0029 | BP81: 0.0029 | BQ81: 0.003 | BR81: 0.0032 | BS81: 0.0034 | BT81: 0.0037 | BU81: 0.0041 | BV81: 0.0044 | BW81: 0.0047 | BX81: 0.0049 | BY81: 0.0051 | BZ81: 0.0053 | CA81: 0.0056 | CB81: 0.0059 | CC81: 0.0061 | CD81: 0.0064 | CE81: 0.0066 | CF81: 0.0068 | CG81: 0.007 | CH81: 0.0072
A82: 99 | B82: -0.0128 | C82: -0.0112 | D82: -0.0095 | E82: -0.0079 | F82: -0.0062 | G82: -0.0046 | H82: -0.0029 | I82: -0.0013 | J82: 0.0004 | K82: 0.002 | L82: 0.0037 | M82: 0.0053 | N82: 0.0068 | O82: 0.0082 | P82: 0.0096 | Q82: 0.0108 | R82: 0.0118 | S82: 0.0126 | T82: 0.0132 | U82: 0.0135 | V82: 0.0136 | W82: 0.0135 | X82: 0.0132 | Y82: 0.0126 | Z82: 0.0119 | AA82: 0.0111 | AB82: 0.0101 | AC82: 0.0091 | AD82: 0.008 | AE82: 0.0069 | AF82: 0.0058 | AG82: 0.0047 | AH82: 0.0037 | AI82: 0.0027 | AJ82: 0.0017 | AK82: 0.0009 | AL82: 0.0001 | AM82: -0.0007 | AN82: -0.0015 | AO82: -0.0024 | AP82: -0.0032 | AQ82: -0.0041 | AR82: -0.0049 | AS82: -0.0056 | AT82: -0.0061 | AU82: -0.0063 | AV82: -0.0062 | AW82: -0.0058 | AX82: -0.005 | AY82: -0.0039 | AZ82: -0.0026 | BA82: -0.0011 | BB82: 0.0004 | BC82: 0.0019 | BD82: 0.0032 | BE82: 0.0042 | BF82: 0.005 | BG82: 0.0055 | BH82: 0.0057 | BI82: 0.0057 | BJ82: 0.0054 | BK82: 0.0049 | BL82: 0.0043 | BM82: 0.0036 | BN82: 0.0029 | BO82: 0.0027 | BP82: 0.0027 | BQ82: 0.0028 | BR82: 0.003 | BS82: 0.0032 | BT82: 0.0035 | BU82: 0.0038 | BV82: 0.0041 | BW82: 0.0044 | BX82: 0.0046 | BY82: 0.0048 | BZ82: 0.005 | CA82: 0.0053 | CB82: 0.0055 | CC82: 0.0058 | CD82: 0.006 | CE82: 0.0062 | CF82: 0.0064 | CG82: 0.0066 | CH82: 0.0068
A83: 100 | B83: -0.012 | C83: -0.0105 | D83: -0.0089 | E83: -0.0074 | F83: -0.0058 | G83: -0.0043 | H83: -0.0027 | I83: -0.0012 | J83: 0.0004 | K83: 0.0019 | L83: 0.0034 | M83: 0.0049 | N83: 0.0064 | O83: 0.0077 | P83: 0.009 | Q83: 0.0101 | R83: 0.011 | S83: 0.0118 | T83: 0.0124 | U83: 0.0127 | V83: 0.0128 | W83: 0.0127 | X83: 0.0124 | Y83: 0.0119 | Z83: 0.0112 | AA83: 0.0104 | AB83: 0.0095 | AC83: 0.0085 | AD83: 0.0075 | AE83: 0.0065 | AF83: 0.0054 | AG83: 0.0044 | AH83: 0.0034 | AI83: 0.0025 | AJ83: 0.0016 | AK83: 0.0008 | AL83: 0.0001 | AM83: -0.0007 | AN83: -0.0014 | AO83: -0.0022 | AP83: -0.003 | AQ83: -0.0038 | AR83: -0.0046 | AS83: -0.0052 | AT83: -0.0057 | AU83: -0.0059 | AV83: -0.0058 | AW83: -0.0054 | AX83: -0.0047 | AY83: -0.0037 | AZ83: -0.0024 | BA83: -0.001 | BB83: 0.0004 | BC83: 0.0017 | BD83: 0.003 | BE83: 0.004 | BF83: 0.0047 | BG83: 0.0052 | BH83: 0.0054 | BI83: 0.0053 | BJ83: 0.005 | BK83: 0.0046 | BL83: 0.004 | BM83: 0.0034 | BN83: 0.0027 | BO83: 0.0026 | BP83: 0.0026 | BQ83: 0.0026 | BR83: 0.0028 | BS83: 0.003 | BT83: 0.0033 | BU83: 0.0036 | BV83: 0.0039 | BW83: 0.0041 | BX83: 0.0043 | BY83: 0.0045 | BZ83: 0.0047 | CA83: 0.0049 | CB83: 0.0052 | CC83: 0.0054 | CD83: 0.0056 | CE83: 0.0058 | CF83: 0.006 | CG83: 0.0062 | CH83: 0.0064
A84: 101 | B84: -0.0112 | C84: -0.0098 | D84: -0.0083 | E84: -0.0069 | F84: -0.0055 | G84: -0.004 | H84: -0.0026 | I84: -0.0011 | J84: 0.0003 | K84: 0.0018 | L84: 0.0032 | M84: 0.0046 | N84: 0.0059 | O84: 0.0072 | P84: 0.0084 | Q84: 0.0094 | R84: 0.0103 | S84: 0.011 | T84: 0.0115 | U84: 0.0118 | V84: 0.0119 | W84: 0.0118 | X84: 0.0115 | Y84: 0.0111 | Z84: 0.0104 | AA84: 0.0097 | AB84: 0.0089 | AC84: 0.008 | AD84: 0.007 | AE84: 0.0061 | AF84: 0.0051 | AG84: 0.0041 | AH84: 0.0032 | AI84: 0.0023 | AJ84: 0.0015 | AK84: 0.0008 | AL84: 0 | AM84: -0.0006 | AN84: -0.0013 | AO84: -0.0021 | AP84: -0.0028 | AQ84: -0.0036 | AR84: -0.0043 | AS84: -0.0049 | AT84: -0.0053 | AU84: -0.0055 | AV84: -0.0054 | AW84: -0.005 | AX84: -0.0044 | AY84: -0.0034 | AZ84: -0.0023 | BA84: -0.001 | BB84: 0.0004 | BC84: 0.0016 | BD84: 0.0028 | BE84: 0.0037 | BF84: 0.0044 | BG84: 0.0049 | BH84: 0.005 | BI84: 0.005 | BJ84: 0.0047 | BK84: 0.0043 | BL84: 0.0037 | BM84: 0.0031 | BN84: 0.0025 | BO84: 0.0024 | BP84: 0.0024 | BQ84: 0.0025 | BR84: 0.0026 | BS84: 0.0028 | BT84: 0.0031 | BU84: 0.0033 | BV84: 0.0036 | BW84: 0.0038 | BX84: 0.004 | BY84: 0.0042 | BZ84: 0.0044 | CA84: 0.0046 | CB84: 0.0048 | CC84: 0.005 | CD84: 0.0052 | CE84: 0.0054 | CF84: 0.0056 | CG84: 0.0058 | CH84: 0.006
A85: 102 | B85: -0.0104 | C85: -0.0091 | D85: -0.0077 | E85: -0.0064 | F85: -0.0051 | G85: -0.0037 | H85: -0.0024 | I85: -0.001 | J85: 0.0003 | K85: 0.0017 | L85: 0.003 | M85: 0.0043 | N85: 0.0055 | O85: 0.0067 | P85: 0.0078 | Q85: 0.0087 | R85: 0.0096 | S85: 0.0102 | T85: 0.0107 | U85: 0.011 | V85: 0.0111 | W85: 0.011 | X85: 0.0107 | Y85: 0.0103 | Z85: 0.0097 | AA85: 0.009 | AB85: 0.0082 | AC85: 0.0074 | AD85: 0.0065 | AE85: 0.0056 | AF85: 0.0047 | AG85: 0.0038 | AH85: 0.003 | AI85: 0.0022 | AJ85: 0.0014 | AK85: 0.0007 | AL85: 0 | AM85: -0.0006 | AN85: -0.0012 | AO85: -0.0019 | AP85: -0.0026 | AQ85: -0.0033 | AR85: -0.004 | AS85: -0.0045 | AT85: -0.0049 | AU85: -0.0051 | AV85: -0.005 | AW85: -0.0047 | AX85: -0.004 | AY85: -0.0032 | AZ85: -0.0021 | BA85: -0.0009 | BB85: 0.0003 | BC85: 0.0015 | BD85: 0.0026 | BE85: 0.0034 | BF85: 0.0041 | BG85: 0.0045 | BH85: 0.0047 | BI85: 0.0046 | BJ85: 0.0044 | BK85: 0.004 | BL85: 0.0035 | BM85: 0.0029 | BN85: 0.0023 | BO85: 0.0022 | BP85: 0.0022 | BQ85: 0.0023 | BR85: 0.0024 | BS85: 0.0026 | BT85: 0.0029 | BU85: 0.0031 | BV85: 0.0034 | BW85: 0.0036 | BX85: 0.0037 | BY85: 0.0039 | BZ85: 0.0041 | CA85: 0.0043 | CB85: 0.0045 | CC85: 0.0047 | CD85: 0.0049 | CE85: 0.0051 | CF85: 0.0052 | CG85: 0.0054 | CH85: 0.0055
A86: 103 | B86: -0.0096 | C86: -0.0084 | D86: -0.0071 | E86: -0.0059 | F86: -0.0047 | G86: -0.0034 | H86: -0.0022 | I86: -0.001 | J86: 0.0003 | K86: 0.0015 | L86: 0.0027 | M86: 0.0039 | N86: 0.0051 | O86: 0.0062 | P86: 0.0072 | Q86: 0.0081 | R86: 0.0088 | S86: 0.0094 | T86: 0.0099 | U86: 0.0101 | V86: 0.0102 | W86: 0.0101 | X86: 0.0099 | Y86: 0.0095 | Z86: 0.009 | AA86: 0.0083 | AB86: 0.0076 | AC86: 0.0068 | AD86: 0.006 | AE86: 0.0052 | AF86: 0.0044 | AG86: 0.0035 | AH86: 0.0027 | AI86: 0.002 | AJ86: 0.0013 | AK86: 0.0007 | AL86: 0 | AM86: -0.0006 | AN86: -0.0012 | AO86: -0.0018 | AP86: -0.0024 | AQ86: -0.0031 | AR86: -0.0037 | AS86: -0.0042 | AT86: -0.0045 | AU86: -0.0047 | AV86: -0.0046 | AW86: -0.0043 | AX86: -0.0037 | AY86: -0.0029 | AZ86: -0.0019 | BA86: -0.0008 | BB86: 0.0003 | BC86: 0.0014 | BD86: 0.0024 | BE86: 0.0032 | BF86: 0.0038 | BG86: 0.0042 | BH86: 0.0043 | BI86: 0.0043 | BJ86: 0.004 | BK86: 0.0037 | BL86: 0.0032 | BM86: 0.0027 | BN86: 0.0021 | BO86: 0.0021 | BP86: 0.002 | BQ86: 0.0021 | BR86: 0.0022 | BS86: 0.0024 | BT86: 0.0026 | BU86: 0.0029 | BV86: 0.0031 | BW86: 0.0033 | BX86: 0.0035 | BY86: 0.0036 | BZ86: 0.0038 | CA86: 0.0039 | CB86: 0.0041 | CC86: 0.0043 | CD86: 0.0045 | CE86: 0.0047 | CF86: 0.0048 | CG86: 0.005 | CH86: 0.0051
A87: 104 | B87: -0.0088 | C87: -0.0077 | D87: -0.0065 | E87: -0.0054 | F87: -0.0043 | G87: -0.0032 | H87: -0.002 | I87: -0.0009 | J87: 0.0003 | K87: 0.0014 | L87: 0.0025 | M87: 0.0036 | N87: 0.0047 | O87: 0.0057 | P87: 0.0066 | Q87: 0.0074 | R87: 0.0081 | S87: 0.0087 | T87: 0.0091 | U87: 0.0093 | V87: 0.0094 | W87: 0.0093 | X87: 0.0091 | Y87: 0.0087 | Z87: 0.0082 | AA87: 0.0076 | AB87: 0.007 | AC87: 0.0063 | AD87: 0.0055 | AE87: 0.0048 | AF87: 0.004 | AG87: 0.0032 | AH87: 0.0025 | AI87: 0.0018 | AJ87: 0.0012 | AK87: 0.0006 | AL87: 0 | AM87: -0.0005 | AN87: -0.0011 | AO87: -0.0016 | AP87: -0.0022 | AQ87: -0.0028 | AR87: -0.0034 | AS87: -0.0038 | AT87: -0.0042 | AU87: -0.0043 | AV87: -0.0043 | AW87: -0.004 | AX87: -0.0034 | AY87: -0.0027 | AZ87: -0.0018 | BA87: -0.0008 | BB87: 0.0003 | BC87: 0.0013 | BD87: 0.0022 | BE87: 0.0029 | BF87: 0.0035 | BG87: 0.0038 | BH87: 0.004 | BI87: 0.0039 | BJ87: 0.0037 | BK87: 0.0034 | BL87: 0.0029 | BM87: 0.0025 | BN87: 0.002 | BO87: 0.0019 | BP87: 0.0019 | BQ87: 0.0019 | BR87: 0.0021 | BS87: 0.0022 | BT87: 0.0024 | BU87: 0.0026 | BV87: 0.0028 | BW87: 0.003 | BX87: 0.0032 | BY87: 0.0033 | BZ87: 0.0034 | CA87: 0.0036 | CB87: 0.0038 | CC87: 0.004 | CD87: 0.0041 | CE87: 0.0043 | CF87: 0.0044 | CG87: 0.0046 | CH87: 0.0047
A88: 105 | B88: -0.008 | C88: -0.007 | D88: -0.0059 | E88: -0.0049 | F88: -0.0039 | G88: -0.0029 | H88: -0.0018 | I88: -0.0008 | J88: 0.0002 | K88: 0.0013 | L88: 0.0023 | M88: 0.0033 | N88: 0.0042 | O88: 0.0051 | P88: 0.006 | Q88: 0.0067 | R88: 0.0074 | S88: 0.0079 | T88: 0.0082 | U88: 0.0085 | V88: 0.0085 | W88: 0.0084 | X88: 0.0082 | Y88: 0.0079 | Z88: 0.0075 | AA88: 0.0069 | AB88: 0.0063 | AC88: 0.0057 | AD88: 0.005 | AE88: 0.0043 | AF88: 0.0036 | AG88: 0.0029 | AH88: 0.0023 | AI88: 0.0017 | AJ88: 0.0011 | AK88: 0.0005 | AL88: 0 | AM88: -0.0005 | AN88: -0.001 | AO88: -0.0015 | AP88: -0.002 | AQ88: -0.0026 | AR88: -0.0031 | AS88: -0.0035 | AT88: -0.0038 | AU88: -0.0039 | AV88: -0.0039 | AW88: -0.0036 | AX88: -0.0031 | AY88: -0.0024 | AZ88: -0.0016 | BA88: -0.0007 | BB88: 0.0003 | BC88: 0.0012 | BD88: 0.002 | BE88: 0.0026 | BF88: 0.0031 | BG88: 0.0035 | BH88: 0.0036 | BI88: 0.0035 | BJ88: 0.0034 | BK88: 0.0031 | BL88: 0.0027 | BM88: 0.0022 | BN88: 0.0018 | BO88: 0.0017 | BP88: 0.0017 | BQ88: 0.0018 | BR88: 0.0019 | BS88: 0.002 | BT88: 0.0022 | BU88: 0.0024 | BV88: 0.0026 | BW88: 0.0027 | BX88: 0.0029 | BY88: 0.003 | BZ88: 0.0031 | CA88: 0.0033 | CB88: 0.0034 | CC88: 0.0036 | CD88: 0.0037 | CE88: 0.0039 | CF88: 0.004 | CG88: 0.0041 | CH88: 0.0043
A89: 106 | B89: -0.0072 | C89: -0.0063 | D89: -0.0054 | E89: -0.0044 | F89: -0.0035 | G89: -0.0026 | H89: -0.0016 | I89: -0.0007 | J89: 0.0002 | K89: 0.0011 | L89: 0.0021 | M89: 0.003 | N89: 0.0038 | O89: 0.0046 | P89: 0.0054 | Q89: 0.0061 | R89: 0.0066 | S89: 0.0071 | T89: 0.0074 | U89: 0.0076 | V89: 0.0077 | W89: 0.0076 | X89: 0.0074 | Y89: 0.0071 | Z89: 0.0067 | AA89: 0.0062 | AB89: 0.0057 | AC89: 0.0051 | AD89: 0.0045 | AE89: 0.0039 | AF89: 0.0033 | AG89: 0.0027 | AH89: 0.0021 | AI89: 0.0015 | AJ89: 0.001 | AK89: 0.0005 | AL89: 0 | AM89: -0.0004 | AN89: -0.0009 | AO89: -0.0013 | AP89: -0.0018 | AQ89: -0.0023 | AR89: -0.0028 | AS89: -0.0031 | AT89: -0.0034 | AU89: -0.0035 | AV89: -0.0035 | AW89: -0.0032 | AX89: -0.0028 | AY89: -0.0022 | AZ89: -0.0014 | BA89: -0.0006 | BB89: 0.0002 | BC89: 0.001 | BD89: 0.0018 | BE89: 0.0024 | BF89: 0.0028 | BG89: 0.0031 | BH89: 0.0032 | BI89: 0.0032 | BJ89: 0.003 | BK89: 0.0027 | BL89: 0.0024 | BM89: 0.002 | BN89: 0.0016 | BO89: 0.0015 | BP89: 0.0015 | BQ89: 0.0016 | BR89: 0.0017 | BS89: 0.0018 | BT89: 0.002 | BU89: 0.0022 | BV89: 0.0023 | BW89: 0.0025 | BX89: 0.0026 | BY89: 0.0027 | BZ89: 0.0028 | CA89: 0.003 | CB89: 0.0031 | CC89: 0.0032 | CD89: 0.0034 | CE89: 0.0035 | CF89: 0.0036 | CG89: 0.0037 | CH89: 0.0038
A90: 107 | B90: -0.0064 | C90: -0.0056 | D90: -0.0048 | E90: -0.0039 | F90: -0.0031 | G90: -0.0023 | H90: -0.0015 | I90: -0.0006 | J90: 0.0002 | K90: 0.001 | L90: 0.0018 | M90: 0.0026 | N90: 0.0034 | O90: 0.0041 | P90: 0.0048 | Q90: 0.0054 | R90: 0.0059 | S90: 0.0063 | T90: 0.0066 | U90: 0.0068 | V90: 0.0068 | W90: 0.0068 | X90: 0.0066 | Y90: 0.0063 | Z90: 0.006 | AA90: 0.0055 | AB90: 0.0051 | AC90: 0.0046 | AD90: 0.004 | AE90: 0.0035 | AF90: 0.0029 | AG90: 0.0024 | AH90: 0.0018 | AI90: 0.0013 | AJ90: 0.0009 | AK90: 0.0004 | AL90: 0 | AM90: -0.0004 | AN90: -0.0008 | AO90: -0.0012 | AP90: -0.0016 | AQ90: -0.002 | AR90: -0.0024 | AS90: -0.0028 | AT90: -0.003 | AU90: -0.0031 | AV90: -0.0031 | AW90: -0.0029 | AX90: -0.0025 | AY90: -0.0019 | AZ90: -0.0013 | BA90: -0.0006 | BB90: 0.0002 | BC90: 0.0009 | BD90: 0.0016 | BE90: 0.0021 | BF90: 0.0025 | BG90: 0.0028 | BH90: 0.0029 | BI90: 0.0028 | BJ90: 0.0027 | BK90: 0.0024 | BL90: 0.0021 | BM90: 0.0018 | BN90: 0.0014 | BO90: 0.0014 | BP90: 0.0014 | BQ90: 0.0014 | BR90: 0.0015 | BS90: 0.0016 | BT90: 0.0018 | BU90: 0.0019 | BV90: 0.0021 | BW90: 0.0022 | BX90: 0.0023 | BY90: 0.0024 | BZ90: 0.0025 | CA90: 0.0026 | CB90: 0.0028 | CC90: 0.0029 | CD90: 0.003 | CE90: 0.0031 | CF90: 0.0032 | CG90: 0.0033 | CH90: 0.0034
A91: 108 | B91: -0.0056 | C91: -0.0049 | D91: -0.0042 | E91: -0.0034 | F91: -0.0027 | G91: -0.002 | H91: -0.0013 | I91: -0.0006 | J91: 0.0002 | K91: 0.0009 | L91: 0.0016 | M91: 0.0023 | N91: 0.003 | O91: 0.0036 | P91: 0.0042 | Q91: 0.0047 | R91: 0.0052 | S91: 0.0055 | T91: 0.0058 | U91: 0.0059 | V91: 0.006 | W91: 0.0059 | X91: 0.0058 | Y91: 0.0055 | Z91: 0.0052 | AA91: 0.0049 | AB91: 0.0044 | AC91: 0.004 | AD91: 0.0035 | AE91: 0.003 | AF91: 0.0025 | AG91: 0.0021 | AH91: 0.0016 | AI91: 0.0012 | AJ91: 0.0008 | AK91: 0.0004 | AL91: 0 | AM91: -0.0003 | AN91: -0.0007 | AO91: -0.001 | AP91: -0.0014 | AQ91: -0.0018 | AR91: -0.0021 | AS91: -0.0024 | AT91: -0.0027 | AU91: -0.0027 | AV91: -0.0027 | AW91: -0.0025 | AX91: -0.0022 | AY91: -0.0017 | AZ91: -0.0011 | BA91: -0.0005 | BB91: 0.0002 | BC91: 0.0008 | BD91: 0.0014 | BE91: 0.0019 | BF91: 0.0022 | BG91: 0.0024 | BH91: 0.0025 | BI91: 0.0025 | BJ91: 0.0023 | BK91: 0.0021 | BL91: 0.0019 | BM91: 0.0016 | BN91: 0.0013 | BO91: 0.0012 | BP91: 0.0012 | BQ91: 0.0012 | BR91: 0.0013 | BS91: 0.0014 | BT91: 0.0015 | BU91: 0.0017 | BV91: 0.0018 | BW91: 0.0019 | BX91: 0.002 | BY91: 0.0021 | BZ91: 0.0022 | CA91: 0.0023 | CB91: 0.0024 | CC91: 0.0025 | CD91: 0.0026 | CE91: 0.0027 | CF91: 0.0028 | CG91: 0.0029 | CH91: 0.003
A92: 109 | B92: -0.0048 | C92: -0.0042 | D92: -0.0036 | E92: -0.003 | F92: -0.0023 | G92: -0.0017 | H92: -0.0011 | I92: -0.0005 | J92: 0.0001 | K92: 0.0008 | L92: 0.0014 | M92: 0.002 | N92: 0.0025 | O92: 0.0031 | P92: 0.0036 | Q92: 0.004 | R92: 0.0044 | S92: 0.0047 | T92: 0.0049 | U92: 0.0051 | V92: 0.0051 | W92: 0.0051 | X92: 0.0049 | Y92: 0.0047 | Z92: 0.0045 | AA92: 0.0042 | AB92: 0.0038 | AC92: 0.0034 | AD92: 0.003 | AE92: 0.0026 | AF92: 0.0022 | AG92: 0.0018 | AH92: 0.0014 | AI92: 0.001 | AJ92: 0.0006 | AK92: 0.0003 | AL92: 0 | AM92: -0.0003 | AN92: -0.0006 | AO92: -0.0009 | AP92: -0.0012 | AQ92: -0.0015 | AR92: -0.0018 | AS92: -0.0021 | AT92: -0.0023 | AU92: -0.0024 | AV92: -0.0023 | AW92: -0.0022 | AX92: -0.0019 | AY92: -0.0015 | AZ92: -0.001 | BA92: -0.0004 | BB92: 0.0002 | BC92: 0.0007 | BD92: 0.0012 | BE92: 0.0016 | BF92: 0.0019 | BG92: 0.0021 | BH92: 0.0022 | BI92: 0.0021 | BJ92: 0.002 | BK92: 0.0018 | BL92: 0.0016 | BM92: 0.0013 | BN92: 0.0011 | BO92: 0.001 | BP92: 0.001 | BQ92: 0.0011 | BR92: 0.0011 | BS92: 0.0012 | BT92: 0.0013 | BU92: 0.0014 | BV92: 0.0015 | BW92: 0.0016 | BX92: 0.0017 | BY92: 0.0018 | BZ92: 0.0019 | CA92: 0.002 | CB92: 0.0021 | CC92: 0.0022 | CD92: 0.0022 | CE92: 0.0023 | CF92: 0.0024 | CG92: 0.0025 | CH92: 0.0026
A93: 110 | B93: -0.004 | C93: -0.0035 | D93: -0.003 | E93: -0.0025 | F93: -0.0019 | G93: -0.0014 | H93: -0.0009 | I93: -0.0004 | J93: 0.0001 | K93: 0.0006 | L93: 0.0011 | M93: 0.0016 | N93: 0.0021 | O93: 0.0026 | P93: 0.003 | Q93: 0.0034 | R93: 0.0037 | S93: 0.0039 | T93: 0.0041 | U93: 0.0042 | V93: 0.0043 | W93: 0.0042 | X93: 0.0041 | Y93: 0.004 | Z93: 0.0037 | AA93: 0.0035 | AB93: 0.0032 | AC93: 0.0028 | AD93: 0.0025 | AE93: 0.0022 | AF93: 0.0018 | AG93: 0.0015 | AH93: 0.0011 | AI93: 0.0008 | AJ93: 0.0005 | AK93: 0.0003 | AL93: 0 | AM93: -0.0002 | AN93: -0.0005 | AO93: -0.0007 | AP93: -0.001 | AQ93: -0.0013 | AR93: -0.0015 | AS93: -0.0017 | AT93: -0.0019 | AU93: -0.002 | AV93: -0.0019 | AW93: -0.0018 | AX93: -0.0016 | AY93: -0.0012 | AZ93: -0.0008 | BA93: -0.0003 | BB93: 0.0001 | BC93: 0.0006 | BD93: 0.001 | BE93: 0.0013 | BF93: 0.0016 | BG93: 0.0017 | BH93: 0.0018 | BI93: 0.0018 | BJ93: 0.0017 | BK93: 0.0015 | BL93: 0.0013 | BM93: 0.0011 | BN93: 0.0009 | BO93: 0.0009 | BP93: 0.0009 | BQ93: 0.0009 | BR93: 0.0009 | BS93: 0.001 | BT93: 0.0011 | BU93: 0.0012 | BV93: 0.0013 | BW93: 0.0014 | BX93: 0.0014 | BY93: 0.0015 | BZ93: 0.0016 | CA93: 0.0016 | CB93: 0.0017 | CC93: 0.0018 | CD93: 0.0019 | CE93: 0.0019 | CF93: 0.002 | CG93: 0.0021 | CH93: 0.0021
A94: 111 | B94: -0.0032 | C94: -0.0028 | D94: -0.0024 | E94: -0.002 | F94: -0.0016 | G94: -0.0011 | H94: -0.0007 | I94: -0.0003 | J94: 0.0001 | K94: 0.0005 | L94: 0.0009 | M94: 0.0013 | N94: 0.0017 | O94: 0.0021 | P94: 0.0024 | Q94: 0.0027 | R94: 0.0029 | S94: 0.0031 | T94: 0.0033 | U94: 0.0034 | V94: 0.0034 | W94: 0.0034 | X94: 0.0033 | Y94: 0.0032 | Z94: 0.003 | AA94: 0.0028 | AB94: 0.0025 | AC94: 0.0023 | AD94: 0.002 | AE94: 0.0017 | AF94: 0.0015 | AG94: 0.0012 | AH94: 0.0009 | AI94: 0.0007 | AJ94: 0.0004 | AK94: 0.0002 | AL94: 0 | AM94: -0.0002 | AN94: -0.0004 | AO94: -0.0006 | AP94: -0.0008 | AQ94: -0.001 | AR94: -0.0012 | AS94: -0.0014 | AT94: -0.0015 | AU94: -0.0016 | AV94: -0.0015 | AW94: -0.0014 | AX94: -0.0012 | AY94: -0.001 | AZ94: -0.0006 | BA94: -0.0003 | BB94: 0.0001 | BC94: 0.0005 | BD94: 0.0008 | BE94: 0.0011 | BF94: 0.0013 | BG94: 0.0014 | BH94: 0.0014 | BI94: 0.0014 | BJ94: 0.0013 | BK94: 0.0012 | BL94: 0.0011 | BM94: 0.0009 | BN94: 0.0007 | BO94: 0.0007 | BP94: 0.0007 | BQ94: 0.0007 | BR94: 0.0007 | BS94: 0.0008 | BT94: 0.0009 | BU94: 0.001 | BV94: 0.001 | BW94: 0.0011 | BX94: 0.0012 | BY94: 0.0012 | BZ94: 0.0013 | CA94: 0.0013 | CB94: 0.0014 | CC94: 0.0014 | CD94: 0.0015 | CE94: 0.0016 | CF94: 0.0016 | CG94: 0.0017 | CH94: 0.0017
A95: 112 | B95: -0.0024 | C95: -0.0021 | D95: -0.0018 | E95: -0.0015 | F95: -0.0012 | G95: -0.0009 | H95: -0.0005 | I95: -0.0002 | J95: 0.0001 | K95: 0.0004 | L95: 0.0007 | M95: 0.001 | N95: 0.0013 | O95: 0.0015 | P95: 0.0018 | Q95: 0.002 | R95: 0.0022 | S95: 0.0024 | T95: 0.0025 | U95: 0.0025 | V95: 0.0026 | W95: 0.0025 | X95: 0.0025 | Y95: 0.0024 | Z95: 0.0022 | AA95: 0.0021 | AB95: 0.0019 | AC95: 0.0017 | AD95: 0.0015 | AE95: 0.0013 | AF95: 0.0011 | AG95: 0.0009 | AH95: 0.0007 | AI95: 0.0005 | AJ95: 0.0003 | AK95: 0.0002 | AL95: 0 | AM95: -0.0001 | AN95: -0.0003 | AO95: -0.0004 | AP95: -0.0006 | AQ95: -0.0008 | AR95: -0.0009 | AS95: -0.001 | AT95: -0.0011 | AU95: -0.0012 | AV95: -0.0012 | AW95: -0.0011 | AX95: -0.0009 | AY95: -0.0007 | AZ95: -0.0005 | BA95: -0.0002 | BB95: 0.0001 | BC95: 0.0003 | BD95: 0.0006 | BE95: 0.0008 | BF95: 0.0009 | BG95: 0.001 | BH95: 0.0011 | BI95: 0.0011 | BJ95: 0.001 | BK95: 0.0009 | BL95: 0.0008 | BM95: 0.0007 | BN95: 0.0005 | BO95: 0.0005 | BP95: 0.0005 | BQ95: 0.0005 | BR95: 0.0006 | BS95: 0.0006 | BT95: 0.0007 | BU95: 0.0007 | BV95: 0.0008 | BW95: 0.0008 | BX95: 0.0009 | BY95: 0.0009 | BZ95: 0.0009 | CA95: 0.001 | CB95: 0.001 | CC95: 0.0011 | CD95: 0.0011 | CE95: 0.0012 | CF95: 0.0012 | CG95: 0.0012 | CH95: 0.0013
A96: 113 | B96: -0.0016 | C96: -0.0014 | D96: -0.0012 | E96: -0.001 | F96: -0.0008 | G96: -0.0006 | H96: -0.0004 | I96: -0.0002 | J96: 0 | K96: 0.0003 | L96: 0.0005 | M96: 0.0007 | N96: 0.0008 | O96: 0.001 | P96: 0.0012 | Q96: 0.0013 | R96: 0.0015 | S96: 0.0016 | T96: 0.0016 | U96: 0.0017 | V96: 0.0017 | W96: 0.0017 | X96: 0.0016 | Y96: 0.0016 | Z96: 0.0015 | AA96: 0.0014 | AB96: 0.0013 | AC96: 0.0011 | AD96: 0.001 | AE96: 0.0009 | AF96: 0.0007 | AG96: 0.0006 | AH96: 0.0005 | AI96: 0.0003 | AJ96: 0.0002 | AK96: 0.0001 | AL96: 0 | AM96: -0.0001 | AN96: -0.0002 | AO96: -0.0003 | AP96: -0.0004 | AQ96: -0.0005 | AR96: -0.0006 | AS96: -0.0007 | AT96: -0.0008 | AU96: -0.0008 | AV96: -0.0008 | AW96: -0.0007 | AX96: -0.0006 | AY96: -0.0005 | AZ96: -0.0003 | BA96: -0.0001 | BB96: 0.0001 | BC96: 0.0002 | BD96: 0.0004 | BE96: 0.0005 | BF96: 0.0006 | BG96: 0.0007 | BH96: 0.0007 | BI96: 0.0007 | BJ96: 0.0007 | BK96: 0.0006 | BL96: 0.0005 | BM96: 0.0004 | BN96: 0.0004 | BO96: 0.0003 | BP96: 0.0003 | BQ96: 0.0004 | BR96: 0.0004 | BS96: 0.0004 | BT96: 0.0004 | BU96: 0.0005 | BV96: 0.0005 | BW96: 0.0005 | BX96: 0.0006 | BY96: 0.0006 | BZ96: 0.0006 | CA96: 0.0007 | CB96: 0.0007 | CC96: 0.0007 | CD96: 0.0007 | CE96: 0.0008 | CF96: 0.0008 | CG96: 0.0008 | CH96: 0.0009
A97: 114 | B97: -0.0008 | C97: -0.0007 | D97: -0.0006 | E97: -0.0005 | F97: -0.0004 | G97: -0.0003 | H97: -0.0002 | I97: -0.0001 | J97: 0 | K97: 0.0001 | L97: 0.0002 | M97: 0.0003 | N97: 0.0004 | O97: 0.0005 | P97: 0.0006 | Q97: 0.0007 | R97: 0.0007 | S97: 0.0008 | T97: 0.0008 | U97: 0.0008 | V97: 0.0009 | W97: 0.0008 | X97: 0.0008 | Y97: 0.0008 | Z97: 0.0007 | AA97: 0.0007 | AB97: 0.0006 | AC97: 0.0006 | AD97: 0.0005 | AE97: 0.0004 | AF97: 0.0004 | AG97: 0.0003 | AH97: 0.0002 | AI97: 0.0002 | AJ97: 0.0001 | AK97: 0.0001 | AL97: 0 | AM97: 0 | AN97: -0.0001 | AO97: -0.0001 | AP97: -0.0002 | AQ97: -0.0003 | AR97: -0.0003 | AS97: -0.0003 | AT97: -0.0004 | AU97: -0.0004 | AV97: -0.0004 | AW97: -0.0004 | AX97: -0.0003 | AY97: -0.0002 | AZ97: -0.0002 | BA97: -0.0001 | BB97: 0 | BC97: 0.0001 | BD97: 0.0002 | BE97: 0.0003 | BF97: 0.0003 | BG97: 0.0003 | BH97: 0.0004 | BI97: 0.0004 | BJ97: 0.0003 | BK97: 0.0003 | BL97: 0.0003 | BM97: 0.0002 | BN97: 0.0002 | BO97: 0.0002 | BP97: 0.0002 | BQ97: 0.0002 | BR97: 0.0002 | BS97: 0.0002 | BT97: 0.0002 | BU97: 0.0002 | BV97: 0.0003 | BW97: 0.0003 | BX97: 0.0003 | BY97: 0.0003 | BZ97: 0.0003 | CA97: 0.0003 | CB97: 0.0003 | CC97: 0.0004 | CD97: 0.0004 | CE97: 0.0004 | CF97: 0.0004 | CG97: 0.0004 | CH97: 0.0004
A98: 115 | B98: 0 | C98: 0 | D98: 0 | E98: 0 | F98: 0 | G98: 0 | H98: 0 | I98: 0 | J98: 0 | K98: 0 | L98: 0 | M98: 0 | N98: 0 | O98: 0 | P98: 0 | Q98: 0 | R98: 0 | S98: 0 | T98: 0 | U98: 0 | V98: 0 | W98: 0 | X98: 0 | Y98: 0 | Z98: 0 | AA98: 0 | AB98: 0 | AC98: 0 | AD98: 0 | AE98: 0 | AF98: 0 | AG98: 0 | AH98: 0 | AI98: 0 | AJ98: 0 | AK98: 0 | AL98: 0 | AM98: 0 | AN98: 0 | AO98: 0 | AP98: 0 | AQ98: 0 | AR98: 0 | AS98: 0 | AT98: 0 | AU98: 0 | AV98: 0 | AW98: 0 | AX98: 0 | AY98: 0 | AZ98: 0 | BA98: 0 | BB98: 0 | BC98: 0 | BD98: 0 | BE98: 0 | BF98: 0 | BG98: 0 | BH98: 0 | BI98: 0 | BJ98: 0 | BK98: 0 | BL98: 0 | BM98: 0 | BN98: 0 | BO98: 0 | BP98: 0 | BQ98: 0 | BR98: 0 | BS98: 0 | BT98: 0 | BU98: 0 | BV98: 0 | BW98: 0 | BX98: 0 | BY98: 0 | BZ98: 0 | CA98: 0 | CB98: 0 | CC98: 0 | CD98: 0 | CE98: 0 | CF98: 0 | CG98: 0 | CH98: 0
A99: 116 | B99: 0 | C99: 0 | D99: 0 | E99: 0 | F99: 0 | G99: 0 | H99: 0 | I99: 0 | J99: 0 | K99: 0 | L99: 0 | M99: 0 | N99: 0 | O99: 0 | P99: 0 | Q99: 0 | R99: 0 | S99: 0 | T99: 0 | U99: 0 | V99: 0 | W99: 0 | X99: 0 | Y99: 0 | Z99: 0 | AA99: 0 | AB99: 0 | AC99: 0 | AD99: 0 | AE99: 0 | AF99: 0 | AG99: 0 | AH99: 0 | AI99: 0 | AJ99: 0 | AK99: 0 | AL99: 0 | AM99: 0 | AN99: 0 | AO99: 0 | AP99: 0 | AQ99: 0 | AR99: 0 | AS99: 0 | AT99: 0 | AU99: 0 | AV99: 0 | AW99: 0 | AX99: 0 | AY99: 0 | AZ99: 0 | BA99: 0 | BB99: 0 | BC99: 0 | BD99: 0 | BE99: 0 | BF99: 0 | BG99: 0 | BH99: 0 | BI99: 0 | BJ99: 0 | BK99: 0 | BL99: 0 | BM99: 0 | BN99: 0 | BO99: 0 | BP99: 0 | BQ99: 0 | BR99: 0 | BS99: 0 | BT99: 0 | BU99: 0 | BV99: 0 | BW99: 0 | BX99: 0 | BY99: 0 | BZ99: 0 | CA99: 0 | CB99: 0 | CC99: 0 | CD99: 0 | CE99: 0 | CF99: 0 | CG99: 0 | CH99: 0
A100: 117 | B100: 0 | C100: 0 | D100: 0 | E100: 0 | F100: 0 | G100: 0 | H100: 0 | I100: 0 | J100: 0 | K100: 0 | L100: 0 | M100: 0 | N100: 0 | O100: 0 | P100: 0 | Q100: 0 | R100: 0 | S100: 0 | T100: 0 | U100: 0 | V100: 0 | W100: 0 | X100: 0 | Y100: 0 | Z100: 0 | AA100: 0 | AB100: 0 | AC100: 0 | AD100: 0 | AE100: 0 | AF100: 0 | AG100: 0 | AH100: 0 | AI100: 0 | AJ100: 0 | AK100: 0 | AL100: 0 | AM100: 0 | AN100: 0 | AO100: 0 | AP100: 0 | AQ100: 0 | AR100: 0 | AS100: 0 | AT100: 0 | AU100: 0 | AV100: 0 | AW100: 0 | AX100: 0 | AY100: 0 | AZ100: 0 | BA100: 0 | BB100: 0 | BC100: 0 | BD100: 0 | BE100: 0 | BF100: 0 | BG100: 0 | BH100: 0 | BI100: 0 | BJ100: 0 | BK100: 0 | BL100: 0 | BM100: 0 | BN100: 0 | BO100: 0 | BP100: 0 | BQ100: 0 | BR100: 0 | BS100: 0 | BT100: 0 | BU100: 0 | BV100: 0 | BW100: 0 | BX100: 0 | BY100: 0 | BZ100: 0 | CA100: 0 | CB100: 0 | CC100: 0 | CD100: 0 | CE100: 0 | CF100: 0 | CG100: 0 | CH100: 0
A101: 118 | B101: 0 | C101: 0 | D101: 0 | E101: 0 | F101: 0 | G101: 0 | H101: 0 | I101: 0 | J101: 0 | K101: 0 | L101: 0 | M101: 0 | N101: 0 | O101: 0 | P101: 0 | Q101: 0 | R101: 0 | S101: 0 | T101: 0 | U101: 0 | V101: 0 | W101: 0 | X101: 0 | Y101: 0 | Z101: 0 | AA101: 0 | AB101: 0 | AC101: 0 | AD101: 0 | AE101: 0 | AF101: 0 | AG101: 0 | AH101: 0 | AI101: 0 | AJ101: 0 | AK101: 0 | AL101: 0 | AM101: 0 | AN101: 0 | AO101: 0 | AP101: 0 | AQ101: 0 | AR101: 0 | AS101: 0 | AT101: 0 | AU101: 0 | AV101: 0 | AW101: 0 | AX101: 0 | AY101: 0 | AZ101: 0 | BA101: 0 | BB101: 0 | BC101: 0 | BD101: 0 | BE101: 0 | BF101: 0 | BG101: 0 | BH101: 0 | BI101: 0 | BJ101: 0 | BK101: 0 | BL101: 0 | BM101: 0 | BN101: 0 | BO101: 0 | BP101: 0 | BQ101: 0 | BR101: 0 | BS101: 0 | BT101: 0 | BU101: 0 | BV101: 0 | BW101: 0 | BX101: 0 | BY101: 0 | BZ101: 0 | CA101: 0 | CB101: 0 | CC101: 0 | CD101: 0 | CE101: 0 | CF101: 0 | CG101: 0 | CH101: 0
A102: 119 | B102: 0 | C102: 0 | D102: 0 | E102: 0 | F102: 0 | G102: 0 | H102: 0 | I102: 0 | J102: 0 | K102: 0 | L102: 0 | M102: 0 | N102: 0 | O102: 0 | P102: 0 | Q102: 0 | R102: 0 | S102: 0 | T102: 0 | U102: 0 | V102: 0 | W102: 0 | X102: 0 | Y102: 0 | Z102: 0 | AA102: 0 | AB102: 0 | AC102: 0 | AD102: 0 | AE102: 0 | AF102: 0 | AG102: 0 | AH102: 0 | AI102: 0 | AJ102: 0 | AK102: 0 | AL102: 0 | AM102: 0 | AN102: 0 | AO102: 0 | AP102: 0 | AQ102: 0 | AR102: 0 | AS102: 0 | AT102: 0 | AU102: 0 | AV102: 0 | AW102: 0 | AX102: 0 | AY102: 0 | AZ102: 0 | BA102: 0 | BB102: 0 | BC102: 0 | BD102: 0 | BE102: 0 | BF102: 0 | BG102: 0 | BH102: 0 | BI102: 0 | BJ102: 0 | BK102: 0 | BL102: 0 | BM102: 0 | BN102: 0 | BO102: 0 | BP102: 0 | BQ102: 0 | BR102: 0 | BS102: 0 | BT102: 0 | BU102: 0 | BV102: 0 | BW102: 0 | BX102: 0 | BY102: 0 | BZ102: 0 | CA102: 0 | CB102: 0 | CC102: 0 | CD102: 0 | CE102: 0 | CF102: 0 | CG102: 0 | CH102: 0
A103: 120 | B103: 0 | C103: 0 | D103: 0 | E103: 0 | F103: 0 | G103: 0 | H103: 0 | I103: 0 | J103: 0 | K103: 0 | L103: 0 | M103: 0 | N103: 0 | O103: 0 | P103: 0 | Q103: 0 | R103: 0 | S103: 0 | T103: 0 | U103: 0 | V103: 0 | W103: 0 | X103: 0 | Y103: 0 | Z103: 0 | AA103: 0 | AB103: 0 | AC103: 0 | AD103: 0 | AE103: 0 | AF103: 0 | AG103: 0 | AH103: 0 | AI103: 0 | AJ103: 0 | AK103: 0 | AL103: 0 | AM103: 0 | AN103: 0 | AO103: 0 | AP103: 0 | AQ103: 0 | AR103: 0 | AS103: 0 | AT103: 0 | AU103: 0 | AV103: 0 | AW103: 0 | AX103: 0 | AY103: 0 | AZ103: 0 | BA103: 0 | BB103: 0 | BC103: 0 | BD103: 0 | BE103: 0 | BF103: 0 | BG103: 0 | BH103: 0 | BI103: 0 | BJ103: 0 | BK103: 0 | BL103: 0 | BM103: 0 | BN103: 0 | BO103: 0 | BP103: 0 | BQ103: 0 | BR103: 0 | BS103: 0 | BT103: 0 | BU103: 0 | BV103: 0 | BW103: 0 | BX103: 0 | BY103: 0 | BZ103: 0 | CA103: 0 | CB103: 0 | CC103: 0 | CD103: 0 | CE103: 0 | CF103: 0 | CG103: 0 | CH103: 0

Sheet Male - Rev (hidden)
B1: MP-2019 - Male
C2: 1951 | L2: 1960 | V2: 1970 | AF2: 1980 | AP2: 1990 | AZ2: 2000 | BJ2: 2010 | BT2: 2020 | CD2: 2030
A3: 95 | B3: 95 | C3: =MIN(OFFSET(Male!B$18,'Male - Rev'!$A3-35,0),0.03999) -> -0.0192 | D3: =MIN(OFFSET(Male!C$18,'Male - Rev'!$A3-35,0),0.03999) -> -0.0178 | E3: =MIN(OFFSET(Male!D$18,'Male - Rev'!$A3-35,0),0.03999) -> -0.0164 | F3: =MIN(OFFSET(Male!E$18,'Male - Rev'!$A3-35,0),0.03999) -> -0.015 | G3: =MIN(OFFSET(Male!F$18,'Male - Rev'!$A3-35,0),0.03999) -> -0.0135 | H3: =MIN(OFFSET(Male!G$18,'Male - Rev'!$A3-35,0),0.03999) -> -0.0121 | I3: =MIN(OFFSET(Male!H$18,'Male - Rev'!$A3-35,0),0.03999) -> -0.0105 | J3: =MIN(OFFSET(Male!I$18,'Male - Rev'!$A3-35,0),0.03999) -> -0.009 | K3: =MIN(OFFSET(Male!J$18,'Male - Rev'!$A3-35,0),0.03999) -> -0.0073 | L3: =MIN(OFFSET(Male!K$18,'Male - Rev'!$A3-35,0),0.03999) -> -0.0056 | M3: =MIN(OFFSET(Male!L$18,'Male - Rev'!$A3-35,0),0.03999) -> -0.0038 | N3: =MIN(OFFSET(Male!M$18,'Male - Rev'!$A3-35,0),0.03999) -> -0.002 | O3: =MIN(OFFSET(Male!N$18,'Male - Rev'!$A3-35,0),0.03999) -> -0.0001 | P3: =MIN(OFFSET(Male!O$18,'Male - Rev'!$A3-35,0),0.03999) -> 0.0017 | Q3: =MIN(OFFSET(Male!P$18,'Male - Rev'!$A3-35,0),0.03999) -> 0.0036 | R3: =MIN(OFFSET(Male!Q$18,'Male - Rev'!$A3-35,0),0.03999) -> 0.0054 | S3: =MIN(OFFSET(Male!R$18,'Male - Rev'!$A3-35,0),0.03999) -> 0.007 | T3: =MIN(OFFSET(Male!S$18,'Male - Rev'!$A3-35,0),0.03999) -> 0.0086 | U3: =MIN(OFFSET(Male!T$18,'Male - Rev'!$A3-35,0),0.03999) -> 0.01 | V3: =MIN(OFFSET(Male!U$18,'Male - Rev'!$A3-35,0),0.03999) -> 0.0111 | W3: =MIN(OFFSET(Male!V$18,'Male - Rev'!$A3-35,0),0.03999) -> 0.012 | X3: =MIN(OFFSET(Male!W$18,'Male - Rev'!$A3-35,0),0.03999) -> 0.0127 | Y3: =MIN(OFFSET(Male!X$18,'Male - Rev'!$A3-35,0),0.03999) -> 0.0131 | Z3: =MIN(OFFSET(Male!Y$18,'Male - Rev'!$A3-35,0),0.03999) -> 0.0132 | AA3: =MIN(OFFSET(Male!Z$18,'Male - Rev'!$A3-35,0),0.03999) -> 0.0131 | AB3: =MIN(OFFSET(Male!AA$18,'Male - Rev'!$A3-35,0),0.03999) -> 0.0126 | AC3: =MIN(OFFSET(Male!AB$18,'Male - Rev'!$A3-35,0),0.03999) -> 0.0119 | AD3: =MIN(OFFSET(Male!AC$18,'Male - Rev'!$A3-35,0),0.03999) -> 0.0109 | AE3: =MIN(OFFSET(Male!AD$18,'Male - Rev'!$A3-35,0),0.03999) -> 0.0097 | AF3: =MIN(OFFSET(Male!AE$18,'Male - Rev'!$A3-35,0),0.03999) -> 0.0083 | AG3: =MIN(OFFSET(Male!AF$18,'Male - Rev'!$A3-35,0),0.03999) -> 0.0067 | AH3: =MIN(OFFSET(Male!AG$18,'Male - Rev'!$A3-35,0),0.03999) -> 0.0049 | AI3: =MIN(OFFSET(Male!AH$18,'Male - Rev'!$A3-35,0),0.03999) -> 0.0031 | AJ3: =MIN(OFFSET(Male!AI$18,'Male - Rev'!$A3-35,0),0.03999) -> 0.0013 | AK3: =MIN(OFFSET(Male!AJ$18,'Male - Rev'!$A3-35,0),0.03999) -> -0.0005 | AL3: =MIN(OFFSET(Male!AK$18,'Male - Rev'!$A3-35,0),0.03999) -> -0.0023 | AM3: =MIN(OFFSET(Male!AL$18,'Male - Rev'!$A3-35,0),0.03999) -> -0.0039 | AN3: =MIN(OFFSET(Male!AM$18,'Male - Rev'!$A3-35,0),0.03999) -> -0.0054 | AO3: =MIN(OFFSET(Male!AN$18,'Male - Rev'!$A3-35,0),0.03999) -> -0.0067 | AP3: =MIN(OFFSET(Male!AO$18,'Male - Rev'!$A3-35,0),0.03999) -> -0.0078 | AQ3: =MIN(OFFSET(Male!AP$18,'Male - Rev'!$A3-35,0),0.03999) -> -0.0086 | AR3: =MIN(OFFSET(Male!AQ$18,'Male - Rev'!$A3-35,0),0.03999) -> -0.0092 | AS3: =MIN(OFFSET(Male!AR$18,'Male - Rev'!$A3-35,0),0.03999) -> -0.0094 | AT3: =MIN(OFFSET(Male!AS$18,'Male - Rev'!$A3-35,0),0.03999) -> -0.0094 | AU3: =MIN(OFFSET(Male!AT$18,'Male - Rev'!$A3-35,0),0.03999) -> -0.0091 | AV3: =MIN(OFFSET(Male!AU$18,'Male - Rev'!$A3-35,0),0.03999) -> -0.0085 | AW3: =MIN(OFFSET(Male!AV$18,'Male - Rev'!$A3-35,0),0.03999) -> -0.0077 | AX3: =MIN(OFFSET(Male!AW$18,'Male - Rev'!$A3-35,0),0.03999) -> -0.0066 | AY3: =MIN(OFFSET(Male!AX$18,'Male - Rev'!$A3-35,0),0.03999) -> -0.0053 | AZ3: =MIN(OFFSET(Male!AY$18,'Male - Rev'!$A3-35,0),0.03999) -> -0.0038 | BA3: =MIN(OFFSET(Male!AZ$18,'Male - Rev'!$A3-35,0),0.03999) -> -0.0022 | BB3: =MIN(OFFSET(Male!BA$18,'Male - Rev'!$A3-35,0),0.03999) -> -0.0006 | BC3: =MIN(OFFSET(Male!BB$18,'Male - Rev'!$A3-35,0),0.03999) -> 0.0009 | BD3: =MIN(OFFSET(Male!BC$18,'Male - Rev'!$A3-35,0),0.03999) -> 0.0024 | BE3: =MIN(OFFSET(Male!BD$18,'Male - Rev'!$A3-35,0),0.03999) -> 0.0038 | BF3: =MIN(OFFSET(Male!BE$18,'Male - Rev'!$A3-35,0),0.03999) -> 0.0049 | BG3: =MIN(OFFSET(Male!BF$18,'Male - Rev'!$A3-35,0),0.03999) -> 0.0059 | BH3: =MIN(OFFSET(Male!BG$18,'Male - Rev'!$A3-35,0),0.03999) -> 0.0066 | BI3: =MIN(OFFSET(Male!BH$18,'Male - Rev'!$A3-35,0),0.03999) -> 0.007 | BJ3: =MIN(OFFSET(Male!BI$18,'Male - Rev'!$A3-35,0),0.03999) -> 0.0073 | BK3: =MIN(OFFSET(Male!BJ$18,'Male - Rev'!$A3-35,0),0.03999) -> 0.0073 | BL3: =MIN(OFFSET(Male!BK$18,'Male - Rev'!$A3-35,0),0.03999) -> 0.0072 | BM3: =MIN(OFFSET(Male!BL$18,'Male - Rev'!$A3-35,0),0.03999) -> 0.007 | BN3: =MIN(OFFSET(Male!BM$18,'Male - Rev'!$A3-35,0),0.03999) -> 0.0067 | BO3: =MIN(OFFSET(Male!BN$18,'Male - Rev'!$A3-35,0),0.03999) -> 0.0063 | BP3: =MIN(OFFSET(Male!BO$18,'Male - Rev'!$A3-35,0),0.03999) -> 0.0059 | BQ3: =MIN(OFFSET(Male!BP$18,'Male - Rev'!$A3-35,0),0.03999) -> 0.0057 | BR3: =MIN(OFFSET(Male!BQ$18,'Male - Rev'!$A3-35,0),0.03999) -> 0.0055 | BS3: =MIN(OFFSET(Male!BR$18,'Male - Rev'!$A3-35,0),0.03999) -> 0.0055 | BT3: =MIN(OFFSET(Male!BS$18,'Male - Rev'!$A3-35,0),0.03999) -> 0.0056 | BU3: =MIN(OFFSET(Male!BT$18,'Male - Rev'!$A3-35,0),0.03999) -> 0.0057 | BV3: =MIN(OFFSET(Male!BU$18,'Male - Rev'!$A3-35,0),0.03999) -> 0.0058 | BW3: =MIN(OFFSET(Male!BV$18,'Male - Rev'!$A3-35,0),0.03999) -> 0.006 | BX3: =MIN(OFFSET(Male!BW$18,'Male - Rev'!$A3-35,0),0.03999) -> 0.0062 | BY3: =MIN(OFFSET(Male!BX$18,'Male - Rev'!$A3-35,0),0.03999) -> 0.0064 | BZ3: =MIN(OFFSET(Male!BY$18,'Male - Rev'!$A3-35,0),0.03999) -> 0.0066 | CA3: =MIN(OFFSET(Male!BZ$18,'Male - Rev'!$A3-35,0),0.03999) -> 0.0067 | CB3: =MIN(OFFSET(Male!CA$18,'Male - Rev'!$A3-35,0),0.03999) -> 0.0069 | CC3: =MIN(OFFSET(Male!CB$18,'Male - Rev'!$A3-35,0),0.03999) -> 0.0072 | CD3: =MIN(OFFSET(Male!CC$18,'Male - Rev'!$A3-35,0),0.03999) -> 0.0074 | CE3: =MIN(OFFSET(Male!CD$18,'Male - Rev'!$A3-35,0),0.03999) -> 0.0076 | CF3: =MIN(OFFSET(Male!CE$18,'Male - Rev'!$A3-35,0),0.03999) -> 0.0078 | CG3: =MIN(OFFSET(Male!CF$18,'Male - Rev'!$A3-35,0),0.03999) -> 0.0081 | CH3: =MIN(OFFSET(Male!CG$18,'Male - Rev'!$A3-35,0),0.03999) -> 0.0083 | CI3: =MIN(OFFSET(Male!CH$18,'Male - Rev'!$A3-35,0),0.03999) -> 0.0085
A4: =A3-1 -> 94 | B4: =B3-1 -> 94 | C4: =MIN(OFFSET(Male!B$18,'Male - Rev'!$A4-35,0),0.03999) -> -0.0159 | D4: =MIN(OFFSET(Male!C$18,'Male - Rev'!$A4-35,0),0.03999) -> -0.015 | E4: =MIN(OFFSET(Male!D$18,'Male - Rev'!$A4-35,0),0.03999) -> -0.014 | F4: =MIN(OFFSET(Male!E$18,'Male - Rev'!$A4-35,0),0.03999) -> -0.0131 | G4: =MIN(OFFSET(Male!F$18,'Male - Rev'!$A4-35,0),0.03999) -> -0.0121 | H4: =MIN(OFFSET(Male!G$18,'Male - Rev'!$A4-35,0),0.03999) -> -0.011 | I4: =MIN(OFFSET(Male!H$18,'Male - Rev'!$A4-35,0),0.03999) -> -0.0098 | J4: =MIN(OFFSET(Male!I$18,'Male - Rev'!$A4-35,0),0.03999) -> -0.0086 | K4: =MIN(OFFSET(Male!J$18,'Male - Rev'!$A4-35,0),0.03999) -> -0.0072 | L4: =MIN(OFFSET(Male!K$18,'Male - Rev'!$A4-35,0),0.03999) -> -0.0056 | M4: =MIN(OFFSET(Male!L$18,'Male - Rev'!$A4-35,0),0.03999) -> -0.004 | N4: =MIN(OFFSET(Male!M$18,'Male - Rev'!$A4-35,0),0.03999) -> -0.0022 | O4: =MIN(OFFSET(Male!N$18,'Male - Rev'!$A4-35,0),0.03999) -> -0.0004 | P4: =MIN(OFFSET(Male!O$18,'Male - Rev'!$A4-35,0),0.03999) -> 0.0015 | Q4: =MIN(OFFSET(Male!P$18,'Male - Rev'!$A4-35,0),0.03999) -> 0.0034 | R4: =MIN(OFFSET(Male!Q$18,'Male - Rev'!$A4-35,0),0.03999) -> 0.0053 | S4: =MIN(OFFSET(Male!R$18,'Male - Rev'!$A4-35,0),0.03999) -> 0.007 | T4: =MIN(OFFSET(Male!S$18,'Male - Rev'!$A4-35,0),0.03999) -> 0.0087 | U4: =MIN(OFFSET(Male!T$18,'Male - Rev'!$A4-35,0),0.03999) -> 0.0101 | V4: =MIN(OFFSET(Male!U$18,'Male - Rev'!$A4-35,0),0.03999) -> 0.0113 | W4: =MIN(OFFSET(Male!V$18,'Male - Rev'!$A4-35,0),0.03999) -> 0.0122 | X4: =MIN(OFFSET(Male!W$18,'Male - Rev'!$A4-35,0),0.03999) -> 0.0129 | Y4: =MIN(OFFSET(Male!X$18,'Male - Rev'!$A4-35,0),0.03999) -> 0.0133 | Z4: =MIN(OFFSET(Male!Y$18,'Male - Rev'!$A4-35,0),0.03999) -> 0.0134 | AA4: =MIN(OFFSET(Male!Z$18,'Male - Rev'!$A4-35,0),0.03999) -> 0.0133 | AB4: =MIN(OFFSET(Male!AA$18,'Male - Rev'!$A4-35,0),0.03999) -> 0.0128 | AC4: =MIN(OFFSET(Male!AB$18,'Male - Rev'!$A4-35,0),0.03999) -> 0.0121 | AD4: =MIN(OFFSET(Male!AC$18,'Male - Rev'!$A4-35,0),0.03999) -> 0.0111 | AE4: =MIN(OFFSET(Male!AD$18,'Male - Rev'!$A4-35,0),0.03999) -> 0.0098 | AF4: =MIN(OFFSET(Male!AE$18,'Male - Rev'!$A4-35,0),0.03999) -> 0.0084 | AG4: =MIN(OFFSET(Male!AF$18,'Male - Rev'!$A4-35,0),0.03999) -> 0.0068 | AH4: =MIN(OFFSET(Male!AG$18,'Male - Rev'!$A4-35,0),0.03999) -> 0.0051 | AI4: =MIN(OFFSET(Male!AH$18,'Male - Rev'!$A4-35,0),0.03999) -> 0.0033 | AJ4: =MIN(OFFSET(Male!AI$18,'Male - Rev'!$A4-35,0),0.03999) -> 0.0015 | AK4: =MIN(OFFSET(Male!AJ$18,'Male - Rev'!$A4-35,0),0.03999) -> -0.0003 | AL4: =MIN(OFFSET(Male!AK$18,'Male - Rev'!$A4-35,0),0.03999) -> -0.002 | AM4: =MIN(OFFSET(Male!AL$18,'Male - Rev'!$A4-35,0),0.03999) -> -0.0036 | AN4: =MIN(OFFSET(Male!AM$18,'Male - Rev'!$A4-35,0),0.03999) -> -0.005 | AO4: =MIN(OFFSET(Male!AN$18,'Male - Rev'!$A4-35,0),0.03999) -> -0.0062 | AP4: =MIN(OFFSET(Male!AO$18,'Male - Rev'!$A4-35,0),0.03999) -> -0.0072 | AQ4: =MIN(OFFSET(Male!AP$18,'Male - Rev'!$A4-35,0),0.03999) -> -0.0079 | AR4: =MIN(OFFSET(Male!AQ$18,'Male - Rev'!$A4-35,0),0.03999) -> -0.0084 | AS4: =MIN(OFFSET(Male!AR$18,'Male - Rev'!$A4-35,0),0.03999) -> -0.0085 | AT4: =MIN(OFFSET(Male!AS$18,'Male - Rev'!$A4-35,0),0.03999) -> -0.0084 | AU4: =MIN(OFFSET(Male!AT$18,'Male - Rev'!$A4-35,0),0.03999) -> -0.008 | AV4: =MIN(OFFSET(Male!AU$18,'Male - Rev'!$A4-35,0),0.03999) -> -0.0073 | AW4: =MIN(OFFSET(Male!AV$18,'Male - Rev'!$A4-35,0),0.03999) -> -0.0063 | AX4: =MIN(OFFSET(Male!AW$18,'Male - Rev'!$A4-35,0),0.03999) -> -0.005 | AY4: =MIN(OFFSET(Male!AX$18,'Male - Rev'!$A4-35,0),0.03999) -> -0.0036 | AZ4: =MIN(OFFSET(Male!AY$18,'Male - Rev'!$A4-35,0),0.03999) -> -0.002 | BA4: =MIN(OFFSET(Male!AZ$18,'Male - Rev'!$A4-35,0),0.03999) -> -0.0004 | BB4: =MIN(OFFSET(Male!BA$18,'Male - Rev'!$A4-35,0),0.03999) -> 0.0013 | BC4: =MIN(OFFSET(Male!BB$18,'Male - Rev'!$A4-35,0),0.03999) -> 0.0029 | BD4: =MIN(OFFSET(Male!BC$18,'Male - Rev'!$A4-35,0),0.03999) -> 0.0044 | BE4: =MIN(OFFSET(Male!BD$18,'Male - Rev'!$A4-35,0),0.03999) -> 0.0056 | BF4: =MIN(OFFSET(Male!BE$18,'Male - Rev'!$A4-35,0),0.03999) -> 0.0067 | BG4: =MIN(OFFSET(Male!BF$18,'Male - Rev'!$A4-35,0),0.03999) -> 0.0074 | BH4: =MIN(OFFSET(Male!BG$18,'Male - Rev'!$A4-35,0),0.03999) -> 0.0079 | BI4: =MIN(OFFSET(Male!BH$18,'Male - Rev'!$A4-35,0),0.03999) -> 0.0081 | BJ4: =MIN(OFFSET(Male!BI$18,'Male - Rev'!$A4-35,0),0.03999) -> 0.008 | BK4: =MIN(OFFSET(Male!BJ$18,'Male - Rev'!$A4-35,0),0.03999) -> 0.0078 | BL4: =MIN(OFFSET(Male!BK$18,'Male - Rev'!$A4-35,0),0.03999) -> 0.0074 | BM4: =MIN(OFFSET(Male!BL$18,'Male - Rev'!$A4-35,0),0.03999) -> 0.0068 | BN4: =MIN(OFFSET(Male!BM$18,'Male - Rev'!$A4-35,0),0.03999) -> 0.0062 | BO4: =MIN(OFFSET(Male!BN$18,'Male - Rev'!$A4-35,0),0.03999) -> 0.0056 | BP4: =MIN(OFFSET(Male!BO$18,'Male - Rev'!$A4-35,0),0.03999) -> 0.0053 | BQ4: =MIN(OFFSET(Male!BP$18,'Male - Rev'!$A4-35,0),0.03999) -> 0.0052 | BR4: =MIN(OFFSET(Male!BQ$18,'Male - Rev'!$A4-35,0),0.03999) -> 0.0051 | BS4: =MIN(OFFSET(Male!BR$18,'Male - Rev'!$A4-35,0),0.03999) -> 0.0052 | BT4: =MIN(OFFSET(Male!BS$18,'Male - Rev'!$A4-35,0),0.03999) -> 0.0054 | BU4: =MIN(OFFSET(Male!BT$18,'Male - Rev'!$A4-35,0),0.03999) -> 0.0056 | BV4: =MIN(OFFSET(Male!BU$18,'Male - Rev'!$A4-35,0),0.03999) -> 0.0059 | BW4: =MIN(OFFSET(Male!BV$18,'Male - Rev'!$A4-35,0),0.03999) -> 0.0062 | BX4: =MIN(OFFSET(Male!BW$18,'Male - Rev'!$A4-35,0),0.03999) -> 0.0064 | BY4: =MIN(OFFSET(Male!BX$18,'Male - Rev'!$A4-35,0),0.03999) -> 0.0066 | BZ4: =MIN(OFFSET(Male!BY$18,'Male - Rev'!$A4-35,0),0.03999) -> 0.0068 | CA4: =MIN(OFFSET(Male!BZ$18,'Male - Rev'!$A4-35,0),0.03999) -> 0.007 | CB4: =MIN(OFFSET(Male!CA$18,'Male - Rev'!$A4-35,0),0.03999) -> 0.0072 | CC4: =MIN(OFFSET(Male!CB$18,'Male - Rev'!$A4-35,0),0.03999) -> 0.0074 | CD4: =MIN(OFFSET(Male!CC$18,'Male - Rev'!$A4-35,0),0.03999) -> 0.0077 | CE4: =MIN(OFFSET(Male!CD$18,'Male - Rev'!$A4-35,0),0.03999) -> 0.0079 | CF4: =MIN(OFFSET(Male!CE$18,'Male - Rev'!$A4-35,0),0.03999) -> 0.0081 | CG4: =MIN(OFFSET(Male!CF$18,'Male - Rev'!$A4-35,0),0.03999) -> 0.0083 | CH4: =MIN(OFFSET(Male!CG$18,'Male - Rev'!$A4-35,0),0.03999) -> 0.0086 | CI4: =MIN(OFFSET(Male!CH$18,'Male - Rev'!$A4-35,0),0.03999) -> 0.0087
A5: =A4-1 -> 93 | B5: 93 | C5: =MIN(OFFSET(Male!B$18,'Male - Rev'!$A5-35,0),0.03999) -> -0.0128 | D5: =MIN(OFFSET(Male!C$18,'Male - Rev'!$A5-35,0),0.03999) -> -0.0123 | E5: =MIN(OFFSET(Male!D$18,'Male - Rev'!$A5-35,0),0.03999) -> -0.0118 | F5: =MIN(OFFSET(Male!E$18,'Male - Rev'!$A5-35,0),0.03999) -> -0.0112 | G5: =MIN(OFFSET(Male!F$18,'Male - Rev'!$A5-35,0),0.03999) -> -0.0106 | H5: =MIN(OFFSET(Male!G$18,'Male - Rev'!$A5-35,0),0.03999) -> -0.0099 | I5: =MIN(OFFSET(Male!H$18,'Male - Rev'!$A5-35,0),0.03999) -> -0.0091 | J5: =MIN(OFFSET(Male!I$18,'Male - Rev'!$A5-35,0),0.03999) -> -0.0081 | K5: =MIN(OFFSET(Male!J$18,'Male - Rev'!$A5-35,0),0.03999) -> -0.0069 | L5: =MIN(OFFSET(Male!K$18,'Male - Rev'!$A5-35,0),0.03999) -> -0.0056 | M5: =MIN(OFFSET(Male!L$18,'Male - Rev'!$A5-35,0),0.03999) -> -0.0041 | N5: =MIN(OFFSET(Male!M$18,'Male - Rev'!$A5-35,0),0.03999) -> -0.0024 | O5: =MIN(OFFSET(Male!N$18,'Male - Rev'!$A5-35,0),0.03999) -> -0.0006 | P5: =MIN(OFFSET(Male!O$18,'Male - Rev'!$A5-35,0),0.03999) -> 0.0013 | Q5: =MIN(OFFSET(Male!P$18,'Male - Rev'!$A5-35,0),0.03999) -> 0.0033 | R5: =MIN(OFFSET(Male!Q$18,'Male - Rev'!$A5-35,0),0.03999) -> 0.0052 | S5: =MIN(OFFSET(Male!R$18,'Male - Rev'!$A5-35,0),0.03999) -> 0.007 | T5: =MIN(OFFSET(Male!S$18,'Male - Rev'!$A5-35,0),0.03999) -> 0.0087 | U5: =MIN(OFFSET(Male!T$18,'Male - Rev'!$A5-35,0),0.03999) -> 0.0101 | V5: =MIN(OFFSET(Male!U$18,'Male - Rev'!$A5-35,0),0.03999) -> 0.0114 | W5: =MIN(OFFSET(Male!V$18,'Male - Rev'!$A5-35,0),0.03999) -> 0.0124 | X5: =MIN(OFFSET(Male!W$18,'Male - Rev'!$A5-35,0),0.03999) -> 0.0131 | Y5: =MIN(OFFSET(Male!X$18,'Male - Rev'!$A5-35,0),0.03999) -> 0.0135 | Z5: =MIN(OFFSET(Male!Y$18,'Male - Rev'!$A5-35,0),0.03999) -> 0.0136 | AA5: =MIN(OFFSET(Male!Z$18,'Male - Rev'!$A5-35,0),0.03999) -> 0.0134 | AB5: =MIN(OFFSET(Male!AA$18,'Male - Rev'!$A5-35,0),0.03999) -> 0.013 | AC5: =MIN(OFFSET(Male!AB$18,'Male - Rev'!$A5-35,0),0.03999) -> 0.0122 | AD5: =MIN(OFFSET(Male!AC$18,'Male - Rev'!$A5-35,0),0.03999) -> 0.0112 | AE5: =MIN(OFFSET(Male!AD$18,'Male - Rev'!$A5-35,0),0.03999) -> 0.01 | AF5: =MIN(OFFSET(Male!AE$18,'Male - Rev'!$A5-35,0),0.03999) -> 0.0085 | AG5: =MIN(OFFSET(Male!AF$18,'Male - Rev'!$A5-35,0),0.03999) -> 0.0069 | AH5: =MIN(OFFSET(Male!AG$18,'Male - Rev'!$A5-35,0),0.03999) -> 0.0052 | AI5: =MIN(OFFSET(Male!AH$18,'Male - Rev'!$A5-35,0),0.03999) -> 0.0034 | AJ5: =MIN(OFFSET(Male!AI$18,'Male - Rev'!$A5-35,0),0.03999) -> 0.0017 | AK5: =MIN(OFFSET(Male!AJ$18,'Male - Rev'!$A5-35,0),0.03999) -> -0.0001 | AL5: =MIN(OFFSET(Male!AK$18,'Male - Rev'!$A5-35,0),0.03999) -> -0.0017 | AM5: =MIN(OFFSET(Male!AL$18,'Male - Rev'!$A5-35,0),0.03999) -> -0.0032 | AN5: =MIN(OFFSET(Male!AM$18,'Male - Rev'!$A5-35,0),0.03999) -> -0.0045 | AO5: =MIN(OFFSET(Male!AN$18,'Male - Rev'!$A5-35,0),0.03999) -> -0.0056 | AP5: =MIN(OFFSET(Male!AO$18,'Male - Rev'!$A5-35,0),0.03999) -> -0.0065 | AQ5: =MIN(OFFSET(Male!AP$18,'Male - Rev'!$A5-35,0),0.03999) -> -0.0071 | AR5: =MIN(OFFSET(Male!AQ$18,'Male - Rev'!$A5-35,0),0.03999) -> -0.0075 | AS5: =MIN(OFFSET(Male!AR$18,'Male - Rev'!$A5-35,0),0.03999) -> -0.0076 | AT5: =MIN(OFFSET(Male!AS$18,'Male - Rev'!$A5-35,0),0.03999) -> -0.0073 | AU5: =MIN(OFFSET(Male!AT$18,'Male - Rev'!$A5-35,0),0.03999) -> -0.0068 | AV5: =MIN(OFFSET(Male!AU$18,'Male - Rev'!$A5-35,0),0.03999) -> -0.006 | AW5: =MIN(OFFSET(Male!AV$18,'Male - Rev'!$A5-35,0),0.03999) -> -0.0049 | AX5: =MIN(OFFSET(Male!AW$18,'Male - Rev'!$A5-35,0),0.03999) -> -0.0035 | AY5: =MIN(OFFSET(Male!AX$18,'Male - Rev'!$A5-35,0),0.03999) -> -0.002 | AZ5: =MIN(OFFSET(Male!AY$18,'Male - Rev'!$A5-35,0),0.03999) -> -0.0003 | BA5: =MIN(OFFSET(Male!AZ$18,'Male - Rev'!$A5-35,0),0.03999) -> 0.0014 | BB5: =MIN(OFFSET(Male!BA$18,'Male - Rev'!$A5-35,0),0.03999) -> 0.0032 | BC5: =MIN(OFFSET(Male!BB$18,'Male - Rev'!$A5-35,0),0.03999) -> 0.0048 | BD5: =MIN(OFFSET(Male!BC$18,'Male - Rev'!$A5-35,0),0.03999) -> 0.0062 | BE5: =MIN(OFFSET(Male!BD$18,'Male - Rev'!$A5-35,0),0.03999) -> 0.0074 | BF5: =MIN(OFFSET(Male!BE$18,'Male - Rev'!$A5-35,0),0.03999) -> 0.0083 | BG5: =MIN(OFFSET(Male!BF$18,'Male - Rev'!$A5-35,0),0.03999) -> 0.0089 | BH5: =MIN(OFFSET(Male!BG$18,'Male - Rev'!$A5-35,0),0.03999) -> 0.0092 | BI5: =MIN(OFFSET(Male!BH$18,'Male - Rev'!$A5-35,0),0.03999) -> 0.0091 | BJ5: =MIN(OFFSET(Male!BI$18,'Male - Rev'!$A5-35,0),0.03999) -> 0.0088 | BK5: =MIN(OFFSET(Male!BJ$18,'Male - Rev'!$A5-35,0),0.03999) -> 0.0082 | BL5: =MIN(OFFSET(Male!BK$18,'Male - Rev'!$A5-35,0),0.03999) -> 0.0076 | BM5: =MIN(OFFSET(Male!BL$18,'Male - Rev'!$A5-35,0),0.03999) -> 0.0068 | BN5: =MIN(OFFSET(Male!BM$18,'Male - Rev'!$A5-35,0),0.03999) -> 0.0059 | BO5: =MIN(OFFSET(Male!BN$18,'Male - Rev'!$A5-35,0),0.03999) -> 0.005 | BP5: =MIN(OFFSET(Male!BO$18,'Male - Rev'!$A5-35,0),0.03999) -> 0.0048 | BQ5: =MIN(OFFSET(Male!BP$18,'Male - Rev'!$A5-35,0),0.03999) -> 0.0047 | BR5: =MIN(OFFSET(Male!BQ$18,'Male - Rev'!$A5-35,0),0.03999) -> 0.0048 | BS5: =MIN(OFFSET(Male!BR$18,'Male - Rev'!$A5-35,0),0.03999) -> 0.005 | BT5: =MIN(OFFSET(Male!BS$18,'Male - Rev'!$A5-35,0),0.03999) -> 0.0053 | BU5: =MIN(OFFSET(Male!BT$18,'Male - Rev'!$A5-35,0),0.03999) -> 0.0057 | BV5: =MIN(OFFSET(Male!BU$18,'Male - Rev'!$A5-35,0),0.03999) -> 0.006 | BW5: =MIN(OFFSET(Male!BV$18,'Male - Rev'!$A5-35,0),0.03999) -> 0.0064 | BX5: =MIN(OFFSET(Male!BW$18,'Male - Rev'!$A5-35,0),0.03999) -> 0.0066 | BY5: =MIN(OFFSET(Male!BX$18,'Male - Rev'!$A5-35,0),0.03999) -> 0.0069 | BZ5: =MIN(OFFSET(Male!BY$18,'Male - Rev'!$A5-35,0),0.03999) -> 0.0071 | CA5: =MIN(OFFSET(Male!BZ$18,'Male - Rev'!$A5-35,0),0.03999) -> 0.0073 | CB5: =MIN(OFFSET(Male!CA$18,'Male - Rev'!$A5-35,0),0.03999) -> 0.0075 | CC5: =MIN(OFFSET(Male!CB$18,'Male - Rev'!$A5-35,0),0.03999) -> 0.0077 | CD5: =MIN(OFFSET(Male!CC$18,'Male - Rev'!$A5-35,0),0.03999) -> 0.0079 | CE5: =MIN(OFFSET(Male!CD$18,'Male - Rev'!$A5-35,0),0.03999) -> 0.0082 | CF5: =MIN(OFFSET(Male!CE$18,'Male - Rev'!$A5-35,0),0.03999) -> 0.0084 | CG5: =MIN(OFFSET(Male!CF$18,'Male - Rev'!$A5-35,0),0.03999) -> 0.0086 | CH5: =MIN(OFFSET(Male!CG$18,'Male - Rev'!$A5-35,0),0.03999) -> 0.0087 | CI5: =MIN(OFFSET(Male!CH$18,'Male - Rev'!$A5-35,0),0.03999) -> 0.0088
A6: 92 | B6: 92 | C6: =MIN(OFFSET(Male!B$18,'Male - Rev'!$A6-35,0),0.03999) -> -0.01 | D6: =MIN(OFFSET(Male!C$18,'Male - Rev'!$A6-35,0),0.03999) -> -0.0098 | E6: =MIN(OFFSET(Male!D$18,'Male - Rev'!$A6-35,0),0.03999) -> -0.0097 | F6: =MIN(OFFSET(Male!E$18,'Male - Rev'!$A6-35,0),0.03999) -> -0.0095 | G6: =MIN(OFFSET(Male!F$18,'Male - Rev'!$A6-35,0),0.03999) -> -0.0092 | H6: =MIN(OFFSET(Male!G$18,'Male - Rev'!$A6-35,0),0.03999) -> -0.0088 | I6: =MIN(OFFSET(Male!H$18,'Male - Rev'!$A6-35,0),0.03999) -> -0.0083 | J6: =MIN(OFFSET(Male!I$18,'Male - Rev'!$A6-35,0),0.03999) -> -0.0076 | K6: =MIN(OFFSET(Male!J$18,'Male - Rev'!$A6-35,0),0.03999) -> -0.0066 | L6: =MIN(OFFSET(Male!K$18,'Male - Rev'!$A6-35,0),0.03999) -> -0.0055 | M6: =MIN(OFFSET(Male!L$18,'Male - Rev'!$A6-35,0),0.03999) -> -0.0041 | N6: =MIN(OFFSET(Male!M$18,'Male - Rev'!$A6-35,0),0.03999) -> -0.0025 | O6: =MIN(OFFSET(Male!N$18,'Male - Rev'!$A6-35,0),0.03999) -> -0.0007 | P6: =MIN(OFFSET(Male!O$18,'Male - Rev'!$A6-35,0),0.03999) -> 0.0012 | Q6: =MIN(OFFSET(Male!P$18,'Male - Rev'!$A6-35,0),0.03999) -> 0.0031 | R6: =MIN(OFFSET(Male!Q$18,'Male - Rev'!$A6-35,0),0.03999) -> 0.005 | S6: =MIN(OFFSET(Male!R$18,'Male - Rev'!$A6-35,0),0.03999) -> 0.0069 | T6: =MIN(OFFSET(Male!S$18,'Male - Rev'!$A6-35,0),0.03999) -> 0.0086 | U6: =MIN(OFFSET(Male!T$18,'Male - Rev'!$A6-35,0),0.03999) -> 0.0101 | V6: =MIN(OFFSET(Male!U$18,'Male - Rev'!$A6-35,0),0.03999) -> 0.0114 | W6: =MIN(OFFSET(Male!V$18,'Male - Rev'!$A6-35,0),0.03999) -> 0.0125 | X6: =MIN(OFFSET(Male!W$18,'Male - Rev'!$A6-35,0),0.03999) -> 0.0132 | Y6: =MIN(OFFSET(Male!X$18,'Male - Rev'!$A6-35,0),0.03999) -> 0.0136 | Z6: =MIN(OFFSET(Male!Y$18,'Male - Rev'!$A6-35,0),0.03999) -> 0.0138 | AA6: =MIN(OFFSET(Male!Z$18,'Male - Rev'!$A6-35,0),0.03999) -> 0.0136 | AB6: =MIN(OFFSET(Male!AA$18,'Male - Rev'!$A6-35,0),0.03999) -> 0.0131 | AC6: =MIN(OFFSET(Male!AB$18,'Male - Rev'!$A6-35,0),0.03999) -> 0.0123 | AD6: =MIN(OFFSET(Male!AC$18,'Male - Rev'!$A6-35,0),0.03999) -> 0.0113 | AE6: =MIN(OFFSET(Male!AD$18,'Male - Rev'!$A6-35,0),0.03999) -> 0.0101 | AF6: =MIN(OFFSET(Male!AE$18,'Male - Rev'!$A6-35,0),0.03999) -> 0.0086 | AG6: =MIN(OFFSET(Male!AF$18,'Male - Rev'!$A6-35,0),0.03999) -> 0.007 | AH6: =MIN(OFFSET(Male!AG$18,'Male - Rev'!$A6-35,0),0.03999) -> 0.0053 | AI6: =MIN(OFFSET(Male!AH$18,'Male - Rev'!$A6-35,0),0.03999) -> 0.0036 | AJ6: =MIN(OFFSET(Male!AI$18,'Male - Rev'!$A6-35,0),0.03999) -> 0.0018 | AK6: =MIN(OFFSET(Male!AJ$18,'Male - Rev'!$A6-35,0),0.03999) -> 0.0002 | AL6: =MIN(OFFSET(Male!AK$18,'Male - Rev'!$A6-35,0),0.03999) -> -0.0013 | AM6: =MIN(OFFSET(Male!AL$18,'Male - Rev'!$A6-35,0),0.03999) -> -0.0027 | AN6: =MIN(OFFSET(Male!AM$18,'Male - Rev'!$A6-35,0),0.03999) -> -0.0039 | AO6: =MIN(OFFSET(Male!AN$18,'Male - Rev'!$A6-35,0),0.03999) -> -0.0049 | AP6: =MIN(OFFSET(Male!AO$18,'Male - Rev'!$A6-35,0),0.03999) -> -0.0057 | AQ6: =MIN(OFFSET(Male!AP$18,'Male - Rev'!$A6-35,0),0.03999) -> -0.0062 | AR6: =MIN(OFFSET(Male!AQ$18,'Male - Rev'!$A6-35,0),0.03999) -> -0.0065 | AS6: =MIN(OFFSET(Male!AR$18,'Male - Rev'!$A6-35,0),0.03999) -> -0.0065 | AT6: =MIN(OFFSET(Male!AS$18,'Male - Rev'!$A6-35,0),0.03999) -> -0.0062 | AU6: =MIN(OFFSET(Male!AT$18,'Male - Rev'!$A6-35,0),0.03999) -> -0.0056 | AV6: =MIN(OFFSET(Male!AU$18,'Male - Rev'!$A6-35,0),0.03999) -> -0.0047 | AW6: =MIN(OFFSET(Male!AV$18,'Male - Rev'!$A6-35,0),0.03999) -> -0.0035 | AX6: =MIN(OFFSET(Male!AW$18,'Male - Rev'!$A6-35,0),0.03999) -> -0.002 | AY6: =MIN(OFFSET(Male!AX$18,'Male - Rev'!$A6-35,0),0.03999) -> -0.0004 | AZ6: =MIN(OFFSET(Male!AY$18,'Male - Rev'!$A6-35,0),0.03999) -> 0.0013 | BA6: =MIN(OFFSET(Male!AZ$18,'Male - Rev'!$A6-35,0),0.03999) -> 0.0032 | BB6: =MIN(OFFSET(Male!BA$18,'Male - Rev'!$A6-35,0),0.03999) -> 0.0049 | BC6: =MIN(OFFSET(Male!BB$18,'Male - Rev'!$A6-35,0),0.03999) -> 0.0066 | BD6: =MIN(OFFSET(Male!BC$18,'Male - Rev'!$A6-35,0),0.03999) -> 0.008 | BE6: =MIN(OFFSET(Male!BD$18,'Male - Rev'!$A6-35,0),0.03999) -> 0.0091 | BF6: =MIN(OFFSET(Male!BE$18,'Male - Rev'!$A6-35,0),0.03999) -> 0.0099 | BG6: =MIN(OFFSET(Male!BF$18,'Male - Rev'!$A6-35,0),0.03999) -> 0.0103 | BH6: =MIN(OFFSET(Male!BG$18,'Male - Rev'!$A6-35,0),0.03999) -> 0.0103 | BI6: =MIN(OFFSET(Male!BH$18,'Male - Rev'!$A6-35,0),0.03999) -> 0.0101 | BJ6: =MIN(OFFSET(Male!BI$18,'Male - Rev'!$A6-35,0),0.03999) -> 0.0095 | BK6: =MIN(OFFSET(Male!BJ$18,'Male - Rev'!$A6-35,0),0.03999) -> 0.0087 | BL6: =MIN(OFFSET(Male!BK$18,'Male - Rev'!$A6-35,0),0.03999) -> 0.0078 | BM6: =MIN(OFFSET(Male!BL$18,'Male - Rev'!$A6-35,0),0.03999) -> 0.0067 | BN6: =MIN(OFFSET(Male!BM$18,'Male - Rev'!$A6-35,0),0.03999) -> 0.0056 | BO6: =MIN(OFFSET(Male!BN$18,'Male - Rev'!$A6-35,0),0.03999) -> 0.0045 | BP6: =MIN(OFFSET(Male!BO$18,'Male - Rev'!$A6-35,0),0.03999) -> 0.0044 | BQ6: =MIN(OFFSET(Male!BP$18,'Male - Rev'!$A6-35,0),0.03999) -> 0.0045 | BR6: =MIN(OFFSET(Male!BQ$18,'Male - Rev'!$A6-35,0),0.03999) -> 0.0046 | BS6: =MIN(OFFSET(Male!BR$18,'Male - Rev'!$A6-35,0),0.03999) -> 0.0049 | BT6: =MIN(OFFSET(Male!BS$18,'Male - Rev'!$A6-35,0),0.03999) -> 0.0053 | BU6: =MIN(OFFSET(Male!BT$18,'Male - Rev'!$A6-35,0),0.03999) -> 0.0057 | BV6: =MIN(OFFSET(Male!BU$18,'Male - Rev'!$A6-35,0),0.03999) -> 0.0062 | BW6: =MIN(OFFSET(Male!BV$18,'Male - Rev'!$A6-35,0),0.03999) -> 0.0065 | BX6: =MIN(OFFSET(Male!BW$18,'Male - Rev'!$A6-35,0),0.03999) -> 0.0069 | BY6: =MIN(OFFSET(Male!BX$18,'Male - Rev'!$A6-35,0),0.03999) -> 0.0071 | BZ6: =MIN(OFFSET(Male!BY$18,'Male - Rev'!$A6-35,0),0.03999) -> 0.0073 | CA6: =MIN(OFFSET(Male!BZ$18,'Male - Rev'!$A6-35,0),0.03999) -> 0.0075 | CB6: =MIN(OFFSET(Male!CA$18,'Male - Rev'!$A6-35,0),0.03999) -> 0.0078 | CC6: =MIN(OFFSET(Male!CB$18,'Male - Rev'!$A6-35,0),0.03999) -> 0.008 | CD6: =MIN(OFFSET(Male!CC$18,'Male - Rev'!$A6-35,0),0.03999) -> 0.0082 | CE6: =MIN(OFFSET(Male!CD$18,'Male - Rev'!$A6-35,0),0.03999) -> 0.0084 | CF6: =MIN(OFFSET(Male!CE$18,'Male - Rev'!$A6-35,0),0.03999) -> 0.0087 | CG6: =MIN(OFFSET(Male!CF$18,'Male - Rev'!$A6-35,0),0.03999) -> 0.0088 | CH6: =MIN(OFFSET(Male!CG$18,'Male - Rev'!$A6-35,0),0.03999) -> 0.0089 | CI6: =MIN(OFFSET(Male!CH$18,'Male - Rev'!$A6-35,0),0.03999) -> 0.009
A7: 91 | B7: 91 | C7: =MIN(OFFSET(Male!B$18,'Male - Rev'!$A7-35,0),0.03999) -> -0.0073 | D7: =MIN(OFFSET(Male!C$18,'Male - Rev'!$A7-35,0),0.03999) -> -0.0075 | E7: =MIN(OFFSET(Male!D$18,'Male - Rev'!$A7-35,0),0.03999) -> -0.0077 | F7: =MIN(OFFSET(Male!E$18,'Male - Rev'!$A7-35,0),0.03999) -> -0.0078 | G7: =MIN(OFFSET(Male!F$18,'Male - Rev'!$A7-35,0),0.03999) -> -0.0079 | H7: =MIN(OFFSET(Male!G$18,'Male - Rev'!$A7-35,0),0.03999) -> -0.0078 | I7: =MIN(OFFSET(Male!H$18,'Male - Rev'!$A7-35,0),0.03999) -> -0.0075 | J7: =MIN(OFFSET(Male!I$18,'Male - Rev'!$A7-35,0),0.03999) -> -0.007 | K7: =MIN(OFFSET(Male!J$18,'Male - Rev'!$A7-35,0),0.03999) -> -0.0063 | L7: =MIN(OFFSET(Male!K$18,'Male - Rev'!$A7-35,0),0.03999) -> -0.0053 | M7: =MIN(OFFSET(Male!L$18,'Male - Rev'!$A7-35,0),0.03999) -> -0.004 | N7: =MIN(OFFSET(Male!M$18,'Male - Rev'!$A7-35,0),0.03999) -> -0.0025 | O7: =MIN(OFFSET(Male!N$18,'Male - Rev'!$A7-35,0),0.03999) -> -0.0008 | P7: =MIN(OFFSET(Male!O$18,'Male - Rev'!$A7-35,0),0.03999) -> 0.001 | Q7: =MIN(OFFSET(Male!P$18,'Male - Rev'!$A7-35,0),0.03999) -> 0.0029 | R7: =MIN(OFFSET(Male!Q$18,'Male - Rev'!$A7-35,0),0.03999) -> 0.0049 | S7: =MIN(OFFSET(Male!R$18,'Male - Rev'!$A7-35,0),0.03999) -> 0.0068 | T7: =MIN(OFFSET(Male!S$18,'Male - Rev'!$A7-35,0),0.03999) -> 0.0085 | U7: =MIN(OFFSET(Male!T$18,'Male - Rev'!$A7-35,0),0.03999) -> 0.0101 | V7: =MIN(OFFSET(Male!U$18,'Male - Rev'!$A7-35,0),0.03999) -> 0.0114 | W7: =MIN(OFFSET(Male!V$18,'Male - Rev'!$A7-35,0),0.03999) -> 0.0125 | X7: =MIN(OFFSET(Male!W$18,'Male - Rev'!$A7-35,0),0.03999) -> 0.0132 | Y7: =MIN(OFFSET(Male!X$18,'Male - Rev'!$A7-35,0),0.03999) -> 0.0137 | Z7: =MIN(OFFSET(Male!Y$18,'Male - Rev'!$A7-35,0),0.03999) -> 0.0139 | AA7: =MIN(OFFSET(Male!Z$18,'Male - Rev'!$A7-35,0),0.03999) -> 0.0137 | AB7: =MIN(OFFSET(Male!AA$18,'Male - Rev'!$A7-35,0),0.03999) -> 0.0132 | AC7: =MIN(OFFSET(Male!AB$18,'Male - Rev'!$A7-35,0),0.03999) -> 0.0124 | AD7: =MIN(OFFSET(Male!AC$18,'Male - Rev'!$A7-35,0),0.03999) -> 0.0114 | AE7: =MIN(OFFSET(Male!AD$18,'Male - Rev'!$A7-35,0),0.03999) -> 0.0101 | AF7: =MIN(OFFSET(Male!AE$18,'Male - Rev'!$A7-35,0),0.03999) -> 0.0087 | AG7: =MIN(OFFSET(Male!AF$18,'Male - Rev'!$A7-35,0),0.03999) -> 0.0071 | AH7: =MIN(OFFSET(Male!AG$18,'Male - Rev'!$A7-35,0),0.03999) -> 0.0054 | AI7: =MIN(OFFSET(Male!AH$18,'Male - Rev'!$A7-35,0),0.03999) -> 0.0037 | AJ7: =MIN(OFFSET(Male!AI$18,'Male - Rev'!$A7-35,0),0.03999) -> 0.002 | AK7: =MIN(OFFSET(Male!AJ$18,'Male - Rev'!$A7-35,0),0.03999) -> 0.0005 | AL7: =MIN(OFFSET(Male!AK$18,'Male - Rev'!$A7-35,0),0.03999) -> -0.0009 | AM7: =MIN(OFFSET(Male!AL$18,'Male - Rev'!$A7-35,0),0.03999) -> -0.0022 | AN7: =MIN(OFFSET(Male!AM$18,'Male - Rev'!$A7-35,0),0.03999) -> -0.0032 | AO7: =MIN(OFFSET(Male!AN$18,'Male - Rev'!$A7-35,0),0.03999) -> -0.0041 | AP7: =MIN(OFFSET(Male!AO$18,'Male - Rev'!$A7-35,0),0.03999) -> -0.0047 | AQ7: =MIN(OFFSET(Male!AP$18,'Male - Rev'!$A7-35,0),0.03999) -> -0.0052 | AR7: =MIN(OFFSET(Male!AQ$18,'Male - Rev'!$A7-35,0),0.03999) -> -0.0054 | AS7: =MIN(OFFSET(Male!AR$18,'Male - Rev'!$A7-35,0),0.03999) -> -0.0053 | AT7: =MIN(OFFSET(Male!AS$18,'Male - Rev'!$A7-35,0),0.03999) -> -0.005 | AU7: =MIN(OFFSET(Male!AT$18,'Male - Rev'!$A7-35,0),0.03999) -> -0.0043 | AV7: =MIN(OFFSET(Male!AU$18,'Male - Rev'!$A7-35,0),0.03999) -> -0.0033 | AW7: =MIN(OFFSET(Male!AV$18,'Male - Rev'!$A7-35,0),0.03999) -> -0.0021 | AX7: =MIN(OFFSET(Male!AW$18,'Male - Rev'!$A7-35,0),0.03999) -> -0.0006 | AY7: =MIN(OFFSET(Male!AX$18,'Male - Rev'!$A7-35,0),0.03999) -> 0.0011 | AZ7: =MIN(OFFSET(Male!AY$18,'Male - Rev'!$A7-35,0),0.03999) -> 0.003 | BA7: =MIN(OFFSET(Male!AZ$18,'Male - Rev'!$A7-35,0),0.03999) -> 0.0048 | BB7: =MIN(OFFSET(Male!BA$18,'Male - Rev'!$A7-35,0),0.03999) -> 0.0066 | BC7: =MIN(OFFSET(Male!BB$18,'Male - Rev'!$A7-35,0),0.03999) -> 0.0083 | BD7: =MIN(OFFSET(Male!BC$18,'Male - Rev'!$A7-35,0),0.03999) -> 0.0097 | BE7: =MIN(OFFSET(Male!BD$18,'Male - Rev'!$A7-35,0),0.03999) -> 0.0107 | BF7: =MIN(OFFSET(Male!BE$18,'Male - Rev'!$A7-35,0),0.03999) -> 0.0114 | BG7: =MIN(OFFSET(Male!BF$18,'Male - Rev'!$A7-35,0),0.03999) -> 0.0116 | BH7: =MIN(OFFSET(Male!BG$18,'Male - Rev'!$A7-35,0),0.03999) -> 0.0115 | BI7: =MIN(OFFSET(Male!BH$18,'Male - Rev'!$A7-35,0),0.03999) -> 0.011 | BJ7: =MIN(OFFSET(Male!BI$18,'Male - Rev'!$A7-35,0),0.03999) -> 0.0102 | BK7: =MIN(OFFSET(Male!BJ$18,'Male - Rev'!$A7-35,0),0.03999) -> 0.0092 | BL7: =MIN(OFFSET(Male!BK$18,'Male - Rev'!$A7-35,0),0.03999) -> 0.008 | BM7: =MIN(OFFSET(Male!BL$18,'Male - Rev'!$A7-35,0),0.03999) -> 0.0068 | BN7: =MIN(OFFSET(Male!BM$18,'Male - Rev'!$A7-35,0),0.03999) -> 0.0055 | BO7: =MIN(OFFSET(Male!BN$18,'Male - Rev'!$A7-35,0),0.03999) -> 0.0042 | BP7: =MIN(OFFSET(Male!BO$18,'Male - Rev'!$A7-35,0),0.03999) -> 0.0042 | BQ7: =MIN(OFFSET(Male!BP$18,'Male - Rev'!$A7-35,0),0.03999) -> 0.0043 | BR7: =MIN(OFFSET(Male!BQ$18,'Male - Rev'!$A7-35,0),0.03999) -> 0.0046 | BS7: =MIN(OFFSET(Male!BR$18,'Male - Rev'!$A7-35,0),0.03999) -> 0.0049 | BT7: =MIN(OFFSET(Male!BS$18,'Male - Rev'!$A7-35,0),0.03999) -> 0.0054 | BU7: =MIN(OFFSET(Male!BT$18,'Male - Rev'!$A7-35,0),0.03999) -> 0.0058 | BV7: =MIN(OFFSET(Male!BU$18,'Male - Rev'!$A7-35,0),0.03999) -> 0.0063 | BW7: =MIN(OFFSET(Male!BV$18,'Male - Rev'!$A7-35,0),0.03999) -> 0.0067 | BX7: =MIN(OFFSET(Male!BW$18,'Male - Rev'!$A7-35,0),0.03999) -> 0.0071 | BY7: =MIN(OFFSET(Male!BX$18,'Male - Rev'!$A7-35,0),0.03999) -> 0.0074 | BZ7: =MIN(OFFSET(Male!BY$18,'Male - Rev'!$A7-35,0),0.03999) -> 0.0076 | CA7: =MIN(OFFSET(Male!BZ$18,'Male - Rev'!$A7-35,0),0.03999) -> 0.0078 | CB7: =MIN(OFFSET(Male!CA$18,'Male - Rev'!$A7-35,0),0.03999) -> 0.008 | CC7: =MIN(OFFSET(Male!CB$18,'Male - Rev'!$A7-35,0),0.03999) -> 0.0083 | CD7: =MIN(OFFSET(Male!CC$18,'Male - Rev'!$A7-35,0),0.03999) -> 0.0085 | CE7: =MIN(OFFSET(Male!CD$18,'Male - Rev'!$A7-35,0),0.03999) -> 0.0087 | CF7: =MIN(OFFSET(Male!CE$18,'Male - Rev'!$A7-35,0),0.03999) -> 0.0088 | CG7: =MIN(OFFSET(Male!CF$18,'Male - Rev'!$A7-35,0),0.03999) -> 0.0089 | CH7: =MIN(OFFSET(Male!CG$18,'Male - Rev'!$A7-35,0),0.03999) -> 0.009 | CI7: =MIN(OFFSET(Male!CH$18,'Male - Rev'!$A7-35,0),0.03999) -> 0.0091
